Workbook

Sheet SAMPLE_Log
A1: DEPT. | B1: AGENCY | C1: ALL WRITTEN REQUESTS (Exclude routine requests that are subject to agency's set fees or if no Notice to Requester was sent, e.g., birth certificates, UH transcripts) | K1: COMPLEX REQUESTS (Extenuating Circumstances) | M1: FINAL RESOLUTION OF REQUESTS | V1: SEARCH, REVIEW, SEGREGATION FEES (SRS) (No SRS fees chargeable for personal records requests, but keep track of time) | AF1: COPY/DELIVERY COSTS (Exclude SRS Fees) | AH1: TOTAL FEES AND COSTS (All Requests vs. Complex Requests) | AP1: DAYS TO COMPLETE REQUESTS | AT1: SEARCH, REVIEW & SEGREGATION HOURS INCURRED
A2: A | B2: B | C2: C | D2: D | E2: E | F2: F | G2: G | H2: H | I2: I | J2: J | K2: K | L2: L | M2: M | N2: N | O2: O | P2: P | Q2: Q | R2: R | S2: S | T2: T | U2: U | V2: V | W2: W | X2: X | Y2: Y | Z2: Z | AA2: AA | AB2: AB | AC2: AC | AD2: AD | AE2: AE | AF2: AF | AG2: AG | AH2: AH | AI2: AI | AJ2: AJ | AK2: AK | AL2: AL | AM2: AM | AN2: AN | AO2: AO | AP2: AP | AQ2: AQ | AR2: AR | AS2: AS | AT2: AT | AU2: AU | AV2: AV | AW2: AW | AX2: AX | AY2: AY | AZ2: AZ | BA2: BA
C3: # | D3: Requester Name or File # | E3: Employee ID | F3: Personal Records Request? | G3: Date Agency Received Request | H3: Date Agency's Notice Was Sent | I3: Agency 's Initial Response Sent Within 10 Work Days | J3: Request Needed Initial Clarification | K3: Complex Request? | L3: Agency Gave Incremental Responses? | M3: Date Completed | N3: # of Workdays to Complete | O3: Request Granted in Full | P3: Request Denied in Full | Q3: Request Denied in Part | R3: Agency Ultimately Unable to Respond | S3: Requester Withdrew | T3: Requester Abandoned or Failed to Pay | U3: UIPA Lawsuit Filed Against Agency? | V3: Actual Search Hours | W3: Actual Review/ Segre- gation Hours | X3: Actual Legal Review Hours | Y3: TOTAL Actual SRS & Legal Review Hours | Z3: TOTAL GROSS SRS Fees Incurred | AA3: Additional Response Fees Incurred But Not Chargeable | AB3: Minus $30 Fee Waiver | AC3: Minus $60 Fee Waiver | AD3: Fees for Personal Records | AE3: TOTAL NET SRS Fees CHARGEABLE | AF3: GROSS Copy/Delivery Costs that Agency INCURRED | AG3: NET Copy/Delivery Costs CHARGEABLE to Requester | AH3: TOTAL Fees & Costs ACTUALLY PAID by Requesters for ALL Requests | AI3: TOTAL NET Fees & Costs CHARGEABLE for ALL Requests | AJ3: TOTAL GROSS Fees & Costs Agency INCURRED for ALL Requests | AK3: TOTAL GROSS Fees & Costs INCURRED BUT NOT CHARGED for ALL Requests | AL3: TOTAL NET Fees & Costs ACTUALLY PAID for COMPLEX Requests | AM3: TOTAL NET Fees & Costs CHARGEABLE for COMPLEX Requests | AN3: TOTAL GROSS Fees & Costs INCURRED for COMPLEX Requests | AO3: TOTAL GROSS Fees & Costs INCURRED BUT NOT CHARGED for COMPLEX Requests | AP3: # of Workdays to Complete ALL Requests | AQ3: # of Workdays to Complete COMPLEX Requests | AR3: # of Workdays to Complete NONCOMPLEX, NONPERSONAL RECORD Requests | AS3: # of Workdays to Complete PERSONAL RECORD Requests | AT3: # of Search Hours Incurred for ALL Requests | AU3: # of Search Hours Incurred for COMPLEX Requests | AV3: # of Search Hours Incurred for NONCOMPLEX, NONPERSONAL RECORD Requests | AW3: # of Search Hours Incurred for PERSONAL RECORD Requests | AX3: # of Review & Segregation Hours Incurred for ALL Requests | AY3: # of Review & Segregation Hours Incurred for COMPLEX Requests | AZ3: # of Review & Segregation Hours Incurred for NONCOMPLEX, NONPERSONAL RECORD Requests | BA3: # of Review & Segregation Hours Incurred for PERSONAL RECORD Requests
A4: Start Log by selecting the department and agency from the drop-down list in boxes immediately above. Do this only once; do not enter data into the highlighted rows below. | D4: Description of data to be entered in each column è | E4: Initials ok | F4: If YES, enter ONLY ONE "x" per cell | G4: Enter ONLY ONE date by month/day/year | I4: If yes, enter ONLY ONE "x" per cell. If more than one "x" or if another symbol is entered in a cell, then data will not be properly counted in the column total amount. | M4: Enter ONLY ONE date by mo/day/year | N4: Automatically Calculated | O4: Check only ONE cell in Columns O thru T. If YES, enter ONLY ONE "x" in the cell. If more than one "x" or if another symbol is entered in a cell, then the data will not be properly counted in the column total amount. Column U may be checked in addition to one of Columns O thru T. | V4: Enter in 15-minute increments as follows: .25 = 15 minutes; .50 = 30 min.; .75 = 45 min.; 1.0 = 1 hour. Use period, not comma, when entering decimals, or amount will not be counted & #VALUE! will show in Col. Y | Y4: Automatically calculated | AA4: Estimate | AB4: Enter as negative numbers. Only one waiver per request. NO fee waivers for personal record requests in purple cells. | AD4: Automatically calculated. Negative number in ($ ) does NOT mean that a refund is due. | AF4: INCLUDE redacted copy costs. Gross should be greater than or equal to net costs. | AG4: EXCLUDE redacted copy costs. Net should be less than or equal to gross costs. | AH4: Enter amount paid by requesters, which may be less than Column AI allows | AI4: Automatically calculated | AP4: Automatically calculated | AT4: Automatically calculated
C5: 0 | D5: Example 1 (typical request) Kimo | E5: AB | G5: 2012-01-17 | I5: x | M5: 2012-01-17 | N5: =IF((NETWORKDAYS(G5,M5)>0),(NETWORKDAYS(G5,M5)),"") -> 1 | O5: x | V5: 0.25 | Y5: =V5+W5+X5 -> 0.25 | Z5: =(V5*10)+(W5*20) -> 2.5 | AB5: -30 | AD5: =IF(F5="x",(0-((V5*10)+(W5*20))),"") ->  | AE5: =IF(F5="x",0,(Z5+AB5+AC5)) -> -27.5 | AF5: 10 | AG5: 10 | AH5: 10 | AI5: =IF(AE5<=0,AG5,AE5+AG5) -> 10 | AJ5: =(X5*20)+Z5+AA5+AF5 -> 12.5 | AK5: =(AJ5-AH5) -> 2.5 | AL5: =IF(K5="x",AH5,0) -> 0 | AM5: =IF(K5="x",AI5,0) -> 0 | AN5: =IF(K5="x",AJ5,0) -> 0 | AO5: =IF(K5="x",AK5,0) -> 0 | AP5: =IF(N5>0,N5,"") -> 1 | AQ5: =IF(AND(K5="x",AP5>0),AP5,"") ->  | AR5: =IF(OR(K5="x",F5="X",AP5<=0),"",AP5) -> 1 | AS5: =IF(AND(F5="x",AP5>0),AP5,"") ->  | AT5: =IF(V5>0,V5,"") -> 0.25 | AU5: =IF(AND(K5="x",AT5>0),AT5,"") ->  | AV5: =IF(OR(K5="x",F5="x",AT5<=0),"",AT5) -> 0.25 | AW5: =IF(AND(F5="x",AT5>0),AT5,"") ->  | AX5: =IF(W5>0,W5,"") ->  | AY5: =IF(AND(K5="x",AX5>0),AX5,"") ->  | AZ5: =IF(OR(K5="x",F5="x",AX5<=0),"",AX5) ->  | BA5: =IF(AND(F5="x",AX5>0),AX5,"") -> 
C6: 00 | D6: Example 2 (personal record) Lee | E6: AB | F6: x | G6: 2012-01-18 | H6: 2012-02-10 | M6: 2012-02-10 | N6: =IF((NETWORKDAYS(G6,M6)>0),(NETWORKDAYS(G6,M6)),"") -> 18 | P6: x | V6: 0.5 | W6: 0.25 | Y6: =V6+W6+X6 -> 0.75 | Z6: =(V6*10)+(W6*20) -> 10 | AD6: =IF(F6="x",(0-((V6*10)+(W6*20))),"") -> -10 | AE6: =IF(F6="x",0,(Z6+AB6+AC6)) -> 0 | AF6: 15 | AG6: 5 | AH6: 5 | AI6: =IF(AE6<=0,AG6,AE6+AG6) -> 5 | AJ6: =(X6*20)+Z6+AA6+AF6 -> 25 | AK6: 20 | AL6: =IF(K6="x",AH6,0) -> 0 | AM6: =IF(K6="x",AI6,0) -> 0 | AN6: =IF(K6="x",AJ6,0) -> 0 | AO6: =IF(K6="x",AK6,0) -> 0 | AP6: =IF(N6>0,N6,"") -> 18 | AQ6: =IF(AND(K6="x",AP6>0),AP6,"") ->  | AR6: =IF(OR(K6="x",F6="X",AP6<=0),"",AP6) ->  | AS6: =IF(AND(F6="x",AP6>0),AP6,"") -> 18 | AT6: =IF(V6>0,V6,"") -> 0.5 | AV6: =IF(OR(K6="x",F6="x",AT6<=0),"",AT6) ->  | AW6: =IF(AND(F6="x",AT6>0),AT6,"") -> 0.5 | AX6: 0.25 | AY6: =IF(AND(K6="x",AX6>0),AX6,"") ->  | AZ6: =IF(OR(K6="x",F6="x",AX6<=0),"",AX6) ->  | BA6: =IF(AND(F6="x",AX6>=0),AX6,"") -> 0.25
C7: 000 | D7: Example 3 (not personal record) Anonymous birther | E7: AB | G7: 2012-01-19 | H7: 2012-01-22 | I7: x | M7: 2012-02-17 | N7: 22 | T7: x | V7: 0.75 | W7: 3 | Y7: =V7+W7+X7 -> 3.75 | Z7: =(V7*10)+(W7*20) -> 67.5 | AB7: -30 | AE7: 37.5 | AF7: 0 | AG7: 0 | AH7: 0 | AI7: 37.5 | AJ7: =(X7*20)+Z7+AA7+AF7 -> 67.5 | AK7: 67.5 | AL7: 0 | AM7: 0 | AN7: 0 | AO7: 0 | AP7: 22 | AQ7: =IF(AND(K7="x",AP7>0),AP7,"") ->  | AR7: 22 | AT7: 0.75 | AV7: 0.75 | AX7: 3 | AY7: =IF(AND(K7="x",AX7>0),AX7,"") ->  | AZ7: 3
C8: 0000 | D8: Example 4 (complex request) Honolulu News | E8: CD | G8: 2012-01-23 | H8: 2012-02-17 | I8: x | J8: x | K8: x | L8: x | M8: 2012-05-17 | N8: 84 | Q8: x | U8: x | V8: 95 | W8: 20.5 | X8: 15.5 | Y8: =V8+W8+X8 -> 131 | Z8: =(V8*10)+(W8*20) -> 1360 | AA8: 5000 | AC8: -60 | AE8: 1300 | AF8: 45 | AG8: 20 | AH8: 1315 | AI8: 1320 | AJ8: =(X8*20)+Z8+AA8+AF8 -> 6715 | AK8: =(AJ8-AH8) -> 5400 | AL8: 1315 | AM8: 1320 | AN8: 6715 | AO8: 5400 | AP8: 84 | AQ8: =IF(AND(K8="x",AP8>0),AP8,"") -> 84 | AT8: =IF(V8>0,V8,"") -> 95 | AU8: =IF(AND(K8="x",AT8>0),AT8,"") -> 95 | AX8: 20.5 | AY8: =IF(AND(K8="x",AX8>0),AX8,"") -> 20.5
C9: # of requests | D9: Description of "Totals" è | E9: Initials ok | F9: # of personal records | G9: # of requests | H9: # of notices sent (exclude Acknowledg-ments) | I9: # of Notices, Acknowledg-ments, or completions w/in 10 workdays | J9: # needed initial clarification | K9: # of complex requests | L9: # of requests with incremental responses | M9: # of completed requests | N9: # of workdays to complete ALL requests | O9: # granted | P9: # denied due to exception | Q9: # partially denied due to exception | R9: # agency unable to respond - no record or summary | S9: # withdrawn by requester | T9: # abandoned by requester or no payment | U9: # of lawsuits | V9: # of search hours | W9: # of review & segregation hours | X9: # of non-chargeable legal hours | Y9: # of SRS + legal hours | Z9: SRS gross fees incurred; excludes nonchargeable personal records | AA9: Nonchargeable addt'l fees | AB9: # of $30 waivers; no fractions | AC9: # of $60 waivers; no fractions | AD9: Nonchargeable PERSONAL records fees; NO positive $ | AE9: Net SRS fees chargeable; excludes negative $, legal review, personal records $ | AF9: Gross copy/delivery $ incurred | AG9: Net copy/delivery $ chargeable | AH9: $ actually paid by requesters | AI9: Net $ chargeable for ALL requests; excludes personal records | AJ9: Gross $ incurred for ALL requests; excludes personal records $, includes gross copy $ | AK9: $ unrecoverable for ALL requests | AL9: $ actually paid for complex requests | AM9: Net $ chargeable for complex requests | AN9: Gross $ incurred for complex requests | AO9: $ unrecoverable for complex requests | AP9: # of days to complete; ALL requests | AQ9: Days to complete; COMPLEX requests only | AR9: Days to complete; NONCOMPLEX requests | AS9: Days to complete; PERSONAL RECORD requests | AT9: Search hours; ALL requests | AU9: Search hours; COMPLEX requests | AV9: Search hours; NONCOMPLEX, NONPERSONAL RECORD requests | AW9: Search hours; PERSONAL RECORD requests | AX9: Review & segregation hours; ALL requests | AY9: Review & segregation hours; COMPLEX requests | AZ9: Review & segregation hours; NONCOMPLEX, NONPERSONAL RECORD requests | BA9: Review & segregation hours; PERSONAL RECORD requests
B10: =B3 -> 0 | C10: =COUNTA(D12:D1011) -> 4 | D10: TOTALS to upload è | F10: =COUNTIF(F12:F1011,"x") -> 1 | G10: =COUNTA(G12:G1011)-(COUNTA(G12:G1011)-COUNT(G12:G1011)) -> 4 | H10: =COUNTA(H12:H1011)-(COUNTA(H12:H1011)-COUNT(H12:H1011)) -> 3 | I10: =COUNTIF(I12:I1011,"x") -> 2 | J10: =COUNTIF(J12:J1011,"x") -> 1 | K10: =COUNTIF(K12:K1011,"x") -> 1 | L10: =COUNTIF(L12:L1011,"x") -> 0 | M10: =COUNTA(M12:M1011) -> 4 | N10: =SUM(AP12:AP1011) -> 125 | O10: =COUNTIF(O12:O1011,"x") -> 1 | P10: 1 | Q10: 1 | R10: 1 | S10: =COUNTIF(S12:S1011,"x") -> 0 | T10: 0 | U10: 1 | V10: =SUM(V12:V1011) -> 96.38 | W10: 24.1 | X10: 0 | Y10: =SUM(Y12:Y1011) ->  | Z10: 1429.8 | AA10: 5000 | AB10: =COUNTIF(AB12:AB1011,-30) -> 1 | AC10: =COUNTIF(AC12:AC1011,-60) -> 2 | AD10: =SUMIF(AD12:AD1011,"<0") -> -16 | AE10: =SUMIF(AE12:AE1011,">0") -> 1399.8 | AF10: 45 | AG10: 60 | AH10: 1390 | AI10: 1459.8 | AJ10: 94.8 | AK10: 79.8 | AL10: 1375 | AM10: 1345 | AN10: 0 | AO10: 0 | AP10: 125 | AQ10: 84 | AR10: 23 | AS10: 18 | AT10: 96.38 | AU10: 95 | AV10: 0.98 | AW10: 0.4 | AX10: =SUMIF(AX12:AX1011,">0") -> 24.1 | AY10: 20.5 | AZ10: 3 | BA10: 0.6
D11: AVERAGES è | N11: =N10/M10 -> 31.25 | V11: =AVERAGEIF(V12:V1011,"<>0") -> 24.095 | W11: 8.033333333 | Z11: 476.6 | AA11: 5000 | AD11: =AVERAGEIF(AD12:AD1011,"<0") -> -16 | AE11: =AVERAGEIF(AE12:AE1011,">0") -> 466.6 | AF11: 15 | AG11: 20 | AH11: 463.3333333 | AI11: 364.95 | AJ11: 31.6 | AK11: 26.6 | AL11: 1375 | AM11: 1345 | AP11: 31.25 | AQ11: 84 | AR11: 11.5 | AS11: 18 | AT11: 24.095 | AU11: 95 | AV11: 0.49 | AW11: 0.4 | AX11: 8.033333333 | AY11: 20.5 | AZ11: 3 | BA11: 0.6
C12: 1 | D12: Kimo | E12: AB | G12: 2012-01-17 | I12: x | M12: 2012-01-17 | N12: =IF((NETWORKDAYS(G12,M12)>0),(NETWORKDAYS(G12,M12)),"") -> 1 | O12: x | V12: 0.23 | Y12: =V12+W12+X12 -> 0.23 | Z12: =IF((F12="x"),0,((V12*10)+(W12*20))) -> 2.3 | AD12: =IF(F12="x",(0-((V12*10)+(W12*20))),"") ->  | AE12: =IF(F12="x",0,(Z12+AC12+AC12)) -> 2.3 | AF12: 10 | AG12: 10 | AH12: 10 | AI12: =IF(AE12<=0,AG12,AE12+AG12) -> 12.3 | AJ12: =(X12*20)+Z12+AA12+AF12 -> 12.3 | AK12: =AJ12-AH12 -> 2.3 | AL12: =IF(K12="x",AH12,0) -> 0 | AM12: =IF(K12="x",AI12,0) -> 0 | AN12: =IF(K12="x",AJ12,0) -> 0 | AO12: =IF(K12="x",AK12,0) -> 0 | AP12: =IF(N12>0,N12,"") -> 1 | AQ12: =IF(AND(K12="x",AP12>0),AP12,"") ->  | AR12: =IF(OR(K12="x",F12="x",AP12<=0),"",AP12) -> 1 | AS12: =IF(AND(F12="x",AP12>0),AP12,"") ->  | AT12: =IF(V12>0,V12,"") -> 0.23 | AU12: =IF(AND(K12="x",AT12>0),AT12,"") ->  | AV12: =IF(OR(K12="x",F12="x",AT12<=0),"",AT12) -> 0.23 | AW12: =IF(AND(F12="x",AT12>0),AT12,"") ->  | AX12: =IF(W12>0,W12,"") ->  | AY12: =IF(AND(K12="x",AX12>0),AX12,"") ->  | AZ12: =IF(OR(K12="x",F12="x",AX12<=0),"",AX12) ->  | BA12: =IF(AND(F12="x",AX12>0),AX12,"") ->  | BB12: SOH_ACCOUNTING_AND_GENERAL_SERVICES | BC12: SOH_AGRICULTURE | BD12: SOH_ATTORNEY_GENERAL | BE12: SOH_BUDGET_AND_FINANCE | BF12: SOH_BUSINESS_ECON_DEV_AND_TOURISM | BG12: SOH_COMMERCE_AND_CONSUMER_AFFAIRS | BH12: SOH_DEFENSE | BI12: SOH_EDUCATION | BJ12: SOH_GOVERNOR | BK12: SOH_HAWAIIAN_HOME_LANDS | BL12: SOH_HEALTH | BM12: SOH_HUMAN_RESOURCES_DEVELOPMENT | BN12: SOH_HUMAN_SERVICES | BO12: SOH_JUDICIARY | BP12: SOH_LABOR_AND_INDUSTRIAL_RELATIONS | BQ12: SOH_LAND_AND_NATURAL_RESOURCES | BR12: SOH_LT_GOVERNOR | BS12: SOH_PUBLIC_SAFETY | BT12: SOH_TAXATION | BU12: SOH_TRANSPORTATION | BV12: SOH_UNIVERSITY_OF_HAWAII | BW12: OFFICE_OF_HAWAIIAN_AFFAIRS | BX12: SOH_HAWAII_HEALTH_SYSTEMS_CORPORATION_HHSC
C13: 2 | D13: Lee | E13: AB | F13: x | G13: 2012-01-18 | H13: 2012-02-10 | M13: 2012-02-10 | N13: =IF((NETWORKDAYS(G13,M13)>0),(NETWORKDAYS(G13,M13)),"") -> 18 | P13: x | R13: x | V13: 0.4 | W13: 0.6 | Y13: 1 | Z13: 0 | AB13: -30 | AC13: -60 | AD13: -16 | AE13: =IF(F13="x",0,(Z13+AB13+AC13)) -> 0 | AF13: 15 | AG13: 5 | AH13: 5 | AI13: =IF(AE13<=0,AG13,AE13+AG13) -> 5 | AJ13: 15 | AK13: =AJ13-AH13 -> 10 | AL13: =IF(K13="x",AH13,0) -> 0 | AM13: =IF(K13="x",AI13,0) -> 0 | AN13: =IF(K13="x",AJ13,0) -> 0 | AO13: =IF(K13="x",AK13,0) -> 0 | AP13: =IF(N13>0,N13,"") -> 18 | AR13: =IF(OR(K13="x",F13="x",AP13<=0),"",AP13) ->  | AS13: =IF(AND(F13="x",AP13>0),AP13,"") -> 18 | AT13: =IF(V13>0,V13,"") -> 0.4 | AV13: =IF(OR(K13="x",F13="X",AT13<=0),"",AT13) ->  | AW13: =IF(AND(F13="x",AT13>0),AT13,"") -> 0.4 | AX13: =IF(W13>0,W13,"") -> 0.6 | AZ13: =IF(OR(K13="x",F13="x",AX13<=0),"",AX13) ->  | BA13: =IF(AND(F13="x",AX13>0),AX13,"") -> 0.6 | BB13: SOH/ ACCOUNTING & GENERAL SERVICES/ ACCOUNTING DIVISION/ ACCT-0 | BC13: SOH/ AGRICULTURE/ ACCOUNTING SEC. | BD13: SOH/ ATTORNEY GENERAL/ ADMINISTRATIVE SERVICES OFFICE/ ASO | BE13: SOH/ BUDGET & FINANCE/ ACCOUNTING BRANCH | BF13: SOH/ BUSINESS, ECON DEV, & TOURISM/ ADMINISTRATIVE SERVICES OFFICE/ ASO | BG13: SOH/ COMMERCE & CONSUMER AFFAIRS/ ACCOUNTING SERVICES/ DCCA-DIR-ACTG | BH13: SOH/ DEFENSE/ 111TH ARMY BAND | BI13: SOH/ EDUCATION/ SOH/ EDUCATION/ DOE | BJ13: SOH/ GOVERNORS OFFICE/ ADMINISTRATION AND OPERATIONS | BK13: SOH/ HAWAIIAN HOME LANDS/ SOH/ HAWAIIAN HOME LANDS/ HHL | BL13: SOH/ HEALTH/ ADMIN SVCS OFFICE | BM13: SOH/ HUMAN RESOURCES DEVELOPMENT/ ADMINISTRATIVE SERVICES OFFICE/ DHRD-ASO | BN13: SOH/ HUMAN SERVICES/ SOH/ HUMAN SERVICES/ DHS | BO13: SOH/ JUDICIARY/ SOH/ JUDICIARY | BP13: SOH/ LABOR & INDUSTRIAL RELATIONS/ SOH/ LABOR & INDUSTRIAL RELATIONS/ DLIR | BQ13: SOH/ LAND & NATURAL RESOURCES/ SOH/ LAND & NATURAL RESOURCES/ DLNR | BR13: SOH/ LT GOVERNORS OFFICE/ SOH/ LT GOVERNORS OFFICE/ OLG | BS13: SOH/ PUBLIC SAFETY/ SOH/ PUBLIC SAFETY/ PSD | BT13: SOH/ TAXATION/ SOH/ TAXATION/ TAX | BU13: SOH/ TRANSPORTATION/ SOH/ TRANSPORTATION/ DOT | BV13: SOH/ UNIVERSITY OF HAWAII/ SOH/ UNIVERSITY OF HAWAII/ UH | BW13: OFFICE OF HAWAIIAN AFFAIRS/ OFFICE OF HAWAIIAN AFFAIRS/ OHA | BX13: SOH/ HAWAII HEALTH SYSTEMS CORPORATION/ HHSC
C14: 3 | D14: Anonymous | E14: AB | F14: yes | G14: 2012-01-19 | H14: 2012-01-22 | I14: xx | J14: ? | M14: 2012-02-17 | N14: 22 | T14: z | V14: 0.75 | W14: 3 | Y14: 3.75 | Z14: 67.5 | AB14: 30 | AE14: 97.5 | AF14: 0 | AG14: 0 | AH14: 0 | AI14: 97.5 | AJ14: 67.5 | AK14: 67.5 | AL14: 0 | AM14: 0 | AN14: 0 | AO14: 0 | AP14: 22 | AR14: 22 | AT14: 0.75 | AV14: 0.75 | AX14: 3 | AZ14: 3 | BB14: SOH/ ACCOUNTING & GENERAL SERVICES/ ADM SERVICES OFF/ STAD-1 | BC14: SOH/ AGRICULTURE/ ADMINISTRATIVE SERVICES OFFICE/ ASO | BD14: SOH/ ATTORNEY GENERAL/ CHILD SUPPORT ENFORCEMENT AGENCY/ CSEA | BE14: SOH/ BUDGET & FINANCE/ ADMIN AND RSRCH OFC/ ARO | BF14: SOH/ BUSINESS, ECON DEV, & TOURISM/ ALOHA TOWER DEVELOPMENT CORP/ ATDC | BG14: SOH/ COMMERCE & CONSUMER AFFAIRS/ ACCREDITATION SECTION/ DCCA-INS-ACC | BH14: SOH/ DEFENSE/ 117TH PUBLIC AFFAIRS DETACHMENT/ 117 PAD | BI14: SOH/ EDUCATION/ BD OF EDUCATION/ BOE | BJ14: SOH/ GOVERNORS OFFICE/ BOARDS & COMMISSIONS | BK14: SOH/ HAWAIIAN HOME LANDS/ HAWAIIAN HOMES COMMISSION/ HHC | BL14: SOH/ HEALTH/ ADULT MENTAL HEALTH DIV | BM14: SOH/ HUMAN RESOURCES DEVELOPMENT/ BD TRUSTEES ST DEF COMP PLAN/ DHRD-DCP | BN14: SOH/ HUMAN SERVICES/ OFFICE OF THE DIRECTOR/ DHS-DIR | BO14: SOH/ JUDICIARY/ ADMINISTRATIVE DIRECTOR | BP14: SOH/ LABOR & INDUSTRIAL RELATIONS/ OFFICE OF THE DIRECTOR/ DLIR-DIR | BQ14: SOH/ LAND & NATURAL RESOURCES/ OFFICE OF THE CHAIRPERSON/ ACO | BR14: SOH/ LT GOVERNORS OFFICE/ OFFICE OF THE LIEUTENANT GOVERNOR | BS14: SOH/ PUBLIC SAFETY/ DIRECTORS OFFICE/ DIR | BT14: SOH/ TAXATION/ OFFICE OF DIRECTOR | BU14: SOH/ TRANSPORTATION/ OFFICE OF DIRECTOR/ DIR | BV14: SOH/ UNIVERSITY OF HAWAII/ BOARD OF REGENTS | BW14: OFFICE OF HAWAIIAN AFFAIRS/ BOARD OF TRUSTEES/ BOT | BX14: SOH/ HAWAII HEALTH SYSTEMS CORPORATION/ EAST HAWAII REGION
C15: 4 | D15: Honolulu News | E15: CD | G15: 2012-01-23 | H15: 2012-02-17 | I15: x | J15: x | K15: x | L15: 3 | M15: 2012-05-17 | N15: 84 | Q15: x | U15: x | V15: 95 | W15: 20.5 | X15: 15,50 | Y15: =V15+W15+X15 ->  | Z15: 1360 | AA15: 5000 | AC15: -60 | AE15: 1300 | AF15: 20 | AG15: 45 | AH15: 1375 | AI15: 1345 | AL15: 1375 | AM15: 1345 | AP15: =IF(N15>0,N15,"") -> 84 | AQ15: 84 | AT15: 95 | AU15: 95 | AX15: 20.5 | AY15: 20.5 | BB15: SOH/ ACCOUNTING & GENERAL SERVICES/ ADM SERVICES OFFICE/ ASO-0 | BC15: SOH/ AGRICULTURE/ ADMINISTRATIVE SERVICES/ ARMDA | BD15: SOH/ ATTORNEY GENERAL/ CHILD SUPPORT HEARINGS/ CSH | BE15: SOH/ BUDGET & FINANCE/ ADMINISTRATIVE RESEARCH STAFF | BF15: SOH/ BUSINESS, ECON DEV, & TOURISM/ ALTERNATE ENERGY BRANCH | BG15: SOH/ COMMERCE & CONSUMER AFFAIRS/ ADMINISTRATION/ DCCA-BREG-ADM | BH15: SOH/ DEFENSE/ 150 AIRCRAFT CNTRL & WARNING SQDRN/ 150 ACWS/CC | BI15: SOH/ EDUCATION/ OFFICE OF THE SUPT/ SUPT | BJ15: SOH/ GOVERNORS OFFICE/ BUSINESS SERVICES | BK15: SOH/ HAWAIIAN HOME LANDS/ OFFICE OF THE CHAIRMAN | BL15: SOH/ HEALTH/ ALCOHOL & DRUG ABUSE DIV | BM15: SOH/ HUMAN RESOURCES DEVELOPMENT/ EMPLOYEE CLAIMS DIV/ DRHD-ECD | BN15: SOH/ HUMAN SERVICES/ FISCAL MANAGEMENT OFFICE/ DHS-FMO | BO15: SOH/ JUDICIARY/ DEPUTY DIRECTOR | BP15: SOH/ LABOR & INDUSTRIAL RELATIONS/ PERSONNEL OFFICE/ DLIR-PO | BQ15: SOH/ LAND & NATURAL RESOURCES/ BOARD OF LAND & NATURAL RESOURCES/ ABO | BR15: SOH/ LT GOVERNORS OFFICE/ OFFICE OF INFORMATION PRACTICES/ OIP | BS15: SOH/ PUBLIC SAFETY/ EXECUTIVE ASSISTANT/ DIR-E | BT15: SOH/ TAXATION/ ADM SERV OFF | BU15: SOH/ TRANSPORTATION/ EXEC ASSISTANT/ DIR-EA | BV15: SOH/ UNIVERSITY OF HAWAII/ RESEARCH CORP OF THE UNIV OF HAWAII/ UH/RCUH | BW15: OFFICE OF HAWAIIAN AFFAIRS/ ADMINISTRATION/ ADM | BX15: SOH/ HAWAII HEALTH SYSTEMS CORPORATION/ WEST HAWAII REGION
C16: 5 | Y16: 0 | Z16: 0 | AE16: 0 | AI16: 0 | AJ16: 0 | AK16: 0 | AL16: 0 | AM16: 0 | AN16: 0 | AO16: 0 | AP16: =IF(N16>0,N16,"") ->  | AV16: =IF(OR(K16="x",F16="x",AT16<=0),"",AT16) ->  | BB16: SOH/ ACCOUNTING & GENERAL SERVICES/ APPLICATIONS DEV TECH SUPP OFC/ICSD | BC16: SOH/ AGRICULTURE/ ADMINISTRATIVE SVCS/ AGLNADM | BD16: SOH/ ATTORNEY GENERAL/ CIVIL RECOVERIES - ASBESTOS | BE16: SOH/ BUDGET & FINANCE/ ANALYTIC STAFF | BF16: SOH/ BUSINESS, ECON DEV, & TOURISM/ BUS DEVELOPMENT & MARKET DIV/ BD&M | BG16: SOH/ COMMERCE & CONSUMER AFFAIRS/ ADMINISTRATION/ DCCA-DIR-ADM | BH16: SOH/ DEFENSE/ 154 TACTICAL CNTRL SQDRN (BRKG SND)/ 154 TCS/CC | BI16: SOH/ EDUCATION/ MGMT ANALYSIS & COMPL | BJ16: SOH/ GOVERNORS OFFICE/ CAPITOL TOUR PROGRAM | BK16: SOH/ HAWAIIAN HOME LANDS/ PLANNING OFFICE | BL16: SOH/ HEALTH/ BEHAVIORAL HEALTH ADMIN | BM16: SOH/ HUMAN RESOURCES DEVELOPMENT/ EMPLOYEE CLASS & COMPENSATION DIV/ DHRD-ECCD | BN16: SOH/ HUMAN SERVICES/ ACCOUNTING STAFF/ DHS-FMO-ACCTG | BO16: SOH/ JUDICIARY/ JUDICIAL CONDUCT COMMISSION | BP16: SOH/ LABOR & INDUSTRIAL RELATIONS/ PERSONNEL STAFF | BQ16: SOH/ LAND & NATURAL RESOURCES/ PUBLIC INFORMATION OFFICE/ API | BS16: SOH/ PUBLIC SAFETY/ INTERNAL AFFAIRS OFFICE/ IAO | BT16: SOH/ TAXATION/ BUDGET ACC & DUPL STAF | BU16: SOH/ TRANSPORTATION/ COMMUNITY AFFAIRS OFFICE/ DIR-P | BV16: SOH/ UNIVERSITY OF HAWAII/ OFFICE OF THE PRESIDENT/ UH/PRES | BW16: OFFICE OF HAWAIIAN AFFAIRS/ DEPUTY ADMIN - BENEFICIARY ADVOCACY | BX16: SOH/ HAWAII HEALTH SYSTEMS CORPORATION/ MAUI REGION
C17: 6 | Y17: 0 | Z17: 0 | AE17: 0 | AI17: 0 | AJ17: 0 | AK17: 0 | AL17: 0 | AM17: 0 | AN17: 0 | AO17: 0 | AV17: =IF(OR(K17="x",F17="x",AT17<=0),"",AT17) ->  | BB17: SOH/ ACCOUNTING & GENERAL SERVICES/ APPLICATIONS/ICSD | BC17: SOH/ AGRICULTURE/ ADMINISTRATIVE SVCS/ AGRPIADMIN | BD17: SOH/ ATTORNEY GENERAL/ CIVIL RECOVERIES - COLLECTIONS | BE17: SOH/ BUDGET & FINANCE/ AUDIT SECTION | BF17: SOH/ BUSINESS, ECON DEV, & TOURISM/ BUSINESS ANALYSIS & MARKETING BRNCH | BG17: SOH/ COMMERCE & CONSUMER AFFAIRS/ ADMINISTRATION/ DCCA-INS-ADM | BH17: SOH/ DEFENSE/ 154 TACTICAL HOSPITAL (HICKAM)/ 154 HOSP/CC | BI17: SOH/ EDUCATION/ ACCRED & PRIV SCH LICENS | BJ17: SOH/ GOVERNORS OFFICE/ CHIEF OF STAFF | BK17: SOH/ HAWAIIAN HOME LANDS/ ADMINISTRATIVE SERVICES OFFICE | BL17: SOH/ HEALTH/ BIOTERRORISM PREPARDNESS &RESPNS BR | BM17: SOH/ HUMAN RESOURCES DEVELOPMENT/ EMPLOYEE RELATIONS DIV/ DHRD-ERD | BN17: SOH/ HUMAN SERVICES/ PROGRAM ACCOUNTING SECTION 1/ DHS-FMO-PAS1 | BO17: SOH/ JUDICIARY/ JUDICIAL SELECTION COMMISSION | BP17: SOH/ LABOR & INDUSTRIAL RELATIONS/ TRAINING STAFF | BQ17: SOH/ LAND & NATURAL RESOURCES/ CONSERVATION & ENVIRONMENTL AFFAIRS/ ACE | BS17: SOH/ PUBLIC SAFETY/ DEPUTY DIRECTOR FOR ADMINISTRATION/ DEP-A | BT17: SOH/ TAXATION/ PERSONNEL STAFF | BU17: SOH/ TRANSPORTATION/ OFC OF SPECIAL COMPLIANCE/ DIR-CZ | BV17: SOH/ UNIVERSITY OF HAWAII/ OFC OF VP LEGAL AFFAIRS & U GEN CNS/ UH/LEGAL | BW17: OFFICE OF HAWAIIAN AFFAIRS/ HEALTH, HUMAN SVCS, HOUSING & EDUCA/ HHSHE | BX17: SOH/ HAWAII HEALTH SYSTEMS CORPORATION/ OAHU REGION
C18: 7 | Y18: 0 | Z18: 0 | AE18: 0 | AI18: 0 | AJ18: 0 | AK18: 0 | AL18: 0 | AM18: 0 | AN18: 0 | AO18: 0 | BB18: SOH/ ACCOUNTING & GENERAL SERVICES/ ARCH-DESIGN SECTION/ DPW-13 | BC18: SOH/ AGRICULTURE/ ADMINISTRATIVE SVCS/ DAI/ADM | BD18: SOH/ ATTORNEY GENERAL/ CIVIL RECOVERIES - STATE CLAIMS | BE18: SOH/ BUDGET & FINANCE/ BOARD OF TRUSTEES | BF18: SOH/ BUSINESS, ECON DEV, & TOURISM/ BUSINESS ATTRACTION BRANCH | BG18: SOH/ COMMERCE & CONSUMER AFFAIRS/ ADMINISTRATION/ DCCA-OAH-ADM | BH18: SOH/ DEFENSE/ 154TH COMPOSITE GROUP/ 154 CGP/CC | BI18: SOH/ EDUCATION/ BUDGET BRANCH | BJ18: SOH/ GOVERNORS OFFICE/ COMMUNICATIONS | BK18: SOH/ HAWAIIAN HOME LANDS/ PERSONNEL STAFF | BL18: SOH/ HEALTH/ CASE MGMT & INFO SVCS MAUI | BM18: SOH/ HUMAN RESOURCES DEVELOPMENT/ EMPLOYEE STAFFING DIV/ DHRD-ESD | BN18: SOH/ HUMAN SERVICES/ PROGRAM ACCOUNTING SECTION 2/ DHS-FMO-PAS2 | BO18: SOH/ JUDICIARY/ SUPPORT SERVICES DIVISION | BP18: SOH/ LABOR & INDUSTRIAL RELATIONS/ MGMT DEVELOPMENT STAFF | BQ18: SOH/ LAND & NATURAL RESOURCES/ ADMINISTRATIVE SERVICES OFFICE/ ASO | BS18: SOH/ PUBLIC SAFETY/ DEPUTY DIRECTOR FOR CORRECTIONS/ DEP-C | BT18: SOH/ TAXATION/ TECHNICAL REVIEW OFC | BU18: SOH/ TRANSPORTATION/ HAZARDOUS MATERIALS PROGRAM/ DIR-CZ | BV18: SOH/ UNIVERSITY OF HAWAII/ EQUAL EMPLOY OPP/ AFFIRM ACTION/ UH-EEO/AA | BW18: OFFICE OF HAWAIIAN AFFAIRS/ ECONOMIC DEVELOPMENT/ ED | BX18: SOH/ HAWAII HEALTH SYSTEMS CORPORATION/ KAUAI REGION
C19: 8 | Y19: 0 | Z19: 0 | AE19: 0 | AI19: 0 | AJ19: 0 | AK19: 0 | AL19: 0 | AM19: 0 | AN19: 0 | AO19: 0 | BB19: SOH/ ACCOUNTING & GENERAL SERVICES/ ARCHIVES DIVISION/ ARCH-0 | BC19: SOH/ AGRICULTURE/ ADMINISTRATIVE SVCS/ MKTG ADM | BD19: SOH/ ATTORNEY GENERAL/ CIVIL RECOVERIES/ CRD | BE19: SOH/ BUDGET & FINANCE/ BOARD OF TRUSTEES | BF19: SOH/ BUSINESS, ECON DEV, & TOURISM/ BUSINESS INFORMATION SERVICES/ BIS | BG19: SOH/ COMMERCE & CONSUMER AFFAIRS/ ADMINISTRATION/ DCCA-OCP-ADM | BH19: SOH/ DEFENSE/ 169 AIRCRAFT CNTRL & WARNING SQDRN/ 169 ACWS/CC | BI19: SOH/ EDUCATION/ BUDGET PREP SECTION | BJ19: SOH/ GOVERNORS OFFICE/ EXECUTIVE CHAMBERS | BK19: SOH/ HAWAIIAN HOME LANDS/ BUDGET & PROG EVALUATION STAFF | BL19: SOH/ HEALTH/ CASE MGMT BR | BM19: SOH/ HUMAN RESOURCES DEVELOPMENT/ INFORMATION SYSTEMS OFFICE/ DRHD-ISO | BN19: SOH/ HUMAN SERVICES/ COLLECTIONS & RECOVERY SECTION/ DHS-FMO-C&R | BO19: SOH/ JUDICIARY/ ADMIN FISCAL OFFICE | BP19: SOH/ LABOR & INDUSTRIAL RELATIONS/ ADMIN SVCS OFC/ DLIR-ASO | BQ19: SOH/ LAND & NATURAL RESOURCES/ ASO DATA PROCESSING STAFF/ ASD | BS19: SOH/ PUBLIC SAFETY/ DEPUTY DIRECTOR FOR LAW ENFORCEMENT/ DEP-E | BT19: SOH/ TAXATION/ TAX RES & PLAN OFF | BU19: SOH/ TRANSPORTATION/ ENVIRONMENTAL COMPLIANCE PROGRAM | BV19: SOH/ UNIVERSITY OF HAWAII/ RISK MANAGEMENT/ UH/RISK | BW19: OFFICE OF HAWAIIAN AFFAIRS/ NATIVE RIGHTS LAND & CULTURE/ NRLC | BX19: SOH/ HAWAII HEALTH SYSTEMS CORPORATION/ CORPORATE OFFICE
C20: 9 | Y20: 0 | Z20: 0 | AD20: =IF(F20="x",(0-((V20*10)+(W20*20))),"") ->  | AE20: 0 | AI20: 0 | AJ20: 0 | AK20: 0 | AL20: 0 | AM20: 0 | AN20: 0 | AO20: 0 | BB20: SOH/ ACCOUNTING & GENERAL SERVICES/ ART IN PUBLIC PLACES/ SFCA-2 | BC20: SOH/ AGRICULTURE/ ADMINISTRATIVE SVCS/ MSA | BD20: SOH/ ATTORNEY GENERAL/ CIVIL RIGHTS LITIGATION/ CRL | BE20: SOH/ BUDGET & FINANCE/ BONDS ADMINISTRATION BRANCH | BF20: SOH/ BUSINESS, ECON DEV, & TOURISM/ BUSINESS OFFICE/ BO | BG20: SOH/ COMMERCE & CONSUMER AFFAIRS/ ADMINISTRATION/ DCCA-PVL-ADM | BH20: SOH/ DEFENSE/ 201ST COMBAT COMMUNICATION GROUP/ 201 CCGP | BI20: SOH/ EDUCATION/ BUDGET EXEC SECTION | BJ20: SOH/ GOVERNORS OFFICE/ NEIGHBOR ISLAND LIAISON OFFICES | BK20: SOH/ HAWAIIAN HOME LANDS/ INFO & COMMUNICATIONS SYS ST | BL20: SOH/ HEALTH/ CENTRAL OAHU FAMILY GUIDANCE CTR BR | BM20: SOH/ HUMAN RESOURCES DEVELOPMENT/ MERIT APPEALS BOARD/ DHRD-MAB | BN20: SOH/ HUMAN SERVICES/ BENEFITS PAYMENT PROCESSING/ DHS-FMO-BPP | BO20: SOH/ JUDICIARY/ FINANCIAL SERVICES DIV | BP20: SOH/ LABOR & INDUSTRIAL RELATIONS/ OFFICE SVCS STAFF | BQ20: SOH/ LAND & NATURAL RESOURCES/ BUREAU OF CONVEYANCES/ BOC | BS20: SOH/ PUBLIC SAFETY/ BUSINESS MANAGEMENT OFFICE/ BUS | BT20: SOH/ TAXATION/ SYSTEMS & PROCED OFF | BU20: SOH/ TRANSPORTATION/ OFFICE OF CIVIL RIGHTS/ OCR | BV20: SOH/ UNIVERSITY OF HAWAII/ OFC OF VP FOR RESEARCH/ UH/VP-RES | BW20: OFFICE OF HAWAIIAN AFFAIRS/ HAWAIIAN GOVERNANCE/ HG
C21: 10 | Y21: 0 | Z21: 0 | AE21: 0 | AI21: 0 | AJ21: =(X21*20)+Z21+AA21+AF21 -> 0 | AK21: 0 | AL21: 0 | AM21: 0 | AN21: 0 | AO21: 0 | BB21: SOH/ ACCOUNTING & GENERAL SERVICES/ AUDIT DIVISION/ AUD | BC21: SOH/ AGRICULTURE/ AGR PARK BR/ ARMDAP | BD21: SOH/ ATTORNEY GENERAL/ CPJA - GRANTS & PLANNING/ CPJA - G&P | BE21: SOH/ BUDGET & FINANCE/ BUDGET, PROG PLNG & MGMT DIV | BF21: SOH/ BUSINESS, ECON DEV, & TOURISM/ BUSINESS SERVICES DIVISION/ BSD | BG21: SOH/ COMMERCE & CONSUMER AFFAIRS/ ADMINISTRATION/ DCCA-RICO-ADM | BH21: SOH/ DEFENSE/ 203 AIR REFUELING SQUADRON (HICKAM)/ 203 ARS/CC | BI21: SOH/ EDUCATION/ PLANNING & EVAL BR | BJ21: SOH/ GOVERNORS OFFICE/ OFFICE OF COLLECTIVE BARGAINING/ OCB | BK21: SOH/ HAWAIIAN HOME LANDS/ CONTRACT SERVICES STAFF | BL21: SOH/ HEALTH/ CHILD & ADOLESCENT MENTAL HLTH DIV | BM21: SOH/ HUMAN RESOURCES DEVELOPMENT/ OFFICE OF THE DIRECTOR/ DHRD-DIR | BN21: SOH/ HUMAN SERVICES/ MONEY PAYMENTS SECTION/ DHS-FMO-MONPS | BO21: SOH/ JUDICIARY/ HUMAN RESOURCES DIV | BP21: SOH/ LABOR & INDUSTRIAL RELATIONS/ FISCAL STAFF | BQ21: SOH/ LAND & NATURAL RESOURCES/ REGULAR RECORDING BRANCH/ BRS | BS21: SOH/ PUBLIC SAFETY/ FISCAL & SUPPLY SERVICES STAFF/ BUS-F | BT21: SOH/ TAXATION/ TAX SERV/PROCESSG DIV | BU21: SOH/ TRANSPORTATION/ AMERICANS WITH DISABILITIES PROGRAM/ OCR-A | BV21: SOH/ UNIVERSITY OF HAWAII/ OFFICE OF RESEARCH SERVICES/ UH/RES-SVCS | BW21: OFFICE OF HAWAIIAN AFFAIRS/ DEPUTY ADMINISTRATOR - OPERATIONS
C22: 11 | Y22: 0 | Z22: 0 | AE22: 0 | AI22: 0 | AJ22: =(X22*20)+Z22+AA22+AF22 -> 0 | AK22: 0 | AL22: 0 | AM22: 0 | AN22: 0 | AO22: 0 | BB22: SOH/ ACCOUNTING & GENERAL SERVICES/ AUTOMOTIVE MANAGE DIV/ AUTO-0 | BC22: SOH/ AGRICULTURE/ AGRI RESOURCE MGMT DIV/ ARMD | BD22: SOH/ ATTORNEY GENERAL/ CPJA - JJIS/ CPJA - JJIS | BE22: SOH/ BUDGET & FINANCE/ BUDGET, SYSTEMS & MGMT SVCS STAFF | BF22: SOH/ BUSINESS, ECON DEV, & TOURISM/ COMM, AGENCIES & OTHER PROJECTS | BG22: SOH/ COMMERCE & CONSUMER AFFAIRS/ APPLICATION SECTION/ DCCA-PVL-APP | BH22: SOH/ DEFENSE/ 291 COMBAT COMMUNICATION SQDRN (HI)/ 291 CCSQ/CC | BI22: SOH/ EDUCATION/ PLANNING SEC | BJ22: SOH/ GOVERNORS OFFICE/ OFFICE OF INFORMATION & ASSISTANCE | BK22: SOH/ HAWAIIAN HOME LANDS/ CLERICAL SERVICES STAFF | BL22: SOH/ HEALTH/ CHILDREN WITH SPEC HEALTH NEEDS BR | BM22: SOH/ HUMAN RESOURCES DEVELOPMENT/ SOH/ HUMAN RESOURCES DEVELOPMENT/ DHRD | BN22: SOH/ HUMAN SERVICES/ MEDICAL PAYMENTS SECTION/ DHS-FMO-MEDPS | BO22: SOH/ JUDICIARY/ INFO TECHNOLOGY & COMMUNICATNS DIV/ ITCD | BP22: SOH/ LABOR & INDUSTRIAL RELATIONS/ STATE PROGRAM SEC | BQ22: SOH/ LAND & NATURAL RESOURCES/ REG RECEIVING BR/ BRR | BS22: SOH/ PUBLIC SAFETY/ ACCOUNTING SECTION/ BUS-F | BT22: SOH/ TAXATION/ REVENUE ACCTG BR | BU22: SOH/ TRANSPORTATION/ DISADVANTAGED BUSINESS ENTRPRSE PRG/ OCR-D | BV22: SOH/ UNIVERSITY OF HAWAII/ OFC TECH TRANSFER & ECON DEVELOP/ UH/TECH-ECON | BW22: OFFICE OF HAWAIIAN AFFAIRS/ TREASURY & OTHER SERVICES/ TOS
C23: 12 | Y23: 0 | Z23: 0 | AE23: 0 | AI23: 0 | AJ23: 0 | AK23: 0 | AL23: 0 | AM23: 0 | AN23: 0 | AO23: 0 | BB23: SOH/ ACCOUNTING & GENERAL SERVICES/ AUTOMOTIVE MGMT BR/ HAW-7 | BC23: SOH/ AGRICULTURE/ AGRIBUSINESS DEVELOPMENT CORP/ ADC | BD23: SOH/ ATTORNEY GENERAL/ CPJA/ CPJA | BE23: SOH/ BUDGET & FINANCE/ CAPITAL IMPRVMNT PROJECTS (CIP) BR | BF23: SOH/ BUSINESS, ECON DEV, & TOURISM/ COMMUNICATIONS & PUBLICATIONS OFC | BG23: SOH/ COMMERCE & CONSUMER AFFAIRS/ BUSINESS REGISTRATION DIVISION/ DCCA-BREG | BH23: SOH/ DEFENSE/ 292 COMBAT COMMUNICA SQDRN (MAUI)/ 292 CCSQ/CC | BI23: SOH/ EDUCATION/ SPEC PROGS MGMT SEC | BJ23: SOH/ GOVERNORS OFFICE/ POLICY | BK23: SOH/ HAWAIIAN HOME LANDS/ FISCAL OFFICE | BL23: SOH/ HEALTH/ CHRONIC DISEASE MGT & CONTROL BR | BN23: SOH/ HUMAN SERVICES/ PRE-AUDIT STAFF/ DHS-FMO-PA | BO23: SOH/ JUDICIARY/ POLICY & PLANNING DIVISION | BP23: SOH/ LABOR & INDUSTRIAL RELATIONS/ FEDERAL PROGRAMS SEC | BQ23: SOH/ LAND & NATURAL RESOURCES/ ABSTRACTING SEC/ BRA | BS23: SOH/ PUBLIC SAFETY/ AUDITING SECTION/ BUS-F | BT23: SOH/ TAXATION/ ACCTG SEC | BU23: SOH/ TRANSPORTATION/ TITLE VI PROGRAM/ OCR-T | BV23: SOH/ UNIVERSITY OF HAWAII/ OFC OF VP FOR IT/CIO/ UH/VP IT/CIO | BW23: OFFICE OF HAWAIIAN AFFAIRS/ COMMUNITY RESOURCE COORDINATORS/ CRC
C24: 13 | Y24: 0 | Z24: 0 | AE24: 0 | AI24: =IF(AE24<=0,AG24,AE24+AG24) -> 0 | AJ24: 0 | AK24: 0 | AL24: 0 | AM24: 0 | AN24: 0 | AO24: 0 | BB24: SOH/ ACCOUNTING & GENERAL SERVICES/ AUTOMOTIVE MGMT BR/ KAU-6 | BC24: SOH/ AGRICULTURE/ AGRICULTURAL DEVELOPMENT DIV/ ADD | BD24: SOH/ ATTORNEY GENERAL/ CSEA - ADMIN PROCESSING BRANCH | BE24: SOH/ BUDGET & FINANCE/ CASE FILE SERVICES | BF24: SOH/ BUSINESS, ECON DEV, & TOURISM/ COMMUNITY ECONOMIC DEVELOPMENT/ CED | BG24: SOH/ COMMERCE & CONSUMER AFFAIRS/ CABLE TELEVISION DIVISION/ DCCA-CATV | BH24: SOH/ DEFENSE/ 293 COMBAT COMMUNI SQDRN (HICKAM)/ 293 CCSQ/CC | BI24: SOH/ EDUCATION/ EVALUATION SEC | BJ24: SOH/ GOVERNORS OFFICE/ SOH/ GOVERNORS OFFICE/ GOV | BK24: SOH/ HAWAIIAN HOME LANDS/ ACCOUNTING STAFF | BL24: SOH/ HEALTH/ CLEAN AIR BR | BN24: SOH/ HUMAN SERVICES/ PROPERTY & PROCUREMENT STAFF/ DHS-FMO-PP | BO24: SOH/ JUDICIARY/ AFFIRMATIVE ACTION OFFICE | BP24: SOH/ LABOR & INDUSTRIAL RELATIONS/ REPORTING UNIT | BQ24: SOH/ LAND & NATURAL RESOURCES/ INDEX SEC/ BRI | BS24: SOH/ PUBLIC SAFETY/ PURCHASING SECTION/ BUS-F | BT24: SOH/ TAXATION/ REFUND/ADJUSTMENT SEC | BU24: SOH/ TRANSPORTATION/ EQUAL OPPORTUNITY PROGRAM/ OCR-E | BV24: SOH/ UNIVERSITY OF HAWAII/ OFC OF VP FOR BUDGET & FINANCE/CFO/ UH/VP-B&F/CFO | BW24: OFFICE OF HAWAIIAN AFFAIRS/ PLANNING EVALUATION & GRANTS/ PEG
C25: 14 | Y25: 0 | Z25: 0 | AE25: 0 | AI25: =IF(AE25<=0,AG25,AE25+AG25) -> 0 | AJ25: 0 | AK25: 0 | AL25: 0 | AM25: 0 | AN25: 0 | AO25: 0 | BB25: SOH/ ACCOUNTING & GENERAL SERVICES/ BLDG MGMT SECTION/ CSD-10 | BC25: SOH/ AGRICULTURE/ AGRICULTURAL LOAN DIV/ AGLN | BD25: SOH/ ATTORNEY GENERAL/ CSEA - ADMINISTRATION | BE25: SOH/ BUDGET & FINANCE/ CASH MANAGEMENT SECTION | BF25: SOH/ BUSINESS, ECON DEV, & TOURISM/ CONVENTION CENTER AUTHORITY/ CCA | BG25: SOH/ COMMERCE & CONSUMER AFFAIRS/ CAPTIVES BRANCH/ DCCA-INS-CAP | BH25: SOH/ DEFENSE/ 297 AIR TRAFFIC CONTROL FLIGHT/ 297 ATCF/CC | BI25: SOH/ EDUCATION/ TEST DEVELOPMT & ADMIN | BJ25: SOH/ GOVERNORS OFFICE/ WASHINGTON PLACE | BK25: SOH/ HAWAIIAN HOME LANDS/ FISCAL SERVICES STAFF | BL25: SOH/ HEALTH/ CLEAN WATER BR | BN25: SOH/ HUMAN SERVICES/ OFFICE SERVICES STAFF/ DHS-FMO-OS | BO25: SOH/ JUDICIARY/ BUDGET & STATISTICS | BP25: SOH/ LABOR & INDUSTRIAL RELATIONS/ COST ACCOUNTING UNIT | BQ25: SOH/ LAND & NATURAL RESOURCES/ LAND COURT REGISTRATION BRANCH/ BLC | BS25: SOH/ PUBLIC SAFETY/ PAYROLL SECTION/ BUS-F | BT25: SOH/ TAXATION/ DOCUMENT PROCESSNG BR | BU25: SOH/ TRANSPORTATION/ DEPARTMENTAL STAFF SERVICES OFC/ DEP | BV25: SOH/ UNIVERSITY OF HAWAII/ BUDGET OFFICE/ UH/BUDG | BW25: OFFICE OF HAWAIIAN AFFAIRS/ HUMAN RESOURCES/ HR
C26: 15 | Y26: 0 | Z26: 0 | AE26: 0 | AI26: =IF(AE26<=0,AG26,AE26+AG26) -> 0 | AJ26: 0 | AK26: 0 | AL26: 0 | AM26: 0 | AN26: 0 | AO26: 0 | BB26: SOH/ ACCOUNTING & GENERAL SERVICES/ BLDG MGMT UNIT A/ CSD-11 | BC26: SOH/ AGRICULTURE/ ANIMAL INDUSTRY DIV/ DAI | BD26: SOH/ ATTORNEY GENERAL/ CSEA - ADMINISTRATIVE SUPPORT | BE26: SOH/ BUDGET & FINANCE/ CASHIERING SECTION | BF26: SOH/ BUSINESS, ECON DEV, & TOURISM/ DEVELOPMENT BR | BG26: SOH/ COMMERCE & CONSUMER AFFAIRS/ CASHIERING SERVICES/ DCCA-DIR-CASH | BH26: SOH/ DEFENSE/ 298 AIR TRAFFIC CNTRL FLT (KAUAI)/ 298 ATCF/CC | BI26: SOH/ EDUCATION/ PUBLIC RELATIONS BR | BK26: SOH/ HAWAIIAN HOME LANDS/ SYS & INTERNAL CONTROL STAFF | BL26: SOH/ HEALTH/ COMM DISEASE SVCS | BN26: SOH/ HUMAN SERVICES/ PERSONNEL OFFICE/ DHS-PERS | BO26: SOH/ JUDICIARY/ CAPITAL IMPROVEMENT PROGRAM | BP26: SOH/ LABOR & INDUSTRIAL RELATIONS/ PAYROLL/VOUCHER UNIT | BQ26: SOH/ LAND & NATURAL RESOURCES/ DOCUMENT REVIEW SEC #1/ BLU | BS26: SOH/ PUBLIC SAFETY/ VOUCHERING SECTION/ BUS-F | BT26: SOH/ TAXATION/ RECEIVING/SORTING SEC | BU26: SOH/ TRANSPORTATION/ PERSONNEL OFFICE/ PER | BV26: SOH/ UNIVERSITY OF HAWAII/ FINANCIAL MANAGEMENT/ UH/FIN-MGT | BW26: OFFICE OF HAWAIIAN AFFAIRS/ OFFICE OF LEGAL SERVICES/ OLS
C27: 16 | Y27: 0 | Z27: 0 | AE27: 0 | AI27: 0 | AJ27: 0 | AK27: 0 | AL27: 0 | AM27: 0 | AN27: 0 | AO27: 0 | BB27: SOH/ ACCOUNTING & GENERAL SERVICES/ BLDG MGMT UNIT B/ CSD-12 | BC27: SOH/ AGRICULTURE/ ANIMAL QUARANTINE SEC/ AQS/INSPEC | BD27: SOH/ ATTORNEY GENERAL/ CSEA - CLERICAL OPERATIONS | BE27: SOH/ BUDGET & FINANCE/ CLERICAL SERVICES | BF27: SOH/ BUSINESS, ECON DEV, & TOURISM/ ECONOMETRIC RESEARCH BRANCH | BG27: SOH/ COMMERCE & CONSUMER AFFAIRS/ COMPLAINTS & ENFORCEMENT BRANCH/ DCCA-INS-CEB | BH27: SOH/ DEFENSE/ 29TH INFANTRY BRIGADE (SEPARATE)/ HIIB | BI27: SOH/ EDUCATION/ SCHOOL/COMM-BASED MGMT/ SCBM | BK27: SOH/ HAWAIIAN HOME LANDS/ HOMESTEAD SERVICES DIVISION | BL27: SOH/ HEALTH/ COMMUNICABLE DISEASE DIV | BN27: SOH/ HUMAN SERVICES/ LABOR RELATIONS STAFF/ DHS-PERS-LR | BO27: SOH/ JUDICIARY/ INTERNAL AUDIT | BP27: SOH/ LABOR & INDUSTRIAL RELATIONS/ WIA PROGRAM SEC | BQ27: SOH/ LAND & NATURAL RESOURCES/ DOCUMENT REVIEW SEC #2/ BLV | BS27: SOH/ PUBLIC SAFETY/ OFFICE SERVICES STAFF/ BUS-O | BT27: SOH/ TAXATION/ DOCUMENT PREP SEC | BU27: SOH/ TRANSPORTATION/ LABOR RELATIONS STAFF/ PER-LR | BV27: SOH/ UNIVERSITY OF HAWAII/ OFC OF VP STUDENT AFF UNIV/COM REL/ UH/VP SA UCR | BW27: OFFICE OF HAWAIIAN AFFAIRS/ PUBLIC INFORMATION OFFICE/ PIO
C28: 17 | Y28: 0 | Z28: 0 | AE28: 0 | AI28: 0 | AJ28: 0 | AK28: 0 | AL28: 0 | AM28: 0 | AN28: 0 | AO28: 0 | BB28: SOH/ ACCOUNTING & GENERAL SERVICES/ BLDG MGMT UNIT C/ CSD-13 | BC28: SOH/ AGRICULTURE/ AQUACULTURE DEVELOPMENT PROGRAM/ ADP | BD28: SOH/ ATTORNEY GENERAL/ CSEA - COMPLAINTS RESOLUTION | BE28: SOH/ BUDGET & FINANCE/ CLERICAL SERVICES | BF28: SOH/ BUSINESS, ECON DEV, & TOURISM/ ECONOMIC ANALYSIS BRANCH | BG28: SOH/ COMMERCE & CONSUMER AFFAIRS/ CONSUMER RESOURCE CENTER | BH28: SOH/ DEFENSE/ ACTIVE GUARD/RESERVE (AGR) BRANCH/ HISPMO-A | BI28: SOH/ EDUCATION/ INFO RESOURCE MGMT | BK28: SOH/ HAWAIIAN HOME LANDS/ HOMESTEAD APPLICATIONS BRANCH | BL28: SOH/ HEALTH/ COMMUNICATION OFFICE | BN28: SOH/ HUMAN SERVICES/ EMPLOYEE RELATIONS & SAFETY STF/ DHS-PERS-ERS | BO28: SOH/ JUDICIARY/ JUDICIAL EDUCATION & RESOURCE DEV | BP28: SOH/ LABOR & INDUSTRIAL RELATIONS/ POME STAFF | BQ28: SOH/ LAND & NATURAL RESOURCES/ DOCUMENT REVIEW SEC #3/ BLW | BS28: SOH/ PUBLIC SAFETY/ MANAGEMENT SERVICES STAFF/ BUS-M | BT28: SOH/ TAXATION/ MONETARY CONTROL SEC | BU28: SOH/ TRANSPORTATION/ POSITION CLASSIFICATION STAFF/ PER-C | BV28: SOH/ UNIVERSITY OF HAWAII/ OFC ASSOC VP EXTERN AFF & UNIV REL/ UH/AS VP EAUR | BW28: OFFICE OF HAWAIIAN AFFAIRS/ GOVT RELATIONS &LEGISLATIVE AFFAIRS/ GRLA
C29: 18 | Y29: =V29+W29+X29 -> 0 | Z29: 0 | AE29: 0 | AI29: 0 | AJ29: 0 | AK29: 0 | AL29: 0 | AM29: 0 | AN29: 0 | AO29: 0 | BB29: SOH/ ACCOUNTING & GENERAL SERVICES/ BOX OFF MGMT BR/ STAD-6 | BC29: SOH/ AGRICULTURE/ AUTOMOTIVE MAINT STAFF/ AUTOMAINT | BD29: SOH/ ATTORNEY GENERAL/ CSEA - FINANCIAL & INFO BRANCH | BE29: SOH/ BUDGET & FINANCE/ CLERICAL SERVICES STAFF | BF29: SOH/ BUSINESS, ECON DEV, & TOURISM/ ENERGY CONSERVATION BRANCH | BG29: SOH/ COMMERCE & CONSUMER AFFAIRS/ DIVISION OF CONSUMER ADVOCACY/ DCCA-DCA | BH29: SOH/ DEFENSE/ ADM OFFICE SUPPORT STAFF | BI29: SOH/ EDUCATION/ OFF OF PER SVCS/ OPS | BK29: SOH/ HAWAIIAN HOME LANDS/ CLERICAL SERVICES | BL29: SOH/ HEALTH/ COMMUNITY & CONSULTATIVE SVCS BR | BN29: SOH/ HUMAN SERVICES/ POSITION MGMT SVCS STAFF/ DHS-PERS-PMSS | BO29: SOH/ JUDICIARY/ PLANNING & PROGRAM EVALUATION | BP29: SOH/ LABOR & INDUSTRIAL RELATIONS/ EDP SYSTEMS STAFF/ DLIR-SO | BQ29: SOH/ LAND & NATURAL RESOURCES/ DOCUMENT REVIEW SEC #4/ BLX | BS29: SOH/ PUBLIC SAFETY/ EQUIPMENT MANAGEMENT STAFF/ BUS-E | BT29: SOH/ TAXATION/ DATA ENTRY SEC | BU29: SOH/ TRANSPORTATION/ TRAINING & SAFETY STAFF/ PER-T | BV29: SOH/ UNIVERSITY OF HAWAII/ GOVERNMENT RELATIONS/ UH/GOV-REL | BW29: OFFICE OF HAWAIIAN AFFAIRS/ OFFICE OF BOARD SERVICES/ OBS
C30: 19 | Y30: 0 | Z30: 0 | AE30: 0 | AI30: 0 | AJ30: 0 | AK30: 0 | AL30: 0 | AM30: 0 | AN30: 0 | AO30: 0 | BB30: SOH/ ACCOUNTING & GENERAL SERVICES/ BUDGET & FISCAL STAFF/ ASO-2 | BC30: SOH/ AGRICULTURE/ BIO-CONTROL SEC/ AGRPIPPCBC | BD30: SOH/ ATTORNEY GENERAL/ CSEA - HAWAII OPERATIONS BRANCH | BE30: SOH/ BUDGET & FINANCE/ CLERICAL SERVICES UNIT I | BF30: SOH/ BUSINESS, ECON DEV, & TOURISM/ ENERGY DIVISION/ ED | BG30: SOH/ COMMERCE & CONSUMER AFFAIRS/ DIVISION OF FINANCIAL INSTITUTIONS/ DCCA-DFI | BH30: SOH/ DEFENSE/ ADM SERVICES OFFICE | BI30: SOH/ EDUCATION/ PERS MGT CERT & DEV BR | BK30: SOH/ HAWAIIAN HOME LANDS/ DISTRICT OPERATIONS BRANCH | BL30: SOH/ HEALTH/ COMMUNITY HEALTH DIV | BN30: SOH/ HUMAN SERVICES/ RECORDS & SUPPORT SVCS STAFF/ DHS-PERS-RSS | BO30: SOH/ JUDICIARY/ INTERGOVMNTL & COMMUNITY RELATIONS | BP30: SOH/ LABOR & INDUSTRIAL RELATIONS/ HAWAII DISTRICT OFC/ DLIR-HI DO | BQ30: SOH/ LAND & NATURAL RESOURCES/ DOCUMENT REVIEW SEC #5/ BLY | BS30: SOH/ PUBLIC SAFETY/ PLANNING, PROGRAMMING & BUDGET OFC/ PPB | BT30: SOH/ TAXATION/ FILE MAINTENANCE SEC | BU30: SOH/ TRANSPORTATION/ SPECIAL SERVICES STAFF/ PER-S | BV30: SOH/ UNIVERSITY OF HAWAII/ PUBLIC RELATIONS/ UH/PUB-REL
C31: 20 | Y31: 0 | Z31: 0 | AE31: 0 | AI31: 0 | AJ31: 0 | AK31: 0 | AL31: 0 | AM31: 0 | AN31: 0 | AO31: 0 | BB31: SOH/ ACCOUNTING & GENERAL SERVICES/ BUILDING CONST MAINT SEC/ STAD-4 | BC31: SOH/ AGRICULTURE/ BUDGET & MGMT STAFF/ MA | BD31: SOH/ ATTORNEY GENERAL/ CSEA - INFORMATION OFFICE | BE31: SOH/ BUDGET & FINANCE/ CLERICAL SERVICES UNIT II | BF31: SOH/ BUSINESS, ECON DEV, & TOURISM/ ENERGY PLANNING & POLICY GROUP | BG31: SOH/ COMMERCE & CONSUMER AFFAIRS/ DOCUMENTS INFORMATION SECTION/ DCCA-BREG-DIS | BH31: SOH/ DEFENSE/ ADM SERVICES OFFICE/ HIADM | BI31: SOH/ EDUCATION/ CERT PERS MGT SEC | BK31: SOH/ HAWAIIAN HOME LANDS/ EAST HAWAII DISTRICT OFFICE | BL31: SOH/ HEALTH/ COMMUNITY HEALTH SVCS KAUAI | BN31: SOH/ HUMAN SERVICES/ CIVIL RIGHTS COMPLIANCE STAFF/ DHS-PERS-CRC | BO31: SOH/ JUDICIARY/ STAFF ATTORNEY | BP31: SOH/ LABOR & INDUSTRIAL RELATIONS/ HILO STAFF | BQ31: SOH/ LAND & NATURAL RESOURCES/ DOCUMENT REVIEW SEC #6/ BLZ | BS31: SOH/ PUBLIC SAFETY/ RESEARCH & STATISTICS STAFF/ PPB-R | BT31: SOH/ TAXATION/ TAXPAYER SERVICES BR | BU31: SOH/ TRANSPORTATION/ RECRUITMENT SERVICES STAFF/ PER-R | BV31: SOH/ UNIVERSITY OF HAWAII/ CREATIVE SERVICES/ UH/CRE-SVCS
C32: 21 | Y32: 0 | Z32: 0 | AE32: 0 | AI32: 0 | AJ32: =(X32*20)+Z32+AA32+AF32 -> 0 | AK32: 0 | AL32: 0 | AM32: 0 | AN32: 0 | AO32: 0 | BB32: SOH/ ACCOUNTING & GENERAL SERVICES/ CAMPAIGN SPENDING COMMISSION | BC32: SOH/ AGRICULTURE/ CASE PREP SEC/ AGRPIPESTCP | BD32: SOH/ ATTORNEY GENERAL/ CSEA - KAUAI OPERATIONS BRANCH | BE32: SOH/ BUDGET & FINANCE/ COLLECTIVE BARGAINING STAFF | BF32: SOH/ BUSINESS, ECON DEV, & TOURISM/ FILM INDUSTRY BRANCH/ FIB | BG32: SOH/ COMMERCE & CONSUMER AFFAIRS/ DOCUMENTS PROCESSING SECTION/ DCCA-BREG-DPS | BH32: SOH/ DEFENSE/ ADMIN OFFICER/ HITC-AO | BI32: SOH/ EDUCATION/ PERS CERT & DEV SEC | BK32: SOH/ HAWAIIAN HOME LANDS/ MAUI DISTRICT OFFICE | BL32: SOH/ HEALTH/ COMMUNITY SERVICES BR | BN32: SOH/ HUMAN SERVICES/ TRAINING STAFF/ DHS-PERS-TRN | BO32: SOH/ JUDICIARY/ PUBLIC AFFAIRS | BP32: SOH/ LABOR & INDUSTRIAL RELATIONS/ CLERICAL SERVICES | BQ32: SOH/ LAND & NATURAL RESOURCES/ RECEIVING SEC/ BLR | BS32: SOH/ PUBLIC SAFETY/ PROGRAM, PLANNING & EVAL STAFF/ PPB-P | BT32: SOH/ TAXATION/ LICENSG/CLEARANCE SEC | BU32: SOH/ TRANSPORTATION/ BUSINESS MANAGEMENT OFFICE/ BUS | BV32: SOH/ UNIVERSITY OF HAWAII/ OFC OF ASSOC VP FOR STUDENT AFFAIRS/ UH/AS VP SA
C33: 22 | Y33: 0 | Z33: 0 | AD33: =IF(F33="x",(0-((V33*10)+(W33*20))),"") ->  | AE33: 0 | AI33: 0 | AJ33: 0 | AK33: 0 | AL33: 0 | AM33: 0 | AN33: 0 | AO33: 0 | BB33: SOH/ ACCOUNTING & GENERAL SERVICES/ CENTRAL OAHU SEC/ CSD-7 | BC33: SOH/ AGRICULTURE/ CHEM/MECH CONTROL SEC/ AGRPIPPCCM | BD33: SOH/ ATTORNEY GENERAL/ CSEA - MAUI OPERATIONS BRANCH | BE33: SOH/ BUDGET & FINANCE/ CONTRACTS ADMINISTRATION STAFF | BF33: SOH/ BUSINESS, ECON DEV, & TOURISM/ FINANCIAL ASSISTANCE BRANCH/ FAB | BG33: SOH/ COMMERCE & CONSUMER AFFAIRS/ DOCUMENTS REGISTRATION BRANCH/ DCCA-BREG-DRB | BH33: SOH/ DEFENSE/ ADMIN SUPPORT | BI33: SOH/ EDUCATION/ CLASSIFD PER MGT SEC | BK33: SOH/ HAWAIIAN HOME LANDS/ MOLOKAI DISTRICT OFFICE | BL33: SOH/ HEALTH/ COMMUNITY SVCS FOR THE DEV DISABLED | BN33: SOH/ HUMAN SERVICES/ RECRUITMENT & EXAM STAFF/ DHS-PERS-R&E | BO33: SOH/ JUDICIARY/ ADMIN DRIVERS LICENSE REVOCATION | BP33: SOH/ LABOR & INDUSTRIAL RELATIONS/ WEST HAWAII STAFF/ DLIR-W HI DO | BQ33: SOH/ LAND & NATURAL RESOURCES/ ABSTRACTING SEC/ BLA | BS33: SOH/ PUBLIC SAFETY/ OPERATING BUDGET STAFF/ PPB-O | BT33: SOH/ TAXATION/ INFORM/SERVICES SEC | BU33: SOH/ TRANSPORTATION/ FINANCIAL & ACCOUNTING STAFF/ BUS-F | BV33: SOH/ UNIVERSITY OF HAWAII/ HAWAII COMMN FOR NATL & COMM SVC/ UH/HCNCS
C34: 23 | Y34: 0 | Z34: 0 | AD34: =IF(F34="x",(0-((V34*10)+(W34*20))),"") ->  | AE34: 0 | AI34: 0 | AJ34: 0 | AK34: 0 | AL34: 0 | AM34: 0 | AN34: 0 | AO34: 0 | BB34: SOH/ ACCOUNTING & GENERAL SERVICES/ CENTRAL SERVICES BR/ HAW-2 | BC34: SOH/ AGRICULTURE/ CHEMICAL ANALYSIS SEC | BD34: SOH/ ATTORNEY GENERAL/ CSEA - POLICY & PROCEDURES | BE34: SOH/ BUDGET & FINANCE/ CULTURE AND RECREATION SECTION | BF34: SOH/ BUSINESS, ECON DEV, & TOURISM/ FISCAL STAFF/ ASO/F | BG34: SOH/ COMMERCE & CONSUMER AFFAIRS/ EXAM & AUDIT SECTION/ DCCA-INS-EAS | BH34: SOH/ DEFENSE/ ADMINISTRATION/ HIPFA | BI34: SOH/ EDUCATION/ PERS & IND REL BR | BK34: SOH/ HAWAIIAN HOME LANDS/ OAHU DISTRICT OFFICE | BL34: SOH/ HEALTH/ COMPLIANCE ASSISTANCE OFC | BN34: SOH/ HUMAN SERVICES/ MANAGEMENT SERVICES OFFICE/ DHS-MSO | BO34: SOH/ JUDICIARY/ JUDICIARY HISTORY CENTER | BP34: SOH/ LABOR & INDUSTRIAL RELATIONS/ CLERICAL SERVICES | BQ34: SOH/ LAND & NATURAL RESOURCES/ SUPPORT SERVICES BRANCH/ BSS | BS34: SOH/ PUBLIC SAFETY/ CAPITAL PROJECTS STAFF/ PPB-C | BT34: SOH/ TAXATION/ AUDIT DIV | BU34: SOH/ TRANSPORTATION/ BUS PROC IMPRVMT & INTRNL CTRL STAF/ BUS-I | BV34: SOH/ UNIVERSITY OF HAWAII/ POST SECONDARY EDUCATION COMMISSION/ UH/SPEC
C35: 24 | Y35: 0 | Z35: 0 | AD35: =IF(F35="x",(0-((V35*10)+(W35*20))),"") ->  | AE35: 0 | AI35: 0 | AJ35: 0 | AK35: 0 | AL35: 0 | AM35: 0 | AN35: 0 | AO35: 0 | BB35: SOH/ ACCOUNTING & GENERAL SERVICES/ CENTRAL SERVICES BR/ KAU-2 | BC35: SOH/ AGRICULTURE/ COMMODITIES BR/ COM | BD35: SOH/ ATTORNEY GENERAL/ EDUCATION DIVISION/ ED | BE35: SOH/ BUDGET & FINANCE/ DEFENDER COUNCIL | BF35: SOH/ BUSINESS, ECON DEV, & TOURISM/ FOREIGN-TRADE ZONE DIV/ FTZ | BG35: SOH/ COMMERCE & CONSUMER AFFAIRS/ EXAMINATION BRANCH/ DCCA-PVL-EXAM | BH35: SOH/ DEFENSE/ ADMINISTRATIVE SECTION/ HIANG/DA | BI35: SOH/ EDUCATION/ COLLEC BARG & NEG SEC | BK35: SOH/ HAWAIIAN HOME LANDS/ KAUAI DISTRICT OFFICE | BL35: SOH/ HEALTH/ COURTS & CORRECTIONS BR | BN35: SOH/ HUMAN SERVICES/ QUALITY CONTROL STAFF/ DHS-MSO-QC | BO35: SOH/ JUDICIARY/ LAW LIBRARY | BP35: SOH/ LABOR & INDUSTRIAL RELATIONS/ MAUI DISTRICT OFC/ DLIR-MAUI DO | BQ35: SOH/ LAND & NATURAL RESOURCES/ REPRODUCTION SEC/ BSR | BS35: SOH/ PUBLIC SAFETY/ MANAGEMENT INFO SYSTEMS OFFICE/ MIS | BT35: SOH/ TAXATION/ OFFICE AUDIT BR | BU35: SOH/ TRANSPORTATION/ OFFICE SERVICES STAFF/ BUS-O | BV35: SOH/ UNIVERSITY OF HAWAII/ WESTERN INTRSTAT COM FOR HIGHER ED/ UH/WICHE
C36: 25 | Y36: 0 | Z36: 0 | AD36: =IF(F36="x",(0-((V36*10)+(W36*20))),"") ->  | AE36: 0 | AI36: 0 | AJ36: 0 | AK36: 0 | AL36: 0 | AM36: 0 | AN36: 0 | AO36: 0 | BB36: SOH/ ACCOUNTING & GENERAL SERVICES/ CENTRAL SERVICES BR/ MAUI-2 | BC36: SOH/ AGRICULTURE/ COMPLIANCE SECTION/ LDC/COMP | BD36: SOH/ ATTORNEY GENERAL/ FAMILY LAW (HILO) | BE36: SOH/ BUDGET & FINANCE/ DISBURSEMENTS & BENEFITS SECTION | BF36: SOH/ BUSINESS, ECON DEV, & TOURISM/ GEOTHERMAL PROJECT | BG36: SOH/ COMMERCE & CONSUMER AFFAIRS/ EXECUTIVE SECRETARIES/ DCCA-PVL-ES | BH36: SOH/ DEFENSE/ ADVISORY BOARD ON VS | BI36: SOH/ EDUCATION/ CONTRACT ADMIN SEC | BK36: SOH/ HAWAIIAN HOME LANDS/ WEST HAWAII DISTRICT OFFICE | BL36: SOH/ HEALTH/ DENTAL HEALTH DIV | BN36: SOH/ HUMAN SERVICES/ QUALITY CONTROL SEC 1/ DHS-MSO-QC1 | BO36: SOH/ JUDICIARY/ CTR FOR ALTERNATIVE DISPUTE RESOLTN/ ADR | BP36: SOH/ LABOR & INDUSTRIAL RELATIONS/ CLERICAL SERVICES | BQ36: SOH/ LAND & NATURAL RESOURCES/ CLERICAL SEC/ BSC | BS36: SOH/ PUBLIC SAFETY/ SYS DEV & MTNCE STAFF A/ MIS | BT36: SOH/ TAXATION/ OFFICE AUDIT BR | BU36: SOH/ TRANSPORTATION/ SUPPORT SERVICES | BV36: SOH/ UNIVERSITY OF HAWAII/ EXEC VP FOR ACADEMIC AFFAIRS/PROVST/ UH/VP-ACADAFF
C37: 26 | Y37: 0 | Z37: 0 | AE37: 0 | AI37: 0 | AJ37: 0 | AK37: 0 | AL37: 0 | AM37: 0 | AN37: 0 | AO37: 0 | BB37: SOH/ ACCOUNTING & GENERAL SERVICES/ CENTRAL SERVICES DIVISION/ CSD-0 | BC37: SOH/ AGRICULTURE/ COMPLIANCE SERVICES/ MI/COMP | BD37: SOH/ ATTORNEY GENERAL/ FAMILY LAW (KAUAI) | BE37: SOH/ BUDGET & FINANCE/ DOCUMENTATION | BF37: SOH/ BUSINESS, ECON DEV, & TOURISM/ HAWAII COMMUNITY DEVEL AUTHORITY/ HCDA | BG37: SOH/ COMMERCE & CONSUMER AFFAIRS/ FISCAL STAFF/ DCCA-DIR-FIS | BH37: SOH/ DEFENSE/ ADVISORY GROUP - AIR | BI37: SOH/ EDUCATION/ CLASSIF & COMPSATN SEC | BK37: SOH/ HAWAIIAN HOME LANDS/ LOAN SERVICES BRANCH | BL37: SOH/ HEALTH/ DENTAL HYGIENE BR | BN37: SOH/ HUMAN SERVICES/ QUALITY CONTROL SEC 2/ DHS-MSO-QC2 | BO37: SOH/ JUDICIARY/ CHILDRENS JUSTICE CENTER | BP37: SOH/ LABOR & INDUSTRIAL RELATIONS/ KAUAI DISTRICT OFC/ DLIR-KAUAI DO | BQ37: SOH/ LAND & NATURAL RESOURCES/ AQUATIC RESOURCES DIVISION/ DAR | BS37: SOH/ PUBLIC SAFETY/ SYS DEV & MTNCE STAFF B/ MIS | BT37: SOH/ TAXATION/ FIELD AUDIT BR | BU37: SOH/ TRANSPORTATION/ REPRODUCTION SERVICES | BV37: SOH/ UNIVERSITY OF HAWAII/ PLANNING, POLICY & ACCOUNTABLTY OFC/ UH/PPA
C38: 27 | Y38: 0 | Z38: 0 | AE38: 0 | AI38: 0 | AJ38: 0 | AK38: 0 | AL38: 0 | AM38: 0 | AN38: 0 | AO38: 0 | BB38: SOH/ ACCOUNTING & GENERAL SERVICES/ CLIENT SERVICES BR I/ICSD | BC38: SOH/ AGRICULTURE/ COMPUTER SVCS STAFF/ CSS | BD38: SOH/ ATTORNEY GENERAL/ FAMILY LAW (KONA) | BE38: SOH/ BUDGET & FINANCE/ ECONOMIC DEVELOPMENT SECTION | BF38: SOH/ BUSINESS, ECON DEV, & TOURISM/ HAWAII HOUSING FINANCE & DEV CORP/ HHFDC | BG38: SOH/ COMMERCE & CONSUMER AFFAIRS/ GENERAL INVESTIGATION SECTION/ DCCA-OCP-GIS | BH38: SOH/ DEFENSE/ ADVISORY GROUP - ARMY | BI38: SOH/ EDUCATION/ EMPLOYEE BNFTS SEC | BK38: SOH/ HAWAIIAN HOME LANDS/ LAND DEVELOPMENT DIVISION | BL38: SOH/ HEALTH/ DENTAL HYGIENE SVCS HAWAII | BN38: SOH/ HUMAN SERVICES/ PROGRAM & MGMT EVAL STAFF/ DHS-MSO-PME | BO38: SOH/ JUDICIARY/ OFC OF EQUALITY & ACCESS TO COURTS | BP38: SOH/ LABOR & INDUSTRIAL RELATIONS/ CLERICAL SERVICES | BQ38: SOH/ LAND & NATURAL RESOURCES/ COMMERCIAL FISH & AQUACULTURE BR | BS38: SOH/ PUBLIC SAFETY/ PERSONNEL MANAGEMENT OFFICE/ PER | BT38: SOH/ TAXATION/ MAUI AUDIT BR | BU38: SOH/ TRANSPORTATION/ CENTRAL FILES | BV38: SOH/ UNIVERSITY OF HAWAII/ INSTITUTIONAL RESEARCH OFFICE/ UH/IRO
C39: 28 | Y39: 0 | Z39: 0 | AE39: 0 | AI39: 0 | AJ39: 0 | AK39: 0 | AL39: 0 | AM39: 0 | AN39: 0 | AO39: 0 | BB39: SOH/ ACCOUNTING & GENERAL SERVICES/ CLIENT SERVICES BR II/ICSD | BC39: SOH/ AGRICULTURE/ DEVELOPMENT STAFF | BD39: SOH/ ATTORNEY GENERAL/ FAMILY LAW (MAUI) | BE39: SOH/ BUDGET & FINANCE/ EMPLOYEES RETIREMENT SYSTEM/ ERS | BF39: SOH/ BUSINESS, ECON DEV, & TOURISM/ HAWAII STRATEGIC DEVELOPMENT CORP/ HSDC | BG39: SOH/ COMMERCE & CONSUMER AFFAIRS/ GENERAL LANDLORD-TENANT INV SEC/ DCCA-OCP-GLTI | BH39: SOH/ DEFENSE/ AIR NATIONAL GUARD DIVISION/ HIANG | BI39: SOH/ EDUCATION/ OFFICE OF BUS SVCS/ OBS | BK39: SOH/ HAWAIIAN HOME LANDS/ HOUSING PROJECT BRANCH | BL39: SOH/ HEALTH/ DEPUTY DIRECTOR OF HEALTH | BN39: SOH/ HUMAN SERVICES/ FINANCIAL EVAL STAFF/ DHS-MSO-FE | BO39: SOH/ JUDICIARY/ OFFICE OF THE PUBLIC GUARDIAN | BP39: SOH/ LABOR & INDUSTRIAL RELATIONS/ OCCUPATIONAL SAFETY & HEALTH DIV/ DLIR-DOSH | BQ39: SOH/ LAND & NATURAL RESOURCES/ COMMERCIAL FISH SECTION | BS39: SOH/ PUBLIC SAFETY/ LABOR RELATIONS STAFF/ PER-LR | BT39: SOH/ TAXATION/ OFFICE AUDIT SEC | BU39: SOH/ TRANSPORTATION/ MAIL & MESSENGER | BV39: SOH/ UNIVERSITY OF HAWAII/ ACADEMIC AFFAIRS & PERSNL ADMIN OFC/ UH/AAPA
C40: 29 | Y40: 0 | Z40: 0 | AE40: 0 | AI40: 0 | AJ40: 0 | AK40: 0 | AL40: 0 | AM40: 0 | AN40: 0 | AO40: 0 | BB40: SOH/ ACCOUNTING & GENERAL SERVICES/ CLIENT SERVICES BR/ICSD | BC40: SOH/ AGRICULTURE/ DIAGNOSTIC SEC/ VL/DIAG | BD40: SOH/ ATTORNEY GENERAL/ FAMILY LAW/ SOC | BE40: SOH/ BUDGET & FINANCE/ EMPLOYMENT SECTION | BF40: SOH/ BUSINESS, ECON DEV, & TOURISM/ HIGH TECH DEVELOPMENT CORP/ HTDC | BG40: SOH/ COMMERCE & CONSUMER AFFAIRS/ HAWAII INVESTIGATION SECTION/ DCCA-OCP-HIS | BH40: SOH/ DEFENSE/ AIR TRAFFIC CONTROL/ 201 CCGP/AT | BI40: SOH/ EDUCATION/ ADMIN SVCS BR | BK40: SOH/ HAWAIIAN HOME LANDS/ MASTER-PLANNED COMMUNITY BR | BL40: SOH/ HEALTH/ DEVELOPMENTAL DISABILITES KAUAI | BN40: SOH/ HUMAN SERVICES/ BUDGET STAFF/ DHS-MSO-BUD | BO40: SOH/ JUDICIARY/ VOLUNTEERS IN PUBLIC SVC TO COURTS/ VIPS | BP40: SOH/ LABOR & INDUSTRIAL RELATIONS/ ADMIN & TECHNICAL SUPPORT/ DLIR-DOSH | BQ40: SOH/ LAND & NATURAL RESOURCES/ FISHERY DEVELOPMENT UNIT | BS40: SOH/ PUBLIC SAFETY/ STAFFING & TECHNICAL SERVICES STAFF/ PER-ST | BT40: SOH/ TAXATION/ FIELD AUDIT SEC | BU40: SOH/ TRANSPORTATION/ SYSTEMS ACCOUNTING STAFF/ BUS-S | BV40: SOH/ UNIVERSITY OF HAWAII/ HAWAII P-20 PARTNERSHIPS FOR EDUC/ UH/HPPEO
C41: 30 | Y41: 0 | Z41: 0 | AE41: 0 | AI41: 0 | AJ41: 0 | AK41: 0 | AL41: 0 | AM41: 0 | AN41: 0 | AO41: 0 | BB41: SOH/ ACCOUNTING & GENERAL SERVICES/ CLIENT SUPPORT UNIT/ICSD | BC41: SOH/ AGRICULTURE/ EAST HAWAII DISTRICT/ AGLNH | BD41: SOH/ ATTORNEY GENERAL/ HAWAII CRIMINAL JUSTICE DATA CTR/ HCJDC | BE41: SOH/ BUDGET & FINANCE/ ENGINEERING SECTION | BF41: SOH/ BUSINESS, ECON DEV, & TOURISM/ INDUSTRY PROMOTION DIV/ IPD | BG41: SOH/ COMMERCE & CONSUMER AFFAIRS/ HEALTH BRANCH/ DCCA-INS-HLTH | BH41: SOH/ DEFENSE/ ANALYSIS & INTERNAL REVIEW/ HIPFE | BI41: SOH/ EDUCATION/ ACCOUNTING SEC | BK41: SOH/ HAWAIIAN HOME LANDS/ DESIGN & CONSTRUCTION BRANCH | BL41: SOH/ HEALTH/ DEVELOPMENTAL DISABILITIES DIV | BN41: SOH/ HUMAN SERVICES/ RESEARCH STAFF/ DHS-MSO-RES | BO41: SOH/ JUDICIARY/ LEGISLATIVE COORDINATION OFFICE | BP41: SOH/ LABOR & INDUSTRIAL RELATIONS/ CONSULTATION & TRAINING BR | BQ41: SOH/ LAND & NATURAL RESOURCES/ AQUACULTURE SECTION | BS41: SOH/ PUBLIC SAFETY/ EMPLOYEE RELATIONS STAFF/ PER-ER | BT41: SOH/ TAXATION/ HAWAII AUDIT BR | BU41: SOH/ TRANSPORTATION/ FEDERAL AID STAFF/ BUS-G | BV41: SOH/ UNIVERSITY OF HAWAII/ HUMAN RESOURCES/ UH/HR
C42: 31 | Y42: 0 | Z42: 0 | AE42: 0 | AI42: 0 | AJ42: 0 | AK42: 0 | AL42: 0 | AM42: 0 | AN42: 0 | AO42: 0 | BB42: SOH/ ACCOUNTING & GENERAL SERVICES/ COMPUTER OPERATIONS UNIT(S)/ICSD | BC42: SOH/ AGRICULTURE/ EAST HAWAII DISTRICT/ MSE | BD42: SOH/ ATTORNEY GENERAL/ HEALTH & HUMAN SERVICES/ H&HS | BE42: SOH/ BUDGET & FINANCE/ ENROLLMENT AND CLERICAL SERVICES | BF42: SOH/ BUSINESS, ECON DEV, & TOURISM/ INTERNATIONAL BUSINESS CTR OF HI | BG42: SOH/ COMMERCE & CONSUMER AFFAIRS/ INFORMATION SYSTEMS/COMM OFFICE/ DCCA-ISC | BH42: SOH/ DEFENSE/ ARMY NATIONAL GUARD DIVISION/ HIARNG | BI42: SOH/ EDUCATION/ REPROGRAPHIC SEC | BK42: SOH/ HAWAIIAN HOME LANDS/ CLERICAL SERVICES | BL42: SOH/ HEALTH/ DIRECTORS OFFICE | BN42: SOH/ HUMAN SERVICES/ OFFICE OF INFORMATION TECHNOLOGY/ DHS-OIT | BO42: SOH/ JUDICIARY/ OFFICE OF THE CHIEF JUSTICE | BP42: SOH/ LABOR & INDUSTRIAL RELATIONS/ OCCUPATIONAL SAFETY BRANCH/ DLIR-DOSH | BQ42: SOH/ LAND & NATURAL RESOURCES/ AQUATIC RES. & ENVIRON PROTECT BR | BS42: SOH/ PUBLIC SAFETY/ EMPLOYEE TRANSACTIONS STAFF/ PER-ET | BT42: SOH/ TAXATION/ OFFICE AUDIT SEC | BU42: SOH/ TRANSPORTATION/ CONTRACTS OFFICE/ CON | BV42: SOH/ UNIVERSITY OF HAWAII/ CAPITAL IMPROVEMENT/ UH/CAP-IMP
C43: 32 | Y43: 0 | Z43: 0 | AE43: 0 | AI43: 0 | AJ43: 0 | AK43: 0 | AL43: 0 | AM43: 0 | AN43: 0 | AO43: 0 | BB43: SOH/ ACCOUNTING & GENERAL SERVICES/ CONSTRUCTION MGMT/ DPW-14 | BC43: SOH/ AGRICULTURE/ EGGS & FEED UNIT/ EFH | BD43: SOH/ ATTORNEY GENERAL/ INVESTIGATION DIVISION/ INV | BE43: SOH/ BUDGET & FINANCE/ ENROLLMENT, CLAIMS & BENEFITS BR | BF43: SOH/ BUSINESS, ECON DEV, & TOURISM/ LAND USE COMMISSION/ LUC | BG43: SOH/ COMMERCE & CONSUMER AFFAIRS/ INSURANCE DIVISION/ DCCA-INS | BH43: SOH/ DEFENSE/ ASST ADJ GEN, ARMY/COM, STARC/ HIARCG | BI43: SOH/ EDUCATION/ ACCTG & DISTRIB UT | BK43: SOH/ HAWAIIAN HOME LANDS/ INFO & COMMUNITY REL OFFICE | BL43: SOH/ HEALTH/ DISABILITY & COMMUNICTN ACCESS BD | BN43: SOH/ HUMAN SERVICES/ APPLICATIONS DEV & MAINT STAFF/ DHS-OIT-APPS | BO43: SOH/ JUDICIARY/ SUPREME COURT JUSTICES | BP43: SOH/ LABOR & INDUSTRIAL RELATIONS/ COMPLIANCE SECTION I | BQ43: SOH/ LAND & NATURAL RESOURCES/ AQUATIC RESOURCES ADMINISTRATION | BS43: SOH/ PUBLIC SAFETY/ TRAINING & STAFF DEVELOPMENT OFC/ TSD | BT43: SOH/ TAXATION/ FIELD AUDIT SEC | BU43: SOH/ TRANSPORTATION/ PPB MGMT & ANALYTICAL OFC/ PPB | BV43: SOH/ UNIVERSITY OF HAWAII/ UNIV OF HAWAII AT MANOA/ UH MANOA
C44: 33 | Y44: 0 | Z44: 0 | AE44: 0 | AI44: 0 | AJ44: 0 | AK44: 0 | AL44: 0 | AM44: 0 | AN44: 0 | AO44: 0 | BB44: SOH/ ACCOUNTING & GENERAL SERVICES/ CONSTRUCTION MGMT/ DPW-15 | BC44: SOH/ AGRICULTURE/ EGGS & FEED UNIT/ EFK | BD44: SOH/ ATTORNEY GENERAL/ LEGAL SVC BRANCH - ADMINISTRATION/ ADM | BE44: SOH/ BUDGET & FINANCE/ ENVIRONMENTAL PROTECTION SECTION | BF44: SOH/ BUSINESS, ECON DEV, & TOURISM/ NATURAL ENERGY LAB OF HI AUTHORITY/ NELHA | BG44: SOH/ COMMERCE & CONSUMER AFFAIRS/ INVESTIGATION BRANCH/ DCCA-OCP-INV | BH44: SOH/ DEFENSE/ ASST AG AIR/COMMANDER HIANG/ HIANG/CC | BI44: SOH/ EDUCATION/ PRINTING UT | BK44: SOH/ HAWAIIAN HOME LANDS/ LAND MANAGEMENT DIVISION | BL44: SOH/ HEALTH/ DISEASE INVESTIGATION BR | BN44: SOH/ HUMAN SERVICES/ SYSTEMS ANALYSIS & DESIGN SEC 1/ DHS-OIT-SADS1 | BO44: SOH/ JUDICIARY/ STAFF ATTORNEY | BP44: SOH/ LABOR & INDUSTRIAL RELATIONS/ COMPLIANCE SECTION II | BQ44: SOH/ LAND & NATURAL RESOURCES/ STAFF SERVICES | BS44: SOH/ PUBLIC SAFETY/ BASIC TRAINING STAFF/ TSD-BT | BT44: SOH/ TAXATION/ KONA AUDIT SEC | BU44: SOH/ TRANSPORTATION/ PROJECT MANAGEMENT STAFF/ PPB-M | BV44: SOH/ UNIVERSITY OF HAWAII/ UH MANOA/ OFC OF THE CHANCELLOR/ UH MANOA/CHAN
C45: 34 | Y45: 0 | Z45: 0 | AE45: 0 | AI45: 0 | AJ45: 0 | AK45: 0 | AL45: 0 | AM45: 0 | AN45: 0 | AO45: 0 | BB45: SOH/ ACCOUNTING & GENERAL SERVICES/ CONSTRUCTION MGMT/ DPW-16 | BC45: SOH/ AGRICULTURE/ EGGS & FEED UNIT/ EFM | BD45: SOH/ ATTORNEY GENERAL/ LEGAL SVC BRANCH - APPELLATE/ APP | BE45: SOH/ BUDGET & FINANCE/ FAMILY COURT | BF45: SOH/ BUSINESS, ECON DEV, & TOURISM/ OCEAN RESOURCES BRANCH/ ORB | BG45: SOH/ COMMERCE & CONSUMER AFFAIRS/ INVESTIGATION STAFF | BH45: SOH/ DEFENSE/ AUDITING SECTION/ HIANG/ACM | BI45: SOH/ EDUCATION/ GRAPHICS UT | BK45: SOH/ HAWAIIAN HOME LANDS/ INCOME PROPERTY BRANCH | BL45: SOH/ HEALTH/ DISEASE OUTBREAK CONTROL DIV | BN45: SOH/ HUMAN SERVICES/ SYSTEMS ANALYSIS & DESIGN SEC 2/ DHS-OIT-SADS2 | BO45: SOH/ JUDICIARY/ JUDICIAL COUNCIL | BP45: SOH/ LABOR & INDUSTRIAL RELATIONS/ BOILER/ELEVATOR INSPECTION BRANCH/ DLIR-DOSH | BQ45: SOH/ LAND & NATURAL RESOURCES/ CLERICAL SERVICES | BS45: SOH/ PUBLIC SAFETY/ ADVANCED TRAINING STAFF/ TSD-AT | BT45: SOH/ TAXATION/ KAUAI AUDIT BR | BU45: SOH/ TRANSPORTATION/ BUDGET CONTROL & EXECUTION STAFF/ PPB-B | BV45: SOH/ UNIVERSITY OF HAWAII/ UH MANOA/ VICE CHANCELLOR FOR ADMIN/ UH MANOA/ADM
C46: 35 | Y46: 0 | Z46: 0 | AE46: 0 | AI46: 0 | AJ46: 0 | AK46: 0 | AL46: 0 | AM46: 0 | AN46: 0 | AO46: 0 | BB46: SOH/ ACCOUNTING & GENERAL SERVICES/ CONTRACT STAFF/ DPW-2 | BC46: SOH/ AGRICULTURE/ EGGS & FEED UNIT/ EFO | BD46: SOH/ ATTORNEY GENERAL/ LEGAL SVC BRANCH - CED/ CED | BE46: SOH/ BUDGET & FINANCE/ FIN RESEARCH, PLNG & POLICY DEV BR | BF46: SOH/ BUSINESS, ECON DEV, & TOURISM/ OFFICE OF SPACE INDUSTRY/ OSI | BG46: SOH/ COMMERCE & CONSUMER AFFAIRS/ LEGAL BRANCH/ DCCA-OCP-LEG | BH46: SOH/ DEFENSE/ AUTOMATION SECTION | BI46: SOH/ EDUCATION/ PROCURMT&CENT DIST SEC | BK46: SOH/ HAWAIIAN HOME LANDS/ TECHNICAL SERVICES BRANCH | BL46: SOH/ HEALTH/ EMERG MED SVCS & INJURY PREV SYS BR | BN46: SOH/ HUMAN SERVICES/ COMPUTER PROGRAMMING SEC/ DHS-OIT-CP | BO46: SOH/ JUDICIARY/ OFFICE OF THE CLERK | BP46: SOH/ LABOR & INDUSTRIAL RELATIONS/ BOILER INSPECTION SECTION/ DLIR-DOSH | BQ46: SOH/ LAND & NATURAL RESOURCES/ RESOURCE PROTECTION SECTION | BS46: SOH/ PUBLIC SAFETY/ SPECIAL TRAINING STAFF/ TSD-ST | BT46: SOH/ TAXATION/ OFFICE AUDIT SEC | BU46: SOH/ TRANSPORTATION/ METHODS & PROCEDURES STAFF/ PPB-P | BV46: SOH/ UNIVERSITY OF HAWAII/ UH MANOA/ VICE CHANC FOR ACAD AFFS/ UH ACAD-AFFS
C47: 36 | Y47: 0 | Z47: 0 | AE47: 0 | AI47: 0 | AJ47: 0 | AK47: 0 | AL47: 0 | AM47: 0 | AN47: 0 | AO47: 0 | BB47: SOH/ ACCOUNTING & GENERAL SERVICES/ CULTURE & THE ARTS/ SFCA-0 | BC47: SOH/ AGRICULTURE/ EPIDEMIOLOGY SECTION/ LDC/EPI/OAHU | BD47: SOH/ ATTORNEY GENERAL/ LEGAL SVC BRANCH - EMPLOYMENT LAW/ ERD | BE47: SOH/ BUDGET & FINANCE/ FINANCIAL ADMINISTRATION DIVISION/ FAD | BF47: SOH/ BUSINESS, ECON DEV, & TOURISM/ OFFICE OF TOURISM | BG47: SOH/ COMMERCE & CONSUMER AFFAIRS/ LEGAL STAFF | BH47: SOH/ DEFENSE/ CHAPLAIN/ HIARCH | BI47: SOH/ EDUCATION/ OPERATIONS SEC | BK47: SOH/ HAWAIIAN HOME LANDS/ LAND MANAGEMENT BRANCH | BL47: SOH/ HEALTH/ ENVIRON PROTECTION & HEALTH SVCS HAWAII | BN47: SOH/ HUMAN SERVICES/ SYSTEMS SOFTWARE MGMT STAFF/ DHS-OIT-SSM | BO47: SOH/ JUDICIARY/ INTERMEDIATE COURT OF APPEALS | BP47: SOH/ LABOR & INDUSTRIAL RELATIONS/ ELEVATOR INSPECTION SECTION/ DLIR-DOSH | BQ47: SOH/ LAND & NATURAL RESOURCES/ AQUATIC RESOURCES I & E SECTION | BS47: SOH/ PUBLIC SAFETY/ CIVIL RIGHTS COMPLIANCE OFFICE/ CRC | BT47: SOH/ TAXATION/ FIELD AUDIT SEC | BU47: SOH/ TRANSPORTATION/ PROGRAM EVALUATION & ANALYST STAFF/ PPB-E | BV47: SOH/ UNIVERSITY OF HAWAII/ UH MANOA/VICE CHANC FOR RESEARCH/ UH MANOA/RES
C48: 37 | Y48: 0 | Z48: 0 | AE48: 0 | AI48: 0 | AJ48: 0 | AK48: 0 | AL48: 0 | AM48: 0 | AN48: 0 | AO48: 0 | BB48: SOH/ ACCOUNTING & GENERAL SERVICES/ CUST & GRDS MAINT SEC/ KAU-5 | BC48: SOH/ AGRICULTURE/ FISCAL STAFF/ FISC | BD48: SOH/ ATTORNEY GENERAL/ LEGAL SVC BRANCH - LABOR/ LAB | BE48: SOH/ BUDGET & FINANCE/ FINANCIAL PLNG & POLICY SECTION | BF48: SOH/ BUSINESS, ECON DEV, & TOURISM/ OPERATIONS BR/ OPS | BG48: SOH/ COMMERCE & CONSUMER AFFAIRS/ LEGAL STENO SERVICE/ DCCA-OAH-LSS | BH48: SOH/ DEFENSE/ CHAPLAIN/ HIIB-CH | BI48: SOH/ EDUCATION/ PAYROLL UT | BK48: SOH/ HAWAIIAN HOME LANDS/ HAWAII SECTION | BL48: SOH/ HEALTH/ ENVIRON PROTECTION & HEALTH SVCS MAUI | BN48: SOH/ HUMAN SERVICES/ SYSTEMS MANAGEMENT SEC/ DHS-OIT-SM | BO48: SOH/ JUDICIARY/ FIRST JUDICIAL CIRCUIT -CHIEF JUDGE/ 1JC | BP48: SOH/ LABOR & INDUSTRIAL RELATIONS/ OCCUPATIONAL HEALTH BRANCH/ DLIR-DOSH | BQ48: SOH/ LAND & NATURAL RESOURCES/ RECREATIONAL FISH BR | BS48: SOH/ PUBLIC SAFETY/ CORRECTIONS PROGRAM SERVICES OFC/ CPS | BT48: SOH/ TAXATION/ COLLECTION DIV | BU48: SOH/ TRANSPORTATION/ COMPUTER SYSTEMS & SERVICES/ CSS | BV48: SOH/ UNIVERSITY OF HAWAII/ UH MANOA/VICE CHANC FOR STUDENTS/ UH MANOA/STDT
C49: 38 | Y49: 0 | Z49: 0 | AE49: 0 | AI49: 0 | AJ49: 0 | AK49: 0 | AL49: 0 | AM49: 0 | AN49: 0 | AO49: 0 | BB49: SOH/ ACCOUNTING & GENERAL SERVICES/ CUST & GRDS SECTION/ MOLO-1 | BC49: SOH/ AGRICULTURE/ FRESH FRTS & VEGS UNIT/ FFVH | BD49: SOH/ ATTORNEY GENERAL/ LEGAL SVC BRANCH - LAND/TRANS/ L/T | BE49: SOH/ BUDGET & FINANCE/ FINANCIAL RESEARCH & PROJEC SEC | BF49: SOH/ BUSINESS, ECON DEV, & TOURISM/ OVERSEAS OFFICES | BG49: SOH/ COMMERCE & CONSUMER AFFAIRS/ LICENSING BRANCH/ DCCA-INS-LIC | BH49: SOH/ DEFENSE/ CHEMICAL OFFICE/ HIIB-CM | BI49: SOH/ EDUCATION/ VOUCHERING UT | BK49: SOH/ HAWAIIAN HOME LANDS/ OAHU-KAUAI-MAUI SECTION | BL49: SOH/ HEALTH/ ENVIRONMENTAL HEALTH ADMIN | BN49: SOH/ HUMAN SERVICES/ SYSTEMS SECURITY SEC/ DHS-OIT-SS | BO49: SOH/ JUDICIARY/ DEPUTY CHIEF JUDGE -1CC CIVIL ADMIN/ 1CC-CIVIL | BP49: SOH/ LABOR & INDUSTRIAL RELATIONS/ STATE FIRE COUNCIL/ DLIR FIRE CN | BQ49: SOH/ LAND & NATURAL RESOURCES/ MARINE RECRL FISH SECTION | BS49: SOH/ PUBLIC SAFETY/ HEALTH CARE SERVICES OFFICE/ HCO | BT49: SOH/ TAXATION/ OAHU COLLECTION BR | BU49: SOH/ TRANSPORTATION/ INFORMATION RESOURCE MANAGEMT STAFF/ CSS-I | BV49: SOH/ UNIVERSITY OF HAWAII/ UNIVERSITY OF HAWAII AT HILO/ UH/HILO
C50: 39 | Y50: 0 | Z50: 0 | AE50: 0 | AI50: 0 | AJ50: 0 | AK50: 0 | AL50: 0 | AM50: 0 | AN50: 0 | AO50: 0 | BB50: SOH/ ACCOUNTING & GENERAL SERVICES/ DATA ADMINISTRATION SECTION/ICSD | BC50: SOH/ AGRICULTURE/ FRESH FRTS & VEGS UNIT/ FFVK | BD50: SOH/ ATTORNEY GENERAL/ LEGAL SVC BRANCH - LEGISLATION/ LEG | BE50: SOH/ BUDGET & FINANCE/ FISCAL ANALYSIS STAFF | BF50: SOH/ BUSINESS, ECON DEV, & TOURISM/ PERSONNEL STAFF/ ASO/P | BG50: SOH/ COMMERCE & CONSUMER AFFAIRS/ LICENSING BRANCH/ DCCA-PVL-LIC | BH50: SOH/ DEFENSE/ CHIEF OF STAFF/ HIANG/CS | BI50: SOH/ EDUCATION/ MAIL SERV | BK50: SOH/ HAWAIIAN HOME LANDS/ ENFORCEMENT SECTION | BL50: SOH/ HEALTH/ ENVIRONMENTAL HEALTH ANALYS SVC B | BN50: SOH/ HUMAN SERVICES/ TELECOMS & SYSTEM NETWORK STAFF/ DHS-OIT-TSN | BO50: SOH/ JUDICIARY/ JUDGES & STAFF/ 1CC-CIVIL | BP50: SOH/ LABOR & INDUSTRIAL RELATIONS/ WAGE STANDARDS DIVISION/ DLIR-WS | BQ50: SOH/ LAND & NATURAL RESOURCES/ FRESHWATER RECRL FISH SECTION | BS50: SOH/ PUBLIC SAFETY/ PROGRAMMING SERVICES STAFF/ CPS-P | BT50: SOH/ TAXATION/ FIELD COLLECTN SEC | BU50: SOH/ TRANSPORTATION/ COMMUNICATION & NETWORK ADMIN STAFF | BV50: SOH/ UNIVERSITY OF HAWAII/ OFC OF THE CHANCELLOR/ UH/HILO/CHAN
C51: 40 | Y51: 0 | Z51: 0 | AE51: 0 | AI51: 0 | AJ51: 0 | AK51: 0 | AL51: 0 | AM51: 0 | AN51: 0 | AO51: 0 | BB51: SOH/ ACCOUNTING & GENERAL SERVICES/ DATA PREPARATION UNIT(S)/ICSD | BC51: SOH/ AGRICULTURE/ FRESH FRTS & VEGS UNIT/ FFVM | BD51: SOH/ ATTORNEY GENERAL/ LEGAL SVC BRANCH - TAX/ TAX | BE51: SOH/ BUDGET & FINANCE/ FISCAL SERVICES OFFICE | BF51: SOH/ BUSINESS, ECON DEV, & TOURISM/ PRODUCTS AND SERVICES BRANCH/ PSB | BG51: SOH/ COMMERCE & CONSUMER AFFAIRS/ MAUI INVESTIGATION SECTION/ DCCA-OCP-MIS | BH51: SOH/ DEFENSE/ CHIEF OF STAFF/ HIARCS | BI51: SOH/ EDUCATION/ FACILIT SUPRT SVCS BR | BK51: SOH/ HAWAIIAN HOME LANDS/ CLERICAL SERVICES | BL51: SOH/ HEALTH/ ENVIRONMENTAL HEALTH SVCS DIV | BN51: SOH/ HUMAN SERVICES/ NETWORK PLANNING & MGMT SECTION/ DHS-ISO-NPM | BO51: SOH/ JUDICIARY/ DEP CHIEF JUDGE -1CC CRIMINAL ADMIN/ 1CC-CRIM | BP51: SOH/ LABOR & INDUSTRIAL RELATIONS/ TECHNICAL SUPPORT & SERVICES OFFICE/ TSSO | BQ51: SOH/ LAND & NATURAL RESOURCES/ DIVISION OF FORESTRY & WILDLIFE/ DFW | BS51: SOH/ PUBLIC SAFETY/ OPERATING SERVICES STAFF/ CPS-O | BT51: SOH/ TAXATION/ FIELD COLLECTION UT | BU51: SOH/ TRANSPORTATION/ OFFICE AUTOMATION STAFF/ CSS-OA | BV51: SOH/ UNIVERSITY OF HAWAII/ ACADEMIC AFFAIRS/ UH/HILO/ACAD
C52: 41 | Y52: 0 | Z52: 0 | AE52: 0 | AI52: 0 | AJ52: 0 | AK52: 0 | AL52: 0 | AM52: 0 | AN52: 0 | AO52: 0 | BB52: SOH/ ACCOUNTING & GENERAL SERVICES/ DATABASE MANAGEMENT SECTION/ICSD | BC52: SOH/ AGRICULTURE/ FRESH FRTS & VEGS UNIT/ FFVO | BD52: SOH/ ATTORNEY GENERAL/ LEGAL SVC BRANCH - TORT LITIGATION/ TORT | BE52: SOH/ BUDGET & FINANCE/ FISCAL STAFF | BF52: SOH/ BUSINESS, ECON DEV, & TOURISM/ REFERENCE & INFO RETRIEVAL BRANCH | BG52: SOH/ COMMERCE & CONSUMER AFFAIRS/ OFFICE OF ADMINISTRATIVE HEARINGS/ DCCA-OAH | BH52: SOH/ DEFENSE/ CIVIL AFFAIRS OFFICE/ HIIB-CA | BI52: SOH/ EDUCATION/ AUXILIARY SVCS SEC | BL52: SOH/ HEALTH/ ENVIRONMENTAL HEALTH SVCS KAUAI | BN52: SOH/ HUMAN SERVICES/ MICROCOMPUTER SEC/ DHS-ISO-MIC | BO52: SOH/ JUDICIARY/ JUDGES & STAFF/ 1CC-CRIM | BP52: SOH/ LABOR & INDUSTRIAL RELATIONS/ INTAKE & CERTIFICATION BRANCH/ ICB | BQ52: SOH/ LAND & NATURAL RESOURCES/ CLERICAL SERVICES/ DCS | BS52: SOH/ PUBLIC SAFETY/ EDUCATION SERVICES STAFF/ CPS-E | BT52: SOH/ TAXATION/ ACCTS/CLER PROCESSG UT | BU52: SOH/ TRANSPORTATION/ COMPUTER OPERATIONS STAFF/ CSS-S | BV52: SOH/ UNIVERSITY OF HAWAII/ ADMINISTRATIVE AFFAIRS/ UH/HILO/ADMIN
C53: 42 | Y53: 0 | Z53: 0 | AE53: 0 | AI53: 0 | AJ53: 0 | AK53: 0 | AL53: 0 | AM53: 0 | AN53: 0 | AO53: 0 | BB53: SOH/ ACCOUNTING & GENERAL SERVICES/ DESIGN BRANCH/ DPW-11 | BC53: SOH/ AGRICULTURE/ GROUNDSKEEPING SEC/ AQS/GROUNDS | BD53: SOH/ ATTORNEY GENERAL/ LEGAL SVC BRANCH-CRIMINAL JUSTICE/ CJD | BE53: SOH/ BUDGET & FINANCE/ GOVERNMENT-WIDE SUPP SECTION III | BF53: SOH/ BUSINESS, ECON DEV, & TOURISM/ RESEARCH/ECONOMIC ANALYSIS DIV/ READ | BG53: SOH/ COMMERCE & CONSUMER AFFAIRS/ OFFICE OF CONSUMER PROTECTION/ DCCA-OCP | BH53: SOH/ DEFENSE/ CIVIL DEFENSE ADVISORY COUNCIL | BI53: SOH/ EDUCATION/ CUSTODIAL SVCS | BL53: SOH/ HEALTH/ ENVIRONMENTAL MANAGEMENT DIV | BN53: SOH/ HUMAN SERVICES/ OFC AUTOMATN & CLIENT COMPUTER SVCS/ DHS-OIT-OACCS | BO53: SOH/ JUDICIARY/ DEPUTY CHIEF JUDGE - 1FC ADMIN/ 1FC | BP53: SOH/ LABOR & INDUSTRIAL RELATIONS/ COMPLIANCE BRANCH/ CB | BQ53: SOH/ LAND & NATURAL RESOURCES/ SUPT SVCS - FORESTS RES MGMT/ DFR | BS53: SOH/ PUBLIC SAFETY/ LIBRARY SERVICES STAFF/ CPS-L | BT53: SOH/ TAXATION/ OFFICE COLLECTN SEC | BU53: SOH/ TRANSPORTATION/ COMPUTER OPERATIONS SECTION | BV53: SOH/ UNIVERSITY OF HAWAII/ OFC OF MAUNA KEA MANAGEMENT/ UH/HILO/MAUNA
C54: 43 | Y54: 0 | Z54: 0 | AE54: 0 | AI54: 0 | AJ54: 0 | AK54: 0 | AL54: 0 | AM54: 0 | AN54: 0 | AO54: 0 | BB54: SOH/ ACCOUNTING & GENERAL SERVICES/ DESIGNATED PROGRAMS/ SFCA-1 | BC54: SOH/ AGRICULTURE/ HAWAII AGR STATS SV BR/ HASS | BD54: SOH/ ATTORNEY GENERAL/ OFFICE OF THE ATTORNEY GENERAL/ OAG | BE54: SOH/ BUDGET & FINANCE/ GOVERNMENT-WIDE SUPPORT SECTION I | BF54: SOH/ BUSINESS, ECON DEV, & TOURISM/ SOH/ BUSINESS, ECON DEV, & TOURISM/ DBEDT | BG54: SOH/ COMMERCE & CONSUMER AFFAIRS/ OFFICE OF THE DIRECTOR/ DCCA-DIR | BH54: SOH/ DEFENSE/ CIVIL ENGINEERING/ HIIB-CE | BI54: SOH/ EDUCATION/ STU TRNS,TRFCSFTY,HSG | BL54: SOH/ HEALTH/ ENVIRONMENTAL PLANNING OFC | BN54: SOH/ HUMAN SERVICES/ COMPUTER OPERATIONS STAFF/ DHS-OIT-COS | BO54: SOH/ JUDICIARY/ JUDGES & STAFF/ 1FC | BP54: SOH/ LABOR & INDUSTRIAL RELATIONS/ INVESTIGATIONS SECTION I/ ISI | BQ54: SOH/ LAND & NATURAL RESOURCES/ FOR RES MGMT/ DRM | BS54: SOH/ PUBLIC SAFETY/ RELIGIOUS SERVICES STAFF/ CPS-R | BT54: SOH/ TAXATION/ OFC COLLECTN UT | BU54: SOH/ TRANSPORTATION/ DATA ENTRY SECTION | BV54: SOH/ UNIVERSITY OF HAWAII/ STUDENT AFFAIRS/ UH/HILO/STDT
C55: 44 | Y55: 0 | Z55: 0 | AE55: 0 | AI55: 0 | AJ55: 0 | AK55: 0 | AL55: 0 | AM55: 0 | AN55: 0 | AO55: 0 | BB55: SOH/ ACCOUNTING & GENERAL SERVICES/ DISTRIBUTED SYSTEM SECTION/ICSD | BC55: SOH/ AGRICULTURE/ HAWAII DISTRICT UT/ AGRPIPPCBCH | BD55: SOH/ ATTORNEY GENERAL/ PSHHD/ PSHHD | BE55: SOH/ BUDGET & FINANCE/ GOVERNMENT-WIDE SUPPORT SECTION II | BF55: SOH/ BUSINESS, ECON DEV, & TOURISM/ OFFICE OF THE DIRECTOR/ DBEDT-DIR | BG55: SOH/ COMMERCE & CONSUMER AFFAIRS/ OFFICE SERVICES STAFF/ DCCA-BREG-OSS | BH55: SOH/ DEFENSE/ CLERICAL SECTION | BI55: SOH/ EDUCATION/ CIP BUDGET SEC | BL55: SOH/ HEALTH/ ENVIRONMENTAL RESOURCES OFC | BN55: SOH/ HUMAN SERVICES/ DATA CONTROL SEC/ DHS-OIT-DCS | BO55: SOH/ JUDICIARY/ DEPUTY CHIEF JUDGE - 1DC ADMIN/ 1DC | BP55: SOH/ LABOR & INDUSTRIAL RELATIONS/ INVESTIGATIONS SECTION II/ ISII | BQ55: SOH/ LAND & NATURAL RESOURCES/ COOP FORSTS MGT/ DCM | BS55: SOH/ PUBLIC SAFETY/ INTAKE SERVICES CENTER DIVISION/ ICSD | BT55: SOH/ TAXATION/ NON-FILERS UT | BU55: SOH/ TRANSPORTATION/ CONTROL SECTION | BV55: SOH/ UNIVERSITY OF HAWAII/ UNIVERSITY OF HAWAII - WEST OAHU/ UH/WOAHU
C56: 45 | Y56: =V56+W56+X56 -> 0 | Z56: 0 | AE56: 0 | AI56: 0 | AJ56: 0 | AK56: 0 | AL56: 0 | AM56: 0 | AN56: 0 | AO56: 0 | BB56: SOH/ ACCOUNTING & GENERAL SERVICES/ EAST KAUAI SECTION/ KAU-3 | BC56: SOH/ AGRICULTURE/ HAWAII DISTRICT UT/ AGRPIPPCCMH | BD56: SOH/ ATTORNEY GENERAL/ RESOURCE COORDINATION DIV/ RCD | BE56: SOH/ BUDGET & FINANCE/ HAWAII | BF56: SOH/ BUSINESS, ECON DEV, & TOURISM/ INFORMATION RESOURCES MGMT DIV/ IRMD | BG56: SOH/ COMMERCE & CONSUMER AFFAIRS/ OFFICE SERVICES STAFF/ DCCA-DIR-OSS | BH56: SOH/ DEFENSE/ CLERICAL SECTION | BI56: SOH/ EDUCATION/ DESIGN COORD & EVAL SEC | BL56: SOH/ HEALTH/ EPIDEMIOLOGY HAWAII | BN56: SOH/ HUMAN SERVICES/ OPERATIONS SEC/ DHS-ISO-OS | BO56: SOH/ JUDICIARY/ JUDGES/ 1DC | BP56: SOH/ LABOR & INDUSTRIAL RELATIONS/ HEARINGS BRANCH/ HB | BQ56: SOH/ LAND & NATURAL RESOURCES/ FOR RES EVAL & TEC SVC/ DTS | BS56: SOH/ PUBLIC SAFETY/ HAWAII INTAKE SERVICES CENTER/ HISC | BT56: SOH/ TAXATION/ MAUI COLLECTION BR | BU56: SOH/ TRANSPORTATION/ PROPERTY MANAGEMENT OFC/ PMN | BV56: SOH/ UNIVERSITY OF HAWAII/ OFC OF THE CHANCELLOR/ UH/WOAHU/CHAN
C57: 46 | Y57: 0 | Z57: 0 | AE57: 0 | AI57: 0 | AJ57: 0 | AK57: 0 | AL57: 0 | AM57: 0 | AN57: 0 | AO57: 0 | BB57: SOH/ ACCOUNTING & GENERAL SERVICES/ ED CORR DEF & AGR SEC/ DPW-6 | BC57: SOH/ AGRICULTURE/ HAWAII DISTRICT/ ADMH | BD57: SOH/ ATTORNEY GENERAL/ RESOURCE COORDINATION DIVISION/ RCD | BE57: SOH/ BUDGET & FINANCE/ HAWAII INFORMATION NETWORK CORP | BF57: SOH/ BUSINESS, ECON DEV, & TOURISM/ DATA SUPPORT BRANCH | BG57: SOH/ COMMERCE & CONSUMER AFFAIRS/ PERSONNEL STAFF/ DCCA-DIR-PERS | BH57: SOH/ DEFENSE/ COMMAND SERGEANT MAJOR/ HIARSM | BI57: SOH/ EDUCATION/ INFO SYST SVCS BR | BL57: SOH/ HEALTH/ EPIDEMIOLOGY MAUI | BN57: SOH/ HUMAN SERVICES/ PROJECT MGMT & PLANNING STAFF/ DHS-OIT-PMP | BO57: SOH/ JUDICIARY/ CHIEF COURT ADMIN/FAMILY COURT DIR | BP57: SOH/ LABOR & INDUSTRIAL RELATIONS/ CLERICAL SERVICES/ CS | BQ57: SOH/ LAND & NATURAL RESOURCES/ FOR RES PROT/ DRP | BS57: SOH/ PUBLIC SAFETY/ OFFICE SERVICES STAFF/ HISC | BT57: SOH/ TAXATION/ MOLOKAI SEC | BU57: SOH/ TRANSPORTATION/ STATEWIDE TRNSPORTATN PLANNING OFC/ STP | BV57: SOH/ UNIVERSITY OF HAWAII/ ACADEMIC SUPPORT/ UH/WOAHU/ACAD
C58: 47 | Y58: 0 | Z58: 0 | AE58: 0 | AI58: 0 | AJ58: 0 | AK58: 0 | AL58: 0 | AM58: 0 | AN58: 0 | AO58: 0 | BB58: SOH/ ACCOUNTING & GENERAL SERVICES/ EDUCATION & TRAINING SECTION/ICSD | BC58: SOH/ AGRICULTURE/ HAWAII DISTRICT/ AGRPIPQH | BD58: SOH/ ATTORNEY GENERAL/ SOH/ ATTORNEY GENERAL/ AG | BE58: SOH/ BUDGET & FINANCE/ HAWAII PUBLIC EMPLOYEES HEALTH FUND | BF58: SOH/ BUSINESS, ECON DEV, & TOURISM/ SPECIAL PROJECTS BRANCH | BG58: SOH/ COMMERCE & CONSUMER AFFAIRS/ PROFESSIONAL & VOCATIONAL LICENSING/ DCCA-PVL | BH58: SOH/ DEFENSE/ COMMAND SERGEANT MAJOR/ HIIB-SM | BI58: SOH/ EDUCATION/ SCHOOL FOOD SERV BR | BL58: SOH/ HEALTH/ EXECUTIVE OFFICE ON AGING | BN58: SOH/ HUMAN SERVICES/ ADMINISTRATIVE APPEALS OFFICE/ DHS-AAO | BO58: SOH/ JUDICIARY/ ADMINISTRATIVE SERVICES DIV/ 1JC-ASD | BP58: SOH/ LABOR & INDUSTRIAL RELATIONS/ UNEMPLOYMENT INSURANCE DIVISION/ DLIR-UI | BQ58: SOH/ LAND & NATURAL RESOURCES/ SUPT SVC - TRAILS & ACCESS SECTION | BS58: SOH/ PUBLIC SAFETY/ WEST HAWAII OPERATIONS SECTION/ HISC | BT58: SOH/ TAXATION/ FIELD COLLECTION SEC | BU58: SOH/ TRANSPORTATION/ PLANNING PROCESS STAFF/ STP-A | BV58: SOH/ UNIVERSITY OF HAWAII/ ADMINISTRATIVE SERVICES/ UH/WOAHU/ADM
C59: 48 | Y59: 0 | Z59: 0 | AE59: 0 | AI59: 0 | AJ59: 0 | AK59: 0 | AL59: 0 | AM59: 0 | AN59: 0 | AO59: 0 | BB59: SOH/ ACCOUNTING & GENERAL SERVICES/ ENG & MAINT MGMT BR/ STAD-3 | BC59: SOH/ AGRICULTURE/ HAWAII DISTRICT/ ARMDAPH | BE59: SOH/ BUDGET & FINANCE/ HEALTH FUND STAFF | BF59: SOH/ BUSINESS, ECON DEV, & TOURISM/ STATISTICS BRANCH/ STATS | BG59: SOH/ COMMERCE & CONSUMER AFFAIRS/ RATE & POLICY ANALYSIS BRANCH/ DCCA-INS-RPA | BH59: SOH/ DEFENSE/ COMMAND SERGEANT MAJOR/ HITC-SM | BI59: SOH/ EDUCATION/ OFF OF INSTR SVCS/ OIS | BL59: SOH/ HEALTH/ FAMILY COURT LIAISON BR | BN59: SOH/ HUMAN SERVICES/ SECRETARY/CLERICAL SERVICES/ DHS-AAO-SEC | BO59: SOH/ JUDICIARY/ STAFF SVCS/ LEGAL RESEARCH/ 1JC-ASD-LEG | BP59: SOH/ LABOR & INDUSTRIAL RELATIONS/ PROGRAM DEV, COORD & EVAL SVCS OFC | BQ59: SOH/ LAND & NATURAL RESOURCES/ SUPT SVCS - NATURAL AREAS RESERVE | BS59: SOH/ PUBLIC SAFETY/ EAST HAWAII OPERATIONS SECTION/ HISC | BT59: SOH/ TAXATION/ OFC COLLECTION SEC | BU59: SOH/ TRANSPORTATION/ PLANS DEVELOPMENT SECTION | BV59: SOH/ UNIVERSITY OF HAWAII/ CENTER FOR LABOR EDUCATION & RES/ UH/WOAHU/CLER
C60: 49 | Y60: 0 | Z60: 0 | AE60: 0 | AI60: 0 | AJ60: 0 | AK60: 0 | AL60: 0 | AM60: 0 | AN60: 0 | AO60: 0 | BB60: SOH/ ACCOUNTING & GENERAL SERVICES/ ENGR-DESIGN SECTION/ DPW-12 | BC60: SOH/ AGRICULTURE/ HAWAII DISTRICT/ COMH | BE60: SOH/ BUDGET & FINANCE/ HEALTH SECTION | BG60: SOH/ COMMERCE & CONSUMER AFFAIRS/ REAL ESTATE BRANCH/ DCCA-PVL-REAL | BH60: SOH/ DEFENSE/ COMMANDER, 1/193 AVN BN/ AVBN-CO | BI60: SOH/ EDUCATION/ ADMIN SVCS | BL60: SOH/ HEALTH/ FAMILY HEALTH SVCS DIV | BN60: SOH/ HUMAN SERVICES/ OFFICE OF YOUTH SERVICES/ DHS-OYS | BO60: SOH/ JUDICIARY/ STAFF SVCS/ PROGRAM SPECIALIST/ 1JC-ASD-PS | BP60: SOH/ LABOR & INDUSTRIAL RELATIONS/ CLERICAL SERVICES | BQ60: SOH/ LAND & NATURAL RESOURCES/ SUPT SVCS - WILDLIFE RES MGMT | BS60: SOH/ PUBLIC SAFETY/ OAHU INTAKE SERVICE CENTER/ OISC | BT60: SOH/ TAXATION/ HAWAII COLLECTION BR | BU60: SOH/ TRANSPORTATION/ PLANS STAFF/ STP-M | BV60: SOH/ UNIVERSITY OF HAWAII/ INSTRUCTION/ UH/WOAHU/INST
C61: 50 | Y61: 0 | Z61: 0 | AE61: 0 | AI61: =IF(AE61<=0,AG61,AE61+AG61) -> 0 | AJ61: 0 | AK61: 0 | AL61: 0 | AM61: 0 | AN61: 0 | AO61: 0 | BB61: SOH/ ACCOUNTING & GENERAL SERVICES/ EVENTS MGMT BR/ STAD-2 | BC61: SOH/ AGRICULTURE/ HAWAII DISTRICT/ HASSH | BE61: SOH/ BUDGET & FINANCE/ HIGHER EDUCATION SECTION | BG61: SOH/ COMMERCE & CONSUMER AFFAIRS/ RECORD SECTION/ DCCA-PVL-REC | BH61: SOH/ DEFENSE/ COMMANDER, 297 S & S BN/ SSBN-CO | BI61: SOH/ EDUCATION/ GENERAL EDUC BR | BL61: SOH/ HEALTH/ FAMILY HEALTH SVCS MAUI | BN61: SOH/ HUMAN SERVICES/ ADMINISTRATIVE SERVICES OFFICE/ DHS-OYS-ASO | BO61: SOH/ JUDICIARY/ STAFF SVCS/ PROGRAMS/ 1JC-ASD-PROG | BP61: SOH/ LABOR & INDUSTRIAL RELATIONS/ PROGRAM DEV STAFF/ DLIR-UI | BQ61: SOH/ LAND & NATURAL RESOURCES/ NON-GAME WILDLIFE | BS61: SOH/ PUBLIC SAFETY/ OFFICE SERVICES STAFF/ OISC | BT61: SOH/ TAXATION/ KONA COLLECTION SEC | BU61: SOH/ TRANSPORTATION/ FORECASTING SECTION | BV61: SOH/ UNIVERSITY OF HAWAII/ STUDENT SERVICES/ UH/WOAHU/STDT
C62: 51 | Y62: =V62+W62+X62 -> 0 | Z62: 0 | AE62: 0 | AI62: =IF(AE62<=0,AG62,AE62+AG62) -> 0 | AJ62: 0 | AK62: 0 | AL62: 0 | AM62: 0 | AN62: 0 | AO62: 0 | BB62: SOH/ ACCOUNTING & GENERAL SERVICES/ FACILITIES MANAGEMENT SECTION/ICSD | BC62: SOH/ AGRICULTURE/ HAWAII DISTRICT/ LDC/HAWAII | BE62: SOH/ BUDGET & FINANCE/ INDIVIDUAL RIGHTS SECTION | BG62: SOH/ COMMERCE & CONSUMER AFFAIRS/ RECORDS SECTION/ DCCA-BREG-REC | BH62: SOH/ DEFENSE/ COMMANDER/ HIIB-CO | BI62: SOH/ EDUCATION/ LANGUAGES SEC | BL62: SOH/ HEALTH/ FAMILY HEALTH SYSTEMS KAUAI | BN62: SOH/ HUMAN SERVICES/ CLERICAL SUPPORT/ DHS-OYS-CS | BO62: SOH/ JUDICIARY/ STAFF SVCS/ MISC/ 1JC-ASD-MISC | BP62: SOH/ LABOR & INDUSTRIAL RELATIONS/ PROGRAM EVAL STAFF/ DLIR-UI | BQ62: SOH/ LAND & NATURAL RESOURCES/ GAME WILDLIFE | BS62: SOH/ PUBLIC SAFETY/ OPERATIONS SECTION/ OISC | BT62: SOH/ TAXATION/ FIELD COLLECTION SEC | BU62: SOH/ TRANSPORTATION/ PROGRAMMING STAFF/ STP-P | BV62: SOH/ UNIVERSITY OF HAWAII/ HAWAII COMMUNITY COLLEGE/ UH/HICC
C63: 52 | Y63: =V63+W63+X63 -> 0 | Z63: 0 | AE63: 0 | AI63: =IF(AE63<=0,AG63,AE63+AG63) -> 0 | AJ63: 0 | AK63: 0 | AL63: 0 | AM63: 0 | AN63: 0 | AO63: 0 | BB63: SOH/ ACCOUNTING & GENERAL SERVICES/ FISCAL SECTION/ STAD-8 | BC63: SOH/ AGRICULTURE/ HAWAII DISTRICT/ MI/HAWAII | BE63: SOH/ BUDGET & FINANCE/ INVESTIGATION | BG63: SOH/ COMMERCE & CONSUMER AFFAIRS/ REGULATED INDUSTRIES COMPLAINTS OFC/ DCCA-RICO | BH63: SOH/ DEFENSE/ COMMANDER/ HITC-CO | BI63: SOH/ EDUCATION/ SCIENCES & MATH SEC | BL63: SOH/ HEALTH/ FOOD & DRUG BR | BN63: SOH/ HUMAN SERVICES/ FISCAL STAFF/ DHS-OYS-FS | BO63: SOH/ JUDICIARY/ STAFF SVCS/ COURT OPERATIONS SPEC/ 1JC-ASD-COS | BP63: SOH/ LABOR & INDUSTRIAL RELATIONS/ QUALITY CONTROL SEC | BQ63: SOH/ LAND & NATURAL RESOURCES/ HAWAII FORESTS & WILDLIFE RES MGMT | BS63: SOH/ PUBLIC SAFETY/ CLERICAL SUPPORT STAFF/ OISC | BT63: SOH/ TAXATION/ OFC COLLECTION SEC | BU63: SOH/ TRANSPORTATION/ LAND USE COORDINATION SECTION | BV63: SOH/ UNIVERSITY OF HAWAII/ OFC OF THE CHANCELLOR/ UH/HICC/CHAN
C64: 53 | Y64: 0 | Z64: 0 | AE64: 0 | AI64: 0 | AJ64: 0 | AK64: 0 | AL64: 0 | AM64: 0 | AN64: 0 | AO64: 0 | BB64: SOH/ ACCOUNTING & GENERAL SERVICES/ GEN GOV & HEALTH SEC/ DPW-7 | BC64: SOH/ AGRICULTURE/ HAWAII ED & CERT UT/ AGRPIPESTREH | BE64: SOH/ BUDGET & FINANCE/ INVESTIGATIVE SECTION | BG64: SOH/ COMMERCE & CONSUMER AFFAIRS/ SECURITIES ENFORCEMENT BRANCH/ DCCA-BREG-SEB | BH64: SOH/ DEFENSE/ COMMUNICATIONS SECTION | BI64: SOH/ EDUCATION/ SOC STUDIES & ART SEC | BL64: SOH/ HEALTH/ HANSENS DISEASE BR | BN64: SOH/ HUMAN SERVICES/ PROGRAM DEVELOPMENT OFFICE/ DHS-OYS-PDO | BO64: SOH/ JUDICIARY/ STAFF SVCS/ SUPPORT SVCS BR/ 1JC-ASD-SSB | BP64: SOH/ LABOR & INDUSTRIAL RELATIONS/ RESOURCE MGMT SECTION/ DLIR-UI | BQ64: SOH/ LAND & NATURAL RESOURCES/ TECH SUPT SVCS | BS64: SOH/ PUBLIC SAFETY/ ASSESSMENT & CLASSIFICATION UNIT/ OISC | BT64: SOH/ TAXATION/ KAUAI COLLECTION BR | BU64: SOH/ TRANSPORTATION/ ADMINISTRATION/ DOT-ADMIN | BV64: SOH/ UNIVERSITY OF HAWAII/ ADMINISTRATIVE SERVICES/ UH/HICC/ADMIN
C65: 54 | Y65: 0 | Z65: 0 | AE65: 0 | AI65: 0 | AJ65: 0 | AK65: 0 | AL65: 0 | AM65: 0 | AN65: 0 | AO65: 0 | BB65: SOH/ ACCOUNTING & GENERAL SERVICES/ GENERAL SERVICES SEC/ STAD-5 | BC65: SOH/ AGRICULTURE/ HAWAII ENF UT/ AGRPIPESTENFH | BE65: SOH/ BUDGET & FINANCE/ INVESTMENT AUDIT SECTION | BG65: SOH/ COMMERCE & CONSUMER AFFAIRS/ SECURITY COMPLIANCE BRANCH/ DCCA-BREG-SCB | BH65: SOH/ DEFENSE/ COMPTROLLER DIVISION/ HIPFC | BI65: SOH/ EDUCATION/ SPEC NEEDS BR | BL65: SOH/ HEALTH/ HAWAII DISTRICT HEALTH OFC | BN65: SOH/ HUMAN SERVICES/ HAWAII YOUTH CORRECTIONAL FACILITY/ DHS-OYS-HYCF | BO65: SOH/ JUDICIARY/ FISCAL MGMT & SUPP SVC BR/ 1JC-ASD-FIS | BP65: SOH/ LABOR & INDUSTRIAL RELATIONS/ INTERNAL SECURITY SECTION/ DLIR-UI | BQ65: SOH/ LAND & NATURAL RESOURCES/ CLERICAL SVCS | BS65: SOH/ PUBLIC SAFETY/ CLIENT SERVICES UNIT/ OISC | BT65: SOH/ TAXATION/ FIELD COLLECTION SEC | BU65: SOH/ TRANSPORTATION/ AIRPORTS DIVISION/ AIR | BV65: SOH/ UNIVERSITY OF HAWAII/ CONTINUING EDUCATION & TRAINING/ UH/HICC/CE&T
C66: 55 | Y66: 0 | Z66: 0 | AE66: 0 | AI66: 0 | AJ66: 0 | AK66: 0 | AL66: 0 | AM66: 0 | AN66: 0 | AO66: 0 | BB66: SOH/ ACCOUNTING & GENERAL SERVICES/ GOVERNMENT REC SEC/ ARCH-6 | BC66: SOH/ AGRICULTURE/ IMPORT SECTION/ LDC/IMPORT | BE66: SOH/ BUDGET & FINANCE/ INVESTMENTS SECTION | BG66: SOH/ COMMERCE & CONSUMER AFFAIRS/ SOH/ COMMERCE & CONSUMER AFFAIRS/ DCCA | BH66: SOH/ DEFENSE/ CONTR & ENGR SERVICES SECTION | BI66: SOH/ EDUCATION/ SPEC INSTR PROG & SVCS | BL66: SOH/ HEALTH/ HAWAII FAM GUID CTR BR | BN66: SOH/ HUMAN SERVICES/ OFFICE SERVICES STAFF/ DHS-OYS-OS | BO66: SOH/ JUDICIARY/ DEPUTY CHIEF COURT ADMINISTRATOR/ 1JC-DCA | BP66: SOH/ LABOR & INDUSTRIAL RELATIONS/ OAHU BRANCH | BQ66: SOH/ LAND & NATURAL RESOURCES/ HAWAII FORESTS MGT SEC | BS66: SOH/ PUBLIC SAFETY/ COURT UNIT/ OISC | BT66: SOH/ TAXATION/ OFC COLLECTION SEC | BU66: SOH/ TRANSPORTATION/ STAFF SVCS OFFICE/ AIR-A | BV66: SOH/ UNIVERSITY OF HAWAII/ INSTRUCTION/ UH/HICC/INST
C67: 56 | Y67: 0 | Z67: 0 | AE67: 0 | AI67: 0 | AJ67: 0 | AK67: 0 | AL67: 0 | AM67: 0 | AN67: 0 | AO67: 0 | BB67: SOH/ ACCOUNTING & GENERAL SERVICES/ GROUNDS MAINT SEC/ CSD-14 | BC67: SOH/ AGRICULTURE/ INSECTARY UT/ AGRPIPPCBCI | BE67: SOH/ BUDGET & FINANCE/ KAUAI | BH67: SOH/ DEFENSE/ COUNTY CD AGENCIES | BI67: SOH/ EDUCATION/ SPECIAL ED SEC | BL67: SOH/ HEALTH/ HAWAII FAMILY GUIDANCE CENTER HAWAII | BN67: SOH/ HUMAN SERVICES/ HEALTH CARE SERVICES SEC/ DHS-OYS-HCS | BO67: SOH/ JUDICIARY/ ADULT CLIENT SERVICES BR/ 1JC-DCA-ACSB | BP67: SOH/ LABOR & INDUSTRIAL RELATIONS/ HONOLULU CLAIMS SECTION/ DLIR-UI | BQ67: SOH/ LAND & NATURAL RESOURCES/ RESOURCES MGMT | BS67: SOH/ PUBLIC SAFETY/ KAUAI INTAKE SERVICE CENTER/ KISC | BT67: SOH/ TAXATION/ BOARD OF REVIEWS | BU67: SOH/ TRANSPORTATION/ FINANCIAL MGMT STAFF/ AIR-AF | BV67: SOH/ UNIVERSITY OF HAWAII/ STUDENT SERVICES/ UH/HICC/STDT
C68: 57 | Y68: 0 | Z68: 0 | AE68: 0 | AI68: 0 | AJ68: 0 | AK68: 0 | AL68: 0 | AM68: 0 | AN68: 0 | AO68: 0 | BB68: SOH/ ACCOUNTING & GENERAL SERVICES/ HAWAII DISTRICT OFFICE/ HAW-0 | BC68: SOH/ AGRICULTURE/ INSP SEC | BE68: SOH/ BUDGET & FINANCE/ LOWER EDUCATION SECTION | BH68: SOH/ DEFENSE/ CUSTODIAL UNIT | BI68: SOH/ EDUCATION/ ADULT & EARLY CHILDHD | BL68: SOH/ HEALTH/ HAWAII STATE HOSPITAL BR | BN68: SOH/ HUMAN SERVICES/ OPERATING SERVICES SEC/ DHS-OYS-OP | BO68: SOH/ JUDICIARY/ JUVENILE CLIENT SERVICES BR/ 1JC-DCA-JCSB | BP68: SOH/ LABOR & INDUSTRIAL RELATIONS/ CLERICAL SERVICES | BQ68: SOH/ LAND & NATURAL RESOURCES/ CEN TREE NURSERY | BS68: SOH/ PUBLIC SAFETY/ OFFICE SERVICES STAFF/ KISC | BT68: SOH/ TAXATION/ OAHU BOARD OF REVIEW | BU68: SOH/ TRANSPORTATION/ AUDIT SECTION/ AIR-AF | BV68: SOH/ UNIVERSITY OF HAWAII/ UNIV OF HAWAII CENTER, WEST HAWAII/ UH/HICC/UHCWH
C69: 58 | Y69: 0 | Z69: 0 | AE69: 0 | AI69: 0 | AJ69: 0 | AK69: 0 | AL69: 0 | AM69: 0 | AN69: 0 | AO69: 0 | BB69: SOH/ ACCOUNTING & GENERAL SERVICES/ HILO-KAU SEC/ HAW-3 | BC69: SOH/ AGRICULTURE/ INSPECTION & COMPLIANCE BR | BE69: SOH/ BUDGET & FINANCE/ MANAGEMENT SERVICES BRANCH | BH69: SOH/ DEFENSE/ DATA PROCESSING INSTALLATION/ HIPFD | BI69: SOH/ EDUCATION/ OCCUP DEV SEC | BL69: SOH/ HEALTH/ HAZARD EVAL EMERG RESPONSE OFC | BN69: SOH/ HUMAN SERVICES/ CONSTRUCTION & MAINTENANCE UNIT/ DHS-OYS-CM | BO69: SOH/ JUDICIARY/ COURT SERVICES DIV/ 1JC-DCA-CSD | BP69: SOH/ LABOR & INDUSTRIAL RELATIONS/ UNIT I | BQ69: SOH/ LAND & NATURAL RESOURCES/ RESOURCES PROT | BS69: SOH/ PUBLIC SAFETY/ OPERATIONS SECTION/ KISC | BT69: SOH/ TAXATION/ MAUI BOARD OF REVIEW | BU69: SOH/ TRANSPORTATION/ ACCOUNTING SECTION/ AIR-AF | BV69: SOH/ UNIVERSITY OF HAWAII/ HONOLULU COMMUNITY COLLEGE/ UH/HCC
C70: 59 | Y70: 0 | Z70: 0 | AE70: 0 | AI70: 0 | AJ70: 0 | AK70: 0 | AL70: 0 | AM70: 0 | AN70: 0 | AO70: 0 | BB70: SOH/ ACCOUNTING & GENERAL SERVICES/ HISTORICAL RECORDS BR/ ARCH-4 | BC70: SOH/ AGRICULTURE/ INSPECTION & QUARANTINE BR/ AQS/ADM | BE70: SOH/ BUDGET & FINANCE/ MAUI | BH70: SOH/ DEFENSE/ DEPUTY ADJUTANT GENERAL/ HIDAG | BI70: SOH/ EDUCATION/ AGRIC EDUCATION | BL70: SOH/ HEALTH/ HEALTH INFO SYS OFC | BN70: SOH/ HUMAN SERVICES/ FARM UNIT/ DHS-OYS-FARM | BO70: SOH/ JUDICIARY/ COURT OEPRATIONS DIV/ 1JC-DCA-COD | BP70: SOH/ LABOR & INDUSTRIAL RELATIONS/ CLAIMS EXAM SUBUNIT | BQ70: SOH/ LAND & NATURAL RESOURCES/ SVC FORESTRY | BS70: SOH/ PUBLIC SAFETY/ MAUI INTAKE SERVICE CENTER/ MISC | BT70: SOH/ TAXATION/ HAWAII BOARD OF REVIEW | BU70: SOH/ TRANSPORTATION/ PROCUREMENT SECTION/ AIR-AF/P | BV70: SOH/ UNIVERSITY OF HAWAII/ OFC OF THE CHANCELLOR/ UH/HCC/CHAN
C71: 60 | Y71: 0 | Z71: 0 | AE71: 0 | AI71: 0 | AJ71: 0 | AK71: 0 | AL71: 0 | AM71: 0 | AN71: 0 | AO71: 0 | BB71: SOH/ ACCOUNTING & GENERAL SERVICES/ HON CIVIC CENTER SEC/ CSD-3 | BC71: SOH/ AGRICULTURE/ KAUAI DISTRICT UT/ AGRPIPPCBCK | BE71: SOH/ BUDGET & FINANCE/ MEMBERSHIP RECORDS STAFF | BH71: SOH/ DEFENSE/ DEPUTY CHIEF OF STAFF/ HIANG/DCS | BI71: SOH/ EDUCATION/ BUSINESS EDUC | BL71: SOH/ HEALTH/ HEALTH PROM/EDUC OFFICE HAWAII | BN71: SOH/ HUMAN SERVICES/ FOOD SERVICE UNIT/ DHS-OYS-FS | BO71: SOH/ JUDICIARY/ SECOND JUDICIAL CIRCUIT-CHIEF JUDGE/ 2JC | BP71: SOH/ LABOR & INDUSTRIAL RELATIONS/ CLAIMS PROC SUBUNIT | BQ71: SOH/ LAND & NATURAL RESOURCES/ HAWAII FIELD OPER SEC | BS71: SOH/ PUBLIC SAFETY/ OFFICE SERVICES STAFF/ MISC | BT71: SOH/ TAXATION/ KAUAI BOARD OF REVIEW | BU71: SOH/ TRANSPORTATION/ PERSONNEL MGMT STAFF/ AIR-AP | BV71: SOH/ UNIVERSITY OF HAWAII/ ACADEMIC AFFAIRS/ UH/HCC/ACAD
C72: 61 | Y72: 0 | Z72: 0 | AE72: 0 | AI72: 0 | AJ72: 0 | AK72: 0 | AL72: 0 | AM72: 0 | AN72: 0 | AO72: 0 | BB72: SOH/ ACCOUNTING & GENERAL SERVICES/ HONOKAA SEC/ HAW-4 | BC72: SOH/ AGRICULTURE/ KAUAI DISTRICT UT/ AGRPIPPCCMK | BE72: SOH/ BUDGET & FINANCE/ MESSENGER SERVICES | BH72: SOH/ DEFENSE/ DEPUTY COMMANDER/ HIARDC | BI72: SOH/ EDUCATION/ HOME ECONOMICS | BL72: SOH/ HEALTH/ HEALTH PROM/EDUC OFFICE MAUI | BN72: SOH/ HUMAN SERVICES/ YOUTH SERVICES & CUSTODY SECTION/ DHS-OYS-YSC | BO72: SOH/ JUDICIARY/ CIRCUIT JUDGES/ 2JC-CIR JUD | BP72: SOH/ LABOR & INDUSTRIAL RELATIONS/ UNIT II | BQ72: SOH/ LAND & NATURAL RESOURCES/ EQUIP OPERATIONS | BS72: SOH/ PUBLIC SAFETY/ OPERATIONS SECTION/ MISC | BT72: SOH/ TAXATION/ COUNCIL OF REVENUES | BU72: SOH/ TRANSPORTATION/ PROFESSIONAL SECTION/ AIR-AP | BV72: SOH/ UNIVERSITY OF HAWAII/ ADMINISTRATIVE SERVICES/ UH/HCC/ADMIN
C73: 62 | Y73: 0 | Z73: 0 | AE73: 0 | AI73: 0 | AJ73: 0 | AK73: 0 | AL73: 0 | AM73: 0 | AN73: 0 | AO73: 0 | BB73: SOH/ ACCOUNTING & GENERAL SERVICES/ HONOLULU I SEC/ CSD-5 | BC73: SOH/ AGRICULTURE/ KAUAI DISTRICT/ ADMK | BE73: SOH/ BUDGET & FINANCE/ MORTGAGE SERVICES | BH73: SOH/ DEFENSE/ DEPUTY COMMANDER/ HIIB-DC | BI73: SOH/ EDUCATION/ INDUSTRIAL ARTS | BL73: SOH/ HEALTH/ HEALTH PROM/EDUC SVCS KAUAI | BN73: SOH/ HUMAN SERVICES/ YOUTH SERVICES UNIT/ DHS-OYS-YS | BO73: SOH/ JUDICIARY/ DISTRICT FAMILY JUDGES/ 2JC-DFJ | BP73: SOH/ LABOR & INDUSTRIAL RELATIONS/ CLAIMS EXAM SUBUNIT | BQ73: SOH/ LAND & NATURAL RESOURCES/ EQUIP/STRCT/BASEYD MNT | BS73: SOH/ PUBLIC SAFETY/ COMMUNITY CORRECTIONS CENTER DIV/ CCCD | BT73: SOH/ TAXATION/ TAX REVIEW COMMISSION | BU73: SOH/ TRANSPORTATION/ TECHNICAL SECTION/ AIR-AP | BV73: SOH/ UNIVERSITY OF HAWAII/ PACIFIC AEROSPACE TRAINING/ UH/HCC/PAT
C74: 63 | Y74: 0 | Z74: 0 | AE74: 0 | AI74: 0 | AJ74: 0 | AK74: 0 | AL74: 0 | AM74: 0 | AN74: 0 | AO74: 0 | BB74: SOH/ ACCOUNTING & GENERAL SERVICES/ HONOLULU II SEC/ CSD-6 | BC74: SOH/ AGRICULTURE/ KAUAI DISTRICT/ AGRPIPQK | BE74: SOH/ BUDGET & FINANCE/ NEIGHBOR ISLAND LIAISONS | BH74: SOH/ DEFENSE/ DET 2, HQ STARC, HAW MIL ACAD (HMA)/ HIARHMA | BI74: SOH/ EDUCATION/ INDUSTRIAL TECH | BL74: SOH/ HEALTH/ HEALTH RESOURCES ADMIN | BN74: SOH/ HUMAN SERVICES/ CUSTODY UNIT/ DHS-OYS-CUS | BO74: SOH/ JUDICIARY/ DEPUTY CHIEF JUDGE/ 2JC-DCJ | BP74: SOH/ LABOR & INDUSTRIAL RELATIONS/ CLAIMS PROC SUBUNIT | BQ74: SOH/ LAND & NATURAL RESOURCES/ FIELD CREW | BS74: SOH/ PUBLIC SAFETY/ OAHU COMMUNITY CORRECTIONS CENTER/ OCCC | BU74: SOH/ TRANSPORTATION/ CLERICAL SECTION/ AIR-AP | BV74: SOH/ UNIVERSITY OF HAWAII/ PACIFIC CTR FOR ADVANCED TECH TRAIN/ UH/HCC/PCATT
C75: 64 | Y75: 0 | Z75: 0 | AE75: 0 | AI75: 0 | AJ75: 0 | AK75: 0 | AL75: 0 | AM75: 0 | AN75: 0 | AO75: 0 | BB75: SOH/ ACCOUNTING & GENERAL SERVICES/ INFO & COMM SVCS DIVISION/ ICSD | BC75: SOH/ AGRICULTURE/ KAUAI DISTRICT/ COMK | BE75: SOH/ BUDGET & FINANCE/ OAHU | BH75: SOH/ DEFENSE/ DET 3, HQ STARC, SELECTIVE SVC SEC | BI75: SOH/ EDUCATION/ STUDENT PERS SVCS SEC | BL75: SOH/ HEALTH/ HONOLULU FAMILY GUIDANCE CTR BR | BN75: SOH/ HUMAN SERVICES/ HOUSING & COMMUNITY DEV CORP OF HI/ HCDCH | BO75: SOH/ JUDICIARY/ DISTRICT JUDGES/ 2JC-DCJ-DJ | BP75: SOH/ LABOR & INDUSTRIAL RELATIONS/ UNIT III | BQ75: SOH/ LAND & NATURAL RESOURCES/ HAWAII WILDLIFE MGMT SEC | BS75: SOH/ PUBLIC SAFETY/ OFFICE SERVICES STAFF/ OCCC | BU75: SOH/ TRANSPORTATION/ PROPERTY MGMT &LAND ACQUISITN STAFF/ AIR-PM | BV75: SOH/ UNIVERSITY OF HAWAII/ KAPIOLANI COMMUNITY COLLEGE/ UH/KCC
C76: 65 | Y76: 0 | Z76: 0 | AE76: 0 | AI76: 0 | AJ76: 0 | AK76: 0 | AL76: 0 | AM76: 0 | AN76: 0 | AO76: 0 | AQ76: =IF(AND(K76="x",AP76>0),AP76,"") ->  | AU76: =IF(AND(K76="x",AT76>0),AT76,"") ->  | AY76: =IF(AND(K76="x",AX76>0),AX76,"") ->  | BB76: SOH/ ACCOUNTING & GENERAL SERVICES/ INFORMATION RESOURCE CTR SEC/ICSD | BC76: SOH/ AGRICULTURE/ KAUAI DISTRICT/ MI/KAUAI | BE76: SOH/ BUDGET & FINANCE/ OFFICE OF AMINISTRATIVE DIRECTOR | BH76: SOH/ DEFENSE/ DIRECTOR OF INFORMATION MGMT/ HIDOIM | BI76: SOH/ EDUCATION/ SCSHVI | BL76: SOH/ HEALTH/ HOSPITAL/COMMUNITY DENTAL SVC BR | BN76: SOH/ HUMAN SERVICES/ OFFICE OF THE EXECUTIVE DIRECTOR | BO76: SOH/ JUDICIARY/ OFC OF THE CHIEF COURT ADMINISTRATR/ 2JC-OCCA | BP76: SOH/ LABOR & INDUSTRIAL RELATIONS/ CLAIMS EXAM SUBUNIT | BQ76: SOH/ LAND & NATURAL RESOURCES/ NON-GAME | BS76: SOH/ PUBLIC SAFETY/ CLERICAL SUPPORT UNIT/ OCCC | BU76: SOH/ TRANSPORTATION/ LAND ACQUISITION SECTION/ AIR-PM | BV76: SOH/ UNIVERSITY OF HAWAII/ OFC OF THE CHANCELLOR/ UH/KCC/CHAN
C77: 66 | N77: =IF((NETWORKDAYS(G77,M77)>0),(NETWORKDAYS(G77,M77)),"") ->  | Y77: 0 | Z77: =IF((F77="x"),0,((V77*10)+(W77*20))) -> 0 | AE77: =IF(F77="x",0,(Z77+AB77+AC77)) -> 0 | AI77: 0 | AJ77: 0 | AK77: =AJ77-AH77 -> 0 | AL77: =IF(K77="x",AH77,0) -> 0 | AM77: =IF(K77="x",AI77,0) -> 0 | AN77: =IF(K77="x",AJ77,0) -> 0 | AO77: =IF(K77="x",AK77,0) -> 0 | AP77: =IF(N77>0,N77,"") ->  | AR77: =IF(OR(K77="x",F77="x",AP77<=0),"",AP77) ->  | AS77: =IF(AND(F77="x",AP77>0),AP77,"") ->  | AT77: =IF(V77>0,V77,"") ->  | AV77: =IF(OR(K77="x",F77="X",AT77<=0),"",AT77) ->  | AW77: =IF(AND(F77="x",AT77>0),AT77,"") ->  | AX77: =IF(W77>0,W77,"") ->  | AZ77: =IF(OR(K77="x",F77="x",AX77<=0),"",AX77) ->  | BA77: =IF(AND(F77="x",AX77>0),AX77,"") ->  | BB77: SOH/ ACCOUNTING & GENERAL SERVICES/ INVENTORY MGMT BR/SPO-3 | BC77: SOH/ AGRICULTURE/ KAUAI ENF UT/ AGRPIPESTENFK | BE77: SOH/ BUDGET & FINANCE/ OFFICE OF THE DIRECTOR | BH77: SOH/ DEFENSE/ DIRECTOR OF LOGISTICS/ HIANG/LG | BI77: SOH/ EDUCATION/ SLMPC | BL77: SOH/ HEALTH/ HUMAN RESOURCES OFFICE | BN77: SOH/ HUMAN SERVICES/ ADMINISTRATIVE SERVICES OFFICE/ ASO | BO77: SOH/ JUDICIARY/ DEPUTY CHIEF COURT ADMINISTRATOR/ 2JC-OCCA-DCA | BP77: SOH/ LABOR & INDUSTRIAL RELATIONS/ CLAIMS PROC SUBUNIT | BQ77: SOH/ LAND & NATURAL RESOURCES/ GAME | BS77: SOH/ PUBLIC SAFETY/ PERSONNEL UNIT/ OCCC | BU77: SOH/ TRANSPORTATION/ PROPERTY MGMT SECTION I/ AIR-PM | BV77: SOH/ UNIVERSITY OF HAWAII/ ACADEMIC UNITS/ UH/KCC/ACAD
C78: 67 | Y78: 0 | Z78: 0 | AE78: 0 | AI78: 0 | AJ78: 0 | AK78: 0 | AL78: 0 | AM78: 0 | AN78: 0 | AO78: 0 | BB78: SOH/ ACCOUNTING & GENERAL SERVICES/ IRM &CLIENT SVCS-CLINT SVCS BR/ICSD | BC78: SOH/ AGRICULTURE/ LG ANIMAL QUARN UT/ LDC/QUAR | BE78: SOH/ BUDGET & FINANCE/ OFFICE OF THE DIRECTOR/ B&F-DIR | BH78: SOH/ DEFENSE/ DIRECTOR OF OPERATIONS/ HIANG/DO | BI78: SOH/ EDUCATION/ MULTIMEDIA SVCS BR | BL78: SOH/ HEALTH/ IMMUNIZATION BR | BN78: SOH/ HUMAN SERVICES/ ACCOUNTING STAFF | BO78: SOH/ JUDICIARY/ CLIENT SERVICES DIV/ 2JC-OCCA-CSD | BP78: SOH/ LABOR & INDUSTRIAL RELATIONS/ WAIPAHU CLAIMS SECTION/ DLIR-UI | BQ78: SOH/ LAND & NATURAL RESOURCES/ HAWAII NATURAL AREAS RESERVE SEC | BS78: SOH/ PUBLIC SAFETY/ FISCAL UNIT/ OCCC | BU78: SOH/ TRANSPORTATION/ PROPERTY MGMT SECTION II/ AIR-PM | BV78: SOH/ UNIVERSITY OF HAWAII/ ADMINISTRATIVE SERVICES/ UH/KCC/ADMIN
C79: 68 | Y79: 0 | Z79: 0 | AE79: 0 | AI79: 0 | AJ79: 0 | AK79: 0 | AL79: 0 | AM79: 0 | AN79: 0 | AO79: 0 | BB79: SOH/ ACCOUNTING & GENERAL SERVICES/ IRM &CLNT SVCS-INFO RES MGT BR/ ICSD | BC79: SOH/ AGRICULTURE/ LIVESTOCK DISEASE CONTROL BR/ LDC | BE79: SOH/ BUDGET & FINANCE/ OFFICE OF THE PUBLIC DEFENDER | BH79: SOH/ DEFENSE/ DIRECTOR OF PERSONNEL MGMT/ADMIN/ HIANG/DP | BI79: SOH/ EDUCATION/ TECHNICAL ASST CTR | BL79: SOH/ HEALTH/ INDOOR & RADIOLOGICAL HEALTH BR | BN79: SOH/ HUMAN SERVICES/ ACCOUNTING SECTION I | BO79: SOH/ JUDICIARY/ ADMINISTRATIVE SERVICES DIV/ 2JC-OCCA-ASD | BP79: SOH/ LABOR & INDUSTRIAL RELATIONS/ CLERICAL SERVICES | BQ79: SOH/ LAND & NATURAL RESOURCES/ HAWAII TRAILS & ACCESS SECTION | BS79: SOH/ PUBLIC SAFETY/ INVESTIGATIVE STAFF/ OCCC | BU79: SOH/ TRANSPORTATION/ CONCESSIONS SECTION/ AIR-PM | BV79: SOH/ UNIVERSITY OF HAWAII/ KAUAI COMMUNITY COLLEGE/ UH/KAUAI
C80: 69 | Y80: 0 | Z80: 0 | AE80: 0 | AI80: 0 | AJ80: 0 | AK80: 0 | AL80: 0 | AM80: 0 | AN80: 0 | AO80: 0 | BB80: SOH/ ACCOUNTING & GENERAL SERVICES/ IRM PROGRAM DEVELOPMNT SECTION/ ICSD | BC80: SOH/ AGRICULTURE/ MARKET DEVELOPMENT BR/ MD | BE80: SOH/ BUDGET & FINANCE/ OFFICE OF THE PUBLIC DEFENDER/ PD | BH80: SOH/ DEFENSE/ EEO SECTION/ HISPMO-E | BI80: SOH/ EDUCATION/ AUDIO VISUAL SVCS | BL80: SOH/ HEALTH/ KAUAI DISTRICT HEALTH OFC | BN80: SOH/ HUMAN SERVICES/ ACCOUNTING SECTION II | BO80: SOH/ JUDICIARY/ DEPUTY CHIEF COURT ADMINISTRATOR/ 2JC-OCCA-DCA | BP80: SOH/ LABOR & INDUSTRIAL RELATIONS/ UNIT I | BQ80: SOH/ LAND & NATURAL RESOURCES/ MAUI/MOLOKAI/LANAI F/W RES MGMT | BS80: SOH/ PUBLIC SAFETY/ INTAKE & RELEASE SECTION/ OCCC | BU80: SOH/ TRANSPORTATION/ CONTRACTS & CLERICAL SECTION/ AIR-PM | BV80: SOH/ UNIVERSITY OF HAWAII/ OFC OF THE CHANCELLOR/ UH/KAUAI/CHAN
C81: 70 | Y81: 0 | Z81: 0 | AD81: =IF(F81="x",(0-((V81*10)+(W81*20))),"") ->  | AE81: 0 | AI81: 0 | AJ81: 0 | AK81: 0 | AL81: 0 | AM81: 0 | AN81: 0 | AO81: 0 | BB81: SOH/ ACCOUNTING & GENERAL SERVICES/ KAMEHAMEHA DAY CELEBRATION COMM/ KAM | BC81: SOH/ AGRICULTURE/ MARKET NEWS SERVICES BR/ MNS | BE81: SOH/ BUDGET & FINANCE/ OFFICE SERVICES | BH81: SOH/ DEFENSE/ ENGINEER SECTION | BI81: SOH/ EDUCATION/ EDUCATIONAL TELEVISION | BL81: SOH/ HEALTH/ KAUAI FAM GUID CTR BR | BN81: SOH/ HUMAN SERVICES/ ACCOUNTING SECTION III | BO81: SOH/ JUDICIARY/ COURT SUPPORT SERVICES DIV/ 2JC-OCCA-CSSD | BP81: SOH/ LABOR & INDUSTRIAL RELATIONS/ CLAIMS EXAM SUBUNIT | BQ81: SOH/ LAND & NATURAL RESOURCES/ CLERICAL SVCS | BS81: SOH/ PUBLIC SAFETY/ IDENTIFICATION UNIT/ OCCC | BU81: SOH/ TRANSPORTATION/ MTHDS STNDS & EVAL STAFF/ AIR-AM | BV81: SOH/ UNIVERSITY OF HAWAII/ ADMINISTRATIVE SERVICES/ UH/KAUAI/ADM
C82: 71 | Y82: 0 | Z82: 0 | AE82: 0 | AI82: 0 | AJ82: 0 | AK82: 0 | AL82: 0 | AM82: 0 | AN82: 0 | AO82: 0 | BB82: SOH/ ACCOUNTING & GENERAL SERVICES/ KAUAI DISTRICT OFFICE/ KAU-0 | BC82: SOH/ AGRICULTURE/ MAUI DISTRICT UT/ AGRPIPPCBCM | BE82: SOH/ BUDGET & FINANCE/ PERSONNEL STAFF | BH82: SOH/ DEFENSE/ ENGINEERING OFFICER/ HIANG/DE | BI82: SOH/ EDUCATION/ SCHOOL LIB SVCS SEC | BL82: SOH/ HEALTH/ KAUAI FAMILY GUIDANCE CENTER | BN82: SOH/ HUMAN SERVICES/ ACCOUNTING SECTION IV | BO82: SOH/ JUDICIARY/ OPERATIONAL SUPPORT SERVICES DIV/ 2JC-OCCA-OSSD | BP82: SOH/ LABOR & INDUSTRIAL RELATIONS/ CLAIMS PROC SUBUNIT | BQ82: SOH/ LAND & NATURAL RESOURCES/ MAUI FORESTS MGMT SEC | BS82: SOH/ PUBLIC SAFETY/ SECURITY UNIT/ OCCC | BU82: SOH/ TRANSPORTATION/ BUDGET STAFF/ AIR-AB | BV82: SOH/ UNIVERSITY OF HAWAII/ CONTINUING EDUCATION & TRAINING/ UH/KAUAI/CE&T
C83: 72 | Y83: 0 | Z83: 0 | AE83: 0 | AI83: 0 | AJ83: 0 | AK83: 0 | AL83: 0 | AM83: 0 | AN83: 0 | AO83: 0 | BB83: SOH/ ACCOUNTING & GENERAL SERVICES/ KOHALA SEC/ HAW-5 | BC83: SOH/ AGRICULTURE/ MAUI DISTRICT UT/ AGRPIPPCCMM | BE83: SOH/ BUDGET & FINANCE/ PROG BUDGET ANALYSIS & EVAL BR I | BH83: SOH/ DEFENSE/ ENGR & FAC MAINT OFFICE/ HIENG | BI83: SOH/ EDUCATION/ HAW STATE PUB LIB SYS | BL83: SOH/ HEALTH/ LABORATORY SERVICES HAWAII | BN83: SOH/ HUMAN SERVICES/ ACCOUNTING SECTION V | BO83: SOH/ JUDICIARY/ THIRD JUDICIAL CIRCUIT -CHIEF JUDGE/ 3JC | BP83: SOH/ LABOR & INDUSTRIAL RELATIONS/ UNIT II | BQ83: SOH/ LAND & NATURAL RESOURCES/ RESOURCES MGMT/ DRM | BS83: SOH/ PUBLIC SAFETY/ RECORDS UNIT/ OCCC | BU83: SOH/ TRANSPORTATION/ ENGINEERING BRANCH/ AIR-E | BV83: SOH/ UNIVERSITY OF HAWAII/ INSTRUCTIONAL SERVICES/ UH/KAUAI/INST
C84: 73 | Y84: 0 | Z84: 0 | AE84: 0 | AI84: 0 | AJ84: 0 | AK84: 0 | AL84: 0 | AM84: 0 | AN84: 0 | AO84: 0 | BB84: SOH/ ACCOUNTING & GENERAL SERVICES/ KONA SEC/ HAW-6 | BC84: SOH/ AGRICULTURE/ MAUI DISTRICT/ ADMM | BE84: SOH/ BUDGET & FINANCE/ PROG BUDGET ANALYSIS & EVAL BR II | BH84: SOH/ DEFENSE/ EXECUTIVE OFFICER/ HIIB-XO | BI84: SOH/ EDUCATION/ OFF OF STATE LIBRARIAN | BL84: SOH/ HEALTH/ LABORATORY SERVICES MAUI | BN84: SOH/ HUMAN SERVICES/ PURCHASING & STORES STAFF | BO84: SOH/ JUDICIARY/ JUDGES & STAFF/ 3JC-J&S | BP84: SOH/ LABOR & INDUSTRIAL RELATIONS/ CLAIMS EXAM SUBUNIT | BQ84: SOH/ LAND & NATURAL RESOURCES/ RESOURCES PROT/ DRP | BS84: SOH/ PUBLIC SAFETY/ DETENTION SECTION/ OCCC | BU84: SOH/ TRANSPORTATION/ PROJECT COORDINATION &CONTROL STAFF/ AIR-EPC | BV84: SOH/ UNIVERSITY OF HAWAII/ STUDENT SERVICES/ UH/KAUAI/STDT
C85: 74 | Y85: 0 | Z85: 0 | AE85: 0 | AI85: 0 | AJ85: 0 | AK85: 0 | AL85: 0 | AM85: 0 | AN85: 0 | AO85: 0 | BB85: SOH/ ACCOUNTING & GENERAL SERVICES/ LAND SURVEY DIVISION/ LSD | BC85: SOH/ AGRICULTURE/ MAUI DISTRICT/ AGRPIPQMA | BE85: SOH/ BUDGET & FINANCE/ PROG BUDGET ANALYSIS & EVAL BR III | BH85: SOH/ DEFENSE/ EXECUTIVE OFFICER/ HITC-XO | BI85: SOH/ EDUCATION/ ADMIN SVCS STAFF | BL85: SOH/ HEALTH/ LABORATORY KAUAI | BN85: SOH/ HUMAN SERVICES/ PERSONNEL SERVICES STAFF | BO85: SOH/ JUDICIARY/ DEPUTY CHIEF JUDGE/ 3JC-DCJ | BP85: SOH/ LABOR & INDUSTRIAL RELATIONS/ CLAIMS PROC SUBUNIT | BQ85: SOH/ LAND & NATURAL RESOURCES/ MAUI FIELD OPER SEC | BS85: SOH/ PUBLIC SAFETY/ CLERICAL SUPPORT STAFF/ OCCC | BU85: SOH/ TRANSPORTATION/ DESIGN & CONSTRUCTION SECTION I/ AIR-ED | BV85: SOH/ UNIVERSITY OF HAWAII/ LEEWARD COMMUNITY COLLEGE/ UH/LCC
C86: 75 | Y86: 0 | Z86: 0 | AE86: 0 | AI86: 0 | AJ86: =(X86*20)+Z86+AA86+AF86 -> 0 | AK86: 0 | AL86: 0 | AM86: 0 | AN86: 0 | AO86: 0 | BB86: SOH/ ACCOUNTING & GENERAL SERVICES/ LEASING BRANCH/ DPW-20 | BC86: SOH/ AGRICULTURE/ MAUI DISTRICT/ COMM | BE86: SOH/ BUDGET & FINANCE/ PROG BUDGET ANALYSIS & EVAL BR IV | BH86: SOH/ DEFENSE/ EXECUTIVE SUPPORT STAFF OFFICER/ HIANG/CCE | BI86: SOH/ EDUCATION/ PERSONNEL SVCS STAFF | BL86: SOH/ HEALTH/ LEEWARD OAHU FAMILY GUIDANCE CTR BR | BN86: SOH/ HUMAN SERVICES/ CENTRAL FILES SVC STAFF | BO86: SOH/ JUDICIARY/ DISTRICT FAMILY & PERDIEM JUDGES/ 3JC-DCJ-DF&PJ | BP86: SOH/ LABOR & INDUSTRIAL RELATIONS/ KANEOHE CLAIMS SECTION/ DLIR-UI | BQ86: SOH/ LAND & NATURAL RESOURCES/ EQUIP OPERATIONS/ DEO | BS86: SOH/ PUBLIC SAFETY/ SECURITY UNIT/ OCCC | BU86: SOH/ TRANSPORTATION/ DESIGN & CONSTRUCTION SECTION II/ AIR-EC | BV86: SOH/ UNIVERSITY OF HAWAII/ OFC OF THE CHANCELLOR/ UH/LCC/CHAN
C87: 76 | Y87: 0 | Z87: 0 | AE87: 0 | AI87: 0 | AJ87: 0 | AK87: 0 | AL87: 0 | AM87: 0 | AN87: 0 | AO87: 0 | BB87: SOH/ ACCOUNTING & GENERAL SERVICES/ LEEWARD OAHU SEC/ CSD-8 | BC87: SOH/ AGRICULTURE/ MAUI DISTRICT/ HASSM | BE87: SOH/ BUDGET & FINANCE/ PUBLIC SAFETY SECTION | BH87: SOH/ DEFENSE/ FIRE SUPPORT OFFICER/ HIIB-FS | BI87: SOH/ EDUCATION/ PROG DEV SVC | BL87: SOH/ HEALTH/ MATERNAL & CHILD HEALTH BR | BN87: SOH/ HUMAN SERVICES/ COMPUTER & TELECOM STAFF | BO87: SOH/ JUDICIARY/ DEPUTY CHIEF JUDGE/ 3JC-DCJ | BP87: SOH/ LABOR & INDUSTRIAL RELATIONS/ CLERICAL SERVICES | BQ87: SOH/ LAND & NATURAL RESOURCES/ FIELD CREW | BS87: SOH/ PUBLIC SAFETY/ COUNSELING UNIT/ OCCC | BU87: SOH/ TRANSPORTATION/ SPECIAL MAINTENANCE SECTION/ AIR-EM | BV87: SOH/ UNIVERSITY OF HAWAII/ ADMINISTRATIVE SERVICES/ UH/LCC/ADMIN
C88: 77 | Y88: 0 | Z88: 0 | AE88: 0 | AI88: 0 | AJ88: 0 | AK88: 0 | AL88: 0 | AM88: 0 | AN88: 0 | AO88: 0 | BB88: SOH/ ACCOUNTING & GENERAL SERVICES/ MAIL SECTION/ CSD-15 | BC88: SOH/ AGRICULTURE/ MAUI DISTRICT/ LDC/MAUI | BE88: SOH/ BUDGET & FINANCE/ PUBLIC UTILITIES ASSISTANTS | BH88: SOH/ DEFENSE/ GEN LABOR UNIT | BI88: SOH/ EDUCATION/ ADULT & YNG ADLT PROG | BL88: SOH/ HEALTH/ MATERNAL & CHILD SUPP SVCS | BN88: SOH/ HUMAN SERVICES/ BUDGET STAFF | BO88: SOH/ JUDICIARY/ DISTRICT & PERDIEM JUDGES/ 3JC-DCJ-D&PJ | BP88: SOH/ LABOR & INDUSTRIAL RELATIONS/ CLAIMS EXAM SUBUNIT | BQ88: SOH/ LAND & NATURAL RESOURCES/ EQUIP/STRCT/BASEYD MNT | BS88: SOH/ PUBLIC SAFETY/ OFFENDER SERVICES SECTION/ OCCC | BU88: SOH/ TRANSPORTATION/ DRAFTING SECTION/ AIR-EG | BV88: SOH/ UNIVERSITY OF HAWAII/ CONTINUING EDUCATION & TRAINING/ UH/LCC/CE&T
C89: 78 | Y89: 0 | Z89: 0 | AE89: 0 | AI89: 0 | AJ89: 0 | AK89: 0 | AL89: 0 | AM89: 0 | AN89: 0 | AO89: 0 | BB89: SOH/ ACCOUNTING & GENERAL SERVICES/ MANAGEMENT SERVICE STAFF/ DPW-4 | BC89: SOH/ AGRICULTURE/ MAUI DISTRICT/ MI/MAUI | BE89: SOH/ BUDGET & FINANCE/ PUBLIC UTILITIES COMMISSION | BH89: SOH/ DEFENSE/ GROUND COMMUNICATIONS MAINTENANCE/ 201 CCGP/CG | BI89: SOH/ EDUCATION/ CHILDRENS PROG | BL89: SOH/ HEALTH/ MAUI DISTRICT HEALTH OFC | BN89: SOH/ HUMAN SERVICES/ HEARINGS OFFICE | BO89: SOH/ JUDICIARY/ OFC OF THE CHIEF COURT ADMINISTRATR/ 3JC-OCCA | BP89: SOH/ LABOR & INDUSTRIAL RELATIONS/ CLAIMS PROC SUBUNIT | BQ89: SOH/ LAND & NATURAL RESOURCES/ MOLOKAI | BS89: SOH/ PUBLIC SAFETY/ EDUCATION UNIT/ OCCC | BU89: SOH/ TRANSPORTATION/ AIRPORT OPERATIONS OFFICE/ AIR-L | BV89: SOH/ UNIVERSITY OF HAWAII/ EDUCATIONAL SERVICES/ UH/LCC/EDUC
C90: 79 | Y90: 0 | Z90: 0 | AE90: 0 | AI90: 0 | AJ90: 0 | AK90: 0 | AL90: 0 | AM90: 0 | AN90: 0 | AO90: 0 | BB90: SOH/ ACCOUNTING & GENERAL SERVICES/ MAUI DISTRICT OFFICE/ MAUI-0 | BC90: SOH/ AGRICULTURE/ MAUI DISTRICT/ MSM | BE90: SOH/ BUDGET & FINANCE/ PUBLIC UTILITIES COMMISSION/ PUC | BH90: SOH/ DEFENSE/ GROUND COMMUNICATIONS OPERATIONS/ 201 CCGP/DO | BI90: SOH/ EDUCATION/ RESEARCH & EVAL SVC | BL90: SOH/ HEALTH/ MAUI FAM GUID CTR BR | BN90: SOH/ HUMAN SERVICES/ PLANNING & EVALUATION OFFICE | BO90: SOH/ JUDICIARY/ DEPUTY CHIEF COURT ADMINISTRATOR/ 3JC-OCCA-DCA | BP90: SOH/ LABOR & INDUSTRIAL RELATIONS/ BENEFIT PROCESSING & CONTROL SEC/ DLIR-UI | BQ90: SOH/ LAND & NATURAL RESOURCES/ MAUI WILDLIFE MGMT SEC | BS90: SOH/ PUBLIC SAFETY/ LIBRARY UNIT/ OCCC | BU90: SOH/ TRANSPORTATION/ GENERAL AVIATION STAFF/ AIR-LG | BV90: SOH/ UNIVERSITY OF HAWAII/ STUDENT SERVICES/ UH/LCC/STDT
C91: 80 | Y91: 0 | Z91: 0 | AE91: 0 | AI91: 0 | AJ91: 0 | AK91: 0 | AL91: 0 | AM91: 0 | AN91: 0 | AO91: 0 | BB91: SOH/ ACCOUNTING & GENERAL SERVICES/ MICROGRAPHICS SEC/ ARCH-2 | BC91: SOH/ AGRICULTURE/ MAUI ED & CERT UT/ AGRPIPESTREMA | BE91: SOH/ BUDGET & FINANCE/ RECEPTION SERVICES | BH91: SOH/ DEFENSE/ HAWAII COUNTY | BI91: SOH/ EDUCATION/ PLANNING & EVAL UNIT | BL91: SOH/ HEALTH/ MAUI FAMILY GUIDANCE CENTER | BN91: SOH/ HUMAN SERVICES/ COMPLIANCE OFFICE | BO91: SOH/ JUDICIARY/ CLIENT SERVICES DIV/ 3JC-OCCA-CSD | BP91: SOH/ LABOR & INDUSTRIAL RELATIONS/ CLERICAL SERVICES | BQ91: SOH/ LAND & NATURAL RESOURCES/ MOLOKAI | BS91: SOH/ PUBLIC SAFETY/ RECREATION UNIT/ OCCC | BU91: SOH/ TRANSPORTATION/ CERTIFICATN, SECURITY &SAFETY STAFF/ AIR-LC | BV91: SOH/ UNIVERSITY OF HAWAII/ UH/MAUI COLLEGE/ UH/MC
C92: 81 | Y92: 0 | Z92: 0 | AE92: 0 | AI92: 0 | AJ92: 0 | AK92: 0 | AL92: 0 | AM92: 0 | AN92: 0 | AO92: 0 | BB92: SOH/ ACCOUNTING & GENERAL SERVICES/ MOLOKAI SECTION/ MOLO-0 | BC92: SOH/ AGRICULTURE/ MAUI ENF UT/ AGRPIPESTENFM | BE92: SOH/ BUDGET & FINANCE/ RESEARCH | BH92: SOH/ DEFENSE/ HAWAII SECTION | BI92: SOH/ EDUCATION/ INFORMATION SYS UNIT | BL92: SOH/ HEALTH/ MEDICAL MICROBIOLOGY BR | BN92: SOH/ HUMAN SERVICES/ HOUSING INFORMATION OFFICE | BO92: SOH/ JUDICIARY/ ADMINISTRATIVE SERVICES DIV/ 3JC-OCCA-ASD | BP92: SOH/ LABOR & INDUSTRIAL RELATIONS/ SPEC ACTIVITIES UNIT | BQ92: SOH/ LAND & NATURAL RESOURCES/ LANAI | BS92: SOH/ PUBLIC SAFETY/ VOLUNTEER UNIT/ OCCC | BU92: SOH/ TRANSPORTATION/ AIRCRAFT RESCUE &FIREFIGHTING STAFF/ AIR-LF | BV92: SOH/ UNIVERSITY OF HAWAII/ OFC OF THE CHANCELLOR/ UH/MCC/CHAN
C93: 82 | Y93: 0 | Z93: 0 | AE93: 0 | AI93: 0 | AJ93: 0 | AK93: 0 | AL93: 0 | AM93: 0 | AN93: 0 | AO93: 0 | BB93: SOH/ ACCOUNTING & GENERAL SERVICES/ MOTOR POOL BR/ AUTO-1 | BC93: SOH/ AGRICULTURE/ MEASUREMENT STANDARDS BR/ MSB | BE93: SOH/ BUDGET & FINANCE/ RESEARCH SECTION | BH93: SOH/ DEFENSE/ HEADQUARTERS DETACHMENT, STARC/ HQDET | BI93: SOH/ EDUCATION/ MEDIA SVC STAFF | BL93: SOH/ HEALTH/ MENTAL HEALTH SVCS HAWAII | BN93: SOH/ HUMAN SERVICES/ FINANCE BRANCH | BO93: SOH/ JUDICIARY/ DEPUTY CHIEF COURT ADMINISTRATOR/ 3JC-OCCA-DCA | BP93: SOH/ LABOR & INDUSTRIAL RELATIONS/ WORKLOAD CONTROL UNIT | BQ93: SOH/ LAND & NATURAL RESOURCES/ MAUI TRAILS & ACCESS SECTION | BS93: SOH/ PUBLIC SAFETY/ HEALTH CARE SERVICES SECTION/ OCCC | BU93: SOH/ TRANSPORTATION/ COMPLIANCE MGMT STAFF/ AIR-LD | BV93: SOH/ UNIVERSITY OF HAWAII/ ADMINISTRATIVE SERVICES/ UH/MCC/ADMIN
C94: 83 | Y94: 0 | Z94: 0 | AE94: 0 | AI94: 0 | AJ94: 0 | AK94: 0 | AL94: 0 | AM94: 0 | AN94: 0 | AO94: 0 | BB94: SOH/ ACCOUNTING & GENERAL SERVICES/ NETWORK MANAGEMENT SECTION/ ICSD | BC94: SOH/ AGRICULTURE/ MEAT INSPECTION BR/ MI | BE94: SOH/ BUDGET & FINANCE/ RETIREMENT CLAIMS & BENEFITS SEC 1 | BH94: SOH/ DEFENSE/ HEADQUARTERS DETACHMENT/ HITC-HD | BI94: SOH/ EDUCATION/ LIB PROMOTIONAL SVCS | BL94: SOH/ HEALTH/ MENTAL HEALTH SVCS KAUAI | BN94: SOH/ HUMAN SERVICES/ MORTGAGE & RENTAL FINANCING SECTION | BO94: SOH/ JUDICIARY/ COURT SUPPORT & OPERATIONS DIV/ 3JC-OCCA-CSOD | BP94: SOH/ LABOR & INDUSTRIAL RELATIONS/ TRANSACTIONS UNIT | BQ94: SOH/ LAND & NATURAL RESOURCES/ MAUI NATURAL AREAS RESERVE SEC | BS94: SOH/ PUBLIC SAFETY/ NURSING SERVICES UNIT/ OCCC | BU94: SOH/ TRANSPORTATION/ INFORMATION TECHNOLOGY OFFICE/ AIR-I | BV94: SOH/ UNIVERSITY OF HAWAII/ CONTINUING EDUCATION & TRAINING/ UH/MCC/CE&T
C95: 84 | Y95: 0 | Z95: 0 | AE95: 0 | AI95: 0 | AJ95: 0 | AK95: 0 | AL95: 0 | AM95: 0 | AN95: 0 | AO95: 0 | BB95: SOH/ ACCOUNTING & GENERAL SERVICES/ NETWORK PLNG & PROG SVCS SEC/ ICSD | BC95: SOH/ AGRICULTURE/ MICROBIOLOGY SEC/ VL/MICRO | BE95: SOH/ BUDGET & FINANCE/ RETIREMENT CLAIMS & BENEFITS SEC 2 | BH95: SOH/ DEFENSE/ INFORMATION MANAGEMENT/ 201 CCGP/CCE | BI95: SOH/ EDUCATION/ AUDIO VISUAL SVCS | BL95: SOH/ HEALTH/ MENTAL HEALTH SVCS MAUI | BN95: SOH/ HUMAN SERVICES/ MORTGAGE FINANCING UNIT | BO95: SOH/ JUDICIARY/ FIELD SECTION | BP95: SOH/ LABOR & INDUSTRIAL RELATIONS/ MONETARY PROCESSING SUBUNIT/ DLIR-UI | BQ95: SOH/ LAND & NATURAL RESOURCES/ ENDANGERED SPECIES CAPT REAR SEC | BS95: SOH/ PUBLIC SAFETY/ MEDICAL SERVICES UNIT/ OCCC | BU95: SOH/ TRANSPORTATION/ CLIENT SERVICES STAFF/ AIR-IC | BV95: SOH/ UNIVERSITY OF HAWAII/ INSTRUCTION/ UH/MCC/INST
C96: 85 | Y96: 0 | Z96: 0 | AE96: 0 | AI96: 0 | AJ96: 0 | AK96: 0 | AL96: 0 | AM96: 0 | AN96: 0 | AO96: 0 | BB96: SOH/ ACCOUNTING & GENERAL SERVICES/ OFFICE AUTOMATION SECTION/ ICSD | BC96: SOH/ AGRICULTURE/ MILK CONTROL SEC/ MILK | BE96: SOH/ BUDGET & FINANCE/ RETIREMENT PROGRAM SERVICES | BH96: SOH/ DEFENSE/ INTELLIGENCE (S-2)/ HIIB-DS | BI96: SOH/ EDUCATION/ GRAPHIC SVCS | BL96: SOH/ HEALTH/ OAHU COMMUNITY MENTAL HEALTH CTR BR | BN96: SOH/ HUMAN SERVICES/ RENTAL FINANCING UNIT | BO96: SOH/ JUDICIARY/ FIFTH JUDICIAL CIRCUIT -CHIEF JUDGE/ 5JC | BP96: SOH/ LABOR & INDUSTRIAL RELATIONS/ ADP & REC CONTR SUBUNIT | BQ96: SOH/ LAND & NATURAL RESOURCES/ OAHU FORESTRY & WILDLIFE RES MGMT | BS96: SOH/ PUBLIC SAFETY/ MEDICAL RECORDS UNIT/ OCCC | BU96: SOH/ TRANSPORTATION/ TECHNOLOGY SUPPORT STAFF/ AIR-IT | BV96: SOH/ UNIVERSITY OF HAWAII/ STUDENT SERVICES/ UH/MCC/STDT
C97: 86 | Y97: 0 | Z97: 0 | AE97: 0 | AI97: 0 | AJ97: 0 | AK97: 0 | AL97: 0 | AM97: 0 | AN97: 0 | AO97: 0 | BB97: SOH/ ACCOUNTING & GENERAL SERVICES/ OFFICE OF ELECTIONS | BC97: SOH/ AGRICULTURE/ MOLOKAI ED & CERT UT/ AGRPIPESTREMO | BE97: SOH/ BUDGET & FINANCE/ SOCIAL PROBLEMS SECTION | BH97: SOH/ DEFENSE/ KAUAI COUNTY | BI97: SOH/ EDUCATION/ PRINTING SVCS | BL97: SOH/ HEALTH/ OFC OF AFFIRMATIVE ACTION | BN97: SOH/ HUMAN SERVICES/ LOAN SERVICING SECTION | BO97: SOH/ JUDICIARY/ JUDGES & STAFF/ 5JC-J&S | BP97: SOH/ LABOR & INDUSTRIAL RELATIONS/ EMPLOYER SERVICES SECTION/ DLIR-UI | BQ97: SOH/ LAND & NATURAL RESOURCES/ CLERICAL SVCS | BS97: SOH/ PUBLIC SAFETY/ DENTAL SERVICES UNIT/ OCCC | BU97: SOH/ TRANSPORTATION/ INFRASTRUCTURE SUPPORT STAFF/ AIR-II | BV97: SOH/ UNIVERSITY OF HAWAII/ UNIV OF HAWAII CENTER, MAUI/ UH/MCC/UHCM
C98: 87 | Y98: 0 | Z98: 0 | AE98: 0 | AI98: 0 | AJ98: 0 | AK98: 0 | AL98: 0 | AM98: 0 | AN98: 0 | AO98: 0 | BB98: SOH/ ACCOUNTING & GENERAL SERVICES/ OFFICE OF INFO MGMT & TECHNOLOGY/ OIMT | BC98: SOH/ AGRICULTURE/ MOLOKAI IRRIG SYS BR/ ARMDMOL | BE98: SOH/ BUDGET & FINANCE/ SOH/ BUDGET & FINANCE/ B&F | BH98: SOH/ DEFENSE/ KAUAI SECTION | BI98: SOH/ EDUCATION/ LIBR FOUND TRUST | BL98: SOH/ HEALTH/ OFC OF ENVIRONMENTAL QUALITY CONTRL | BN98: SOH/ HUMAN SERVICES/ REAL ESTATE SERVICES SECTION | BO98: SOH/ JUDICIARY/ DEPUTY CHIEF JUDGE/ 5JC-DCJ | BP98: SOH/ LABOR & INDUSTRIAL RELATIONS/ CLERICAL SERVICES | BQ98: SOH/ LAND & NATURAL RESOURCES/ OAHU FORESTS MGMT SEC | BS98: SOH/ PUBLIC SAFETY/ SPECIAL NEEDS SECTION/ OCCC | BU98: SOH/ TRANSPORTATION/ VISITOR INFORMATION OFFICE/ AIR-V | BV98: SOH/ UNIVERSITY OF HAWAII/ WINDWARD COMMUNITY COLLEGE/ UH/WCC
C99: 88 | Y99: 0 | Z99: 0 | AE99: 0 | AI99: 0 | AJ99: 0 | AK99: 0 | AL99: 0 | AM99: 0 | AN99: 0 | AO99: 0 | BB99: SOH/ ACCOUNTING & GENERAL SERVICES/ OFFICE OF THE COMPTROLLER/ COMP | BC99: SOH/ AGRICULTURE/ OAHU AIRPORT/ AGRPIPQM | BE99: SOH/ BUDGET & FINANCE/ STAFF SUPPORT SERVICES | BH99: SOH/ DEFENSE/ LABOR RELATIONS SECTION | BI99: SOH/ EDUCATION/ ADV CNCL FOR LITCY | BL99: SOH/ HEALTH/ OFC OF HEALTH CARE ASSURANCE | BN99: SOH/ HUMAN SERVICES/ SALES UNIT | BO99: SOH/ JUDICIARY/ DISTRICT JUDGES/ 5JC-DCJ-DJ | BP99: SOH/ LABOR & INDUSTRIAL RELATIONS/ AUDIT UNIT I | BQ99: SOH/ LAND & NATURAL RESOURCES/ RESOURCES MGMT | BS99: SOH/ PUBLIC SAFETY/ CLERICAL SUPPORT STAFF/ OCCC | BU99: SOH/ TRANSPORTATION/ ADMINISTRATIVE SERVICES/ AIR-VA | BV99: SOH/ UNIVERSITY OF HAWAII/ OFC OF THE CHANCELLOR/ UH/WCC/CHAN
C100: 89 | Y100: 0 | Z100: 0 | AE100: 0 | AI100: 0 | AJ100: 0 | AK100: 0 | AL100: 0 | AM100: 0 | AN100: 0 | AO100: 0 | BB100: SOH/ ACCOUNTING & GENERAL SERVICES/ P P O & MAINT SERV BR/ CSD-1 | BC100: SOH/ AGRICULTURE/ OAHU DISTRICT UT/ AGRPIPPCCMO | BE100: SOH/ BUDGET & FINANCE/ TECHNICAL STAFF | BH100: SOH/ DEFENSE/ LOGISTICS (S-4)/ HIIB-LG | BI100: SOH/ EDUCATION/ LITERACY & LLL PROG | BL100: SOH/ HEALTH/ OFC OF HEALTH STATUS MONITORING | BN100: SOH/ HUMAN SERVICES/ HOME OWNERSHIP & COUNSELING UNIT | BO100: SOH/ JUDICIARY/ OFC OF THE CHIEF COURT ADMINISTRATR/ 5JC-OCCA | BP100: SOH/ LABOR & INDUSTRIAL RELATIONS/ AUDIT UNIT II | BQ100: SOH/ LAND & NATURAL RESOURCES/ RESOURCES PROT | BS100: SOH/ PUBLIC SAFETY/ SECURITY UNIT/ OCCC | BU100: SOH/ TRANSPORTATION/ OFFICE SERVICES/ AIR-VS | BV100: SOH/ UNIVERSITY OF HAWAII/ ADMINISTRATIVE SERVICES/ UH/WCC/ADMIN
C101: 90 | Y101: 0 | Z101: 0 | AE101: 0 | AI101: 0 | AJ101: 0 | AK101: 0 | AL101: 0 | AM101: 0 | AN101: 0 | AO101: 0 | BB101: SOH/ ACCOUNTING & GENERAL SERVICES/ PARKING CONTROL BR/ AUTO-2 | BC101: SOH/ AGRICULTURE/ OAHU DISTRICT/ AGLNO | BE101: SOH/ BUDGET & FINANCE/ TRANSPORTATION SECTION | BH101: SOH/ DEFENSE/ LOGISTICS DIVISION/ HIPFL | BI101: SOH/ EDUCATION/ CENTRALIZED PROC CENTR | BL101: SOH/ HEALTH/ OFC OF PLANNING POLICY & PROGRM DEV | BN101: SOH/ HUMAN SERVICES/ LAND NEGOTIATION UNIT | BO101: SOH/ JUDICIARY/ DEPUTY CHIEF COURT ADMINISTRATOR/ 5JC-OCCA-DCA | BP101: SOH/ LABOR & INDUSTRIAL RELATIONS/ EMPLOYER ACCOUNTS UNIT | BQ101: SOH/ LAND & NATURAL RESOURCES/ OAHU FIELD OPER SEC | BS101: SOH/ PUBLIC SAFETY/ COUNSELING UNIT/ OCCC | BU101: SOH/ TRANSPORTATION/ VIS INFO HAWAII STAFF/ AIR-VH | BV101: SOH/ UNIVERSITY OF HAWAII/ EMPLOYMNT TRAIN CTR & CONT & COM ED/ UH/WCC/ETCCCE
C102: 91 | Y102: 0 | Z102: 0 | AE102: 0 | AI102: 0 | AJ102: 0 | AK102: 0 | AL102: 0 | AM102: 0 | AN102: 0 | AO102: 0 | BB102: SOH/ ACCOUNTING & GENERAL SERVICES/ PARKING CONTROL SECTION/ STAD-9 | BC102: SOH/ AGRICULTURE/ OAHU DISTRICT/ COMO | BE102: SOH/ BUDGET & FINANCE/ TREASURY MANAGEMENT BRANCH | BH102: SOH/ DEFENSE/ LOGISTICS MANAGEMENT | BI102: SOH/ EDUCATION/ ADMINISTRATION | BL102: SOH/ HEALTH/ OUTCOMES & COMPLIANCE BR | BN102: SOH/ HUMAN SERVICES/ DEVELOPMENT BRANCH | BO102: SOH/ JUDICIARY/ ADMINISTRATIVE SERVICES DIV/ 5JC-OCCA-ASD | BP102: SOH/ LABOR & INDUSTRIAL RELATIONS/ EMP REC SUBUNIT | BQ102: SOH/ LAND & NATURAL RESOURCES/ EQUIP OPERATIONS | BS102: SOH/ PUBLIC SAFETY/ RECEPTION, ASSMT DIAGNOSTIC UT/ OCCC | BU102: SOH/ TRANSPORTATION/ HILO INTL AIRPORT/ AIR-VH | BV102: SOH/ UNIVERSITY OF HAWAII/ INSTRUCTION/ UH/WCC/INST
C103: 92 | Y103: 0 | Z103: 0 | AE103: 0 | AI103: 0 | AJ103: 0 | AK103: 0 | AL103: 0 | AM103: 0 | AN103: 0 | AO103: 0 | BB103: SOH/ ACCOUNTING & GENERAL SERVICES/ PERSONNEL OFFICE/ PERS | BC103: SOH/ AGRICULTURE/ OAHU DISTRICT/ HASSO | BE103: SOH/ BUDGET & FINANCE/ TRIAL DIVISION I | BH103: SOH/ DEFENSE/ LOGISTICS OFFICE/ HIARL | BI103: SOH/ EDUCATION/ ORDER SEC | BL103: SOH/ HEALTH/ PUBLIC HEALTH NURSING BR | BN103: SOH/ HUMAN SERVICES/ DEVELOPMENT SECTION | BO103: SOH/ JUDICIARY/ CLIENT SERVICES DIV/ 5JC-OCCA-CSD | BP103: SOH/ LABOR & INDUSTRIAL RELATIONS/ TAX PROC SUBUNIT | BQ103: SOH/ LAND & NATURAL RESOURCES/ EQUIP/STRCT/BASEYD MNT | BS103: SOH/ PUBLIC SAFETY/ COMMUNITY BASED SECTION/ OCCC | BU103: SOH/ TRANSPORTATION/ KONA INTL AIRPORT/ AIR-VH | BV103: SOH/ UNIVERSITY OF HAWAII/ STUDENT SERVICES/ UH/WCC/STDT
C104: 93 | Y104: 0 | Z104: 0 | AE104: 0 | AI104: 0 | AJ104: 0 | AK104: 0 | AL104: 0 | AM104: 0 | AN104: 0 | AO104: 0 | BB104: SOH/ ACCOUNTING & GENERAL SERVICES/ PERSONNEL/ STAD-11 | BC104: SOH/ AGRICULTURE/ OAHU DISTRICT/ MI/OAHU | BE104: SOH/ BUDGET & FINANCE/ TRIAL DIVISION II | BH104: SOH/ DEFENSE/ LOGISTICS STAFF/ HITC-LG | BI104: SOH/ EDUCATION/ CATALOG SEC | BL104: SOH/ HEALTH/ PUBLIC HEALTH NURSING HAWAII | BN104: SOH/ HUMAN SERVICES/ DEVELOPMENT UNIT 1 | BO104: SOH/ JUDICIARY/ COURT SUPPORT SERVICES DIV/ 5JC-OCCA-CSSD | BP104: SOH/ LABOR & INDUSTRIAL RELATIONS/ HAWAII BRANCH | BQ104: SOH/ LAND & NATURAL RESOURCES/ FIELD CREW | BS104: SOH/ PUBLIC SAFETY/ CLERICAL SUPPORT STAFF/ OCCC | BU104: SOH/ TRANSPORTATION/ VIS INFO OAHU STAFF/ AIR-VO
C105: 94 | Y105: 0 | Z105: 0 | AE105: 0 | AI105: 0 | AJ105: 0 | AK105: 0 | AL105: 0 | AM105: 0 | AN105: 0 | AO105: 0 | BB105: SOH/ ACCOUNTING & GENERAL SERVICES/ PLANNING & PROJECT MGMT OFFICE/ICSD | BC105: SOH/ AGRICULTURE/ OAHU ED & CERT UT/ AGRPIPESTREO | BE105: SOH/ BUDGET & FINANCE/ UNCLAIMED PROPERTY BRANCH | BH105: SOH/ DEFENSE/ MAINT SECTION | BI105: SOH/ EDUCATION/ BIBLIOG ACCESS UNIT | BL105: SOH/ HEALTH/ PUBLIC HEALTH NURSING MAUI | BN105: SOH/ HUMAN SERVICES/ DEVELOPMENT UNIT 2 | BO105: SOH/ JUDICIARY/ OPERATIONAL SUPPORT SERVICES DIV/ 5JC-OCCA-OSSD | BP105: SOH/ LABOR & INDUSTRIAL RELATIONS/ EMPLOYER SERVICES SEC | BQ105: SOH/ LAND & NATURAL RESOURCES/ OAHU WILDLIFE MGMT SEC | BS105: SOH/ PUBLIC SAFETY/ SECURITY UNIT/ OCCC | BU105: SOH/ TRANSPORTATION/ HONOLULU INTL AIRPORT/ AIR-VO
C106: 95 | Y106: 0 | Z106: 0 | AE106: 0 | AI106: 0 | AJ106: 0 | AK106: 0 | AL106: 0 | AM106: 0 | AN106: 0 | AO106: 0 | BB106: SOH/ ACCOUNTING & GENERAL SERVICES/ PLANNING BRANCH/ DPW-5 | BC106: SOH/ AGRICULTURE/ OAHU ENF UT/ AGRPIPESTENFO | BH106: SOH/ DEFENSE/ MAINTENANCE/ 154 CGP/MA | BI106: SOH/ EDUCATION/ CARD PREP UNIT | BL106: SOH/ HEALTH/ SAFE DRINKING WATER BR | BN106: SOH/ HUMAN SERVICES/ DEVELOPMENT UNIT 3 | BO106: SOH/ JUDICIARY/ OFFICE OF ADMIN DIRECTOR | BP106: SOH/ LABOR & INDUSTRIAL RELATIONS/ HILO CLAIMS SECTION | BQ106: SOH/ LAND & NATURAL RESOURCES/ OAHU TRAILS & ACCESS SEC | BS106: SOH/ PUBLIC SAFETY/ COUNSELING UNIT/ OCCC | BU106: SOH/ TRANSPORTATION/ VIS INFO MAUI STAFF/ AIR-VM
C107: 96 | Y107: 0 | Z107: 0 | AE107: 0 | AI107: 0 | AJ107: 0 | AK107: 0 | AL107: 0 | AM107: 0 | AN107: 0 | AO107: 0 | BB107: SOH/ ACCOUNTING & GENERAL SERVICES/ PRE AUDIT BR/ ACCT-2 | BC107: SOH/ AGRICULTURE/ OAHU MARITIME/ AGRPIPQOM | BH107: SOH/ DEFENSE/ MAUI COUNTY | BI107: SOH/ EDUCATION/ PREP & BNDRY SEC | BL107: SOH/ HEALTH/ SANITATION BR | BN107: SOH/ HUMAN SERVICES/ DEVELOPMENT UNIT 4 | BO107: SOH/ JUDICIARY/ FISCAL SERVICES | BP107: SOH/ LABOR & INDUSTRIAL RELATIONS/ CLAIMS EXAM UNIT | BQ107: SOH/ LAND & NATURAL RESOURCES/ OAHU NATURAL AREAS RESERVE SEC | BS107: SOH/ PUBLIC SAFETY/ LAUMAKA UNIT/ OCCC | BU107: SOH/ TRANSPORTATION/ KAHULUI AIRPORT/ AIR-VM
C108: 97 | Y108: 0 | Z108: 0 | AE108: 0 | AI108: 0 | AJ108: 0 | AK108: 0 | AL108: 0 | AM108: 0 | AN108: 0 | AO108: 0 | BB108: SOH/ ACCOUNTING & GENERAL SERVICES/ PRODUCTION MANAGEMENT SECTION/ICSD | BC108: SOH/ AGRICULTURE/ OFFICE OF THE CHAIRPERSON/ CHR | BH108: SOH/ DEFENSE/ MAUI SECTION | BI108: SOH/ EDUCATION/ CENT SELEC SEC | BL108: SOH/ HEALTH/ DEPT OF HEALTH | BN108: SOH/ HUMAN SERVICES/ DEVELOPMENT UNIT 5 | BO108: SOH/ JUDICIARY/ SYSTEMS | BP108: SOH/ LABOR & INDUSTRIAL RELATIONS/ CLAIMS PROC UNIT | BQ108: SOH/ LAND & NATURAL RESOURCES/ KAUAI FORESTRY & WILDLIFE RES MGMT | BS108: SOH/ PUBLIC SAFETY/ PURCHASE OF SERVICES UNIT/ OCCC | BU108: SOH/ TRANSPORTATION/ MOLOKAI AIRPORT/ AIR-VM
C109: 98 | Y109: 0 | Z109: 0 | AE109: 0 | AI109: 0 | AJ109: 0 | AK109: 0 | AL109: 0 | AM109: 0 | AN109: 0 | AO109: 0 | BB109: SOH/ ACCOUNTING & GENERAL SERVICES/ PRODUCTION SERVICES BR/ICSD | BC109: SOH/ AGRICULTURE/ PERSONNEL MGMT STAFF/ PERMGMT | BH109: SOH/ DEFENSE/ MEMORIALS COMMISSION | BI109: SOH/ EDUCATION/ HAWAII STATE LIBRARY | BL109: SOH/ HEALTH/ SOLID & HAZARDOUS WASTE BR | BN109: SOH/ HUMAN SERVICES/ CONSTRUCTION MANAGEMENT SECTION | BO109: SOH/ JUDICIARY/ ACCOUNTING | BP109: SOH/ LABOR & INDUSTRIAL RELATIONS/ KONA CLAIMS SECTION | BQ109: SOH/ LAND & NATURAL RESOURCES/ CLERICAL SVCS | BS109: SOH/ PUBLIC SAFETY/ OPERATING SERVICES/ 0CCC | BU109: SOH/ TRANSPORTATION/ VIS INFO KAUAI STAFF/ AIR-VK
C110: 99 | Y110: 0 | Z110: 0 | AE110: 0 | AI110: 0 | AJ110: 0 | AK110: 0 | AL110: 0 | AM110: 0 | AN110: 0 | AO110: 0 | BB110: SOH/ ACCOUNTING & GENERAL SERVICES/ PROFESSIONAL STAFF SUPPORT UT/ICSD | BC110: SOH/ AGRICULTURE/ PESTICIDES ADV COMM/ AGRPIPESTADV | BH110: SOH/ DEFENSE/ MIL STAFF OFF, OPERATIONS & TRNG/ HIANG/DOT | BI110: SOH/ EDUCATION/ ADMINISTRATION | BL110: SOH/ HEALTH/ SPECIAL SERVICES HAWAII | BN110: SOH/ HUMAN SERVICES/ CONSTRUCTION MANAGEMENT UNIT 1 | BO110: SOH/ JUDICIARY/ REPROGRAPHICS | BP110: SOH/ LABOR & INDUSTRIAL RELATIONS/ CLAIMS EXAM UNIT | BQ110: SOH/ LAND & NATURAL RESOURCES/ KAUAI FORESTS MGMT SEC | BS110: SOH/ PUBLIC SAFETY/ CLERICAL SUPPORT SERVICES/ OCCC | BU110: SOH/ TRANSPORTATION/ LIHUE AIPORT/ AIR-VIS
C111: 100 | Y111: 0 | Z111: 0 | AE111: 0 | AI111: 0 | AJ111: 0 | AK111: 0 | AL111: 0 | AM111: 0 | AN111: 0 | AO111: 0 | BB111: SOH/ ACCOUNTING & GENERAL SERVICES/ PROGRAM SUPPORT OFFICE/ICSD | BC111: SOH/ AGRICULTURE/ PESTICIDES BR/ AGRPIPEST | BH111: SOH/ DEFENSE/ MILITARY PERSONNEL OFFICE/ HIARPO | BI111: SOH/ EDUCATION/ LIB OPNS SEC | BL111: SOH/ HEALTH/ STATE COUNCIL ON DEVPMTL DISABILITS | BN111: SOH/ HUMAN SERVICES/ CONSTRUCTION MANAGEMENT UNIT 2 | BO111: SOH/ JUDICIARY/ PUBLIC INFORMATION | BP111: SOH/ LABOR & INDUSTRIAL RELATIONS/ CLAIMS PROC UNIT | BQ111: SOH/ LAND & NATURAL RESOURCES/ RESOURCES MGMT | BS111: SOH/ PUBLIC SAFETY/ COMMISSARY & PROPERTY UNIT/ OCCC | BU111: SOH/ TRANSPORTATION/ OAHU DISTRICT/ AIR-O
C112: 101 | Y112: 0 | Z112: 0 | AE112: 0 | AI112: =IF(AE112<=0,AG112,AE112+AG112) -> 0 | AJ112: 0 | AK112: 0 | AL112: 0 | AM112: 0 | AN112: 0 | AO112: 0 | BB112: SOH/ ACCOUNTING & GENERAL SERVICES/ PROJECT CONTROL STAFF/ DPW-3 | BC112: SOH/ AGRICULTURE/ PLANNING & DEVELOPMENT OFFICE/ PDO | BH112: SOH/ DEFENSE/ OAHU COUNTY | BI112: SOH/ EDUCATION/ CIRC UNIT | BL112: SOH/ HEALTH/ STATE HEALTH PLANNING DEVMT AGY | BN112: SOH/ HUMAN SERVICES/ TECHNICAL SERVICES SECTION | BO112: SOH/ JUDICIARY/ RECORDS MANAGEMENT | BP112: SOH/ LABOR & INDUSTRIAL RELATIONS/ MAUI BRANCH | BQ112: SOH/ LAND & NATURAL RESOURCES/ RESOURCES PROT | BS112: SOH/ PUBLIC SAFETY/ FOOD SERVICE UNIT/ OCCC | BU112: SOH/ TRANSPORTATION/ OFFICE SERVICES/ AIR-OSU
C113: 102 | Y113: =V113+W113+X113 -> 0 | Z113: 0 | AE113: 0 | AI113: =IF(AE113<=0,AG113,AE113+AG113) -> 0 | AJ113: 0 | AK113: 0 | AL113: 0 | AM113: 0 | AN113: 0 | AO113: 0 | BB113: SOH/ ACCOUNTING & GENERAL SERVICES/ PROJECT MANAGEMENT BRANCH/ DPW-8 | BC113: SOH/ AGRICULTURE/ PLANNING STAFF | BH113: SOH/ DEFENSE/ OAHU SECTION | BI113: SOH/ EDUCATION/ INTERLIB LOANS UNIT | BL113: SOH/ HEALTH/ STATE LABORATORIES DIV | BN113: SOH/ HUMAN SERVICES/ ARCHITECTURAL & ENGINEERING UNIT | BO113: SOH/ JUDICIARY/ OAHU | BP113: SOH/ LABOR & INDUSTRIAL RELATIONS/ EMPLOYER SERVICES SEC | BQ113: SOH/ LAND & NATURAL RESOURCES/ KAUAI FIELD OPER SEC | BS113: SOH/ PUBLIC SAFETY/ CONSTRUCTION & MAINTENANCE UNIT/ OCCC | BU113: SOH/ TRANSPORTATION/ FISCAL STAFF/ AIR-OSU
C114: 103 | Y114: 0 | Z114: 0 | AE114: 0 | AI114: 0 | AJ114: 0 | AK114: 0 | AL114: 0 | AM114: 0 | AN114: 0 | AO114: 0 | BB114: SOH/ ACCOUNTING & GENERAL SERVICES/ PUB BLDG MGMT SERV BR/ CSD-9 | BC114: SOH/ AGRICULTURE/ PLANT INDUSTRY DIV/ AGRPI | BH114: SOH/ DEFENSE/ OFFICE OF THE ADJUTANT GENERAL/ HITAG | BI114: SOH/ EDUCATION/ ACQUISN RECS UNIT | BL114: SOH/ HEALTH/ STD/AIDS PREVENTION BR | BN114: SOH/ HUMAN SERVICES/ INSPECTION UNIT | BP114: SOH/ LABOR & INDUSTRIAL RELATIONS/ WAILUKU CLAIMS SEC | BQ114: SOH/ LAND & NATURAL RESOURCES/ EQUIP OPERATIONS | BS114: SOH/ PUBLIC SAFETY/ PRINT SHOP UNIT/ OCCC | BU114: SOH/ TRANSPORTATION/ PERSONNEL STAFF/ AIR-OSU
C115: 104 | Y115: 0 | Z115: 0 | AE115: 0 | AI115: 0 | AJ115: 0 | AK115: 0 | AL115: 0 | AM115: 0 | AN115: 0 | AO115: 0 | BB115: SOH/ ACCOUNTING & GENERAL SERVICES/ PUBLIC WORKS BR/ HAW-1 | BC115: SOH/ AGRICULTURE/ PLANT PEST CONTROL BR/ AGRPIPPC | BH115: SOH/ DEFENSE/ OFFICE OF VETERANS SERVICES/ HIOVS | BI115: SOH/ EDUCATION/ MAINT UNIT | BL115: SOH/ HEALTH/ STD/AIDS | BN115: SOH/ HUMAN SERVICES/ PROPERTY MGMT & MAINTENANCE BRANCH | BP115: SOH/ LABOR & INDUSTRIAL RELATIONS/ CLAIMS EXAM UNIT | BQ115: SOH/ LAND & NATURAL RESOURCES/ EQUIP/STRCT BASEYD MNT | BS115: SOH/ PUBLIC SAFETY/ SECURITY SECTION/ OCCC | BU115: SOH/ TRANSPORTATION/ GENERAL CLERICAL STAFF/ AIR-OSU
C116: 105 | Y116: 0 | Z116: 0 | AE116: 0 | AI116: 0 | AJ116: 0 | AK116: 0 | AL116: 0 | AM116: 0 | AN116: 0 | AO116: 0 | BB116: SOH/ ACCOUNTING & GENERAL SERVICES/ PUBLIC WORKS BR/ KAU-1 | BC116: SOH/ AGRICULTURE/ PLANT QUARANTINE BR/ AGRPIPQ | BH116: SOH/ DEFENSE/ OPERATIONS/ 154 CGP/DO | BI116: SOH/ EDUCATION/ CEN REF & INFO UNIT | BL116: SOH/ HEALTH/ TSP/HHI | BN116: SOH/ HUMAN SERVICES/ APPLICATION & SUBSIDY PROGRAMS SEC | BP116: SOH/ LABOR & INDUSTRIAL RELATIONS/ CLAIMS PROC UNIT | BQ116: SOH/ LAND & NATURAL RESOURCES/ FIELD CREW | BS116: SOH/ PUBLIC SAFETY/ CLERICAL SUPPORT STAFF/ OCCC | BU116: SOH/ TRANSPORTATION/ AIRPORT ADMINISTRATIVE SERVICES/ AIR-OAM
C117: 106 | Y117: 0 | Z117: 0 | AE117: 0 | AI117: 0 | AJ117: 0 | AK117: 0 | AL117: 0 | AM117: 0 | AN117: 0 | AO117: 0 | BB117: SOH/ ACCOUNTING & GENERAL SERVICES/ PUBLIC WORKS BR/ MAUI-1 | BC117: SOH/ AGRICULTURE/ PLANTS & ANIMALS ADV COMM/ AGRPIPQADV | BH117: SOH/ DEFENSE/ PERSONNEL OFFICE (S-1)/ HIIB-PA | BI117: SOH/ EDUCATION/ TELEPHONE REF UNIT | BL117: SOH/ HEALTH/ TUBERCULOSIS CONTROL BR | BN117: SOH/ HUMAN SERVICES/ APPLICATION SERVICES UNIT | BP117: SOH/ LABOR & INDUSTRIAL RELATIONS/ KAUNAKAKAI CLAIMS | BQ117: SOH/ LAND & NATURAL RESOURCES/ KAUAI WILDLIFE MGMT SEC | BS117: SOH/ PUBLIC SAFETY/ OPERATIONS UNIT/ OCCC | BU117: SOH/ TRANSPORTATION/ AIRPORT MANAGEMENT SERVICES/ AIR-OAS
C118: 107 | Y118: 0 | Z118: 0 | AE118: 0 | AI118: 0 | AJ118: 0 | AK118: 0 | AL118: 0 | AM118: 0 | AN118: 0 | AO118: 0 | BB118: SOH/ ACCOUNTING & GENERAL SERVICES/ PUBLIC WORKS DIVISION/ DPW-0 | BC118: SOH/ AGRICULTURE/ PRE-AUDIT SEC | BH118: SOH/ DEFENSE/ PERSONNEL OFFICER (S-1)/ HITC-PA | BI118: SOH/ EDUCATION/ FED DOCUMENTS SEC | BL118: SOH/ HEALTH/ VECTOR CONTROL BR | BN118: SOH/ HUMAN SERVICES/ RENT SUBSIDY UNIT | BP118: SOH/ LABOR & INDUSTRIAL RELATIONS/ KAUAI BRANCH | BQ118: SOH/ LAND & NATURAL RESOURCES/ KAUAI TRAILS & ACCESS SEC | BS118: SOH/ PUBLIC SAFETY/ WOMENS COMMUNITY CORRECTIONAL CTR/ WCCC | BU118: SOH/ TRANSPORTATION/ HONOLULU INTL AIRPORT/ AIR-O
C119: 108 | Y119: 0 | Z119: 0 | AE119: 0 | AI119: 0 | AJ119: 0 | AK119: 0 | AL119: 0 | AM119: 0 | AN119: 0 | AO119: 0 | BB119: SOH/ ACCOUNTING & GENERAL SERVICES/ REC RET & DISP SEC/ ARCH-3 | BC119: SOH/ AGRICULTURE/ PRINTSHOP SEC/ PRNTSHOP | BH119: SOH/ DEFENSE/ PLANS & OPERATIONS BRANCH/ HICDCM | BI119: SOH/ EDUCATION/ CHILDRENS SEC | BL119: SOH/ HEALTH/ WASTEWATER BR | BN119: SOH/ HUMAN SERVICES/ RELOCATION UNIT | BP119: SOH/ LABOR & INDUSTRIAL RELATIONS/ EMPLOYER SERVICES SEC | BQ119: SOH/ LAND & NATURAL RESOURCES/ KAUAI NATURAL AREAS RESERVE SEC | BS119: SOH/ PUBLIC SAFETY/ OFFICE SERVICES STAFF/ WCCC | BU119: SOH/ TRANSPORTATION/ AIRSIDE OPERATIONS SECTION/ AIR-OO
C120: 109 | Y120: 0 | Z120: 0 | AE120: 0 | AI120: 0 | AJ120: 0 | AK120: 0 | AL120: 0 | AM120: 0 | AN120: 0 | AO120: 0 | BB120: SOH/ ACCOUNTING & GENERAL SERVICES/ RECORDS MGMT BR/ ARCH-1 | BC120: SOH/ AGRICULTURE/ PROCESS FOODS UNIT/ PFO | BH120: SOH/ DEFENSE/ PLANS & TRAINING (S-3)/ HIIB-PT | BI120: SOH/ EDUCATION/ SERIALS SECTION | BL120: SOH/ HEALTH/ WINDWARD OAHU FAMILY GUIDNCE CTR | BN120: SOH/ HUMAN SERVICES/ CLERICAL SERVICES UNIT | BP120: SOH/ LABOR & INDUSTRIAL RELATIONS/ KAUAI CLAIMS SECTION | BQ120: SOH/ LAND & NATURAL RESOURCES/ DIVISION OF LAND MANAGEMENT | BS120: SOH/ PUBLIC SAFETY/ HEALTH CARE SERVICES OFFICE/ WCCC | BU120: SOH/ TRANSPORTATION/ LANDSIDE OPERATIONS SECTION/ AIR-OL
C121: 110 | Y121: 0 | Z121: 0 | AE121: 0 | AI121: 0 | AJ121: 0 | AK121: 0 | AL121: 0 | AM121: 0 | AN121: 0 | AO121: 0 | BB121: SOH/ ACCOUNTING & GENERAL SERVICES/ RISK MANAGEMENT STAFF/ ASO-1 | BC121: SOH/ AGRICULTURE/ PROCESSED FOODS UNIT/ PFH | BH121: SOH/ DEFENSE/ PLANS, OPERATIONS & TRAINING/ HIARPOT | BI121: SOH/ EDUCATION/ SERIALS PROC UNIT | BL121: SOH/ HEALTH/ WOMEN, INFANTS & CHILDREN SVCS | BN121: SOH/ HUMAN SERVICES/ MANAGEMENT SECTION | BP121: SOH/ LABOR & INDUSTRIAL RELATIONS/ CLAIMS EXAM UNIT | BQ121: SOH/ LAND & NATURAL RESOURCES/ LD RES OFC/ ELB | BS121: SOH/ PUBLIC SAFETY/ OFFENDER SERVICES SECTION/ WCCC | BU121: SOH/ TRANSPORTATION/ MAINTENANCE SECTION/ AIR-OM
C122: 111 | Y122: 0 | Z122: 0 | AE122: 0 | AI122: 0 | AJ122: 0 | AK122: 0 | AL122: 0 | AM122: 0 | AN122: 0 | AO122: 0 | BB122: SOH/ ACCOUNTING & GENERAL SERVICES/ SCHEDULING AND CONTROL UNIT(S)/ICSD | BC122: SOH/ AGRICULTURE/ PROCESSED FOODS UNIT/ PFK | BH122: SOH/ DEFENSE/ PUBLIC AFFAIRS OFFICE/ HIPAO | BI122: SOH/ EDUCATION/ YOUNG ADULT SEC | BL122: SOH/ HEALTH/ WOMEN, INFANTS, AND CHILDREN HAWAII | BN122: SOH/ HUMAN SERVICES/ MANAGEMENT UNIT 1 | BP122: SOH/ LABOR & INDUSTRIAL RELATIONS/ CLAIMS PROC UNIT | BQ122: SOH/ LAND & NATURAL RESOURCES/ INV/SHORE CERT | BS122: SOH/ PUBLIC SAFETY/ EDUCATION SERVICES/ WCCC | BU122: SOH/ TRANSPORTATION/ KALAEOLA AIRPORT/ AIR-O
C123: 112 | Y123: 0 | Z123: 0 | AE123: 0 | AI123: 0 | AJ123: 0 | AK123: 0 | AL123: 0 | AM123: 0 | AN123: 0 | AO123: 0 | BB123: SOH/ ACCOUNTING & GENERAL SERVICES/ SCOREBOARD OPNS SECTION/ STAD-10 | BC123: SOH/ AGRICULTURE/ PROCESSED FOODS UNIT/ PFM | BH123: SOH/ DEFENSE/ PUBLIC AFFAIRS OFFICER/ HIANG/PA | BI123: SOH/ EDUCATION/ SOC SCI & PHILOS SEC | BN123: SOH/ HUMAN SERVICES/ MANAGEMENT UNIT 2 | BP123: SOH/ LABOR & INDUSTRIAL RELATIONS/ WORKFORCE DEVELOPMENT DIV/ DLIR-WD | BQ123: SOH/ LAND & NATURAL RESOURCES/ APPRAISAL | BS123: SOH/ PUBLIC SAFETY/ OPERATING SERVICES SECTION/ WCCC | BU123: SOH/ TRANSPORTATION/ AIRCRAFT RESCUE & FIREFIGHTING UNIT/ AIR-OCF
C124: 113 | Y124: 0 | Z124: 0 | AE124: 0 | AI124: 0 | AJ124: 0 | AK124: 0 | AL124: 0 | AM124: 0 | AN124: 0 | AO124: 0 | BB124: SOH/ ACCOUNTING & GENERAL SERVICES/ SECTION A/ DPW-9 | BC124: SOH/ AGRICULTURE/ PROPERTY MGMT STAFF/ PROPMGMT | BH124: SOH/ DEFENSE/ PUBLIC INFORMATION SECTION | BI124: SOH/ EDUCATION/ BUS SCI & TECH SEC | BN124: SOH/ HUMAN SERVICES/ MANAGEMENT UNIT 3 | BP124: SOH/ LABOR & INDUSTRIAL RELATIONS/ PROG DEV, COORD & EVAL SVCS OFC | BQ124: SOH/ LAND & NATURAL RESOURCES/ ABST/DOCUMENT | BS124: SOH/ PUBLIC SAFETY/ FOOD SERVICES UNIT/ WCCC | BU124: SOH/ TRANSPORTATION/ AIR TRAFFIC CONTROL/ AIR-O
C125: 114 | Y125: 0 | Z125: 0 | AE125: 0 | AI125: 0 | AJ125: 0 | AK125: 0 | AL125: 0 | AM125: 0 | AN125: 0 | AO125: 0 | BB125: SOH/ ACCOUNTING & GENERAL SERVICES/ SECTION B/ DPW-10 | BC125: SOH/ AGRICULTURE/ QUALITY ASSURANCE DIV/ QAD | BH125: SOH/ DEFENSE/ PURCHASING & CONTRACTING DIVISION/ HIPFP | BI125: SOH/ EDUCATION/ HAW & PACIFIC SEC | BN125: SOH/ HUMAN SERVICES/ MANAGEMENT UNIT 4 | BP125: SOH/ LABOR & INDUSTRIAL RELATIONS/ CLERICAL SERVICES | BQ125: SOH/ LAND & NATURAL RESOURCES/ AGR RESOURCE | BS125: SOH/ PUBLIC SAFETY/ SECURITY UNIT/ WCCC | BU125: SOH/ TRANSPORTATION/ MAINTENANCE SECTION/ AIR-OM
C126: 115 | Y126: 0 | Z126: 0 | AE126: 0 | AI126: 0 | AJ126: 0 | AK126: 0 | AL126: 0 | AM126: 0 | AN126: 0 | AO126: 0 | BB126: SOH/ ACCOUNTING & GENERAL SERVICES/ SECURITY MGMT BR/ STAD-7 | BC126: SOH/ AGRICULTURE/ QUAR & TAXONOMY UT/ AGRPIPPCBCQT | BH126: SOH/ DEFENSE/ RECRUITING & RETENTION/EO OFFICE/ HIIB-EO | BI126: SOH/ EDUCATION/ INDEXING UNIT | BN126: SOH/ HUMAN SERVICES/ MANAGEMENT UNIT 5 | BP126: SOH/ LABOR & INDUSTRIAL RELATIONS/ CLERICAL SERVICES/ DLIR-WD | BQ126: SOH/ LAND & NATURAL RESOURCES/ LD ACQU/DISP BR/ ELC | BS126: SOH/ PUBLIC SAFETY/ LAUNDRY UNIT/ WCCC | BU126: SOH/ TRANSPORTATION/ DILLINGHAM FIELD/ AIR-O
C127: 116 | Y127: 0 | Z127: 0 | AE127: 0 | AI127: 0 | AJ127: 0 | AK127: 0 | AL127: 0 | AM127: 0 | AN127: 0 | AO127: 0 | BB127: SOH/ ACCOUNTING & GENERAL SERVICES/ SPEC PROJ &NEW TECH ASSESS OFC/ICSD | BC127: SOH/ AGRICULTURE/ RABIES QUARN UNIT/ AQS/RABIES | BH127: SOH/ DEFENSE/ RESOURCE MANAGEMENT/ 154 CGP/RM | BI127: SOH/ EDUCATION/ HAW DOCUMENTS UNIT | BN127: SOH/ HUMAN SERVICES/ MANAGEMENT UNIT 6 | BP127: SOH/ LABOR & INDUSTRIAL RELATIONS/ TRAINING & DEV STAFF/ DLIR-WD | BQ127: SOH/ LAND & NATURAL RESOURCES/ LD ACQUIS SEC | BS127: SOH/ PUBLIC SAFETY/ MAINTENANCE UNIT/ WCCC | BU127: SOH/ TRANSPORTATION/ HAWAII DISTRICT/ AIR-H
C128: 117 | Y128: 0 | Z128: 0 | AE128: 0 | AI128: 0 | AJ128: 0 | AK128: 0 | AL128: 0 | AM128: 0 | AN128: 0 | AO128: 0 | BB128: SOH/ ACCOUNTING & GENERAL SERVICES/ SPEC SUP SERV OFF/ CSD-2 | BC128: SOH/ AGRICULTURE/ REGIS & ED SEC/ AGRPIPESTRE | BH128: SOH/ DEFENSE/ RESOURCE MGT DIVISION | BI128: SOH/ EDUCATION/ ART, MUSIC & REC & AV SEC | BN128: SOH/ HUMAN SERVICES/ MANAGEMENT UNIT 7 | BP128: SOH/ LABOR & INDUSTRIAL RELATIONS/ EMPLOYMENT & EMPLOYER RELA STAFF/ DLIR-WD | BQ128: SOH/ LAND & NATURAL RESOURCES/ MAUI/KAUAI LD DISP SEC | BS128: SOH/ PUBLIC SAFETY/ GROUNDS UNIT/ WCCC | BU128: SOH/ TRANSPORTATION/ OFFICE SERVICES/ AIR-H
C129: 118 | Y129: 0 | Z129: 0 | AE129: 0 | AI129: 0 | AJ129: 0 | AK129: 0 | AL129: 0 | AM129: 0 | AN129: 0 | AO129: 0 | BB129: SOH/ ACCOUNTING & GENERAL SERVICES/ SPECIAL COLLECT SEC/ ARCH-5 | BC129: SOH/ AGRICULTURE/ REGIS & TECH REVIEW UT/ AGRPIPESTRERT | BH129: SOH/ DEFENSE/ SECRETARIAL SERVICES | BI129: SOH/ EDUCATION/ AV SVCS UNIT | BN129: SOH/ HUMAN SERVICES/ MANAGEMENT UNIT 8 | BP129: SOH/ LABOR & INDUSTRIAL RELATIONS/ EMPLOYMENT SEC/ DLIR-WD | BQ129: SOH/ LAND & NATURAL RESOURCES/ OAHU/HI LD DISP SEC | BS129: SOH/ PUBLIC SAFETY/ HAWAII COMMUNITY CORRECTIONAL CTR/ HCCC | BU129: SOH/ TRANSPORTATION/ SECURITY SERVICES/ AIR-HS
C130: 119 | Y130: 0 | Z130: 0 | AE130: 0 | AI130: 0 | AJ130: 0 | AK130: 0 | AL130: 0 | AM130: 0 | AN130: 0 | AO130: 0 | BB130: SOH/ ACCOUNTING & GENERAL SERVICES/ SPECIAL TECHNOLOGIES SUPPRT UT/ICSD | BC130: SOH/ AGRICULTURE/ SOH/ AGRICULTURE/ DOA | BH130: SOH/ DEFENSE/ SECURITY & TRAINING (S-2/S-3)/ HITC-ST | BI130: SOH/ EDUCATION/ LANG, LIT & HIST SEC | BN130: SOH/ HUMAN SERVICES/ MANAGEMENT UNIT 9 | BP130: SOH/ LABOR & INDUSTRIAL RELATIONS/ EMPLOYMENT & TRAINING FUND SEC/ DLIR-WD | BQ130: SOH/ LAND & NATURAL RESOURCES/ OAHU DIST LD MGMT BR/ ELD | BS130: SOH/ PUBLIC SAFETY/ OFFICE SERVICES/ HCCC | BU130: SOH/ TRANSPORTATION/ ENGINEERING SERVICES/ AIR-HE
C131: 120 | Y131: 0 | Z131: 0 | AE131: 0 | AI131: 0 | AJ131: 0 | AK131: 0 | AL131: 0 | AM131: 0 | AN131: 0 | AO131: 0 | BB131: SOH/ ACCOUNTING & GENERAL SERVICES/ STADIUM AUTHORITY/ STAD-0 | BC131: SOH/ AGRICULTURE/ STATISTICAL RESEARCH | BH131: SOH/ DEFENSE/ SENIOR ENLISTED ADVISOR/ HIANG/CMS | BI131: SOH/ EDUCATION/ LIB FOR BLND&PHYS HDCP | BN131: SOH/ HUMAN SERVICES/ MAINTENANCE SERVICES SECTION | BP131: SOH/ LABOR & INDUSTRIAL RELATIONS/ OAHU BRANCH | BQ131: SOH/ LAND & NATURAL RESOURCES/ HI DIST LD MGMT BR/ ELH | BS131: SOH/ PUBLIC SAFETY/ HEALTH CARE SERVICES SECTION/ HCCC | BU131: SOH/ TRANSPORTATION/ KONA INTL AIRPORT/ AIR-H
C132: 121 | Y132: 0 | Z132: 0 | AE132: 0 | AI132: 0 | AJ132: 0 | AK132: 0 | AL132: 0 | AM132: 0 | AN132: 0 | AO132: 0 | BB132: SOH/ ACCOUNTING & GENERAL SERVICES/ STAFF SERVICES/ DPW-1 | BC132: SOH/ AGRICULTURE/ STDS & TECHN SVC SEC/ STS | BH132: SOH/ DEFENSE/ SENIOR RECRUITER/ HIANG/DPR | BI132: SOH/ EDUCATION/ ADMINISTRATION | BN132: SOH/ HUMAN SERVICES/ CENTRAL MAINTENANCE UNIT | BP132: SOH/ LABOR & INDUSTRIAL RELATIONS/ HONOLULU OFFICE SECTION | BQ132: SOH/ LAND & NATURAL RESOURCES/ MAUI DIST LD MGMT BR/ ELM | BS132: SOH/ PUBLIC SAFETY/ OFFENDER SERVICES SECTION/ HCCC | BU132: SOH/ TRANSPORTATION/ OFFICE SERVICES/ AIR-H
C133: 122 | Y133: 0 | Z133: 0 | AE133: 0 | AI133: 0 | AJ133: 0 | AK133: 0 | AL133: 0 | AM133: 0 | AN133: 0 | AO133: 0 | BB133: SOH/ ACCOUNTING & GENERAL SERVICES/ STATE BUILDING CODE COUNCIL | BC133: SOH/ AGRICULTURE/ STDS & TR PRAC ENF SEC/ STPE | BH133: SOH/ DEFENSE/ SOCIAL ACTIONS STAFF OFFICER/ HIANG/SL | BI133: SOH/ EDUCATION/ TRANSCR SVCS SEC | BN133: SOH/ HUMAN SERVICES/ SITE MAINTENANCE UNIT | BP133: SOH/ LABOR & INDUSTRIAL RELATIONS/ CLERICAL SERVICES | BQ133: SOH/ LAND & NATURAL RESOURCES/ KAUAI DIST LD MGMT BR/ ELO | BS133: SOH/ PUBLIC SAFETY/ OPERATING SERVICES SECTION/ HCCC | BU133: SOH/ TRANSPORTATION/ AIRCRAFT RESCUE & FIREFIGHTING SECT/ AIR-HF
C134: 123 | Y134: 0 | Z134: 0 | AE134: 0 | AI134: 0 | AJ134: 0 | AK134: 0 | AL134: 0 | AM134: 0 | AN134: 0 | AO134: 0 | BB134: SOH/ ACCOUNTING & GENERAL SERVICES/ STATE PROCUREMENT OFFICE | BC134: SOH/ AGRICULTURE/ VETERINARY LAB BR/ VL | BH134: SOH/ DEFENSE/ SOH/ DEFENSE/ HIDOD | BI134: SOH/ EDUCATION/ PUB SVCS SEC | BN134: SOH/ HUMAN SERVICES/ DISTRICT A | BP134: SOH/ LABOR & INDUSTRIAL RELATIONS/ EMPL & EMPLOYER RELA UNIT I/ DLIR-WD | BQ134: SOH/ LAND & NATURAL RESOURCES/ STATE PARKS DIVISION/ FSP | BS134: SOH/ PUBLIC SAFETY/ FOOD SERVICES UNIT/ HCCC | BU134: SOH/ TRANSPORTATION/ AIRPORT OPERATIONS CONTROL/ AIR-H
C135: 124 | Y135: 0 | Z135: 0 | AE135: 0 | AI135: 0 | AJ135: 0 | AK135: 0 | AL135: 0 | AM135: 0 | AN135: 0 | AO135: 0 | BB135: SOH/ ACCOUNTING & GENERAL SERVICES/ STATE PROCUREMENT OFFICE/ SPO| | BC135: SOH/ AGRICULTURE/ WAIMANALO IRRIG SYS BR/ ARMDWLO | BH135: SOH/ DEFENSE/ SPECIAL PLANNING STAFF | BI135: SOH/ EDUCATION/ EAST OAHU PUB LIB DIST | BN135: SOH/ HUMAN SERVICES/ DISTRICT B | BP135: SOH/ LABOR & INDUSTRIAL RELATIONS/ EMPL & EMPLOYER RELA UNIT II/ DLIR-WD | BQ135: SOH/ LAND & NATURAL RESOURCES/ STAFF & SUPPTV SERV/ FSS | BS135: SOH/ PUBLIC SAFETY/ SECURITY UNIT/ HCCC | BU135: SOH/ TRANSPORTATION/ MAINTENANCE SECTION/ AIR-HM
C136: 125 | Y136: 0 | Z136: 0 | AE136: 0 | AI136: 0 | AJ136: 0 | AK136: 0 | AL136: 0 | AM136: 0 | AN136: 0 | AO136: 0 | BB136: SOH/ ACCOUNTING & GENERAL SERVICES/ STATE PROCUREMENT OFFICE/ SPO-1 | BC136: SOH/ AGRICULTURE/ WAIMEA IRRIG SYSTEM BR/ ARMDWM | BH136: SOH/ DEFENSE/ SPECIAL STAFF - INSPECTOR GENERAL/ HIIG | BI136: SOH/ EDUCATION/ ADMINISTRATION | BN136: SOH/ HUMAN SERVICES/ DISTRICT C | BP136: SOH/ LABOR & INDUSTRIAL RELATIONS/ TRAINING & DEV UNIT I/ DLIR-WD | BQ136: SOH/ LAND & NATURAL RESOURCES/ ARCHAEOLOGICAL UNIT/ FAU | BS136: SOH/ PUBLIC SAFETY/ MAINTENANCE UNIT/ HCCC | BU136: SOH/ TRANSPORTATION/ HILO INTL AIRPORT/ AIR-HL
C137: 126 | Y137: 0 | Z137: 0 | AE137: 0 | AI137: 0 | AJ137: 0 | AK137: 0 | AL137: 0 | AM137: 0 | AN137: 0 | AO137: 0 | BB137: SOH/ ACCOUNTING & GENERAL SERVICES/ STATE PROCUREMENT OFFICE/ SPO-1A | BC137: SOH/ AGRICULTURE/ WEST HAWAII DISTRICT | BH137: SOH/ DEFENSE/ STAFF JUDGE ADVOCATE OFFICE/ HIJAG | BI137: SOH/ EDUCATION/ KAHUKU PUB/SCH | BN137: SOH/ HUMAN SERVICES/ CONTRACTS ADMIN SECTION | BP137: SOH/ LABOR & INDUSTRIAL RELATIONS/ TRAINING & DEV UNIT II/ DLIR-WD | BQ137: SOH/ LAND & NATURAL RESOURCES/ PROJECT CONTROL SEC/ FPC | BS137: SOH/ PUBLIC SAFETY/ KAUAI COMMUNITY CORRECTIONAL CTR/ KCCC | BU137: SOH/ TRANSPORTATION/ AIRCRAFT RESCUE & FIREFIGHTING SECT/ AIR-HL
C138: 127 | Y138: 0 | Z138: 0 | AE138: 0 | AI138: 0 | AJ138: 0 | AK138: 0 | AL138: 0 | AM138: 0 | AN138: 0 | AO138: 0 | BB138: SOH/ ACCOUNTING & GENERAL SERVICES/ STATE PROCUREMENT OFFICE/ SPO-1B | BC138: SOH/ AGRICULTURE/ WEST HAWAII DISTRICT/ MSW | BH138: SOH/ DEFENSE/ STAFF JUDGE ADVOCATE/ HIANG/JA | BI138: SOH/ EDUCATION/ CIRC SVCS | BN138: SOH/ HUMAN SERVICES/ PRIVATE CONTRACTS UNIT | BP138: SOH/ LABOR & INDUSTRIAL RELATIONS/ TRAINING & DEV UNIT III/ DLIR-WD | BQ138: SOH/ LAND & NATURAL RESOURCES/ HERITAGE CONS & REC SERV/ FHC | BS138: SOH/ PUBLIC SAFETY/ OFFICE SERVICES STAFF/ KCCC | BU138: SOH/ TRANSPORTATION/ AIRPORT OPERATIONS CONTROL/ AIR-HL
C139: 128 | Y139: 0 | Z139: 0 | AE139: 0 | AI139: 0 | AJ139: 0 | AK139: 0 | AL139: 0 | AM139: 0 | AN139: 0 | AO139: 0 | BB139: SOH/ ACCOUNTING & GENERAL SERVICES/ STATE PROCUREMENT OFFICE/ SPO-2 | BH139: SOH/ DEFENSE/ STAFF JUDGE ADVOCATE/ HIARJA | BI139: SOH/ EDUCATION/ AINA HAINA | BN139: SOH/ HUMAN SERVICES/ PROJECT-BASED SUBSIDY UNIT | BP139: SOH/ LABOR & INDUSTRIAL RELATIONS/ VETERAN SERVICES/ DLIR-WD | BQ139: SOH/ LAND & NATURAL RESOURCES/ PARK PLANNING BR/ FPB | BS139: SOH/ PUBLIC SAFETY/ HEALTH CARE SERVICES SECTION/ KCCC | BU139: SOH/ TRANSPORTATION/ GENERAL MAINTENANCE SECTION/ AIR-HL
C140: 129 | Y140: 0 | Z140: 0 | AE140: 0 | AI140: 0 | AJ140: 0 | AK140: 0 | AL140: 0 | AM140: 0 | AN140: 0 | AO140: 0 | AQ140: =IF(AND(K140="x",AP140>0),AP140,"") ->  | AU140: =IF(AND(K140="x",AT140>0),AT140,"") ->  | AY140: =IF(AND(K140="x",AX140>0),AX140,"") ->  | BB140: SOH/ ACCOUNTING & GENERAL SERVICES/ STATE PROCUREMENT OFFICE/ SPO-3 | BH140: SOH/ DEFENSE/ STAFF JUDGE ADVOCATE/ HIIB-JA | BI140: SOH/ EDUCATION/ CIRC SVCS | BN140: SOH/ HUMAN SERVICES/ HOUSING PROGRAMS BRANCH | BP140: SOH/ LABOR & INDUSTRIAL RELATIONS/ WAIPAHU OFFICE SECTION | BQ140: SOH/ LAND & NATURAL RESOURCES/ PARKS DEVELOPMENT BR/ FDB | BS140: SOH/ PUBLIC SAFETY/ OFFENDER SERVICES SECTION/ KCCC | BU140: SOH/ TRANSPORTATION/ WAIMEA-KOHALA AIRPORT/ AIR-H
C141: 130 | N141: =IF((NETWORKDAYS(G141,M141)>0),(NETWORKDAYS(G141,M141)),"") ->  | Y141: 0 | Z141: =IF((F141="x"),0,((V141*10)+(W141*20))) -> 0 | AE141: =IF(F141="x",0,(Z141+AB141+AC141)) -> 0 | AI141: 0 | AJ141: 0 | AK141: =AJ141-AH141 -> 0 | AL141: =IF(K141="x",AH141,0) -> 0 | AM141: =IF(K141="x",AI141,0) -> 0 | AN141: =IF(K141="x",AJ141,0) -> 0 | AO141: =IF(K141="x",AK141,0) -> 0 | AP141: =IF(N141>0,N141,"") ->  | AR141: =IF(OR(K141="x",F141="x",AP141<=0),"",AP141) ->  | AS141: =IF(AND(F141="x",AP141>0),AP141,"") ->  | AT141: =IF(V141>0,V141,"") ->  | AV141: =IF(OR(K141="x",F141="X",AT141<=0),"",AT141) ->  | AW141: =IF(AND(F141="x",AT141>0),AT141,"") ->  | AX141: =IF(W141>0,W141,"") ->  | AZ141: =IF(OR(K141="x",F141="x",AX141<=0),"",AX141) ->  | BA141: =IF(AND(F141="x",AX141>0),AX141,"") ->  | BB141: SOH/ ACCOUNTING & GENERAL SERVICES/ STATE PROCUREMENT OFFICE/ SPO-4 | BH141: SOH/ DEFENSE/ STATE AIR SURGEON/ HIANG/SG | BI141: SOH/ EDUCATION/ HAWAII KAI | BN141: SOH/ HUMAN SERVICES/ RESIDENT SERVICE SECTION | BP141: SOH/ LABOR & INDUSTRIAL RELATIONS/ CLERICAL SVCS/ DLIR-WD | BQ141: SOH/ LAND & NATURAL RESOURCES/ RESOURCES MGMT BR/ FRB | BS141: SOH/ PUBLIC SAFETY/ OPERATING SERVICES SECTION/ KCCC | BU141: SOH/ TRANSPORTATION/ GENERAL MAINTENANCE SECTION/ AIR-H
C142: 131 | Y142: 0 | Z142: 0 | AE142: 0 | AI142: 0 | AJ142: 0 | AK142: 0 | AL142: 0 | AM142: 0 | AN142: 0 | AO142: 0 | BB142: SOH/ ACCOUNTING & GENERAL SERVICES/ STATE PROCUREMENT OFFICE/ SPO-5 | BH142: SOH/ DEFENSE/ STATE AVIATION OFFICE/ HIARAV | BI142: SOH/ EDUCATION/ CIRC SVCS | BN142: SOH/ HUMAN SERVICES/ HOMELESS PROGRAMS SECTION | BP142: SOH/ LABOR & INDUSTRIAL RELATIONS/ EMPL & EMPLOYER RELA UNIT/ DLIR-WD | BQ142: SOH/ LAND & NATURAL RESOURCES/ HAWAII PARKS SEC/ FHP | BS142: SOH/ PUBLIC SAFETY/ FOOD SERVICES UNIT/ KCCC | BU142: SOH/ TRANSPORTATION/ AIRCRAFT RESCUE & FIREFIGHTING/ AIR-H
C143: 132 | Y143: 0 | Z143: 0 | AE143: 0 | AI143: 0 | AJ143: 0 | AK143: 0 | AL143: 0 | AM143: 0 | AN143: 0 | AO143: 0 | BB143: SOH/ ACCOUNTING & GENERAL SERVICES/ STATE PROCUREMENT OFFICE/ SPO-6A | BH143: SOH/ DEFENSE/ STATE CEMETERY BRANCH | BI143: SOH/ EDUCATION/ KAILUA | BN143: SOH/ HUMAN SERVICES/ SOCIAL SERVICES DIVISION/ DHS-SSD | BP143: SOH/ LABOR & INDUSTRIAL RELATIONS/ TRAINING & DEV UNIT/ DLIR-WD | BQ143: SOH/ LAND & NATURAL RESOURCES/ WAILOA CENTER UNIT/ FWC | BS143: SOH/ PUBLIC SAFETY/ SECURITY UNIT/ KCCC | BU143: SOH/ TRANSPORTATION/ UPOLU AIRPORT/ AIR-H
C144: 133 | Y144: 0 | Z144: 0 | AE144: 0 | AI144: 0 | AJ144: 0 | AK144: 0 | AL144: 0 | AM144: 0 | AN144: 0 | AO144: 0 | BB144: SOH/ ACCOUNTING & GENERAL SERVICES/ STATE PROCUREMENT OFFICE/ SPO-6B | BH144: SOH/ DEFENSE/ STATE CIVIL DEFENSE DIVISION/ HICD | BI144: SOH/ EDUCATION/ CIRC SVCS | BN144: SOH/ HUMAN SERVICES/ SUPPORT SERVICES OFFICE/ DHS-SSD-SSO | BP144: SOH/ LABOR & INDUSTRIAL RELATIONS/ VETERAN SERVICES/ DLIR-WD | BQ144: SOH/ LAND & NATURAL RESOURCES/ LAPAKAHI UNIT/ FLU | BS144: SOH/ PUBLIC SAFETY/ MAINTENANCE UNIT/ KCCC | BU144: SOH/ TRANSPORTATION/ MAUI DISTRICT/ AIR-M
C145: 134 | Y145: 0 | Z145: 0 | AD145: =IF(F145="x",(0-((V145*10)+(W145*20))),"") ->  | AE145: 0 | AI145: 0 | AJ145: 0 | AK145: 0 | AL145: 0 | AM145: 0 | AN145: 0 | AO145: 0 | BB145: SOH/ ACCOUNTING & GENERAL SERVICES/ STATE PROCUREMENT OFFICE/ SPO-6C | BH145: SOH/ DEFENSE/ STATE FAMILY PROGRAM OFFICE/ HISFPO | BI145: SOH/ EDUCATION/ KAIMUKI | BN145: SOH/ HUMAN SERVICES/ FEDERAL REVENUE & PROGRAM SUPPORT/ DHS-SSD-FR&PS | BP145: SOH/ LABOR & INDUSTRIAL RELATIONS/ KANEOHE OFFICE SECTION/ DLIR-WD | BQ145: SOH/ LAND & NATURAL RESOURCES/ KAUAI PARKS SEC/ FKP | BS145: SOH/ PUBLIC SAFETY/ MAUI COMMUNITY CORRECTIONAL CENTER/ MCCC | BU145: SOH/ TRANSPORTATION/ OFFICE SERVICES/ AIR-M
C146: 135 | Y146: 0 | Z146: 0 | AE146: 0 | AI146: 0 | AJ146: 0 | AK146: 0 | AL146: 0 | AM146: 0 | AN146: 0 | AO146: 0 | BB146: SOH/ ACCOUNTING & GENERAL SERVICES/ STATE PROCUREMENT OFFICE/ SPO-6D | BH146: SOH/ DEFENSE/ STATE FISCAL SECTION/ HIADMF | BI146: SOH/ EDUCATION/ CIRC SVCS | BN146: SOH/ HUMAN SERVICES/ MANAGEMENT INFO & COMPLIANCE/ DHS-SSD-SSO | BP146: SOH/ LABOR & INDUSTRIAL RELATIONS/ CLERICAL SERVICES | BQ146: SOH/ LAND & NATURAL RESOURCES/ MAUI PARKS SEC/ FMP | BS146: SOH/ PUBLIC SAFETY/ OFFICE SERVICES STAFF/ MCCC | BU146: SOH/ TRANSPORTATION/ HANA AIRPORT/ AIR-M
C147: 136 | Y147: 0 | Z147: 0 | AE147: 0 | AI147: 0 | AJ147: 0 | AK147: 0 | AL147: 0 | AM147: 0 | AN147: 0 | AO147: 0 | BB147: SOH/ ACCOUNTING & GENERAL SERVICES/ STATE PROCUREMENT OFFICE/ SPO-7 | BH147: SOH/ DEFENSE/ STATE PERSONNEL SECTION/ HIADMP | BI147: SOH/ EDUCATION/ CHILDRENS SVCS | BN147: SOH/ HUMAN SERVICES/ PURCHASE OF SERVICES & GRANTS MGMT/ DHS-SSD-POS&G | BP147: SOH/ LABOR & INDUSTRIAL RELATIONS/ EMPL & EMPLOYER RELA UNIT/ DLIR-WD | BQ147: SOH/ LAND & NATURAL RESOURCES/ OAHU PARKS SEC/ FOP | BS147: SOH/ PUBLIC SAFETY/ HEALTH CARE SERVICES SECTION/ MCCC | BU147: SOH/ TRANSPORTATION/ KALAUPAPA AIRPORT/ AIR-M
C148: 137 | Y148: 0 | Z148: 0 | AE148: 0 | AI148: 0 | AJ148: 0 | AK148: 0 | AL148: 0 | AM148: 0 | AN148: 0 | AO148: 0 | BB148: SOH/ ACCOUNTING & GENERAL SERVICES/ STATE PROCUREMENT OFFICE/ SPO-18 | BH148: SOH/ DEFENSE/ STATE SAFETY OFFICE/ HIARS | BI148: SOH/ EDUCATION/ KALIHI-PALAMA | BN148: SOH/ HUMAN SERVICES/ MANAGEMENT INFO & COMPLIANCE/ DHS-SSD-MI&C | BP148: SOH/ LABOR & INDUSTRIAL RELATIONS/ VETERAN SERVICES/ DLIR-WD | BQ148: SOH/ LAND & NATURAL RESOURCES/ ROYAL MAUSOLEUM SM/ FRM | BS148: SOH/ PUBLIC SAFETY/ OFFENDER SERVICES SECTION/ MCCC | BU148: SOH/ TRANSPORTATION/ KAHULUI AIRPORT/ AIR-M
C149: 138 | Y149: 0 | Z149: 0 | AE149: 0 | AI149: 0 | AJ149: 0 | AK149: 0 | AL149: 0 | AM149: 0 | AN149: 0 | AO149: 0 | BB149: SOH/ ACCOUNTING & GENERAL SERVICES/ STATE PROCUREMENT OFFICE/ SPO-20 | BH149: SOH/ DEFENSE/ STATE SURFACE MAINT OFFICE/ HIARM | BI149: SOH/ EDUCATION/ CIRC SVCS | BN149: SOH/ HUMAN SERVICES/ SYSTEMS OPERATION UNIT/ DHS-SSD-SO | BP149: SOH/ LABOR & INDUSTRIAL RELATIONS/ HAWAII BRANCH | BQ149: SOH/ LAND & NATURAL RESOURCES/ KAHANA VALLEY SP/ FKV | BS149: SOH/ PUBLIC SAFETY/ OPERATING SERVICES SECTION/ MCCC | BU149: SOH/ TRANSPORTATION/ AIRCRAFT RESCUE & FIREFIGHTING SECT/ AIR-MF
C150: 139 | Y150: 0 | Z150: 0 | AE150: 0 | AI150: 0 | AJ150: =(X150*20)+Z150+AA150+AF150 -> 0 | AK150: 0 | AL150: 0 | AM150: 0 | AN150: 0 | AO150: 0 | BB150: SOH/ ACCOUNTING & GENERAL SERVICES/ STATEWIDE STANDARDS & PROC OFC/ICSD | BH150: SOH/ DEFENSE/ SUPPORT PERSONNEL MGT OFFICE/ HISPMO | BI150: SOH/ EDUCATION/ KANEOHE | BN150: SOH/ HUMAN SERVICES/ MEDICAID WAIVER STAFF/ DHS-SSD-MWS | BP150: SOH/ LABOR & INDUSTRIAL RELATIONS/ HILO OFFICE SECTION/ DLIR-WD | BQ150: SOH/ LAND & NATURAL RESOURCES/ WATER RESOURCE MANAGEMENT DIVISION/ DWRM | BS150: SOH/ PUBLIC SAFETY/ FOOD SERVICES UNIT/ MCCC | BU150: SOH/ TRANSPORTATION/ GENERAL CONSTRUCTION & MAINT SECT/ AIR-MM
C151: 140 | Y151: 0 | Z151: 0 | AE151: 0 | AI151: 0 | AJ151: 0 | AK151: 0 | AL151: 0 | AM151: 0 | AN151: 0 | AO151: 0 | BB151: SOH/ ACCOUNTING & GENERAL SERVICES/ STUDENT TRANSP SEV BR/ CSD-15 | BH151: SOH/ DEFENSE/ SUPPORT/ 154 CGP/DCS | BI151: SOH/ EDUCATION/ CIRC SVCS | BN151: SOH/ HUMAN SERVICES/ CONTRACTS/MONITORING UNIT/ DHS-SSD-CMU | BP151: SOH/ LABOR & INDUSTRIAL RELATIONS/ CLERICAL SERVICES/ DLIR-WD | BQ151: SOH/ LAND & NATURAL RESOURCES/ COMM ON WATER RESOURCE MANAGEMENT | BS151: SOH/ PUBLIC SAFETY/ SECURITY UNIT/ MCCC | BU151: SOH/ TRANSPORTATION/ OPERATIONS SECTION/ AIR-MO
C152: 141 | Y152: 0 | Z152: 0 | AE152: 0 | AI152: 0 | AJ152: 0 | AK152: 0 | AL152: 0 | AM152: 0 | AN152: 0 | AO152: 0 | BB152: SOH/ ACCOUNTING & GENERAL SERVICES/ SUPPORT SERV STAFF/ SFCA-3 | BH152: SOH/ DEFENSE/ SURGEON/ HIARHS | BI152: SOH/ EDUCATION/ BOOKMOBILE SVCS | BN152: SOH/ HUMAN SERVICES/ FISCAL & INFORMATION UNIT/ DHS-SSD-F&I | BP152: SOH/ LABOR & INDUSTRIAL RELATIONS/ EMPL & EMPLOYER RELA UNIT/ DLIR-WD | BQ152: SOH/ LAND & NATURAL RESOURCES/ PLANNING BRANCH | BS152: SOH/ PUBLIC SAFETY/ MAINTENANCE UNIT/ MCCC | BU152: SOH/ TRANSPORTATION/ KAPALUA AIRPORT/ AIR-M
C153: 142 | Y153: 0 | Z153: 0 | AE153: 0 | AI153: 0 | AJ153: 0 | AK153: 0 | AL153: 0 | AM153: 0 | AN153: 0 | AO153: 0 | BB153: SOH/ ACCOUNTING & GENERAL SERVICES/ SURPLUS PROPERTY BR/ SPO-2/ SPO-2 | BH153: SOH/ DEFENSE/ SURGEON/ HIIB-MD | BI153: SOH/ EDUCATION/ LILIHA | BN153: SOH/ HUMAN SERVICES/ PLANNING STAFF/ DHS-SSD-PLAN | BP153: SOH/ LABOR & INDUSTRIAL RELATIONS/ VETERAN SERVICES | BQ153: SOH/ LAND & NATURAL RESOURCES/ SURVEY BRANCH | BS153: SOH/ PUBLIC SAFETY/ CORRECTIONAL FACILITY DIVISION/ MCCC | BU153: SOH/ TRANSPORTATION/ AIRCRAFT RESCUE & FIREFIGHTING/ AIR-M
C154: 143 | Y154: 0 | Z154: 0 | AE154: 0 | AI154: 0 | AJ154: 0 | AK154: 0 | AL154: 0 | AM154: 0 | AN154: 0 | AO154: 0 | BB154: SOH/ ACCOUNTING & GENERAL SERVICES/ SURVEY BR/ HAW-8 | BH154: SOH/ DEFENSE/ TECHNICIAN PERSONNEL MGT BRANCH/ HISPMO-M | BI154: SOH/ EDUCATION/ CIRC SVCS | BN154: SOH/ HUMAN SERVICES/ STAFF DEVELOPMENT STAFF/ DHS-SSD-SDS | BP154: SOH/ LABOR & INDUSTRIAL RELATIONS/ TRAINING & DEV UNIT/ DLIR-WD | BQ154: SOH/ LAND & NATURAL RESOURCES/ WATER RESOURCES INVESTIGATION SECT | BS154: SOH/ PUBLIC SAFETY/ HALAWA CORRECTIONAL FACILITY/ HCF | BU154: SOH/ TRANSPORTATION/ AIR TRAFFIC CONTROL/ AIR-M
C155: 144 | Y155: 0 | Z155: 0 | AE155: 0 | AI155: 0 | AJ155: 0 | AK155: 0 | AL155: 0 | AM155: 0 | AN155: 0 | AO155: 0 | BB155: SOH/ ACCOUNTING & GENERAL SERVICES/ SWITCHBOARD & DIRECTRY SVCS UT/ICSD | BH155: SOH/ DEFENSE/ TELECOMMUNICATIONS BRANCH/ HICDCM | BI155: SOH/ EDUCATION/ MCCULLY-MOILIILI | BN155: SOH/ HUMAN SERVICES/ ADULT & COMMUNITY CARE SERVICES BR/ DHS-SSD-ACCS | BP155: SOH/ LABOR & INDUSTRIAL RELATIONS/ KONA OFFICE SECTION/ DLIR-WD | BQ155: SOH/ LAND & NATURAL RESOURCES/ WATER RESOURCES ASSESSMENT SECTION | BS155: SOH/ PUBLIC SAFETY/ OFFICE SERVICES STAFF/ HCF | BU155: SOH/ TRANSPORTATION/ GENERAL MAINTENANCE SECTION/ AIR-M
C156: 145 | Y156: 0 | Z156: 0 | AE156: 0 | AI156: 0 | AJ156: 0 | AK156: 0 | AL156: 0 | AM156: 0 | AN156: 0 | AO156: 0 | BB156: SOH/ ACCOUNTING & GENERAL SERVICES/ SYS NETWRKING & OPS-SYS OPS BR/ICSD | BH156: SOH/ DEFENSE/ TRADES UNIT | BI156: SOH/ EDUCATION/ CIRC SVCS | BN156: SOH/ HUMAN SERVICES/ PROGRAM DEVELOPMENT STAFF/ DHS-SSD-PDS | BP156: SOH/ LABOR & INDUSTRIAL RELATIONS/ CLERICAL SERVICES/ DLIR-WD | BQ156: SOH/ LAND & NATURAL RESOURCES/ REGULATION BRANCH | BS156: SOH/ PUBLIC SAFETY/ CLERICAL SUPPORT SERVICES/ HCF | BU156: SOH/ TRANSPORTATION/ LANAI AIRPORT/ AIR-M
C157: 146 | Y157: 0 | Z157: 0 | AE157: 0 | AI157: 0 | AJ157: 0 | AK157: 0 | AL157: 0 | AM157: 0 | AN157: 0 | AO157: 0 | BB157: SOH/ ACCOUNTING & GENERAL SERVICES/ SYS NETWRKING & OPS-SYS SVC BR/ICSD | BH157: SOH/ DEFENSE/ TRAINING, EDUCATION & INFO BRANCH/ HICDTI | BI157: SOH/ EDUCATION/ CHILDRENS SVCS | BN157: SOH/ HUMAN SERVICES/ COMMUNITY LONG TERM CARE UNIT/ DHS-SSD-CLTC | BP157: SOH/ LABOR & INDUSTRIAL RELATIONS/ EMPL & EMPLOYER RELA UNIT/ DLIR-WD | BQ157: SOH/ LAND & NATURAL RESOURCES/ WATER RESOURCES ALLOCATION SECTION | BS157: SOH/ PUBLIC SAFETY/ PERSONNEL UNIT/ HCF | BU157: SOH/ TRANSPORTATION/ AIRCRAFT RESCUE & FIREFIGHTING/ AIR-M
C158: 147 | Y158: 0 | Z158: 0 | AE158: 0 | AI158: 0 | AJ158: 0 | AK158: 0 | AL158: 0 | AM158: 0 | AN158: 0 | AO158: 0 | BB158: SOH/ ACCOUNTING & GENERAL SERVICES/ SYS NETWRKNG &OPS-SYS NTWRK BR/ICSD | BH158: SOH/ DEFENSE/ TROOP COMMAND/ HITC | BI158: SOH/ EDUCATION/ MANOA | BN158: SOH/ HUMAN SERVICES/ FOSTER GRANDPARENT PROGRAM/ DHS-SSD-FGP | BP158: SOH/ LABOR & INDUSTRIAL RELATIONS/ TRAINING & DEV UNIT/ DLIR-WD | BQ158: SOH/ LAND & NATURAL RESOURCES/ SURFACE WATER PROGRAMS SECTION | BS158: SOH/ PUBLIC SAFETY/ FISCAL UNIT/ HCF | BU158: SOH/ TRANSPORTATION/ GENERAL MAINTENANCE SECTION/ AIR-M
C159: 148 | Y159: 0 | Z159: 0 | AE159: 0 | AI159: 0 | AJ159: 0 | AK159: 0 | AL159: 0 | AM159: 0 | AN159: 0 | AO159: 0 | BB159: SOH/ ACCOUNTING & GENERAL SERVICES/ SYSTEM SECURITY SECTION/ICSD | BH159: SOH/ DEFENSE/ U.S. PROPERTY & FISCAL OFFICE/ HIPFO | BI159: SOH/ EDUCATION/ CIRC SVCS | BN159: SOH/ HUMAN SERVICES/ SENIOR COMPANION PROGRAM/ DHS-SSD-SCP | BP159: SOH/ LABOR & INDUSTRIAL RELATIONS/ MAUI BRANCH | BQ159: SOH/ LAND & NATURAL RESOURCES/ GRND WATER PERMITS/SPEC PROJ SECT | BS159: SOH/ PUBLIC SAFETY/ SUPPLY UNIT/ HCF | BU159: SOH/ TRANSPORTATION/ MOLOKAI AIRPORT/ AIR-M
C160: 149 | Y160: 0 | Z160: 0 | AE160: 0 | AI160: 0 | AJ160: 0 | AK160: 0 | AL160: 0 | AM160: 0 | AN160: 0 | AO160: 0 | BB160: SOH/ ACCOUNTING & GENERAL SERVICES/ SYSTEM SERVICES BR/ICSD | BH160: SOH/ DEFENSE/ VET SERVICES BRANCH | BI160: SOH/ EDUCATION/ WAIKIKI-KAPAHULU | BN160: SOH/ HUMAN SERVICES/ RESPITE COMPANION PROGRAM UNIT/ DHS-SSD-RCP | BP160: SOH/ LABOR & INDUSTRIAL RELATIONS/ WAILUKU OFFICE SECTION/ DLIR-WD | BQ160: SOH/ LAND & NATURAL RESOURCES/ ENFORCEMENT SECTION | BS160: SOH/ PUBLIC SAFETY/ HIGH SECURITY RESIDENTIAL SECTION/ HCF | BU160: SOH/ TRANSPORTATION/ AIRCRAFT RESCUE & FIREFIGHTING/ AIR-M
C161: 150 | Y161: 0 | Z161: 0 | AE161: 0 | AI161: 0 | AJ161: 0 | AK161: 0 | AL161: 0 | AM161: 0 | AN161: 0 | AO161: 0 | BB161: SOH/ ACCOUNTING & GENERAL SERVICES/ SYSTEM SOFTWARE SECTION/ICSD | BH161: SOH/ DEFENSE/ VICE DIRECTOR/ HICDVD | BI161: SOH/ EDUCATION/ CIRC SVCS | BN161: SOH/ HUMAN SERVICES/ OAHU ADULT & COMMUNITY CARE SVCS/ DHS-SSD-OACCS | BP161: SOH/ LABOR & INDUSTRIAL RELATIONS/ CLERICAL SERVICES/ DLIR-WD | BQ161: SOH/ LAND & NATURAL RESOURCES/ PERSONNEL OFFICE/ APO | BS161: SOH/ PUBLIC SAFETY/ MEDIUM SECURITY RESIDENTIAL SEC/ HCF | BU161: SOH/ TRANSPORTATION/ GENERAL MAINTENANCE SECTION/ AIR-M
C162: 151 | Y162: =V162+W162+X162 -> 0 | Z162: 0 | AE162: 0 | AI162: =IF(AE162<=0,AG162,AE162+AG162) -> 0 | AJ162: 0 | AK162: 0 | AL162: 0 | AM162: 0 | AN162: 0 | AO162: 0 | BB162: SOH/ ACCOUNTING & GENERAL SERVICES/ SYSTEMS & PROCED OFF/ SPO | BH162: SOH/ DEFENSE/ YOUTH CHALLENGE ACADEMY/ DOD-YCA | BI162: SOH/ EDUCATION/ WAIMANALO PUB/SCH | BN162: SOH/ HUMAN SERVICES/ NURSING SERVICES/ DHS-SSD-OACCS | BP162: SOH/ LABOR & INDUSTRIAL RELATIONS/ EMPL & EMPLOYER RELA UNIT/ DLIR-WD | BQ162: SOH/ LAND & NATURAL RESOURCES/ CONSERVATION & RESOURCES ENFORCEMNT/ IAD | BS162: SOH/ PUBLIC SAFETY/ CLERICAL SUPPORT STAFF/ HCF | BU162: SOH/ TRANSPORTATION/ KAUAI DISTRICT/ AIR-K
C163: 152 | Y163: =V163+W163+X163 -> 0 | Z163: 0 | AE163: 0 | AI163: =IF(AE163<=0,AG163,AE163+AG163) -> 0 | AJ163: 0 | AK163: 0 | AL163: 0 | AM163: 0 | AN163: 0 | AO163: 0 | BB163: SOH/ ACCOUNTING & GENERAL SERVICES/ SYSTEMS ACCNT BRANCH/ ACCT-3 | BI163: SOH/ EDUCATION/ CIRC SVCS | BN163: SOH/ HUMAN SERVICES/ ADULT INTAKE UNIT/ DHS-SSD-AIU | BP163: SOH/ LABOR & INDUSTRIAL RELATIONS/ VETERAN SERVICES | BQ163: SOH/ LAND & NATURAL RESOURCES/ PRGM SUPPT SVCS OFC/ ISS | BS163: SOH/ PUBLIC SAFETY/ OPERATIONS UNIT/ HCF | BU163: SOH/ TRANSPORTATION/ OFFICE SERVICES/ AIR-K
C164: 153 | Y164: 0 | Z164: 0 | AE164: 0 | AI164: 0 | AJ164: 0 | AK164: 0 | AL164: 0 | AM164: 0 | AN164: 0 | AO164: 0 | BB164: SOH/ ACCOUNTING & GENERAL SERVICES/ SYSTEMS MANAGEMENT SECTION/ICSD | BI164: SOH/ EDUCATION/ WEST OAHU PUB LIB DIST | BN164: SOH/ HUMAN SERVICES/ ADULT PROTECTIVE SERVICES UNIT/ DHS-SSD-APSU | BP164: SOH/ LABOR & INDUSTRIAL RELATIONS/ TRAINING & DEV UNIT/ DLIR-WD | BQ164: SOH/ LAND & NATURAL RESOURCES/ CLERICAL SVCS OFC/ ICL | BS164: SOH/ PUBLIC SAFETY/ HEALTH CARE SERVICES SECTION/ HCF | BU164: SOH/ TRANSPORTATION/ SECURITY SERVICES/ AIR-K
C165: 154 | Y165: 0 | Z165: 0 | AE165: 0 | AI165: 0 | AJ165: 0 | AK165: 0 | AL165: 0 | AM165: 0 | AN165: 0 | AO165: 0 | BB165: SOH/ ACCOUNTING & GENERAL SERVICES/ TECHNICAL SERVICES/ DPW-17 | BI165: SOH/ EDUCATION/ ADMINISTRATION | BN165: SOH/ HUMAN SERVICES/ ADULT SERVICES UNIT 1/ DHS-SSD-ASU1 | BP165: SOH/ LABOR & INDUSTRIAL RELATIONS/ KAUNAKAKAI OFFICE SECTION/ DLIR-WD | BQ165: SOH/ LAND & NATURAL RESOURCES/ HAWAII BRANCH/ IHA | BS165: SOH/ PUBLIC SAFETY/ NURSING SERVICES UNIT/ HCF | BU165: SOH/ TRANSPORTATION/ ENGINEERING SERVICES/ AIR-KE
C166: 155 | Y166: 0 | Z166: 0 | AE166: 0 | AI166: 0 | AJ166: 0 | AK166: 0 | AL166: 0 | AM166: 0 | AN166: 0 | AO166: 0 | BB166: SOH/ ACCOUNTING & GENERAL SERVICES/ TECHNICAL SERVICES/ DPW-18 | BI166: SOH/ EDUCATION/ EWA BEACH PUB/SCH | BN166: SOH/ HUMAN SERVICES/ ADULT SERVICES UNIT 2/ DHS-SSD-ASU2 | BP166: SOH/ LABOR & INDUSTRIAL RELATIONS/ KAUAI BRANCH | BQ166: SOH/ LAND & NATURAL RESOURCES/ WEST HI DIST/ IHW | BS166: SOH/ PUBLIC SAFETY/ MEDICAL UNIT/ HCF | BU166: SOH/ TRANSPORTATION/ PORT ALLEN AIRPORT/ AIR-K
C167: 156 | Y167: 0 | Z167: 0 | AE167: 0 | AI167: 0 | AJ167: 0 | AK167: 0 | AL167: 0 | AM167: 0 | AN167: 0 | AO167: 0 | BB167: SOH/ ACCOUNTING & GENERAL SERVICES/ TECHNICAL SERVICES/ DPW-19 | BI167: SOH/ EDUCATION/ CIRC SVCS | BN167: SOH/ HUMAN SERVICES/ EAST HAWAII ADULT & COMM CARE SVCS/ DHS-SSD-EHACC | BP167: SOH/ LABOR & INDUSTRIAL RELATIONS/ CLERICAL SERVICES/ DLIR-WD | BQ167: SOH/ LAND & NATURAL RESOURCES/ EAST HI DIST/ IHE | BS167: SOH/ PUBLIC SAFETY/ DENTAL SERVICES UNIT/ HCF | BU167: SOH/ TRANSPORTATION/ LIHUE AIRPORT/ AIR-VK
C168: 157 | Y168: 0 | Z168: 0 | AE168: 0 | AI168: 0 | AJ168: 0 | AK168: 0 | AL168: 0 | AM168: 0 | AN168: 0 | AO168: 0 | BB168: SOH/ ACCOUNTING & GENERAL SERVICES/ TECHNICAL SUPPORT CENTER SEC/ICSD | BI168: SOH/ EDUCATION/ CHILDRENS SVCS | BN168: SOH/ HUMAN SERVICES/ NURSING HOME WITHOUT WALLS UNIT/ DHS-SSD-EHAAC | BP168: SOH/ LABOR & INDUSTRIAL RELATIONS/ EMPL & EMPLOYER RELA SECTION/ DLIR-WD | BQ168: SOH/ LAND & NATURAL RESOURCES/ NORTH HI DIST | BS168: SOH/ PUBLIC SAFETY/ PHARMACY UNIT/ HCF | BU168: SOH/ TRANSPORTATION/ AIRPORT OPERATIONS CONTROL/ AIR-KO
C169: 158 | Y169: 0 | Z169: 0 | AE169: 0 | AI169: 0 | AJ169: 0 | AK169: 0 | AL169: 0 | AM169: 0 | AN169: 0 | AO169: 0 | BB169: SOH/ ACCOUNTING & GENERAL SERVICES/ TECHNOLOGY SUPPORT SERVICES BR/ICSD | BI169: SOH/ EDUCATION/ AV AVCS | BN169: SOH/ HUMAN SERVICES/ WEST HAWAII ADULT & COMM CARE SVCS/ DHS-SSD-WHACC | BP169: SOH/ LABOR & INDUSTRIAL RELATIONS/ TRAINING & DEV SECTION/ DLIR-WD | BQ169: SOH/ LAND & NATURAL RESOURCES/ MAUI BRANCH/ IMA | BS169: SOH/ PUBLIC SAFETY/ MEDICAL RECORDS UNIT/ HCF | BU169: SOH/ TRANSPORTATION/ MAINTENANCE SECTION/ AIR-KM
C170: 159 | Y170: 0 | Z170: 0 | AE170: 0 | AI170: 0 | AJ170: 0 | AK170: 0 | AL170: 0 | AM170: 0 | AN170: 0 | AO170: 0 | BB170: SOH/ ACCOUNTING & GENERAL SERVICES/ TELECOM & INFO SYS MAINT SEC/ICSD | BI170: SOH/ EDUCATION/ AIEA | BN170: SOH/ HUMAN SERVICES/ NURSING HOME WITHOUT WALLS UNIT/ DHS-SSD-WHACC | BP170: SOH/ LABOR & INDUSTRIAL RELATIONS/ RESEARCH AND STATISTICS OFFICE/ DLIR-R&S | BQ170: SOH/ LAND & NATURAL RESOURCES/ EAST MI DIST/ IMO | BS170: SOH/ PUBLIC SAFETY/ OFFENDER SERVICES SECTION/ HCF | BU170: SOH/ TRANSPORTATION/ CUSTODIAL SECTION/ AIR-K
C171: 160 | Y171: 0 | Z171: 0 | AE171: 0 | AI171: 0 | AJ171: 0 | AK171: 0 | AL171: 0 | AM171: 0 | AN171: 0 | AO171: 0 | BB171: SOH/ ACCOUNTING & GENERAL SERVICES/ TELECOM SERVICES BR/ICSD | BI171: SOH/ EDUCATION/ CIRC SVCS | BN171: SOH/ HUMAN SERVICES/ KAU UNIT/ DHS-SSD-KAU | BP171: SOH/ LABOR & INDUSTRIAL RELATIONS/ LABOR MARKET INFO STAFF/ DLIR-R&S | BQ171: SOH/ LAND & NATURAL RESOURCES/ WEST MI DIST/ ILA | BS171: SOH/ PUBLIC SAFETY/ EDUCATION UNIT/ HCF | BU171: SOH/ TRANSPORTATION/ AIRCRAFT RESCUE & FIREFIGHTING/ AIR-KF
C172: 161 | Y172: 0 | Z172: 0 | AE172: 0 | AI172: 0 | AJ172: 0 | AK172: 0 | AL172: 0 | AM172: 0 | AN172: 0 | AO172: 0 | BB172: SOH/ ACCOUNTING & GENERAL SERVICES/ UNIFORM ACC & REP BR/ ACCT-1 | BI172: SOH/ EDUCATION/ MILILANI | BN172: SOH/ HUMAN SERVICES/ KAUAI ADULT & COMMUNITY CARE SVCS/ DHS-SSD-KACCS | BP172: SOH/ LABOR & INDUSTRIAL RELATIONS/ LABOR MARKET RES SEC/ DLIR-R&S | BQ172: SOH/ LAND & NATURAL RESOURCES/ MOLOKAI DIST | BS172: SOH/ PUBLIC SAFETY/ LIBRARY UNIT/ HCF | BU172: SOH/ TRANSPORTATION/ AIRPORTS PLANNING OFFICE/ AIR-P
C173: 162 | Y173: 0 | Z173: 0 | AE173: 0 | AI173: 0 | AJ173: 0 | AK173: 0 | AL173: 0 | AM173: 0 | AN173: 0 | AO173: 0 | BB173: SOH/ ACCOUNTING & GENERAL SERVICES/ USER APPLICATIONS BRANCH I/ICSD | BI173: SOH/ EDUCATION/ CIRC SVCS | BN173: SOH/ HUMAN SERVICES/ NURSING HOME WITHOUT WALLS UNIT/ DHS-SSD-KACCS | BP173: SOH/ LABOR & INDUSTRIAL RELATIONS/ LABOR FORCE SECTION/ DLIR-R&S | BQ173: SOH/ LAND & NATURAL RESOURCES/ LANAI DIST | BS173: SOH/ PUBLIC SAFETY/ RECREATION UNIT/ HCF | BU173: SOH/ TRANSPORTATION/ MASTER PLANNING STAFF/ AIR-PA
C174: 163 | Y174: 0 | Z174: 0 | AE174: 0 | AI174: 0 | AJ174: 0 | AK174: 0 | AL174: 0 | AM174: 0 | AN174: 0 | AO174: 0 | BB174: SOH/ ACCOUNTING & GENERAL SERVICES/ USER APPLICATIONS BRANCH II/ICSD | BI174: SOH/ EDUCATION/ PEARL CITY | BN174: SOH/ HUMAN SERVICES/ MAUI/MOLOKAI/LANAI ADULT & COM CARE/ DHS-SSD-MACCS | BP174: SOH/ LABOR & INDUSTRIAL RELATIONS/ CAREER INFO DELIVERY SYSTEM SEC/ DLIR-R&S | BQ174: SOH/ LAND & NATURAL RESOURCES/ KAUAI BRANCH/ IKA | BS174: SOH/ PUBLIC SAFETY/ VOLUNTEER SERVICES UNIT/ HCF | BU174: SOH/ TRANSPORTATION/ CIP STAFF/ AIR
C175: 164 | Y175: 0 | Z175: 0 | AE175: 0 | AI175: 0 | AJ175: 0 | AK175: 0 | AL175: 0 | AM175: 0 | AN175: 0 | AO175: 0 | BB175: SOH/ ACCOUNTING & GENERAL SERVICES/ USER APPLICATIONS BRANCH III/ICSD | BI175: SOH/ EDUCATION/ CIRC SVCS | BN175: SOH/ HUMAN SERVICES/ NURSING HOME WITHOUT WALLS UNIT/ DHS-SSD-MACCS | BP175: SOH/ LABOR & INDUSTRIAL RELATIONS/ CLERICAL SERVICES/ DLIR-R&S | BQ175: SOH/ LAND & NATURAL RESOURCES/ EAST KAUAI DIST | BS175: SOH/ PUBLIC SAFETY/ CORRECTIONAL INDUSTRIES/ HCF | BU175: SOH/ TRANSPORTATION/ DEVELOPMENT & MARKETING STAFF/ AIR-PD
C176: 165 | Y176: 0 | Z176: 0 | AE176: 0 | AI176: 0 | AJ176: 0 | AK176: 0 | AL176: 0 | AM176: 0 | AN176: 0 | AO176: 0 | BB176: SOH/ ACCOUNTING & GENERAL SERVICES/ USER APPLICATIONS SEC III-A/ICSD | BI176: SOH/ EDUCATION/ CHILDRENS SVCS | BN176: SOH/ HUMAN SERVICES/ MOLOKAI UNIT/ DHS-SSD-MACCS | BP176: SOH/ LABOR & INDUSTRIAL RELATIONS/ OPERATIONS MGMT INFO STAFF/ DLIR-R&S | BQ176: SOH/ LAND & NATURAL RESOURCES/ WEST KAUAI DIST | BS176: SOH/ PUBLIC SAFETY/ CLERICAL SUPPORT STAFF/ HCF | BU176: SOH/ TRANSPORTATION/ ENVIRONMENTAL STAFF/ AIR-PE
C177: 166 | Y177: 0 | Z177: 0 | AE177: 0 | AI177: 0 | AJ177: 0 | AK177: 0 | AL177: 0 | AM177: 0 | AN177: 0 | AO177: 0 | BB177: SOH/ ACCOUNTING & GENERAL SERVICES/ USER APPLICATIONS SEC III-B/ICSD | BI177: SOH/ EDUCATION/ BOOKMOBILE SVCS | BN177: SOH/ HUMAN SERVICES/ CHILD WELFARE SERVICES BRANCH/ DHS-CWS | BP177: SOH/ LABOR & INDUSTRIAL RELATIONS/ OFFICE OF COMMUNITY SERVICES/ DLIR-OCS | BQ177: SOH/ LAND & NATURAL RESOURCES/ OAHU BRANCH/ IOA | BS177: SOH/ PUBLIC SAFETY/ OFFICE SERVICES STAFF/ HCF | BU177: SOH/ TRANSPORTATION/ STATISTICAL STAFF/ AIR-PS
C178: 167 | Y178: 0 | Z178: 0 | AE178: 0 | AI178: 0 | AJ178: 0 | AK178: 0 | AL178: 0 | AM178: 0 | AN178: 0 | AO178: 0 | BB178: SOH/ ACCOUNTING & GENERAL SERVICES/ USER APPLICATIONS SEC III-C/ICSD | BI178: SOH/ EDUCATION/ WAHIAWA | BN178: SOH/ HUMAN SERVICES/ PROGRAM DEVELOPMENT STAFF/ DHS-CWS-PDS | BP178: SOH/ LABOR & INDUSTRIAL RELATIONS/ CLERICAL SERVICES/ DLIR-OCS | BQ178: SOH/ LAND & NATURAL RESOURCES/ MOLOKAI ISLAND BOARD COUNCIL/ JMB | BS178: SOH/ PUBLIC SAFETY/ PRINT SHOP UNIT/ HCF | BU178: SOH/ TRANSPORTATION/ HARBORS DIVISION/ HAR
C179: 168 | Y179: 0 | Z179: 0 | AE179: 0 | AI179: 0 | AJ179: 0 | AK179: 0 | AL179: 0 | AM179: 0 | AN179: 0 | AO179: 0 | BB179: SOH/ ACCOUNTING & GENERAL SERVICES/ USER APPLICATIONS SECTION I-A/ICSD | BI179: SOH/ EDUCATION/ CIRC SVCS | BN179: SOH/ HUMAN SERVICES/ CENTRAL CHILD WELFARE SERVICES SEC/ DHS-CWS-CCWS | BP179: SOH/ LABOR & INDUSTRIAL RELATIONS/ FISCAL STAFF/ DLIR-OCS | BQ179: SOH/ LAND & NATURAL RESOURCES/ HISTORIC PRESERVATION/ JHP | BS179: SOH/ PUBLIC SAFETY/ FURNITURE REPAIR UNIT/ HCF | BU179: SOH/ TRANSPORTATION/ STAFF SERVICES OFFICE/ HAR-S
C180: 169 | Y180: 0 | Z180: 0 | AE180: 0 | AI180: 0 | AJ180: 0 | AK180: 0 | AL180: 0 | AM180: 0 | AN180: 0 | AO180: 0 | BB180: SOH/ ACCOUNTING & GENERAL SERVICES/ USER APPLICATIONS SECTION I-B/ICSD | BI180: SOH/ EDUCATION/ WAIALUA | BN180: SOH/ HUMAN SERVICES/ CENTRAL CHILD WELFARE SVCS UNIT 1/ DHS-CWS-CCWS | BP180: SOH/ LABOR & INDUSTRIAL RELATIONS/ RESEARCH, PLANNING & RESOURCE DEV/ DLIR-OCS | BQ180: SOH/ LAND & NATURAL RESOURCES/ KAUAI ISLAND BOARD COUNCIL/ JKB | BS180: SOH/ PUBLIC SAFETY/ AUTOMOTIVE REPAIR UNIT/ HCF | BU180: SOH/ TRANSPORTATION/ ACCOUNTING STAFF/ HAR-SF
C181: 170 | Y181: 0 | Z181: 0 | AE181: 0 | AI181: 0 | AJ181: 0 | AK181: 0 | AL181: 0 | AM181: 0 | AN181: 0 | AO181: 0 | BB181: SOH/ ACCOUNTING & GENERAL SERVICES/ USER APPLICATIONS SECTION I-C/ICSD | BI181: SOH/ EDUCATION/ WAIANAE | BN181: SOH/ HUMAN SERVICES/ CENTRAL CHILD WELFARE SVCS UNIT 2/ DHS-CWS-CCWS | BP181: SOH/ LABOR & INDUSTRIAL RELATIONS/ PROGRAM ADMIN & EVAL STAFF/ DLIR-OCS | BQ181: SOH/ LAND & NATURAL RESOURCES/ MAUI/LANAI ISLANDS BOARD COUNCIL/ JLB | BS181: SOH/ PUBLIC SAFETY/ JANITORIAL SUPPLIES/ HCF | BU181: SOH/ TRANSPORTATION/ ACCOUNTING UNIT
C182: 171 | Y182: 0 | Z182: 0 | AE182: 0 | AI182: 0 | AJ182: 0 | AK182: 0 | AL182: 0 | AM182: 0 | AN182: 0 | AO182: 0 | BB182: SOH/ ACCOUNTING & GENERAL SERVICES/ USER APPLICATIONS SECTION I-D/ICSD | BI182: SOH/ EDUCATION/ CIRC SVCS | BN182: SOH/ HUMAN SERVICES/ CENTRAL CHILD WELFARE SVCS UNIT 3/ DHS-CWS-CCWS | BP182: SOH/ LABOR & INDUSTRIAL RELATIONS/ DISABILITY COMP DIV/ DLIR-DCD | BQ182: SOH/ LAND & NATURAL RESOURCES/ OAHU ISLAND BOARD COUNCIL/ JOB | BS182: SOH/ PUBLIC SAFETY/ CLOTHING REPAIR UNIT/ HCF | BU182: SOH/ TRANSPORTATION/ FISCAL SERVICES UNIT
C183: 172 | Y183: 0 | Z183: 0 | AE183: 0 | AI183: 0 | AJ183: 0 | AK183: 0 | AL183: 0 | AM183: 0 | AN183: 0 | AO183: 0 | BB183: SOH/ ACCOUNTING & GENERAL SERVICES/ USER APPLICATIONS SECTION II-A/ICSD | BI183: SOH/ EDUCATION/ WAIPAHU | BN183: SOH/ HUMAN SERVICES/ CENTRAL PERMANENCY UNIT/ DHS-CWS-CCWS | BP183: SOH/ LABOR & INDUSTRIAL RELATIONS/ DISABILITY COMP DIV/ DLIR-DCD-Adm | BQ183: SOH/ LAND & NATURAL RESOURCES/ HAWAII ISLAND BOARD COUNCIL/ JHB | BS183: SOH/ PUBLIC SAFETY/ OPERATING SERVICES SECTION/ HCF | BU183: SOH/ TRANSPORTATION/ AUDIT SECTION
C184: 173 | Y184: 0 | Z184: 0 | AE184: 0 | AI184: 0 | AJ184: 0 | AK184: 0 | AL184: 0 | AM184: 0 | AN184: 0 | AO184: 0 | BB184: SOH/ ACCOUNTING & GENERAL SERVICES/ USER APPLICATIONS SECTION II-B/ICSD | BI184: SOH/ EDUCATION/ SALT LAKE/MOANALUA | BN184: SOH/ HUMAN SERVICES/ DIAMOND HEAD CHILD WELFARE SERVICES/ DHS-CWS-DHCWS | BP184: SOH/ LABOR & INDUSTRIAL RELATIONS/ DISABILITY COMP DIV/ DLIR-DCD-CSU | BQ184: SOH/ LAND & NATURAL RESOURCES/ BOATING & OCEAN RECREATION DIVISION | BS184: SOH/ PUBLIC SAFETY/ OFFICE SERVICES STAFF/ HCF | BU184: SOH/ TRANSPORTATION/ PERSONNEL MGMT STAFF/ HAR-SP
C185: 174 | Y185: 0 | Z185: 0 | AE185: 0 | AI185: 0 | AJ185: 0 | AK185: 0 | AL185: 0 | AM185: 0 | AN185: 0 | AO185: 0 | BB185: SOH/ ACCOUNTING & GENERAL SERVICES/ USER APPLICATIONS SECTION II-C/ICSD | BI185: SOH/ EDUCATION/ CIRC SVCS | BN185: SOH/ HUMAN SERVICES/ DIAMOND HEAD CHILD WELF SVCS UNIT 1/ DHS-CWS-DHCWS | BP185: SOH/ LABOR & INDUSTRIAL RELATIONS/ DISABILITY COMP DIV/ DLIR-DCD-Hrgs | BQ185: SOH/ LAND & NATURAL RESOURCES/ STAFF SVCS OFC | BS185: SOH/ PUBLIC SAFETY/ CONSTRUCTION & MAINTENANCE UNIT/ HCF | BU185: SOH/ TRANSPORTATION/ PROPERTY MGMT STAFF/ HAR-PM
C186: 175 | Y186: 0 | Z186: 0 | AE186: 0 | AI186: 0 | AJ186: 0 | AK186: 0 | AL186: 0 | AM186: 0 | AN186: 0 | AO186: 0 | BB186: SOH/ ACCOUNTING & GENERAL SERVICES/ WEST HAWAII STUDENT TRANSP/ HAW-9 | BI186: SOH/ EDUCATION/ CHILDRENS SVCS | BN186: SOH/ HUMAN SERVICES/ DIAMOND HEAD CHILD WELF SVCS UNIT 2/ DHS-CWS-DHCWS | BP186: SOH/ LABOR & INDUSTRIAL RELATIONS/ DISABILITY COMP DIV/ DLIR-DCD-PAB | BQ186: SOH/ LAND & NATURAL RESOURCES/ PROG SVCS STAFF | BS186: SOH/ PUBLIC SAFETY/ GROUNDS UNIT/ HCF | BU186: SOH/ TRANSPORTATION/ OFFICE SERVICES STAFF/ HAR-SO
C187: 176 | Y187: 0 | Z187: 0 | AE187: 0 | AI187: 0 | AJ187: 0 | AK187: 0 | AL187: 0 | AM187: 0 | AN187: 0 | AO187: 0 | BB187: SOH/ ACCOUNTING & GENERAL SERVICES/ WEST KAUAI SECTION/ KAU-4 | BI187: SOH/ EDUCATION/ YOUNG ADULT SVCS | BN187: SOH/ HUMAN SERVICES/ DIAMOND HEAD CHILD WELF SVCS UNIT 3/ DHS-CWS-DHCWS | BP187: SOH/ LABOR & INDUSTRIAL RELATIONS/ DISABILITY COMP DIV/ DLIR-DCD-R&C | BQ187: SOH/ LAND & NATURAL RESOURCES/ BOATING REG SEC | BS187: SOH/ PUBLIC SAFETY/ JANITORIAL UNIT/ HCF | BU187: SOH/ TRANSPORTATION/ MGMT, BUDGET & ANALYSIS STAFF
C188: 177 | Y188: 0 | Z188: 0 | AE188: 0 | AI188: 0 | AJ188: 0 | AK188: 0 | AL188: 0 | AM188: 0 | AN188: 0 | AO188: 0 | BB188: SOH/ ACCOUNTING & GENERAL SERVICES/ WINDWARD OAHU SEC/ CSD-4 | BI188: SOH/ EDUCATION/ HAWAII LIBRARY DIST | BN188: SOH/ HUMAN SERVICES/ DIAMOND HEAD PERMANENCY UNIT/ DHS-CWS-DHCWS | BP188: SOH/ LABOR & INDUSTRIAL RELATIONS/ DISABILITY COMP DIV/ DLIR-DCD-Ins | BQ188: SOH/ LAND & NATURAL RESOURCES/ PERS STAFF | BS188: SOH/ PUBLIC SAFETY/ LAUNDRY UNIT/ HCF | BU188: SOH/ TRANSPORTATION/ MGMT INFO SYSTEMS STAFF
C189: 178 | Y189: 0 | Z189: 0 | AE189: 0 | AI189: 0 | AJ189: 0 | AK189: 0 | AL189: 0 | AM189: 0 | AN189: 0 | AO189: 0 | BB189: SOH/ ACCOUNTING & GENERAL SERVICES/ WIRELESS ENHANCED 911 BOARD | BI189: SOH/ EDUCATION/ ADMINISTRATION | BN189: SOH/ HUMAN SERVICES/ LEEWARD CHILD WELFARE SERVICES/ DHS-CWS-LCWS | BP189: SOH/ LABOR & INDUSTRIAL RELATIONS/ DISABILITY COMP DIV/ DLIR-DCD-Fac | BQ189: SOH/ LAND & NATURAL RESOURCES/ PROP MGT & REV ENH ST | BS189: SOH/ PUBLIC SAFETY/ FOOD SERVICE UNIT/ HCF | BU189: SOH/ TRANSPORTATION/ ENGINEERING BRANCH/ HAR-E
C190: 179 | Y190: 0 | Z190: 0 | AE190: 0 | AI190: 0 | AJ190: 0 | AK190: 0 | AL190: 0 | AM190: 0 | AN190: 0 | AO190: 0 | BI190: SOH/ EDUCATION/ MT VIEW PUB/SCH | BN190: SOH/ HUMAN SERVICES/ LEEWARD CHILD WELFARE SVCS UNIT 1/ DHS-CWS-LCWS | BP190: SOH/ LABOR & INDUSTRIAL RELATIONS/ DISABILITY COMP DIV/ DLIR-DCD-VR | BQ190: SOH/ LAND & NATURAL RESOURCES/ FISCAL STAFF | BS190: SOH/ PUBLIC SAFETY/ SECURITY SECTION/ HCF | BU190: SOH/ TRANSPORTATION/ PLANNING SECTION/ HAR-EP
C191: 180 | Y191: 0 | Z191: 0 | AE191: 0 | AI191: 0 | AJ191: 0 | AK191: 0 | AL191: 0 | AM191: 0 | AN191: 0 | AO191: 0 | BI191: SOH/ EDUCATION/ KEEAU PUB/SCH | BN191: SOH/ HUMAN SERVICES/ LEEWARD CHILD WELFARE SVCS UNIT 2/ DHS-CWS-LCWS | BP191: SOH/ LABOR & INDUSTRIAL RELATIONS/ DISABILITY COMP DIV/ DLIR-DCD-CRev | BQ191: SOH/ LAND & NATURAL RESOURCES/ OPER OFC | BS191: SOH/ PUBLIC SAFETY/ CLERICAL SUPPORT STAFF/ HCF | BU191: SOH/ TRANSPORTATION/ PLANNING UNIT
C192: 181 | Y192: 0 | Z192: 0 | AE192: 0 | AI192: 0 | AJ192: 0 | AK192: 0 | AL192: 0 | AM192: 0 | AN192: 0 | AO192: 0 | BI192: SOH/ EDUCATION/ CIRC SEC | BN192: SOH/ HUMAN SERVICES/ LEEWARD CHILD WELFARE SVCS UNIT 3/ DHS-CWS-LCWS | BP192: SOH/ LABOR & INDUSTRIAL RELATIONS/ DISABILITY COMP DIV/ DLIR-DCD-Aud | BQ192: SOH/ LAND & NATURAL RESOURCES/ ENGRG BR | BS192: SOH/ PUBLIC SAFETY/ SECURITY SUPPORT STAFF/ HCF | BU192: SOH/ TRANSPORTATION/ ENGINEERING UNIT
C193: 182 | Y193: 0 | Z193: 0 | AE193: 0 | AI193: 0 | AJ193: 0 | AK193: 0 | AL193: 0 | AM193: 0 | AN193: 0 | AO193: 0 | BI193: SOH/ EDUCATION/ T PARKER MEMO PUB/SCH | BN193: SOH/ HUMAN SERVICES/ LEEWARD PERMANENCY UNIT/ DHS-CWS-LCWS | BP193: SOH/ LABOR & INDUSTRIAL RELATIONS/ DISABILITY COMP DIV/ DLIR-DCD-Inv | BQ193: SOH/ LAND & NATURAL RESOURCES/ OAHU DIST BOATING BR | BS193: SOH/ PUBLIC SAFETY/ OPERATIONS UNIT/ HCF | BU193: SOH/ TRANSPORTATION/ DESIGN SECTION/ HAR-ED
C194: 183 | Y194: 0 | Z194: 0 | AE194: 0 | AI194: 0 | AJ194: 0 | AK194: 0 | AL194: 0 | AM194: 0 | AN194: 0 | AO194: 0 | BI194: SOH/ EDUCATION/ CIRC SEC | BN194: SOH/ HUMAN SERVICES/ STATEWIDE CHILD WELFARE SERVICES/ DHS-CWS-SCWS | BP194: SOH/ LABOR & INDUSTRIAL RELATIONS/ LABOR & IND REL APPEALS BOARD/ DLIR-AB | BQ194: SOH/ LAND & NATURAL RESOURCES/ ALA WAI SEC | BS194: SOH/ PUBLIC SAFETY/ KULANI CORRECTIONAL FACILITY/ KCF | BU194: SOH/ TRANSPORTATION/ DESIGN UNIT I
C195: 184 | Y195: 0 | Z195: 0 | AE195: 0 | AI195: 0 | AJ195: 0 | AK195: 0 | AL195: 0 | AM195: 0 | AN195: 0 | AO195: 0 | BI195: SOH/ EDUCATION/ PAHOA PUB/SCH | BN195: SOH/ HUMAN SERVICES/ CHILD WELFARE SERVICES INTAKE UNIT/ DHS-CWS-SCWS | BP195: SOH/ LABOR & INDUSTRIAL RELATIONS/ HAWAII LABOR RELATIONS BOARD/ DLIR-HLRB | BQ195: SOH/ LAND & NATURAL RESOURCES/ BOATING/FAC OPER UT | BS195: SOH/ PUBLIC SAFETY/ OFFICE SERVICES STAFF/ KCF | BU195: SOH/ TRANSPORTATION/ DESIGN UNIT II
C196: 185 | Y196: 0 | Z196: 0 | AE196: 0 | AI196: 0 | AJ196: 0 | AK196: 0 | AL196: 0 | AM196: 0 | AN196: 0 | AO196: 0 | BI196: SOH/ EDUCATION/ PAHALA PUB/SCH | BN196: SOH/ HUMAN SERVICES/ FOSTER CARE-INCOME MAINTENANCE UNIT/ DHS-CWS-SCWS | BP196: SOH/ LABOR & INDUSTRIAL RELATIONS/ WORKFORCE DEVELOPMENT COUNCIL/ DLIR-WDC | BQ196: SOH/ LAND & NATURAL RESOURCES/ CLER SVCS UNIT | BS196: SOH/ PUBLIC SAFETY/ HEALTH CARE SERVICES SECTION/ KCF | BU196: SOH/ TRANSPORTATION/ DESIGN UNIT III
C197: 186 | Y197: 0 | Z197: 0 | AE197: 0 | AI197: 0 | AJ197: 0 | AK197: 0 | AL197: 0 | AM197: 0 | AN197: 0 | AO197: 0 | BI197: SOH/ EDUCATION/ NAALEHU | BN197: SOH/ HUMAN SERVICES/ HOME-BASED SUPPORT SERVICES UNIT/ DHS-CWS-SCWS | BP197: SOH/ LABOR & INDUSTRIAL RELATIONS/ CLERICAL SERVICES | BQ197: SOH/ LAND & NATURAL RESOURCES/ KEEHI SEC | BS197: SOH/ PUBLIC SAFETY/ OFFENDER SERVICES SECTION/ KCF | BU197: SOH/ TRANSPORTATION/ CONSTRUCTION SECTION/ HAR-EC
C198: 187 | Y198: 0 | Z198: 0 | AE198: 0 | AI198: 0 | AJ198: 0 | AK198: 0 | AL198: 0 | AM198: 0 | AN198: 0 | AO198: 0 | BI198: SOH/ EDUCATION/ LAUPAHOEHOE PUB/SCH | BN198: SOH/ HUMAN SERVICES/ OAHU SPECIAL CHILD WELFARE SERVICES/ DHS-CWS-OSCWS | BP198: SOH/ LABOR & INDUSTRIAL RELATIONS/ WORKFORCE SYS OVERSIGHT & EVAL/ DLIR-WDC | BQ198: SOH/ LAND & NATURAL RESOURCES/ BOATING/FAC OPER UT | BS198: SOH/ PUBLIC SAFETY/ EDUCATION UNIT/ KCF | BU198: SOH/ TRANSPORTATION/ MAINTENANCE SECTION/ HAR-EM
C199: 188 | Y199: 0 | Z199: 0 | AE199: 0 | AI199: 0 | AJ199: 0 | AK199: 0 | AL199: 0 | AM199: 0 | AN199: 0 | AO199: 0 | BI199: SOH/ EDUCATION/ HONOKAA | BN199: SOH/ HUMAN SERVICES/ OAHU SPECIAL SERVICES ASSESSMENT/ DHS-CWS-OSCWS | BP199: SOH/ LABOR & INDUSTRIAL RELATIONS/ WORKFORCE SYS PLANNING, RES & DEMO/ DLIR-WDC | BQ199: SOH/ LAND & NATURAL RESOURCES/ CLER SVCS UNIT | BS199: SOH/ PUBLIC SAFETY/ SECURITY SECTION/ KCF | BU199: SOH/ TRANSPORTATION/ SYSTEMS STAFF
C200: 189 | Y200: 0 | Z200: 0 | AE200: 0 | AI200: 0 | AJ200: 0 | AK200: 0 | AL200: 0 | AM200: 0 | AN200: 0 | AO200: 0 | BI200: SOH/ EDUCATION/ BOND MEMORIAL | BN200: SOH/ HUMAN SERVICES/ OAHU SPECIAL SERVICES CASE MGMT/ DHS-CWS-OSCWS | BP200: SOH/ LABOR & INDUSTRIAL RELATIONS/ EMP SECURITY APPEALS REF/ DLIR-APL REF | BQ200: SOH/ LAND & NATURAL RESOURCES/ HALEIWA SEC | BS200: SOH/ PUBLIC SAFETY/ OPERATING SERVICES SECTION/ KCF | BU200: SOH/ TRANSPORTATION/ OAHU DISTRICT/ HAR-O
... 811 more rows

Sheet FORM_Log
A1: DEPT. | B1: AGENCY | C1: ALL WRITTEN REQUESTS (Exclude routine requests that are subject to agency's set fees or if no Notice to Requester was sent, e.g., birth certificates, UH transcripts) | K1: COMPLEX REQUESTS (Extenuating Circumstances) | M1: FINAL RESOLUTION OF REQUESTS | V1: SEARCH, REVIEW, SEGREGATION FEES (SRS) (No SRS fees chargeable for personal records requests, but keep track of time) | AF1: COPY/DELIVERY COSTS (Exclude SRS Fees) | AH1: TOTAL FEES AND COSTS (All Requests vs. Complex Requests) | AP1: DAYS TO COMPLETE REQUESTS | AT1: SEARCH, REVIEW & SEGREGATION HOURS INCURRED
A2: A | B2: B | C2: C | D2: D | E2: E | F2: F | G2: G | H2: H | I2: I | J2: J | K2: K | L2: L | M2: M | N2: N | O2: O | P2: P | Q2: Q | R2: R | S2: S | T2: T | U2: U | V2: V | W2: W | X2: X | Y2: Y | Z2: Z | AA2: AA | AB2: AB | AC2: AC | AD2: AD | AE2: AE | AF2: AF | AG2: AG | AH2: AH | AI2: AI | AJ2: AJ | AK2: AK | AL2: AL | AM2: AM | AN2: AN | AO2: AO | AP2: AP | AQ2: AQ | AR2: AR | AS2: AS | AT2: AT | AU2: AU | AV2: AV | AW2: AW | AX2: AX | AY2: AY | AZ2: AZ | BA2: BA
A3: MAUI_COUNTY_FINANCE | B3: MAUI COUNTY/ FINANCE | C3: # | D3: Requester Name or File # | E3: Employee ID | F3: Personal Records Request? | G3: Date Agency Received Request | H3: Date Agency's Notice Was Sent | I3: Agency 's Initial Response Sent Within 10 Work Days | J3: Request Needed Initial Clarification | K3: Complex Request? | L3: Agency Gave Incremental Responses? | M3: Date Completed | N3: # of Workdays to Complete | O3: Request Granted in Full | P3: Request Denied in Full | Q3: Request Denied in Part | R3: Agency Ultimately Unable to Respond | S3: Requester Withdrew | T3: Requester Abandoned or Failed to Pay | U3: UIPA Lawsuit Filed Against Agency? | V3: Actual Search Hours | W3: Actual Review/ Segre- gation Hours | X3: Actual Legal Review Hours | Y3: TOTAL Actual SRS & Legal Review Hours | Z3: TOTAL GROSS SRS Fees Incurred | AA3: Additional Response Fees Incurred But Not Chargeable | AB3: Minus $30 Fee Waiver | AC3: Minus $60 Fee Waiver | AD3: Fees for Personal Records | AE3: TOTAL NET SRS Fees CHARGEABLE | AF3: GROSS Copy/Delivery Costs that Agency INCURRED | AG3: NET Copy/Delivery Costs CHARGEABLE to Requester | AH3: TOTAL Fees & Costs ACTUALLY PAID by Requesters for ALL Requests | AI3: TOTAL NET Fees & Costs CHARGEABLE for ALL Requests | AJ3: TOTAL GROSS Fees & Costs Agency INCURRED for ALL Requests | AK3: TOTAL GROSS Fees & Costs INCURRED BUT NOT CHARGED for ALL Requests | AL3: TOTAL NET Fees & Costs ACTUALLY PAID for COMPLEX Requests | AM3: TOTAL NET Fees & Costs CHARGEABLE for COMPLEX Requests | AN3: TOTAL GROSS Fees & Costs INCURRED for COMPLEX Requests | AO3: TOTAL GROSS Fees & Costs INCURRED BUT NOT CHARGED for COMPLEX Requests | AP3: # of Workdays to Complete ALL Requests | AQ3: # of Workdays to Complete COMPLEX Requests | AR3: # of Workdays to Complete NONCOMPLEX, NONPERSONAL RECORD Requests | AS3: # of Workdays to Complete PERSONAL RECORD Requests | AT3: # of Search Hours Incurred for ALL Requests | AU3: # of Search Hours Incurred for COMPLEX Requests | AV3: # of Search Hours Incurred for NONCOMPLEX, NONPERSONAL RECORD Requests | AW3: # of Search Hours Incurred for PERSONAL RECORD Requests | AX3: # of Review & Segregation Hours Incurred for ALL Requests | AY3: # of Review & Segregation Hours Incurred for COMPLEX Requests | AZ3: # of Review & Segregation Hours Incurred for NONCOMPLEX, NONPERSONAL RECORD Requests | BA3: # of Review & Segregation Hours Incurred for PERSONAL RECORD Requests
A4: Start Log by selecting the department and agency from the drop-down list in boxes immediately above. Do this only once; do not enter data into the highlighted rows below. | D4: Description of data to be entered in each column è | E4: Initials ok | F4: If YES, enter ONLY ONE "x" per cell | G4: Enter ONLY ONE date by month/day/year | I4: If yes, enter ONLY ONE "x" per cell. If more than one "x" or if another symbol is entered in a cell, then data will not be properly counted in the column total amount. | M4: Enter ONLY ONE date by mo/day/year | N4: Automatically Calculated | O4: Check only ONE cell in Columns O thru T. If YES, enter ONLY ONE "x" in the cell. If more than one "x" or if another symbol is entered in a cell, then the data will not be properly counted in the column total amount. Column U may be checked in addition to one of Columns O thru T. | V4: Enter in 15-minute increments as follows: .25 = 15 minutes; .50 = 30 min.; .75 = 45 min.; 1.0 = 1 hour. Use period, not comma, when entering decimals, or amount will not be counted & #VALUE! will show in Col. Y | Y4: Automatically calculated | AA4: Estimate | AB4: Enter as negative numbers. Only one waiver per request. NO fee waivers for personal record requests in purple cells. | AD4: Automatically calculated. Negative number in ($ ) does NOT mean that a refund is due. | AF4: INCLUDE redacted copy costs. Gross should be greater than or equal to net costs. | AG4: EXCLUDE redacted copy costs. Net should be less than or equal to gross costs. | AH4: Enter amount paid by requesters, which may be less than Column AI allows | AI4: Automatically calculated | AP4: Automatically calculated | AT4: Automatically calculated
C5: 0 | D5: Example 1 (typical request) Kimo | E5: AB | G5: 2012-01-17 | I5: x | M5: 2012-01-17 | N5: =IF((NETWORKDAYS(G5,M5)>0),(NETWORKDAYS(G5,M5)),"") -> 1 | O5: x | V5: 0.25 | Y5: =V5+W5+X5 -> 0.25 | Z5: =(V5*10)+(W5*20) -> 2.5 | AB5: -30 | AD5: =IF(F5="x",(0-((V5*10)+(W5*20))),"") ->  | AE5: =IF(F5="x",0,(Z5+AB5+AC5)) -> -27.5 | AF5: 10 | AG5: 10 | AH5: 10 | AI5: =IF(AE5<=0,AG5,AE5+AG5) -> 10 | AJ5: =(X5*20)+Z5+AA5+AF5 -> 12.5 | AK5: =(AJ5-AH5) -> 2.5 | AL5: =IF(K5="x",AH5,0) -> 0 | AM5: =IF(K5="x",AI5,0) -> 0 | AN5: =IF(K5="x",AJ5,0) -> 0 | AO5: =IF(K5="x",AK5,0) -> 0 | AP5: =IF(N5>0,N5,"") -> 1 | AQ5: =IF(AND(K5="x",AP5>0),AP5,"") ->  | AR5: =IF(OR(K5="x",F5="X",AP5<=0),"",AP5) -> 1 | AS5: =IF(AND(F5="x",AP5>0),AP5,"") ->  | AT5: =IF(V5>0,V5,"") -> 0.25 | AU5: =IF(AND(K5="x",AT5>0),AT5,"") ->  | AV5: =IF(OR(K5="x",F5="x",AT5<=0),"",AT5) -> 0.25 | AW5: =IF(AND(F5="x",AT5>0),AT5,"") ->  | AX5: =IF(W5>0,W5,"") ->  | AY5: =IF(AND(K5="x",AX5>0),AX5,"") ->  | AZ5: =IF(OR(K5="x",F5="x",AX5<=0),"",AX5) ->  | BA5: =IF(AND(F5="x",AX5>0),AX5,"") -> 
C6: 00 | D6: Example 2 (personal record) Lee | E6: AB | F6: x | G6: 2012-01-18 | H6: 2012-02-10 | M6: 2012-02-10 | N6: =IF((NETWORKDAYS(G6,M6)>0),(NETWORKDAYS(G6,M6)),"") -> 18 | P6: x | V6: 0.5 | W6: 0.25 | Y6: =V6+W6+X6 -> 0.75 | Z6: =(V6*10)+(W6*20) -> 10 | AD6: =IF(F6="x",(0-((V6*10)+(W6*20))),"") -> -10 | AE6: =IF(F6="x",0,(Z6+AB6+AC6)) -> 0 | AF6: 15 | AG6: 5 | AH6: 5 | AI6: =IF(AE6<=0,AG6,AE6+AG6) -> 5 | AJ6: =(X6*20)+Z6+AA6+AF6 -> 25 | AK6: 20 | AL6: =IF(K6="x",AH6,0) -> 0 | AM6: =IF(K6="x",AI6,0) -> 0 | AN6: =IF(K6="x",AJ6,0) -> 0 | AO6: =IF(K6="x",AK6,0) -> 0 | AP6: =IF(N6>0,N6,"") -> 18 | AQ6: =IF(AND(K6="x",AP6>0),AP6,"") ->  | AR6: =IF(OR(K6="x",F6="X",AP6<=0),"",AP6) ->  | AS6: =IF(AND(F6="x",AP6>0),AP6,"") -> 18 | AT6: =IF(V6>0,V6,"") -> 0.5 | AV6: =IF(OR(K6="x",F6="x",AT6<=0),"",AT6) ->  | AW6: =IF(AND(F6="x",AT6>0),AT6,"") -> 0.5 | AX6: 0.25 | AY6: =IF(AND(K6="x",AX6>0),AX6,"") ->  | AZ6: =IF(OR(K6="x",F6="x",AX6<=0),"",AX6) ->  | BA6: =IF(AND(F6="x",AX6>=0),AX6,"") -> 0.25
C7: 000 | D7: Example 3 (not personal record) Anonymous birther | E7: AB | G7: 2012-01-19 | H7: 2012-01-22 | I7: x | M7: 2012-02-17 | N7: 22 | T7: x | V7: 0.75 | W7: 3 | Y7: =V7+W7+X7 -> 3.75 | Z7: =(V7*10)+(W7*20) -> 67.5 | AB7: -30 | AE7: 37.5 | AF7: 0 | AG7: 0 | AH7: 0 | AI7: 37.5 | AJ7: =(X7*20)+Z7+AA7+AF7 -> 67.5 | AK7: 67.5 | AL7: 0 | AM7: 0 | AN7: 0 | AO7: 0 | AP7: 22 | AQ7: =IF(AND(K7="x",AP7>0),AP7,"") ->  | AR7: 22 | AT7: 0.75 | AV7: 0.75 | AX7: 3 | AY7: =IF(AND(K7="x",AX7>0),AX7,"") ->  | AZ7: 3
C8: 0000 | D8: Example 4 (complex request) Honolulu News | E8: CD | G8: 2012-01-23 | H8: 2012-02-17 | I8: x | J8: x | K8: x | L8: x | M8: 2012-05-17 | N8: 84 | Q8: x | U8: x | V8: 95 | W8: 20.5 | X8: 15.5 | Y8: =V8+W8+X8 -> 131 | Z8: =(V8*10)+(W8*20) -> 1360 | AA8: 5000 | AC8: -60 | AE8: 1300 | AF8: 45 | AG8: 20 | AH8: 1315 | AI8: 1320 | AJ8: =(X8*20)+Z8+AA8+AF8 -> 6715 | AK8: =(AJ8-AH8) -> 5400 | AL8: 1315 | AM8: 1320 | AN8: 6715 | AO8: 5400 | AP8: 84 | AQ8: =IF(AND(K8="x",AP8>0),AP8,"") -> 84 | AT8: =IF(V8>0,V8,"") -> 95 | AU8: =IF(AND(K8="x",AT8>0),AT8,"") -> 95 | AX8: 20.5 | AY8: =IF(AND(K8="x",AX8>0),AX8,"") -> 20.5
C9: # of requests | D9: Description of "Totals" è | E9: Initials ok | F9: # of personal records | G9: # of requests | H9: # of notices sent (exclude Acknowledg-ments) | I9: # of Notices, Acknowledg-ments, or completions w/in 10 workdays | J9: # needed initial clarification | K9: # of complex requests | L9: # of requests with incremental responses | M9: # of completed requests | N9: # of workdays to complete ALL requests | O9: # granted | P9: # denied due to exception | Q9: # partially denied due to exception | R9: # agency unable to respond - no record or summary | S9: # withdrawn by requester | T9: # abandoned by requester or no payment | U9: # of lawsuits | V9: # of search hours | W9: # of review & segregation hours | X9: # of non-chargeable legal hours | Y9: # of SRS + legal hours | Z9: SRS gross fees incurred; excludes nonchargeable personal records | AA9: Nonchargeable addt'l fees | AB9: # of $30 waivers; no fractions | AC9: # of $60 waivers; no fractions | AD9: Nonchargeable PERSONAL records fees; NO positive $ | AE9: Net SRS fees chargeable; excludes negative $, legal review, personal records $ | AF9: Gross copy/delivery $ incurred | AG9: Net copy/delivery $ chargeable | AH9: $ actually paid by requesters | AI9: Net $ chargeable for ALL requests; excludes personal records | AJ9: Gross $ incurred for ALL requests; excludes personal records $, includes gross copy $ | AK9: $ unrecoverable for ALL requests | AL9: $ actually paid for complex requests | AM9: Net $ chargeable for complex requests | AN9: Gross $ incurred for complex requests | AO9: $ unrecoverable for complex requests | AP9: # of days to complete; ALL requests | AQ9: Days to complete; COMPLEX requests only | AR9: Days to complete; NONCOMPLEX requests | AS9: Days to complete; PERSONAL RECORD requests | AT9: Search hours; ALL requests | AU9: Search hours; COMPLEX requests | AV9: Search hours; NONCOMPLEX, NONPERSONAL RECORD requests | AW9: Search hours; PERSONAL RECORD requests | AX9: Review & segregation hours; ALL requests | AY9: Review & segregation hours; COMPLEX requests | AZ9: Review & segregation hours; NONCOMPLEX, NONPERSONAL RECORD requests | BA9: Review & segregation hours; PERSONAL RECORD requests
A10: =A3 -> MAUI_COUNTY_FINANCE | B10: =B3 -> MAUI COUNTY/ FINANCE | C10: =COUNTA(D12:D1008) -> 8 | D10: TOTALS to upload è | F10: =COUNTIF(F12:F1008,"x") -> 0 | G10: =COUNTA(G12:G1008)-(COUNTA(G12:G1008)-COUNT(G12:G1008)) -> 8 | H10: =COUNTA(H12:H1008)-(COUNTA(H12:H1008)-COUNT(H12:H1008)) -> 8 | I10: =COUNTIF(I12:I1008,"x") -> 7 | J10: =COUNTIF(J12:J1008,"x") -> 1 | K10: =COUNTIF(K12:K1008,"x") -> 0 | L10: =COUNTIF(L12:L1008,"x") -> 0 | M10: =COUNTA(M12:M1008) -> 8 | N10: =SUM(AP12:AP1008) -> 102 | O10: =COUNTIF(O12:O1008,"x") -> 4 | P10: 1 | Q10: 2 | R10: 2 | S10: 0 | T10: 0 | U10: 0 | V10: =SUM(V12:V1008) -> 7.5 | W10: 52.5 | X10: 2.25 | Y10: 14.25 | Z10: 1095 | AA10: 0 | AB10: =COUNTIF(AB12:AB1008,-30) -> 3 | AC10: =COUNTIF(AC12:AC1008,-60) -> 0 | AD10: =SUMIF(AD12:AD1008,"<0") -> 0 | AE10: =SUMIF(AE12:AE1008,">0") -> 930 | AF10: 41.35 | AG10: 0.94 | AH10: 1006.89 | AI10: 930.94 | AJ10: 1181.35 | AK10: 181.06 | AL10: 0 | AM10: 0 | AN10: 0 | AO10: 0 | AP10: 102 | AQ10: 0 | AR10: 102 | AS10: 0 | AT10: 7.5 | AU10: 0 | AV10: 7.5 | AW10: 0 | AX10: 52.5 | AY10: 0 | AZ10: 52.5 | BA10: 0
D11: AVERAGES è | N11: =N10/M10 -> 12.75 | V11: =AVERAGEIF(V12:V1008,"<>0") -> 1.875 | W11: 10.5 | X11: 1.125 | Y11: 3.5625 | Z11: 219 | AD11: =AVERAGEIF(AD12:AD1008,"<0") ->  | AE11: =AVERAGEIF(AE12:AE1008,">0") -> 930 | AF11: 8.27 | AG11: 0.47 | AH11: 335.63 | AI11: 310.3133333 | AJ11: 236.27 | AK11: 45.265 | AP11: 12.75 | AR11: 12.75 | AT11: 1.875 | AV11: 1.875 | AX11: 10.5 | AZ11: 10.5
C12: 4 | D12: Deanne Lescisin | E12: RB | G12: 2017-02-18 | H12: 2017-02-27 | I12: x | M12: 2017-02-27 | N12: =IF((NETWORKDAYS(G12,M12)>0),(NETWORKDAYS(G12,M12)),"") -> 6 | Q12: x | Y12: =V12+W12+X12 -> 0 | Z12: =IF((F12="x"),0,((V12*10)+(W12*20))) -> 0 | AD12: =IF(F12="x",(0-((V12*10)+(W12*20))),"") ->  | AE12: =IF(F12="x",0,(Z12+AB12+AC12)) -> 0 | AI12: =IF(AE12<=0,AG12,AE12+AG12) -> 0 | AJ12: =(X12*20)+Z12+AA12+AF12 -> 0 | AK12: =AJ12-AH12 -> 0 | AL12: =IF(K12="x",AH12,0) -> 0 | AM12: =IF(K12="x",AI12,0) -> 0 | AN12: =IF(K12="x",AJ12,0) -> 0 | AO12: =IF(K12="x",AK12,0) -> 0 | AP12: =IF(N12>0,N12,"") -> 6 | AQ12: =IF(AND(K12="x",AP12>0),AP12,"") ->  | AR12: =IF(OR(K12="x",F12="x",AP12<=0),"",AP12) -> 6 | AS12: =IF(AND(F12="x",AP12>0),AP12,"") ->  | AT12: =IF(V12>0,V12,"") ->  | AU12: =IF(AND(K12="x",AT12>0),AT12,"") ->  | AV12: =IF(OR(K12="x",F12="X",AT12<=0),"",AT12) ->  | AW12: =IF(AND(F12="x",AT12>0),AT12,"") ->  | AX12: =IF(W12>0,W12,"") ->  | AY12: =IF(AND(K12="x",AX12>0),AX12,"") ->  | AZ12: =IF(OR(K12="x",F12="x",AX12<=0),"",AX12) ->  | BA12: =IF(AND(F12="x",AX12>0),AX12,"") ->  | BB12: SOH/ ACCOUNTING & GENERAL SERVICES/ ADM SERVICES OFFICE/ ASO-0 | BC12: SOH/ AGRICULTURE/ ADMINISTRATIVE SERVICES/ ARMDA | BD12: SOH/ ATTORNEY GENERAL/ CHILD SUPPORT HEARINGS/ CSH | BE12: SOH/ BUDGET & FINANCE/ ADMINISTRATIVE RESEARCH STAFF | BF12: SOH/ BUSINESS, ECON DEV, & TOURISM/ ALTERNATE ENERGY BRANCH | BG12: SOH/ COMMERCE & CONSUMER AFFAIRS/ ADMINISTRATION/ DCCA-BREG-ADM | BH12: SOH/ DEFENSE/ 150 AIRCRAFT CNTRL & WARNING SQDRN/ 150 ACWS/CC | BI12: SOH/ EDUCATION/ OFFICE OF THE SUPT/ SUPT | BJ12: SOH/ GOVERNORS OFFICE/ BUSINESS SERVICES | BK12: SOH/ HAWAIIAN HOME LANDS/ OFFICE OF THE CHAIRMAN | BL12: SOH/ HEALTH/ DO/ COMMUNICATION OFFICE | BM12: SOH/ HUMAN RESOURCES DEVELOPMENT/ EMPLOYEE CLAIMS DIV/ DRHD-ECD | BN12: SOH/ HUMAN SERVICES/ FISCAL MANAGEMENT OFFICE/ DHS-FMO | BO12: SOH/ JUDICIARY/ DEPUTY DIRECTOR | BP12: SOH/ LABOR & INDUSTRIAL RELATIONS/ PERSONNEL OFFICE/ DLIR-PO | BQ12: SOH/ LAND & NATURAL RESOURCES/ BOARD OF LAND & NATURAL RESOURCES/ ABO | BR12: SOH/ LT GOVERNORS OFFICE/ OFFICE OF INFORMATION PRACTICES/ OIP | BS12: SOH/ PUBLIC SAFETY/ EXECUTIVE ASSISTANT/ DIR-E | BT12: SOH/ TAXATION/ ADM SERV OFF | BU12: SOH/ TRANSPORTATION/ EXEC ASSISTANT/ DIR-EA | BV12: SOH/ UNIVERSITY OF HAWAII/ RESEARCH CORP OF THE UNIV OF HAWAII/ UH/RCUH | BX12: SOH/ HAWAII HEALTH SYSTEMS CORPORATION/ WEST HAWAII REGION | EI12: CC HONOLULU/ BUDGET AND FISCAL SERVICES/ ACCOUNTING AND FISCAL SERVICES DIV | FQ12: SOH/ LEGISLATURE/ AUDITOR
C13: 5 | D13: Kathleen Wright | E13: ST | G13: 2017-03-13 | H13: 2017-03-28 | I13: X | M13: 2017-03-28 | N13: 12 | O13: X | V13: 2 | W13: 1 | Y13: 3 | Z13: =IF((F13="x"),0,((V13*10)+(W13*20))) -> 40 | AB13: -60 | AD13: =IF(F13="x",(0-((V13*10)+(W13*20))),"") ->  | AE13: -20 | AF13: 0.7 | AH13: 0 | AI13: 0 | AJ13: 40.7 | AK13: 40.7 | AL13: 0 | AM13: 0 | AN13: 0 | AO13: 0 | AP13: 12 | AR13: 12 | AT13: 2 | AV13: =IF(OR(K13="x",F13="X",AT13<=0),"",AT13) -> 2 | AX13: 1 | AZ13: 1 | BB13: SOH/ ACCOUNTING & GENERAL SERVICES/ APPLICATIONS DEV TECH SUPP OFC/ICSD | BC13: SOH/ AGRICULTURE/ ADMINISTRATIVE SVCS/ AGLNADM | BD13: SOH/ ATTORNEY GENERAL/ CIVIL RECOVERIES - ASBESTOS | BE13: SOH/ BUDGET & FINANCE/ ANALYTIC STAFF | BF13: SOH/ BUSINESS, ECON DEV, & TOURISM/ BUS DEVELOPMENT & MARKET DIV/ BD&M | BG13: SOH/ COMMERCE & CONSUMER AFFAIRS/ ADMINISTRATION/ DCCA-DIR-ADM | BH13: SOH/ DEFENSE/ 154 TACTICAL CNTRL SQDRN (BRKG SND)/ 154 TCS/CC | BI13: SOH/ EDUCATION/ MGMT ANALYSIS & COMPL | BJ13: SOH/ GOVERNORS OFFICE/ CAPITOL TOUR PROGRAM | BK13: SOH/ HAWAIIAN HOME LANDS/ PLANNING OFFICE | BL13: SOH/ HEALTH/ DO/ DISABILITY & COMMUNICTN ACCESS BD | BM13: SOH/ HUMAN RESOURCES DEVELOPMENT/ EMPLOYEE CLASS & COMPENSATION DIV/ DHRD-ECCD | BN13: SOH/ HUMAN SERVICES/ ACCOUNTING STAFF/ DHS-FMO-ACCTG | BO13: SOH/ JUDICIARY/ JUDICIAL CONDUCT COMMISSION | BP13: SOH/ LABOR & INDUSTRIAL RELATIONS/ PERSONNEL STAFF | BQ13: SOH/ LAND & NATURAL RESOURCES/ PUBLIC INFORMATION OFFICE/ API | BS13: SOH/ PUBLIC SAFETY/ INTERNAL AFFAIRS OFFICE/ IAO | BT13: SOH/ TAXATION/ BUDGET ACC & DUPL STAF | BU13: SOH/ TRANSPORTATION/ COMMUNITY AFFAIRS OFFICE/ DIR-P | BV13: SOH/ UNIVERSITY OF HAWAII/ OFFICE OF THE PRESIDENT/ UH/PRES | BX13: SOH/ HAWAII HEALTH SYSTEMS CORPORATION/ MAUI REGION | EI13: CC HONOLULU/ BUDGET AND FISCAL SERVICES/ BUDGETARY ADMINISTRATION DIV | FQ13: SOH/ LEGISLATURE/ STATE ETHICS COMMISSION
C14: 6 | D14: Deborah P. Richards | E14: MA | F14: 0 | G14: 2017-03-15 | H14: 2017-05-08 | J14: X | M14: 2017-05-08 | N14: 39 | O14: X | V14: 1.5 | W14: 0.5 | X14: 0.25 | Y14: 2.25 | Z14: =IF((F14="x"),0,((V14*10)+(W14*20))) -> 25 | AB14: -30 | AE14: -5 | AF14: 1.5 | AG14: 0.47 | AH14: 1.97 | AI14: 0.47 | AJ14: 31.5 | AK14: 29.53 | AL14: 0 | AM14: 0 | AN14: 0 | AO14: 0 | AP14: 39 | AR14: 39 | AT14: 1.5 | AV14: =IF(OR(K14="x",F14="x",AT14<=0),"",AT14) -> 1.5 | AX14: 0.5 | AZ14: 0.5 | BB14: SOH/ ACCOUNTING & GENERAL SERVICES/ APPLICATIONS/ICSD | BC14: SOH/ AGRICULTURE/ ADMINISTRATIVE SVCS/ AGRPIADMIN | BD14: SOH/ ATTORNEY GENERAL/ CIVIL RECOVERIES - COLLECTIONS | BE14: SOH/ BUDGET & FINANCE/ AUDIT SECTION | BF14: SOH/ BUSINESS, ECON DEV, & TOURISM/ BUSINESS ANALYSIS & MARKETING BRNCH | BG14: SOH/ COMMERCE & CONSUMER AFFAIRS/ ADMINISTRATION/ DCCA-INS-ADM | BH14: SOH/ DEFENSE/ 154 TACTICAL HOSPITAL (HICKAM)/ 154 HOSP/CC | BI14: SOH/ EDUCATION/ ACCRED & PRIV SCH LICENS | BJ14: SOH/ GOVERNORS OFFICE/ CHIEF OF STAFF | BK14: SOH/ HAWAIIAN HOME LANDS/ ADMINISTRATIVE SERVICES OFFICE | BL14: SOH/ HEALTH/ DO/ EXECUTIVE OFFICE ON AGING | BM14: SOH/ HUMAN RESOURCES DEVELOPMENT/ EMPLOYEE RELATIONS DIV/ DHRD-ERD | BN14: SOH/ HUMAN SERVICES/ PROGRAM ACCOUNTING SECTION 1/ DHS-FMO-PAS1 | BO14: SOH/ JUDICIARY/ JUDICIAL SELECTION COMMISSION | BP14: SOH/ LABOR & INDUSTRIAL RELATIONS/ TRAINING STAFF | BQ14: SOH/ LAND & NATURAL RESOURCES/ OFFICE OF CONSERVATION & COASTAL LAND/ OCCL | BS14: SOH/ PUBLIC SAFETY/ DEPUTY DIRECTOR FOR ADMINISTRATION/ DEP-A | BT14: SOH/ TAXATION/ PERSONNEL STAFF | BU14: SOH/ TRANSPORTATION/ OFC OF SPECIAL COMPLIANCE/ DIR-CZ | BV14: SOH/ UNIVERSITY OF HAWAII/ OFC OF VP LEGAL AFFAIRS & U GEN CNS/ UH/LEGAL | BX14: SOH/ HAWAII HEALTH SYSTEMS CORPORATION/ OAHU REGION | EI14: CC HONOLULU/ BUDGET AND FISCAL SERVICES/ FISCAL/CIP ADMINISTRATION DIV | FQ14: SOH/ LEGISLATURE/ LEGISLATIVE REFERENCE BUREAU
C15: 7 | D15: Mateo Caballero | E15: LV | G15: 2017-04-19 | H15: 2017-04-28 | I15: X | M15: 2017-04-28 | N15: 8 | Q15: X | V15: 3 | W15: 1.5 | Y15: 4.5 | Z15: =IF((F15="x"),0,((V15*10)+(W15*20))) -> 60 | AB15: -60 | AD15: =IF(F15="x",(0-((V15*10)+(W15*20))),"") ->  | AE15: 0 | AF15: 1.25 | AG15: 0.47 | AH15: 1.72 | AI15: 0.47 | AJ15: 61.25 | AK15: 59.53 | AL15: 0 | AM15: 0 | AN15: 0 | AO15: 0 | AP15: 8 | AR15: 8 | AT15: 3 | AV15: =IF(OR(K15="x",F15="x",AT15<=0),"",AT15) -> 3 | AX15: 1.5 | AZ15: 1.5 | BB15: SOH/ ACCOUNTING & GENERAL SERVICES/ ARCH-DESIGN SECTION/ DPW-13 | BC15: SOH/ AGRICULTURE/ ADMINISTRATIVE SVCS/ DAI/ADM | BD15: SOH/ ATTORNEY GENERAL/ CIVIL RECOVERIES - STATE CLAIMS | BE15: SOH/ BUDGET & FINANCE/ BOARD OF TRUSTEES | BF15: SOH/ BUSINESS, ECON DEV, & TOURISM/ BUSINESS ATTRACTION BRANCH | BG15: SOH/ COMMERCE & CONSUMER AFFAIRS/ ADMINISTRATION/ DCCA-OAH-ADM | BH15: SOH/ DEFENSE/ 154TH COMPOSITE GROUP/ 154 CGP/CC | BI15: SOH/ EDUCATION/ BUDGET BRANCH | BJ15: SOH/ GOVERNORS OFFICE/ COMMUNICATIONS | BK15: SOH/ HAWAIIAN HOME LANDS/ PERSONNEL STAFF | BL15: SOH/ HEALTH/ DO/ OFC OF ENVIRONMENTAL QUALITY CONTRL | BM15: SOH/ HUMAN RESOURCES DEVELOPMENT/ EMPLOYEE STAFFING DIV/ DHRD-ESD | BN15: SOH/ HUMAN SERVICES/ PROGRAM ACCOUNTING SECTION 2/ DHS-FMO-PAS2 | BO15: SOH/ JUDICIARY/ SUPPORT SERVICES DIVISION | BP15: SOH/ LABOR & INDUSTRIAL RELATIONS/ MGMT DEVELOPMENT STAFF | BQ15: SOH/ LAND & NATURAL RESOURCES/ ADMINISTRATIVE SERVICES OFFICE/ ASO | BS15: SOH/ PUBLIC SAFETY/ DEPUTY DIRECTOR FOR CORRECTIONS/ DEP-C | BT15: SOH/ TAXATION/ TECHNICAL REVIEW OFC | BU15: SOH/ TRANSPORTATION/ HAZARDOUS MATERIALS PROGRAM/ DIR-CZ | BV15: SOH/ UNIVERSITY OF HAWAII/ EQUAL EMPLOY OPP/ AFFIRM ACTION/ UH-EEO/AA | BX15: SOH/ HAWAII HEALTH SYSTEMS CORPORATION/ KAUAI REGION | EI15: CC HONOLULU/ BUDGET AND FISCAL SERVICES/ INTERNAL CONTROL DIV | FQ15: SOH/ LEGISLATURE/ OMBUDSMAN
C16: 8 | D16: Jason Abbey | E16: MA | G16: 2017-05-16 | H16: 2017-05-18 | I16: x | M16: 2017-06-14 | N16: 22 | P16: x | R16: x | Y16: 0 | Z16: =IF((F16="x"),0,((V16*10)+(W16*20))) -> 0 | AD16: =IF(F16="x",(0-((V16*10)+(W16*20))),"") ->  | AE16: 0 | AI16: 0 | AJ16: 0 | AK16: 0 | AL16: 0 | AM16: 0 | AN16: 0 | AO16: 0 | AP16: 22 | AR16: 22 | AV16: =IF(OR(K16="x",F16="X",AT16<=0),"",AT16) ->  | BB16: SOH/ ACCOUNTING & GENERAL SERVICES/ ARCHIVES DIVISION/ ARCH-0 | BC16: SOH/ AGRICULTURE/ ADMINISTRATIVE SVCS/ MKTG ADM | BD16: SOH/ ATTORNEY GENERAL/ CIVIL RECOVERIES/ CRD | BE16: SOH/ BUDGET & FINANCE/ BOARD OF TRUSTEES | BF16: SOH/ BUSINESS, ECON DEV, & TOURISM/ BUSINESS INFORMATION SERVICES/ BIS | BG16: SOH/ COMMERCE & CONSUMER AFFAIRS/ ADMINISTRATION/ DCCA-OCP-ADM | BH16: SOH/ DEFENSE/ 169 AIRCRAFT CNTRL & WARNING SQDRN/ 169 ACWS/CC | BI16: SOH/ EDUCATION/ BUDGET PREP SECTION | BJ16: SOH/ GOVERNORS OFFICE/ EXECUTIVE CHAMBERS | BK16: SOH/ HAWAIIAN HOME LANDS/ BUDGET & PROG EVALUATION STAFF | BL16: SOH/ HEALTH/ DO/ OFFICE OF LANGUAGE ACCESS | BM16: SOH/ HUMAN RESOURCES DEVELOPMENT/ INFORMATION SYSTEMS OFFICE/ DRHD-ISO | BN16: SOH/ HUMAN SERVICES/ COLLECTIONS & RECOVERY SECTION/ DHS-FMO-C&R | BO16: SOH/ JUDICIARY/ ADMIN FISCAL OFFICE | BP16: SOH/ LABOR & INDUSTRIAL RELATIONS/ ADMIN SVCS OFC/ DLIR-ASO | BQ16: SOH/ LAND & NATURAL RESOURCES/ ASO DATA PROCESSING STAFF/ ASD | BS16: SOH/ PUBLIC SAFETY/ DEPUTY DIRECTOR FOR LAW ENFORCEMENT/ DEP-E | BT16: SOH/ TAXATION/ TAX RES & PLAN OFF | BU16: SOH/ TRANSPORTATION/ ENVIRONMENTAL COMPLIANCE PROGRAM | BV16: SOH/ UNIVERSITY OF HAWAII/ RISK MANAGEMENT/ UH/RISK | BX16: SOH/ HAWAII HEALTH SYSTEMS CORPORATION/ CORPORATE OFFICE | EI16: CC HONOLULU/ BUDGET AND FISCAL SERVICES/ PURCHASING DIV
C17: 9 | D17: Debra Cabradilla (First American Title Co.) | E17: MA | G17: 2017-06-16 | H17: 2017-06-30 | I17: X | K17: 0 | L17: 0 | M17: 2017-06-30 | N17: 11 | O17: X | V17: 1 | W17: 1.5 | X17: 2 | Y17: 4.5 | Z17: 10 | AB17: -30 | AE17: -20 | AF17: 1.3 | AI17: 0 | AJ17: 51.3 | AK17: 51.3 | AL17: 0 | AM17: 0 | AN17: 0 | AO17: 0 | AP17: 11 | AR17: 11 | AT17: 1 | AV17: =IF(OR(K17="x",F17="X",AT17<=0),"",AT17) -> 1 | AX17: 1.5 | AZ17: 1.5 | BB17: SOH/ ACCOUNTING & GENERAL SERVICES/ ART IN PUBLIC PLACES/ SFCA-2 | BC17: SOH/ AGRICULTURE/ ADMINISTRATIVE SVCS/ MSA | BD17: SOH/ ATTORNEY GENERAL/ CIVIL RIGHTS LITIGATION/ CRL | BE17: SOH/ BUDGET & FINANCE/ BONDS ADMINISTRATION BRANCH | BF17: SOH/ BUSINESS, ECON DEV, & TOURISM/ BUSINESS OFFICE/ BO | BG17: SOH/ COMMERCE & CONSUMER AFFAIRS/ ADMINISTRATION/ DCCA-PVL-ADM | BH17: SOH/ DEFENSE/ 201ST COMBAT COMMUNICATION GROUP/ 201 CCGP | BI17: SOH/ EDUCATION/ BUDGET EXEC SECTION | BJ17: SOH/ GOVERNORS OFFICE/ NEIGHBOR ISLAND LIAISON OFFICES | BK17: SOH/ HAWAIIAN HOME LANDS/ INFO & COMMUNICATIONS SYS ST | BL17: SOH/ HEALTH/ DO/ STATE COUNCIL ON DEVPMTL DISABILITS | BM17: SOH/ HUMAN RESOURCES DEVELOPMENT/ MERIT APPEALS BOARD/ DHRD-MAB | BN17: SOH/ HUMAN SERVICES/ BENEFITS PAYMENT PROCESSING/ DHS-FMO-BPP | BO17: SOH/ JUDICIARY/ FINANCIAL SERVICES DIV | BP17: SOH/ LABOR & INDUSTRIAL RELATIONS/ OFFICE SVCS STAFF | BQ17: SOH/ LAND & NATURAL RESOURCES/ BUREAU OF CONVEYANCES/ BOC | BS17: SOH/ PUBLIC SAFETY/ BUSINESS MANAGEMENT OFFICE/ BUS | BT17: SOH/ TAXATION/ SYSTEMS & PROCED OFF | BU17: SOH/ TRANSPORTATION/ OFFICE OF CIVIL RIGHTS/ OCR | BV17: SOH/ UNIVERSITY OF HAWAII/ OFC OF VP FOR RESEARCH/ UH/VP-RES | EI17: CC HONOLULU/ BUDGET AND FISCAL SERVICES/ REAL PROPERTY DIV
C18: 10 | D18: Jill Kanewhailua | E18: MA | G18: 2017-06-19 | H18: 2017-06-20 | I18: X | M18: 2017-06-20 | N18: 2 | O18: X | V18: 0 | W18: 48 | Y18: 0 | Z18: =IF((F18="x"),0,((V18*10)+(W18*20))) -> 960 | AB18: -30 | AE18: 930 | AF18: 36.6 | AH18: 1003.2 | AI18: 930 | AJ18: 996.6 | AK18: -6.6 | AL18: 0 | AM18: 0 | AN18: 0 | AO18: 0 | AP18: 2 | AR18: 2 | AV18: =IF(OR(K18="x",F18="X",AT18<=0),"",AT18) ->  | AX18: 48 | AZ18: 48 | BB18: SOH/ ACCOUNTING & GENERAL SERVICES/ AUDIT DIVISION/ AUD | BC18: SOH/ AGRICULTURE/ AGR PARK BR/ ARMDAP | BD18: SOH/ ATTORNEY GENERAL/ CPJA - GRANTS & PLANNING/ CPJA - G&P | BE18: SOH/ BUDGET & FINANCE/ BUDGET, PROG PLNG & MGMT DIV | BF18: SOH/ BUSINESS, ECON DEV, & TOURISM/ BUSINESS SERVICES DIVISION/ BSD | BG18: SOH/ COMMERCE & CONSUMER AFFAIRS/ ADMINISTRATION/ DCCA-RICO-ADM | BH18: SOH/ DEFENSE/ 203 AIR REFUELING SQUADRON (HICKAM)/ 203 ARS/CC | BI18: SOH/ EDUCATION/ PLANNING & EVAL BR | BJ18: SOH/ GOVERNORS OFFICE/ OFFICE OF COLLECTIVE BARGAINING/ OCB | BK18: SOH/ HAWAIIAN HOME LANDS/ CONTRACT SERVICES STAFF | BL18: SOH/ HEALTH/ DO/ STATE HEALTH PLANNING DEVMT AGY | BM18: SOH/ HUMAN RESOURCES DEVELOPMENT/ OFFICE OF THE DIRECTOR/ DHRD-DIR | BN18: SOH/ HUMAN SERVICES/ MONEY PAYMENTS SECTION/ DHS-FMO-MONPS | BO18: SOH/ JUDICIARY/ HUMAN RESOURCES DIV | BP18: SOH/ LABOR & INDUSTRIAL RELATIONS/ FISCAL STAFF | BQ18: SOH/ LAND & NATURAL RESOURCES/ REGULAR RECORDING BRANCH/ BRS | BS18: SOH/ PUBLIC SAFETY/ FISCAL & SUPPLY SERVICES STAFF/ BUS-F | BT18: SOH/ TAXATION/ TAX SERV/PROCESSG DIV | BU18: SOH/ TRANSPORTATION/ AMERICANS WITH DISABILITIES PROGRAM/ OCR-A | BV18: SOH/ UNIVERSITY OF HAWAII/ OFFICE OF RESEARCH SERVICES/ UH/RES-SVCS | EI18: CC HONOLULU/ BUDGET AND FISCAL SERVICES/ TREASURY DIV
C19: 11 | D19: Ken MacPherson | E19: MA | G19: 2017-06-28 | H19: 2017-06-29 | I19: x | M19: 2017-06-29 | N19: 2 | R19: x | V19: 0 | Y19: =V19+W19+X19 -> 0 | Z19: =IF((F19="x"),0,((V19*10)+(W19*20))) -> 0 | AD19: =IF(F19="x",(0-((V19*10)+(W19*20))),"") ->  | AE19: 0 | AI19: 0 | AJ19: 0 | AK19: 0 | AL19: 0 | AM19: 0 | AN19: 0 | AO19: 0 | AP19: 2 | AR19: 2 | AV19: =IF(OR(K19="x",F19="X",AT19<=0),"",AT19) ->  | BB19: SOH/ ACCOUNTING & GENERAL SERVICES/ AUTOMOTIVE MANAGE DIV/ AUTO-0 | BC19: SOH/ AGRICULTURE/ AGRI RESOURCE MGMT DIV/ ARMD | BD19: SOH/ ATTORNEY GENERAL/ CPJA - JJIS/ CPJA - JJIS | BE19: SOH/ BUDGET & FINANCE/ BUDGET, SYSTEMS & MGMT SVCS STAFF | BF19: SOH/ BUSINESS, ECON DEV, & TOURISM/ COMM, AGENCIES & OTHER PROJECTS | BG19: SOH/ COMMERCE & CONSUMER AFFAIRS/ APPLICATION SECTION/ DCCA-PVL-APP | BH19: SOH/ DEFENSE/ 291 COMBAT COMMUNICATION SQDRN (HI)/ 291 CCSQ/CC | BI19: SOH/ EDUCATION/ PLANNING SEC | BJ19: SOH/ GOVERNORS OFFICE/ OFFICE OF INFORMATION & ASSISTANCE | BK19: SOH/ HAWAIIAN HOME LANDS/ CLERICAL SERVICES STAFF | BL19: SOH/ HEALTH/ DEPUTY DIRECTOR OF HEALTH (DDH) | BM19: SOH/ HUMAN RESOURCES DEVELOPMENT/ SOH/ HUMAN RESOURCES DEVELOPMENT/ DHRD | BN19: SOH/ HUMAN SERVICES/ MEDICAL PAYMENTS SECTION/ DHS-FMO-MEDPS | BO19: SOH/ JUDICIARY/ INFO TECHNOLOGY & COMMUNICATNS DIV/ ITCD | BP19: SOH/ LABOR & INDUSTRIAL RELATIONS/ STATE PROGRAM SEC | BQ19: SOH/ LAND & NATURAL RESOURCES/ REG RECEIVING BR/ BRR | BS19: SOH/ PUBLIC SAFETY/ ACCOUNTING SECTION/ BUS-F | BT19: SOH/ TAXATION/ REVENUE ACCTG BR | BU19: SOH/ TRANSPORTATION/ DISADVANTAGED BUSINESS ENTRPRSE PRG/ OCR-D | BV19: SOH/ UNIVERSITY OF HAWAII/ OFC TECH TRANSFER & ECON DEVELOP/ UH/TECH-ECON | EI19: CC HONOLULU/ BUDGET AND FISCAL SERVICES/ LIQUOR COMMISSION
C20: 12 | N20: =IF((NETWORKDAYS(G20,M20)>0),(NETWORKDAYS(G20,M20)),"") ->  | Y20: =V20+W20+X20 -> 0 | Z20: =IF((F20="x"),0,((V20*10)+(W20*20))) -> 0 | AD20: =IF(F20="x",(0-((V20*10)+(W20*20))),"") ->  | AE20: =IF(F20="x",0,(Z20+AB20+AC20)) -> 0 | AI20: =IF(AE20<=0,AG20,AE20+AG20) -> 0 | AJ20: =(X20*20)+Z20+AA20+AF20 -> 0 | AK20: =AJ20-AH20 -> 0 | AL20: =IF(K20="x",AH20,0) -> 0 | AM20: =IF(K20="x",AI20,0) -> 0 | AN20: =IF(K20="x",AJ20,0) -> 0 | AO20: =IF(K20="x",AK20,0) -> 0 | AP20: =IF(N20>0,N20,"") ->  | AQ20: =IF(AND(K20="x",AP20>0),AP20,"") ->  | AR20: =IF(OR(K20="x",F20="x",AP20<=0),"",AP20) ->  | AS20: =IF(AND(F20="x",AP20>0),AP20,"") ->  | AT20: =IF(V20>0,V20,"") ->  | AU20: =IF(AND(K20="x",AT20>0),AT20,"") ->  | AV20: =IF(OR(K20="x",F20="X",AT20<=0),"",AT20) ->  | AW20: =IF(AND(F20="x",AT20>0),AT20,"") ->  | AX20: =IF(W20>0,W20,"") ->  | AY20: =IF(AND(K20="x",AX20>0),AX20,"") ->  | AZ20: =IF(OR(K20="x",F20="x",AX20<=0),"",AX20) ->  | BA20: =IF(AND(F20="x",AX20>0),AX20,"") ->  | BB20: SOH/ ACCOUNTING & GENERAL SERVICES/ AUTOMOTIVE MGMT BR/ HAW-7 | BC20: SOH/ AGRICULTURE/ AGRIBUSINESS DEVELOPMENT CORP/ ADC | BD20: SOH/ ATTORNEY GENERAL/ CPJA/ CPJA | BE20: SOH/ BUDGET & FINANCE/ CAPITAL IMPRVMNT PROJECTS (CIP) BR | BF20: SOH/ BUSINESS, ECON DEV, & TOURISM/ COMMUNICATIONS & PUBLICATIONS OFC | BG20: SOH/ COMMERCE & CONSUMER AFFAIRS/ BUSINESS REGISTRATION DIVISION/ DCCA-BREG | BH20: SOH/ DEFENSE/ 292 COMBAT COMMUNICA SQDRN (MAUI)/ 292 CCSQ/CC | BI20: SOH/ EDUCATION/ SPEC PROGS MGMT SEC | BJ20: SOH/ GOVERNORS OFFICE/ POLICY | BK20: SOH/ HAWAIIAN HOME LANDS/ FISCAL OFFICE | BL20: SOH/ HEALTH/ DDH/ ADMIN SVCS OFFICE | BN20: SOH/ HUMAN SERVICES/ PRE-AUDIT STAFF/ DHS-FMO-PA | BO20: SOH/ JUDICIARY/ POLICY & PLANNING DIVISION | BP20: SOH/ LABOR & INDUSTRIAL RELATIONS/ FEDERAL PROGRAMS SEC | BQ20: SOH/ LAND & NATURAL RESOURCES/ ABSTRACTING SEC/ BRA | BS20: SOH/ PUBLIC SAFETY/ AUDITING SECTION/ BUS-F | BT20: SOH/ TAXATION/ ACCTG SEC | BU20: SOH/ TRANSPORTATION/ TITLE VI PROGRAM/ OCR-T | BV20: SOH/ UNIVERSITY OF HAWAII/ OFC OF VP FOR IT/CIO/ UH/VP IT/CIO
C21: 13 | Y21: 0 | Z21: 0 | AE21: 0 | AI21: =IF(AE21<=0,AG21,AE21+AG21) -> 0 | AJ21: 0 | AK21: 0 | AL21: 0 | AM21: 0 | AN21: 0 | AO21: 0 | BB21: SOH/ ACCOUNTING & GENERAL SERVICES/ AUTOMOTIVE MGMT BR/ KAU-6 | BC21: SOH/ AGRICULTURE/ AGRICULTURAL DEVELOPMENT DIV/ ADD | BD21: SOH/ ATTORNEY GENERAL/ CSEA - ADMIN PROCESSING BRANCH | BE21: SOH/ BUDGET & FINANCE/ CASE FILE SERVICES | BF21: SOH/ BUSINESS, ECON DEV, & TOURISM/ COMMUNITY ECONOMIC DEVELOPMENT/ CED | BG21: SOH/ COMMERCE & CONSUMER AFFAIRS/ CABLE TELEVISION DIVISION/ DCCA-CATV | BH21: SOH/ DEFENSE/ 293 COMBAT COMMUNI SQDRN (HICKAM)/ 293 CCSQ/CC | BI21: SOH/ EDUCATION/ EVALUATION SEC | BJ21: SOH/ GOVERNORS OFFICE/ SOH/ GOVERNORS OFFICE/ GOV | BK21: SOH/ HAWAIIAN HOME LANDS/ ACCOUNTING STAFF | BL21: SOH/ HEALTH/ DDH/ HEALTH INFO SYS OFC | BN21: SOH/ HUMAN SERVICES/ PROPERTY & PROCUREMENT STAFF/ DHS-FMO-PP | BO21: SOH/ JUDICIARY/ AFFIRMATIVE ACTION OFFICE | BP21: SOH/ LABOR & INDUSTRIAL RELATIONS/ REPORTING UNIT | BQ21: SOH/ LAND & NATURAL RESOURCES/ INDEX SEC/ BRI | BS21: SOH/ PUBLIC SAFETY/ PURCHASING SECTION/ BUS-F | BT21: SOH/ TAXATION/ REFUND/ADJUSTMENT SEC | BU21: SOH/ TRANSPORTATION/ EQUAL OPPORTUNITY PROGRAM/ OCR-E | BV21: SOH/ UNIVERSITY OF HAWAII/ OFC OF VP FOR BUDGET & FINANCE/CFO/ UH/VP-B&F/CFO
C22: 14 | Y22: 0 | Z22: 0 | AE22: 0 | AI22: =IF(AE22<=0,AG22,AE22+AG22) -> 0 | AJ22: 0 | AK22: 0 | AL22: 0 | AM22: 0 | AN22: 0 | AO22: 0 | BB22: SOH/ ACCOUNTING & GENERAL SERVICES/ BLDG MGMT SECTION/ CSD-10 | BC22: SOH/ AGRICULTURE/ AGRICULTURAL LOAN DIV/ AGLN | BD22: SOH/ ATTORNEY GENERAL/ CSEA - ADMINISTRATION | BE22: SOH/ BUDGET & FINANCE/ CASH MANAGEMENT SECTION | BF22: SOH/ BUSINESS, ECON DEV, & TOURISM/ CONVENTION CENTER AUTHORITY/ CCA | BG22: SOH/ COMMERCE & CONSUMER AFFAIRS/ CAPTIVES BRANCH/ DCCA-INS-CAP | BH22: SOH/ DEFENSE/ 297 AIR TRAFFIC CONTROL FLIGHT/ 297 ATCF/CC | BI22: SOH/ EDUCATION/ TEST DEVELOPMT & ADMIN | BJ22: SOH/ GOVERNORS OFFICE/ WASHINGTON PLACE | BK22: SOH/ HAWAIIAN HOME LANDS/ FISCAL SERVICES STAFF | BL22: SOH/ HEALTH/ DDH/ HUMAN RESOURCES OFFICE | BN22: SOH/ HUMAN SERVICES/ OFFICE SERVICES STAFF/ DHS-FMO-OS | BO22: SOH/ JUDICIARY/ BUDGET & STATISTICS | BP22: SOH/ LABOR & INDUSTRIAL RELATIONS/ COST ACCOUNTING UNIT | BQ22: SOH/ LAND & NATURAL RESOURCES/ LAND COURT REGISTRATION BRANCH/ BLC | BS22: SOH/ PUBLIC SAFETY/ PAYROLL SECTION/ BUS-F | BT22: SOH/ TAXATION/ DOCUMENT PROCESSNG BR | BU22: SOH/ TRANSPORTATION/ DEPARTMENTAL STAFF SERVICES OFC/ DEP | BV22: SOH/ UNIVERSITY OF HAWAII/ BUDGET OFFICE/ UH/BUDG
C23: 15 | Y23: 0 | Z23: 0 | AE23: 0 | AI23: =IF(AE23<=0,AG23,AE23+AG23) -> 0 | AJ23: 0 | AK23: 0 | AL23: 0 | AM23: 0 | AN23: 0 | AO23: 0 | BB23: SOH/ ACCOUNTING & GENERAL SERVICES/ BLDG MGMT UNIT A/ CSD-11 | BC23: SOH/ AGRICULTURE/ ANIMAL INDUSTRY DIV/ DAI | BD23: SOH/ ATTORNEY GENERAL/ CSEA - ADMINISTRATIVE SUPPORT | BE23: SOH/ BUDGET & FINANCE/ CASHIERING SECTION | BF23: SOH/ BUSINESS, ECON DEV, & TOURISM/ DEVELOPMENT BR | BG23: SOH/ COMMERCE & CONSUMER AFFAIRS/ CASHIERING SERVICES/ DCCA-DIR-CASH | BH23: SOH/ DEFENSE/ 298 AIR TRAFFIC CNTRL FLT (KAUAI)/ 298 ATCF/CC | BI23: SOH/ EDUCATION/ PUBLIC RELATIONS BR | BK23: SOH/ HAWAIIAN HOME LANDS/ SYS & INTERNAL CONTROL STAFF | BL23: SOH/ HEALTH/ DDH/ HIPAA STAFF | BN23: SOH/ HUMAN SERVICES/ PERSONNEL OFFICE/ DHS-PERS | BO23: SOH/ JUDICIARY/ CAPITAL IMPROVEMENT PROGRAM | BP23: SOH/ LABOR & INDUSTRIAL RELATIONS/ PAYROLL/VOUCHER UNIT | BQ23: SOH/ LAND & NATURAL RESOURCES/ DOCUMENT REVIEW SEC #1/ BLU | BS23: SOH/ PUBLIC SAFETY/ VOUCHERING SECTION/ BUS-F | BT23: SOH/ TAXATION/ RECEIVING/SORTING SEC | BU23: SOH/ TRANSPORTATION/ PERSONNEL OFFICE/ PER | BV23: SOH/ UNIVERSITY OF HAWAII/ FINANCIAL MANAGEMENT/ UH/FIN-MGT
C24: 16 | Y24: 0 | Z24: 0 | AE24: 0 | AI24: 0 | AJ24: 0 | AK24: 0 | AL24: 0 | AM24: 0 | AN24: 0 | AO24: 0 | BB24: SOH/ ACCOUNTING & GENERAL SERVICES/ BLDG MGMT UNIT B/ CSD-12 | BC24: SOH/ AGRICULTURE/ ANIMAL QUARANTINE SEC/ AQS/INSPEC | BD24: SOH/ ATTORNEY GENERAL/ CSEA - CLERICAL OPERATIONS | BE24: SOH/ BUDGET & FINANCE/ CLERICAL SERVICES | BF24: SOH/ BUSINESS, ECON DEV, & TOURISM/ ECONOMETRIC RESEARCH BRANCH | BG24: SOH/ COMMERCE & CONSUMER AFFAIRS/ COMPLAINTS & ENFORCEMENT BRANCH/ DCCA-INS-CEB | BH24: SOH/ DEFENSE/ 29TH INFANTRY BRIGADE (SEPARATE)/ HIIB | BI24: SOH/ EDUCATION/ SCHOOL/COMM-BASED MGMT/ SCBM | BK24: SOH/ HAWAIIAN HOME LANDS/ HOMESTEAD SERVICES DIVISION | BL24: SOH/ HEALTH/ DDH/ OFC OF HEALTH STATUS MONITORING | BN24: SOH/ HUMAN SERVICES/ LABOR RELATIONS STAFF/ DHS-PERS-LR | BO24: SOH/ JUDICIARY/ INTERNAL AUDIT | BP24: SOH/ LABOR & INDUSTRIAL RELATIONS/ WIA PROGRAM SEC | BQ24: SOH/ LAND & NATURAL RESOURCES/ DOCUMENT REVIEW SEC #2/ BLV | BS24: SOH/ PUBLIC SAFETY/ OFFICE SERVICES STAFF/ BUS-O | BT24: SOH/ TAXATION/ DOCUMENT PREP SEC | BU24: SOH/ TRANSPORTATION/ LABOR RELATIONS STAFF/ PER-LR | BV24: SOH/ UNIVERSITY OF HAWAII/ OFC OF VP STUDENT AFF UNIV/COM REL/ UH/VP SA UCR
C25: 17 | Y25: 0 | Z25: 0 | AE25: 0 | AI25: 0 | AJ25: 0 | AK25: 0 | AL25: 0 | AM25: 0 | AN25: 0 | AO25: 0 | BB25: SOH/ ACCOUNTING & GENERAL SERVICES/ BLDG MGMT UNIT C/ CSD-13 | BC25: SOH/ AGRICULTURE/ AQUACULTURE DEVELOPMENT PROGRAM/ ADP | BD25: SOH/ ATTORNEY GENERAL/ CSEA - COMPLAINTS RESOLUTION | BE25: SOH/ BUDGET & FINANCE/ CLERICAL SERVICES | BF25: SOH/ BUSINESS, ECON DEV, & TOURISM/ ECONOMIC ANALYSIS BRANCH | BG25: SOH/ COMMERCE & CONSUMER AFFAIRS/ CONSUMER RESOURCE CENTER | BH25: SOH/ DEFENSE/ ACTIVE GUARD/RESERVE (AGR) BRANCH/ HISPMO-A | BI25: SOH/ EDUCATION/ INFO RESOURCE MGMT | BK25: SOH/ HAWAIIAN HOME LANDS/ HOMESTEAD APPLICATIONS BRANCH | BL25: SOH/ HEALTH/ DDH/ OFC OF PLANNING POLICY & PROGRM DEV | BN25: SOH/ HUMAN SERVICES/ EMPLOYEE RELATIONS & SAFETY STF/ DHS-PERS-ERS | BO25: SOH/ JUDICIARY/ JUDICIAL EDUCATION & RESOURCE DEV | BP25: SOH/ LABOR & INDUSTRIAL RELATIONS/ POME STAFF | BQ25: SOH/ LAND & NATURAL RESOURCES/ DOCUMENT REVIEW SEC #3/ BLW | BS25: SOH/ PUBLIC SAFETY/ MANAGEMENT SERVICES STAFF/ BUS-M | BT25: SOH/ TAXATION/ MONETARY CONTROL SEC | BU25: SOH/ TRANSPORTATION/ POSITION CLASSIFICATION STAFF/ PER-C | BV25: SOH/ UNIVERSITY OF HAWAII/ OFC ASSOC VP EXTERN AFF & UNIV REL/ UH/AS VP EAUR
C26: 18 | Y26: 0 | Z26: 0 | AE26: 0 | AI26: 0 | AJ26: 0 | AK26: 0 | AL26: 0 | AM26: 0 | AN26: 0 | AO26: 0 | BB26: SOH/ ACCOUNTING & GENERAL SERVICES/ BOX OFF MGMT BR/ STAD-6 | BC26: SOH/ AGRICULTURE/ AUTOMOTIVE MAINT STAFF/ AUTOMAINT | BD26: SOH/ ATTORNEY GENERAL/ CSEA - FINANCIAL & INFO BRANCH | BE26: SOH/ BUDGET & FINANCE/ CLERICAL SERVICES STAFF | BF26: SOH/ BUSINESS, ECON DEV, & TOURISM/ ENERGY CONSERVATION BRANCH | BG26: SOH/ COMMERCE & CONSUMER AFFAIRS/ DIVISION OF CONSUMER ADVOCACY/ DCCA-DCA | BH26: SOH/ DEFENSE/ ADM OFFICE SUPPORT STAFF | BI26: SOH/ EDUCATION/ OFF OF PER SVCS/ OPS | BK26: SOH/ HAWAIIAN HOME LANDS/ CLERICAL SERVICES | BL26: SOH/ HEALTH/ DDH/ HAWAII DISTRICT HEALTH OFC | BN26: SOH/ HUMAN SERVICES/ POSITION MGMT SVCS STAFF/ DHS-PERS-PMSS | BO26: SOH/ JUDICIARY/ PLANNING & PROGRAM EVALUATION | BP26: SOH/ LABOR & INDUSTRIAL RELATIONS/ EDP SYSTEMS STAFF/ DLIR-SO | BQ26: SOH/ LAND & NATURAL RESOURCES/ DOCUMENT REVIEW SEC #4/ BLX | BS26: SOH/ PUBLIC SAFETY/ EQUIPMENT MANAGEMENT STAFF/ BUS-E | BT26: SOH/ TAXATION/ DATA ENTRY SEC | BU26: SOH/ TRANSPORTATION/ TRAINING & SAFETY STAFF/ PER-T | BV26: SOH/ UNIVERSITY OF HAWAII/ GOVERNMENT RELATIONS/ UH/GOV-REL
C27: 19 | Y27: 0 | Z27: 0 | AE27: 0 | AI27: 0 | AJ27: 0 | AK27: 0 | AL27: 0 | AM27: 0 | AN27: 0 | AO27: 0 | BB27: SOH/ ACCOUNTING & GENERAL SERVICES/ BUDGET & FISCAL STAFF/ ASO-2 | BC27: SOH/ AGRICULTURE/ BIO-CONTROL SEC/ AGRPIPPCBC | BD27: SOH/ ATTORNEY GENERAL/ CSEA - HAWAII OPERATIONS BRANCH | BE27: SOH/ BUDGET & FINANCE/ CLERICAL SERVICES UNIT I | BF27: SOH/ BUSINESS, ECON DEV, & TOURISM/ ENERGY DIVISION/ ED | BG27: SOH/ COMMERCE & CONSUMER AFFAIRS/ DIVISION OF FINANCIAL INSTITUTIONS/ DCCA-DFI | BH27: SOH/ DEFENSE/ ADM SERVICES OFFICE | BI27: SOH/ EDUCATION/ PERS MGT CERT & DEV BR | BK27: SOH/ HAWAIIAN HOME LANDS/ DISTRICT OPERATIONS BRANCH | BL27: SOH/ HEALTH/ DDH/ MAUI DISTRICT HEALTH OFC | BN27: SOH/ HUMAN SERVICES/ RECORDS & SUPPORT SVCS STAFF/ DHS-PERS-RSS | BO27: SOH/ JUDICIARY/ INTERGOVMNTL & COMMUNITY RELATIONS | BP27: SOH/ LABOR & INDUSTRIAL RELATIONS/ HAWAII DISTRICT OFC/ DLIR-HI DO | BQ27: SOH/ LAND & NATURAL RESOURCES/ DOCUMENT REVIEW SEC #5/ BLY | BS27: SOH/ PUBLIC SAFETY/ PLANNING, PROGRAMMING & BUDGET OFC/ PPB | BT27: SOH/ TAXATION/ FILE MAINTENANCE SEC | BU27: SOH/ TRANSPORTATION/ SPECIAL SERVICES STAFF/ PER-S | BV27: SOH/ UNIVERSITY OF HAWAII/ PUBLIC RELATIONS/ UH/PUB-REL
C28: 20 | Y28: 0 | Z28: 0 | AE28: 0 | AI28: 0 | AJ28: 0 | AK28: 0 | AL28: 0 | AM28: 0 | AN28: 0 | AO28: 0 | BB28: SOH/ ACCOUNTING & GENERAL SERVICES/ BUILDING CONST MAINT SEC/ STAD-4 | BC28: SOH/ AGRICULTURE/ BUDGET & MGMT STAFF/ MA | BD28: SOH/ ATTORNEY GENERAL/ CSEA - INFORMATION OFFICE | BE28: SOH/ BUDGET & FINANCE/ CLERICAL SERVICES UNIT II | BF28: SOH/ BUSINESS, ECON DEV, & TOURISM/ ENERGY PLANNING & POLICY GROUP | BG28: SOH/ COMMERCE & CONSUMER AFFAIRS/ DOCUMENTS INFORMATION SECTION/ DCCA-BREG-DIS | BH28: SOH/ DEFENSE/ ADM SERVICES OFFICE/ HIADM | BI28: SOH/ EDUCATION/ CERT PERS MGT SEC | BK28: SOH/ HAWAIIAN HOME LANDS/ EAST HAWAII DISTRICT OFFICE | BL28: SOH/ HEALTH/ DDH/ KAUAI DISTRICT HEALTH OFC | BN28: SOH/ HUMAN SERVICES/ CIVIL RIGHTS COMPLIANCE STAFF/ DHS-PERS-CRC | BO28: SOH/ JUDICIARY/ STAFF ATTORNEY | BP28: SOH/ LABOR & INDUSTRIAL RELATIONS/ HILO STAFF | BQ28: SOH/ LAND & NATURAL RESOURCES/ DOCUMENT REVIEW SEC #6/ BLZ | BS28: SOH/ PUBLIC SAFETY/ RESEARCH & STATISTICS STAFF/ PPB-R | BT28: SOH/ TAXATION/ TAXPAYER SERVICES BR | BU28: SOH/ TRANSPORTATION/ RECRUITMENT SERVICES STAFF/ PER-R | BV28: SOH/ UNIVERSITY OF HAWAII/ CREATIVE SERVICES/ UH/CRE-SVCS
C29: 21 | Y29: 0 | Z29: 0 | AE29: 0 | AI29: 0 | AJ29: =(X29*20)+Z29+AA29+AF29 -> 0 | AK29: 0 | AL29: 0 | AM29: 0 | AN29: 0 | AO29: 0 | BB29: SOH/ ACCOUNTING & GENERAL SERVICES/ CAMPAIGN SPENDING COMMISSION | BC29: SOH/ AGRICULTURE/ CASE PREP SEC/ AGRPIPESTCP | BD29: SOH/ ATTORNEY GENERAL/ CSEA - KAUAI OPERATIONS BRANCH | BE29: SOH/ BUDGET & FINANCE/ COLLECTIVE BARGAINING STAFF | BF29: SOH/ BUSINESS, ECON DEV, & TOURISM/ FILM INDUSTRY BRANCH/ FIB | BG29: SOH/ COMMERCE & CONSUMER AFFAIRS/ DOCUMENTS PROCESSING SECTION/ DCCA-BREG-DPS | BH29: SOH/ DEFENSE/ ADMIN OFFICER/ HITC-AO | BI29: SOH/ EDUCATION/ PERS CERT & DEV SEC | BK29: SOH/ HAWAIIAN HOME LANDS/ MAUI DISTRICT OFFICE | BL29: SOH/ HEALTH/ HEALTH RESOURCES ADMIN (HRA) | BN29: SOH/ HUMAN SERVICES/ TRAINING STAFF/ DHS-PERS-TRN | BO29: SOH/ JUDICIARY/ PUBLIC AFFAIRS | BP29: SOH/ LABOR & INDUSTRIAL RELATIONS/ CLERICAL SERVICES | BQ29: SOH/ LAND & NATURAL RESOURCES/ RECEIVING SEC/ BLR | BS29: SOH/ PUBLIC SAFETY/ PROGRAM, PLANNING & EVAL STAFF/ PPB-P | BT29: SOH/ TAXATION/ LICENSG/CLEARANCE SEC | BU29: SOH/ TRANSPORTATION/ BUSINESS MANAGEMENT OFFICE/ BUS | BV29: SOH/ UNIVERSITY OF HAWAII/ OFC OF ASSOC VP FOR STUDENT AFFAIRS/ UH/AS VP SA
C30: 22 | Y30: 0 | Z30: 0 | AE30: 0 | AI30: 0 | AJ30: 0 | AK30: 0 | AL30: 0 | AM30: 0 | AN30: 0 | AO30: 0 | BB30: SOH/ ACCOUNTING & GENERAL SERVICES/ CENTRAL OAHU SEC/ CSD-7 | BC30: SOH/ AGRICULTURE/ CHEM/MECH CONTROL SEC/ AGRPIPPCCM | BD30: SOH/ ATTORNEY GENERAL/ CSEA - MAUI OPERATIONS BRANCH | BE30: SOH/ BUDGET & FINANCE/ CONTRACTS ADMINISTRATION STAFF | BF30: SOH/ BUSINESS, ECON DEV, & TOURISM/ FINANCIAL ASSISTANCE BRANCH/ FAB | BG30: SOH/ COMMERCE & CONSUMER AFFAIRS/ DOCUMENTS REGISTRATION BRANCH/ DCCA-BREG-DRB | BH30: SOH/ DEFENSE/ ADMIN SUPPORT | BI30: SOH/ EDUCATION/ CLASSIFD PER MGT SEC | BK30: SOH/ HAWAIIAN HOME LANDS/ MOLOKAI DISTRICT OFFICE | BL30: SOH/ HEALTH/ HRA/ CHRONIC DIS PREV & HLTH PROM DIV (CDPHPD) | BN30: SOH/ HUMAN SERVICES/ RECRUITMENT & EXAM STAFF/ DHS-PERS-R&E | BO30: SOH/ JUDICIARY/ ADMIN DRIVERS LICENSE REVOCATION | BP30: SOH/ LABOR & INDUSTRIAL RELATIONS/ WEST HAWAII STAFF/ DLIR-W HI DO | BQ30: SOH/ LAND & NATURAL RESOURCES/ ABSTRACTING SEC/ BLA | BS30: SOH/ PUBLIC SAFETY/ OPERATING BUDGET STAFF/ PPB-O | BT30: SOH/ TAXATION/ INFORM/SERVICES SEC | BU30: SOH/ TRANSPORTATION/ FINANCIAL & ACCOUNTING STAFF/ BUS-F | BV30: SOH/ UNIVERSITY OF HAWAII/ HAWAII COMMN FOR NATL & COMM SVC/ UH/HCNCS
C31: 23 | Y31: 0 | Z31: 0 | AD31: =IF(F31="x",(0-((V31*10)+(W31*20))),"") ->  | AE31: 0 | AI31: 0 | AJ31: 0 | AK31: 0 | AL31: 0 | AM31: 0 | AN31: 0 | AO31: 0 | BB31: SOH/ ACCOUNTING & GENERAL SERVICES/ CENTRAL SERVICES BR/ HAW-2 | BC31: SOH/ AGRICULTURE/ CHEMICAL ANALYSIS SEC | BD31: SOH/ ATTORNEY GENERAL/ CSEA - POLICY & PROCEDURES | BE31: SOH/ BUDGET & FINANCE/ CULTURE AND RECREATION SECTION | BF31: SOH/ BUSINESS, ECON DEV, & TOURISM/ FISCAL STAFF/ ASO/F | BG31: SOH/ COMMERCE & CONSUMER AFFAIRS/ EXAM & AUDIT SECTION/ DCCA-INS-EAS | BH31: SOH/ DEFENSE/ ADMINISTRATION/ HIPFA | BI31: SOH/ EDUCATION/ PERS & IND REL BR | BK31: SOH/ HAWAIIAN HOME LANDS/ OAHU DISTRICT OFFICE | BL31: SOH/ HEALTH/ HRA/ CDPHPD/ CHRONIC DIS MGMT BR | BN31: SOH/ HUMAN SERVICES/ MANAGEMENT SERVICES OFFICE/ DHS-MSO | BO31: SOH/ JUDICIARY/ JUDICIARY HISTORY CENTER | BP31: SOH/ LABOR & INDUSTRIAL RELATIONS/ CLERICAL SERVICES | BQ31: SOH/ LAND & NATURAL RESOURCES/ SUPPORT SERVICES BRANCH/ BSS | BS31: SOH/ PUBLIC SAFETY/ CAPITAL PROJECTS STAFF/ PPB-C | BT31: SOH/ TAXATION/ AUDIT DIV | BU31: SOH/ TRANSPORTATION/ BUS PROC IMPRVMT & INTRNL CTRL STAF/ BUS-I | BV31: SOH/ UNIVERSITY OF HAWAII/ POST SECONDARY EDUCATION COMMISSION/ UH/SPEC
C32: 24 | Y32: 0 | Z32: 0 | AD32: =IF(F32="x",(0-((V32*10)+(W32*20))),"") ->  | AE32: 0 | AI32: 0 | AJ32: 0 | AK32: 0 | AL32: 0 | AM32: 0 | AN32: 0 | AO32: 0 | BB32: SOH/ ACCOUNTING & GENERAL SERVICES/ CENTRAL SERVICES BR/ KAU-2 | BC32: SOH/ AGRICULTURE/ COMMODITIES BR/ COM | BD32: SOH/ ATTORNEY GENERAL/ EDUCATION DIVISION/ ED | BE32: SOH/ BUDGET & FINANCE/ DEFENDER COUNCIL | BF32: SOH/ BUSINESS, ECON DEV, & TOURISM/ FOREIGN-TRADE ZONE DIV/ FTZ | BG32: SOH/ COMMERCE & CONSUMER AFFAIRS/ EXAMINATION BRANCH/ DCCA-PVL-EXAM | BH32: SOH/ DEFENSE/ ADMINISTRATIVE SECTION/ HIANG/DA | BI32: SOH/ EDUCATION/ COLLEC BARG & NEG SEC | BK32: SOH/ HAWAIIAN HOME LANDS/ KAUAI DISTRICT OFFICE | BL32: SOH/ HEALTH/ HRA/ CDPHPD/ PRIMARY PREV BR | BN32: SOH/ HUMAN SERVICES/ QUALITY CONTROL STAFF/ DHS-MSO-QC | BO32: SOH/ JUDICIARY/ LAW LIBRARY | BP32: SOH/ LABOR & INDUSTRIAL RELATIONS/ MAUI DISTRICT OFC/ DLIR-MAUI DO | BQ32: SOH/ LAND & NATURAL RESOURCES/ REPRODUCTION SEC/ BSR | BS32: SOH/ PUBLIC SAFETY/ MANAGEMENT INFO SYSTEMS OFFICE/ MIS | BT32: SOH/ TAXATION/ OFFICE AUDIT BR | BU32: SOH/ TRANSPORTATION/ OFFICE SERVICES STAFF/ BUS-O | BV32: SOH/ UNIVERSITY OF HAWAII/ WESTERN INTRSTAT COM FOR HIGHER ED/ UH/WICHE
C33: 25 | Y33: 0 | Z33: 0 | AD33: =IF(F33="x",(0-((V33*10)+(W33*20))),"") ->  | AE33: 0 | AI33: 0 | AJ33: 0 | AK33: 0 | AL33: 0 | AM33: 0 | AN33: 0 | AO33: 0 | BB33: SOH/ ACCOUNTING & GENERAL SERVICES/ CENTRAL SERVICES BR/ MAUI-2 | BC33: SOH/ AGRICULTURE/ COMPLIANCE SECTION/ LDC/COMP | BD33: SOH/ ATTORNEY GENERAL/ FAMILY LAW (HILO) | BE33: SOH/ BUDGET & FINANCE/ DISBURSEMENTS & BENEFITS SECTION | BF33: SOH/ BUSINESS, ECON DEV, & TOURISM/ GEOTHERMAL PROJECT | BG33: SOH/ COMMERCE & CONSUMER AFFAIRS/ EXECUTIVE SECRETARIES/ DCCA-PVL-ES | BH33: SOH/ DEFENSE/ ADVISORY BOARD ON VS | BI33: SOH/ EDUCATION/ CONTRACT ADMIN SEC | BK33: SOH/ HAWAIIAN HOME LANDS/ WEST HAWAII DISTRICT OFFICE | BL33: SOH/ HEALTH/ HRA/ COMMUNICABLE DIS & PH NURSING DIV (CDPHND) | BN33: SOH/ HUMAN SERVICES/ QUALITY CONTROL SEC 1/ DHS-MSO-QC1 | BO33: SOH/ JUDICIARY/ CTR FOR ALTERNATIVE DISPUTE RESOLTN/ ADR | BP33: SOH/ LABOR & INDUSTRIAL RELATIONS/ CLERICAL SERVICES | BQ33: SOH/ LAND & NATURAL RESOURCES/ CLERICAL SEC/ BSC | BS33: SOH/ PUBLIC SAFETY/ SYS DEV & MTNCE STAFF A/ MIS | BT33: SOH/ TAXATION/ OFFICE AUDIT BR | BU33: SOH/ TRANSPORTATION/ SUPPORT SERVICES | BV33: SOH/ UNIVERSITY OF HAWAII/ EXEC VP FOR ACADEMIC AFFAIRS/PROVST/ UH/VP-ACADAFF
C34: 26 | Y34: 0 | Z34: 0 | AE34: 0 | AI34: 0 | AJ34: 0 | AK34: 0 | AL34: 0 | AM34: 0 | AN34: 0 | AO34: 0 | BB34: SOH/ ACCOUNTING & GENERAL SERVICES/ CENTRAL SERVICES DIVISION/ CSD-0 | BC34: SOH/ AGRICULTURE/ COMPLIANCE SERVICES/ MI/COMP | BD34: SOH/ ATTORNEY GENERAL/ FAMILY LAW (KAUAI) | BE34: SOH/ BUDGET & FINANCE/ DOCUMENTATION | BF34: SOH/ BUSINESS, ECON DEV, & TOURISM/ HAWAII COMMUNITY DEVEL AUTHORITY/ HCDA | BG34: SOH/ COMMERCE & CONSUMER AFFAIRS/ FISCAL STAFF/ DCCA-DIR-FIS | BH34: SOH/ DEFENSE/ ADVISORY GROUP - AIR | BI34: SOH/ EDUCATION/ CLASSIF & COMPSATN SEC | BK34: SOH/ HAWAIIAN HOME LANDS/ LOAN SERVICES BRANCH | BL34: SOH/ HEALTH/ HRA/ CDPHND/ HANSENS DISEASE BR | BN34: SOH/ HUMAN SERVICES/ QUALITY CONTROL SEC 2/ DHS-MSO-QC2 | BO34: SOH/ JUDICIARY/ CHILDRENS JUSTICE CENTER | BP34: SOH/ LABOR & INDUSTRIAL RELATIONS/ KAUAI DISTRICT OFC/ DLIR-KAUAI DO | BQ34: SOH/ LAND & NATURAL RESOURCES/ AQUATIC RESOURCES DIVISION/ DAR | BS34: SOH/ PUBLIC SAFETY/ SYS DEV & MTNCE STAFF B/ MIS | BT34: SOH/ TAXATION/ FIELD AUDIT BR | BU34: SOH/ TRANSPORTATION/ REPRODUCTION SERVICES | BV34: SOH/ UNIVERSITY OF HAWAII/ PLANNING, POLICY & ACCOUNTABLTY OFC/ UH/PPA
C35: 27 | Y35: 0 | Z35: 0 | AE35: 0 | AI35: 0 | AJ35: 0 | AK35: 0 | AL35: 0 | AM35: 0 | AN35: 0 | AO35: 0 | BB35: SOH/ ACCOUNTING & GENERAL SERVICES/ CLIENT SERVICES BR I/ICSD | BC35: SOH/ AGRICULTURE/ COMPUTER SVCS STAFF/ CSS | BD35: SOH/ ATTORNEY GENERAL/ FAMILY LAW (KONA) | BE35: SOH/ BUDGET & FINANCE/ ECONOMIC DEVELOPMENT SECTION | BF35: SOH/ BUSINESS, ECON DEV, & TOURISM/ HAWAII HOUSING FINANCE & DEV CORP/ HHFDC | BG35: SOH/ COMMERCE & CONSUMER AFFAIRS/ GENERAL INVESTIGATION SECTION/ DCCA-OCP-GIS | BH35: SOH/ DEFENSE/ ADVISORY GROUP - ARMY | BI35: SOH/ EDUCATION/ EMPLOYEE BNFTS SEC | BK35: SOH/ HAWAIIAN HOME LANDS/ LAND DEVELOPMENT DIVISION | BL35: SOH/ HEALTH/ HRA/ CDPHND/ PUBLIC HEALTH NURSING BR | BN35: SOH/ HUMAN SERVICES/ PROGRAM & MGMT EVAL STAFF/ DHS-MSO-PME | BO35: SOH/ JUDICIARY/ OFC OF EQUALITY & ACCESS TO COURTS | BP35: SOH/ LABOR & INDUSTRIAL RELATIONS/ CLERICAL SERVICES | BQ35: SOH/ LAND & NATURAL RESOURCES/ COMMERCIAL FISH & AQUACULTURE BR | BS35: SOH/ PUBLIC SAFETY/ PERSONNEL MANAGEMENT OFFICE/ PER | BT35: SOH/ TAXATION/ MAUI AUDIT BR | BU35: SOH/ TRANSPORTATION/ CENTRAL FILES | BV35: SOH/ UNIVERSITY OF HAWAII/ INSTITUTIONAL RESEARCH OFFICE/ UH/IRO
C36: 28 | Y36: 0 | Z36: 0 | AE36: 0 | AI36: 0 | AJ36: 0 | AK36: 0 | AL36: 0 | AM36: 0 | AN36: 0 | AO36: 0 | BB36: SOH/ ACCOUNTING & GENERAL SERVICES/ CLIENT SERVICES BR II/ICSD | BC36: SOH/ AGRICULTURE/ DEVELOPMENT STAFF | BD36: SOH/ ATTORNEY GENERAL/ FAMILY LAW (MAUI) | BE36: SOH/ BUDGET & FINANCE/ EMPLOYEES RETIREMENT SYSTEM/ ERS | BF36: SOH/ BUSINESS, ECON DEV, & TOURISM/ HAWAII STRATEGIC DEVELOPMENT CORP/ HSDC | BG36: SOH/ COMMERCE & CONSUMER AFFAIRS/ GENERAL LANDLORD-TENANT INV SEC/ DCCA-OCP-GLTI | BH36: SOH/ DEFENSE/ AIR NATIONAL GUARD DIVISION/ HIANG | BI36: SOH/ EDUCATION/ OFFICE OF BUS SVCS/ OBS | BK36: SOH/ HAWAIIAN HOME LANDS/ HOUSING PROJECT BRANCH | BL36: SOH/ HEALTH/ HRA/ CDPHND/ STD/AIDS PREVENTION BR | BN36: SOH/ HUMAN SERVICES/ FINANCIAL EVAL STAFF/ DHS-MSO-FE | BO36: SOH/ JUDICIARY/ OFFICE OF THE PUBLIC GUARDIAN | BP36: SOH/ LABOR & INDUSTRIAL RELATIONS/ OCCUPATIONAL SAFETY & HEALTH DIV/ DLIR-DOSH | BQ36: SOH/ LAND & NATURAL RESOURCES/ COMMERCIAL FISH SECTION | BS36: SOH/ PUBLIC SAFETY/ LABOR RELATIONS STAFF/ PER-LR | BT36: SOH/ TAXATION/ OFFICE AUDIT SEC | BU36: SOH/ TRANSPORTATION/ MAIL & MESSENGER | BV36: SOH/ UNIVERSITY OF HAWAII/ ACADEMIC AFFAIRS & PERSNL ADMIN OFC/ UH/AAPA
C37: 29 | Y37: 0 | Z37: 0 | AE37: 0 | AI37: 0 | AJ37: 0 | AK37: 0 | AL37: 0 | AM37: 0 | AN37: 0 | AO37: 0 | BB37: SOH/ ACCOUNTING & GENERAL SERVICES/ CLIENT SERVICES BR/ICSD | BC37: SOH/ AGRICULTURE/ DIAGNOSTIC SEC/ VL/DIAG | BD37: SOH/ ATTORNEY GENERAL/ FAMILY LAW/ SOC | BE37: SOH/ BUDGET & FINANCE/ EMPLOYMENT SECTION | BF37: SOH/ BUSINESS, ECON DEV, & TOURISM/ HIGH TECH DEVELOPMENT CORP/ HTDC | BG37: SOH/ COMMERCE & CONSUMER AFFAIRS/ HAWAII INVESTIGATION SECTION/ DCCA-OCP-HIS | BH37: SOH/ DEFENSE/ AIR TRAFFIC CONTROL/ 201 CCGP/AT | BI37: SOH/ EDUCATION/ ADMIN SVCS BR | BK37: SOH/ HAWAIIAN HOME LANDS/ MASTER-PLANNED COMMUNITY BR | BL37: SOH/ HEALTH/ HRA/ CDPHND/ TUBERCULOSIS CONTROL BR | BN37: SOH/ HUMAN SERVICES/ BUDGET STAFF/ DHS-MSO-BUD | BO37: SOH/ JUDICIARY/ VOLUNTEERS IN PUBLIC SVC TO COURTS/ VIPS | BP37: SOH/ LABOR & INDUSTRIAL RELATIONS/ ADMIN & TECHNICAL SUPPORT/ DLIR-DOSH | BQ37: SOH/ LAND & NATURAL RESOURCES/ FISHERY DEVELOPMENT UNIT | BS37: SOH/ PUBLIC SAFETY/ STAFFING & TECHNICAL SERVICES STAFF/ PER-ST | BT37: SOH/ TAXATION/ FIELD AUDIT SEC | BU37: SOH/ TRANSPORTATION/ SYSTEMS ACCOUNTING STAFF/ BUS-S | BV37: SOH/ UNIVERSITY OF HAWAII/ HAWAII P-20 PARTNERSHIPS FOR EDUC/ UH/HPPEO
C38: 30 | Y38: 0 | Z38: 0 | AE38: 0 | AI38: 0 | AJ38: 0 | AK38: 0 | AL38: 0 | AM38: 0 | AN38: 0 | AO38: 0 | BB38: SOH/ ACCOUNTING & GENERAL SERVICES/ CLIENT SUPPORT UNIT/ICSD | BC38: SOH/ AGRICULTURE/ EAST HAWAII DISTRICT/ AGLNH | BD38: SOH/ ATTORNEY GENERAL/ HAWAII CRIMINAL JUSTICE DATA CTR/ HCJDC | BE38: SOH/ BUDGET & FINANCE/ ENGINEERING SECTION | BF38: SOH/ BUSINESS, ECON DEV, & TOURISM/ INDUSTRY PROMOTION DIV/ IPD | BG38: SOH/ COMMERCE & CONSUMER AFFAIRS/ HEALTH BRANCH/ DCCA-INS-HLTH | BH38: SOH/ DEFENSE/ ANALYSIS & INTERNAL REVIEW/ HIPFE | BI38: SOH/ EDUCATION/ ACCOUNTING SEC | BK38: SOH/ HAWAIIAN HOME LANDS/ DESIGN & CONSTRUCTION BRANCH | BL38: SOH/ HEALTH/ HRA/ DEVELOPMENTAL DISABILITIES DIV (DDD) | BN38: SOH/ HUMAN SERVICES/ RESEARCH STAFF/ DHS-MSO-RES | BO38: SOH/ JUDICIARY/ LEGISLATIVE COORDINATION OFFICE | BP38: SOH/ LABOR & INDUSTRIAL RELATIONS/ CONSULTATION & TRAINING BR | BQ38: SOH/ LAND & NATURAL RESOURCES/ AQUACULTURE SECTION | BS38: SOH/ PUBLIC SAFETY/ EMPLOYEE RELATIONS STAFF/ PER-ER | BT38: SOH/ TAXATION/ HAWAII AUDIT BR | BU38: SOH/ TRANSPORTATION/ FEDERAL AID STAFF/ BUS-G | BV38: SOH/ UNIVERSITY OF HAWAII/ HUMAN RESOURCES/ UH/HR
C39: 31 | Y39: 0 | Z39: 0 | AE39: 0 | AI39: 0 | AJ39: 0 | AK39: 0 | AL39: 0 | AM39: 0 | AN39: 0 | AO39: 0 | BB39: SOH/ ACCOUNTING & GENERAL SERVICES/ COMPUTER OPERATIONS UNIT(S)/ICSD | BC39: SOH/ AGRICULTURE/ EAST HAWAII DISTRICT/ MSE | BD39: SOH/ ATTORNEY GENERAL/ HEALTH & HUMAN SERVICES/ H&HS | BE39: SOH/ BUDGET & FINANCE/ ENROLLMENT AND CLERICAL SERVICES | BF39: SOH/ BUSINESS, ECON DEV, & TOURISM/ INTERNATIONAL BUSINESS CTR OF HI | BG39: SOH/ COMMERCE & CONSUMER AFFAIRS/ INFORMATION SYSTEMS/COMM OFFICE/ DCCA-ISC | BH39: SOH/ DEFENSE/ ARMY NATIONAL GUARD DIVISION/ HIARNG | BI39: SOH/ EDUCATION/ REPROGRAPHIC SEC | BK39: SOH/ HAWAIIAN HOME LANDS/ CLERICAL SERVICES | BL39: SOH/ HEALTH/ HRA/ DDD/ CASE MGMT BR | BN39: SOH/ HUMAN SERVICES/ OFFICE OF INFORMATION TECHNOLOGY/ DHS-OIT | BO39: SOH/ JUDICIARY/ OFFICE OF THE CHIEF JUSTICE | BP39: SOH/ LABOR & INDUSTRIAL RELATIONS/ OCCUPATIONAL SAFETY BRANCH/ DLIR-DOSH | BQ39: SOH/ LAND & NATURAL RESOURCES/ AQUATIC RES. & ENVIRON PROTECT BR | BS39: SOH/ PUBLIC SAFETY/ EMPLOYEE TRANSACTIONS STAFF/ PER-ET | BT39: SOH/ TAXATION/ OFFICE AUDIT SEC | BU39: SOH/ TRANSPORTATION/ CONTRACTS OFFICE/ CON | BV39: SOH/ UNIVERSITY OF HAWAII/ CAPITAL IMPROVEMENT/ UH/CAP-IMP
C40: 32 | Y40: 0 | Z40: 0 | AE40: 0 | AI40: 0 | AJ40: 0 | AK40: 0 | AL40: 0 | AM40: 0 | AN40: 0 | AO40: 0 | BB40: SOH/ ACCOUNTING & GENERAL SERVICES/ CONSTRUCTION MGMT/ DPW-14 | BC40: SOH/ AGRICULTURE/ EGGS & FEED UNIT/ EFH | BD40: SOH/ ATTORNEY GENERAL/ INVESTIGATION DIVISION/ INV | BE40: SOH/ BUDGET & FINANCE/ ENROLLMENT, CLAIMS & BENEFITS BR | BF40: SOH/ BUSINESS, ECON DEV, & TOURISM/ LAND USE COMMISSION/ LUC | BG40: SOH/ COMMERCE & CONSUMER AFFAIRS/ INSURANCE DIVISION/ DCCA-INS | BH40: SOH/ DEFENSE/ ASST ADJ GEN, ARMY/COM, STARC/ HIARCG | BI40: SOH/ EDUCATION/ ACCTG & DISTRIB UT | BK40: SOH/ HAWAIIAN HOME LANDS/ INFO & COMMUNITY REL OFFICE | BL40: SOH/ HEALTH/ HRA/ DDD/ COMMUNITY RESOURCES BR | BN40: SOH/ HUMAN SERVICES/ APPLICATIONS DEV & MAINT STAFF/ DHS-OIT-APPS | BO40: SOH/ JUDICIARY/ SUPREME COURT JUSTICES | BP40: SOH/ LABOR & INDUSTRIAL RELATIONS/ COMPLIANCE SECTION I | BQ40: SOH/ LAND & NATURAL RESOURCES/ AQUATIC RESOURCES ADMINISTRATION | BS40: SOH/ PUBLIC SAFETY/ TRAINING & STAFF DEVELOPMENT OFC/ TSD | BT40: SOH/ TAXATION/ FIELD AUDIT SEC | BU40: SOH/ TRANSPORTATION/ PPB MGMT & ANALYTICAL OFC/ PPB | BV40: SOH/ UNIVERSITY OF HAWAII/ UNIV OF HAWAII AT MANOA/ UH MANOA
C41: 33 | Y41: 0 | Z41: 0 | AE41: 0 | AI41: 0 | AJ41: 0 | AK41: 0 | AL41: 0 | AM41: 0 | AN41: 0 | AO41: 0 | BB41: SOH/ ACCOUNTING & GENERAL SERVICES/ CONSTRUCTION MGMT/ DPW-15 | BC41: SOH/ AGRICULTURE/ EGGS & FEED UNIT/ EFK | BD41: SOH/ ATTORNEY GENERAL/ LEGAL SVC BRANCH - ADMINISTRATION/ ADM | BE41: SOH/ BUDGET & FINANCE/ ENVIRONMENTAL PROTECTION SECTION | BF41: SOH/ BUSINESS, ECON DEV, & TOURISM/ NATURAL ENERGY LAB OF HI AUTHORITY/ NELHA | BG41: SOH/ COMMERCE & CONSUMER AFFAIRS/ INVESTIGATION BRANCH/ DCCA-OCP-INV | BH41: SOH/ DEFENSE/ ASST AG AIR/COMMANDER HIANG/ HIANG/CC | BI41: SOH/ EDUCATION/ PRINTING UT | BK41: SOH/ HAWAIIAN HOME LANDS/ LAND MANAGEMENT DIVISION | BL41: SOH/ HEALTH/ HRA/ DDD/ OUTCOMES & COMPLIANCE BR | BN41: SOH/ HUMAN SERVICES/ SYSTEMS ANALYSIS & DESIGN SEC 1/ DHS-OIT-SADS1 | BO41: SOH/ JUDICIARY/ STAFF ATTORNEY | BP41: SOH/ LABOR & INDUSTRIAL RELATIONS/ COMPLIANCE SECTION II | BQ41: SOH/ LAND & NATURAL RESOURCES/ STAFF SERVICES | BS41: SOH/ PUBLIC SAFETY/ BASIC TRAINING STAFF/ TSD-BT | BT41: SOH/ TAXATION/ KONA AUDIT SEC | BU41: SOH/ TRANSPORTATION/ PROJECT MANAGEMENT STAFF/ PPB-M | BV41: SOH/ UNIVERSITY OF HAWAII/ UH MANOA/ OFC OF THE CHANCELLOR/ UH MANOA/CHAN
C42: 34 | Y42: 0 | Z42: 0 | AE42: 0 | AI42: 0 | AJ42: 0 | AK42: 0 | AL42: 0 | AM42: 0 | AN42: 0 | AO42: 0 | BB42: SOH/ ACCOUNTING & GENERAL SERVICES/ CONSTRUCTION MGMT/ DPW-16 | BC42: SOH/ AGRICULTURE/ EGGS & FEED UNIT/ EFM | BD42: SOH/ ATTORNEY GENERAL/ LEGAL SVC BRANCH - APPELLATE/ APP | BE42: SOH/ BUDGET & FINANCE/ FAMILY COURT | BF42: SOH/ BUSINESS, ECON DEV, & TOURISM/ OCEAN RESOURCES BRANCH/ ORB | BG42: SOH/ COMMERCE & CONSUMER AFFAIRS/ INVESTIGATION STAFF | BH42: SOH/ DEFENSE/ AUDITING SECTION/ HIANG/ACM | BI42: SOH/ EDUCATION/ GRAPHICS UT | BK42: SOH/ HAWAIIAN HOME LANDS/ INCOME PROPERTY BRANCH | BL42: SOH/ HEALTH/ HRA/ DDD/ HOSPITAL & COMMUNITY DENTAL SVC BR | BN42: SOH/ HUMAN SERVICES/ SYSTEMS ANALYSIS & DESIGN SEC 2/ DHS-OIT-SADS2 | BO42: SOH/ JUDICIARY/ JUDICIAL COUNCIL | BP42: SOH/ LABOR & INDUSTRIAL RELATIONS/ BOILER/ELEVATOR INSPECTION BRANCH/ DLIR-DOSH | BQ42: SOH/ LAND & NATURAL RESOURCES/ CLERICAL SERVICES | BS42: SOH/ PUBLIC SAFETY/ ADVANCED TRAINING STAFF/ TSD-AT | BT42: SOH/ TAXATION/ KAUAI AUDIT BR | BU42: SOH/ TRANSPORTATION/ BUDGET CONTROL & EXECUTION STAFF/ PPB-B | BV42: SOH/ UNIVERSITY OF HAWAII/ UH MANOA/ VICE CHANCELLOR FOR ADMIN/ UH MANOA/ADM
C43: 35 | Y43: 0 | Z43: 0 | AE43: 0 | AI43: 0 | AJ43: 0 | AK43: 0 | AL43: 0 | AM43: 0 | AN43: 0 | AO43: 0 | BB43: SOH/ ACCOUNTING & GENERAL SERVICES/ CONTRACT STAFF/ DPW-2 | BC43: SOH/ AGRICULTURE/ EGGS & FEED UNIT/ EFO | BD43: SOH/ ATTORNEY GENERAL/ LEGAL SVC BRANCH - CED/ CED | BE43: SOH/ BUDGET & FINANCE/ FIN RESEARCH, PLNG & POLICY DEV BR | BF43: SOH/ BUSINESS, ECON DEV, & TOURISM/ OFFICE OF SPACE INDUSTRY/ OSI | BG43: SOH/ COMMERCE & CONSUMER AFFAIRS/ LEGAL BRANCH/ DCCA-OCP-LEG | BH43: SOH/ DEFENSE/ AUTOMATION SECTION | BI43: SOH/ EDUCATION/ PROCURMT&CENT DIST SEC | BK43: SOH/ HAWAIIAN HOME LANDS/ TECHNICAL SERVICES BRANCH | BL43: SOH/ HEALTH/ HRA/ DISEASE OUTBREAK CONTROL DIV (DOCD) | BN43: SOH/ HUMAN SERVICES/ COMPUTER PROGRAMMING SEC/ DHS-OIT-CP | BO43: SOH/ JUDICIARY/ OFFICE OF THE CLERK | BP43: SOH/ LABOR & INDUSTRIAL RELATIONS/ BOILER INSPECTION SECTION/ DLIR-DOSH | BQ43: SOH/ LAND & NATURAL RESOURCES/ RESOURCE PROTECTION SECTION | BS43: SOH/ PUBLIC SAFETY/ SPECIAL TRAINING STAFF/ TSD-ST | BT43: SOH/ TAXATION/ OFFICE AUDIT SEC | BU43: SOH/ TRANSPORTATION/ METHODS & PROCEDURES STAFF/ PPB-P | BV43: SOH/ UNIVERSITY OF HAWAII/ UH MANOA/ VICE CHANC FOR ACAD AFFS/ UH ACAD-AFFS
C44: 36 | Y44: 0 | Z44: 0 | AE44: 0 | AI44: 0 | AJ44: 0 | AK44: 0 | AL44: 0 | AM44: 0 | AN44: 0 | AO44: 0 | BB44: SOH/ ACCOUNTING & GENERAL SERVICES/ CULTURE & THE ARTS/ SFCA-0 | BC44: SOH/ AGRICULTURE/ EPIDEMIOLOGY SECTION/ LDC/EPI/OAHU | BD44: SOH/ ATTORNEY GENERAL/ LEGAL SVC BRANCH - EMPLOYMENT LAW/ ERD | BE44: SOH/ BUDGET & FINANCE/ FINANCIAL ADMINISTRATION DIVISION/ FAD | BF44: SOH/ BUSINESS, ECON DEV, & TOURISM/ OFFICE OF TOURISM | BG44: SOH/ COMMERCE & CONSUMER AFFAIRS/ LEGAL STAFF | BH44: SOH/ DEFENSE/ CHAPLAIN/ HIARCH | BI44: SOH/ EDUCATION/ OPERATIONS SEC | BK44: SOH/ HAWAIIAN HOME LANDS/ LAND MANAGEMENT BRANCH | BL44: SOH/ HEALTH/ HRA/ DOCD/ BIOTERRORISM PREPARDNESS &RESPNS BR | BN44: SOH/ HUMAN SERVICES/ SYSTEMS SOFTWARE MGMT STAFF/ DHS-OIT-SSM | BO44: SOH/ JUDICIARY/ INTERMEDIATE COURT OF APPEALS | BP44: SOH/ LABOR & INDUSTRIAL RELATIONS/ ELEVATOR INSPECTION SECTION/ DLIR-DOSH | BQ44: SOH/ LAND & NATURAL RESOURCES/ AQUATIC RESOURCES I & E SECTION | BS44: SOH/ PUBLIC SAFETY/ CIVIL RIGHTS COMPLIANCE OFFICE/ CRC | BT44: SOH/ TAXATION/ FIELD AUDIT SEC | BU44: SOH/ TRANSPORTATION/ PROGRAM EVALUATION & ANALYST STAFF/ PPB-E | BV44: SOH/ UNIVERSITY OF HAWAII/ UH MANOA/VICE CHANC FOR RESEARCH/ UH MANOA/RES
C45: 37 | Y45: 0 | Z45: 0 | AE45: 0 | AI45: 0 | AJ45: 0 | AK45: 0 | AL45: 0 | AM45: 0 | AN45: 0 | AO45: 0 | BB45: SOH/ ACCOUNTING & GENERAL SERVICES/ CUST & GRDS MAINT SEC/ KAU-5 | BC45: SOH/ AGRICULTURE/ FISCAL STAFF/ FISC | BD45: SOH/ ATTORNEY GENERAL/ LEGAL SVC BRANCH - LABOR/ LAB | BE45: SOH/ BUDGET & FINANCE/ FINANCIAL PLNG & POLICY SECTION | BF45: SOH/ BUSINESS, ECON DEV, & TOURISM/ OPERATIONS BR/ OPS | BG45: SOH/ COMMERCE & CONSUMER AFFAIRS/ LEGAL STENO SERVICE/ DCCA-OAH-LSS | BH45: SOH/ DEFENSE/ CHAPLAIN/ HIIB-CH | BI45: SOH/ EDUCATION/ PAYROLL UT | BK45: SOH/ HAWAIIAN HOME LANDS/ HAWAII SECTION | BL45: SOH/ HEALTH/ HRA/ DOCD/ DISEASE INVESTIGATION BR | BN45: SOH/ HUMAN SERVICES/ SYSTEMS MANAGEMENT SEC/ DHS-OIT-SM | BO45: SOH/ JUDICIARY/ FIRST JUDICIAL CIRCUIT -CHIEF JUDGE/ 1JC | BP45: SOH/ LABOR & INDUSTRIAL RELATIONS/ OCCUPATIONAL HEALTH BRANCH/ DLIR-DOSH | BQ45: SOH/ LAND & NATURAL RESOURCES/ RECREATIONAL FISH BR | BS45: SOH/ PUBLIC SAFETY/ CORRECTIONS PROGRAM SERVICES OFC/ CPS | BT45: SOH/ TAXATION/ COLLECTION DIV | BU45: SOH/ TRANSPORTATION/ COMPUTER SYSTEMS & SERVICES/ CSS | BV45: SOH/ UNIVERSITY OF HAWAII/ UH MANOA/VICE CHANC FOR STUDENTS/ UH MANOA/STDT
C46: 38 | Y46: 0 | Z46: 0 | AE46: 0 | AI46: 0 | AJ46: 0 | AK46: 0 | AL46: 0 | AM46: 0 | AN46: 0 | AO46: 0 | BB46: SOH/ ACCOUNTING & GENERAL SERVICES/ CUST & GRDS SECTION/ MOLO-1 | BC46: SOH/ AGRICULTURE/ FRESH FRTS & VEGS UNIT/ FFVH | BD46: SOH/ ATTORNEY GENERAL/ LEGAL SVC BRANCH - LAND/TRANS/ L/T | BE46: SOH/ BUDGET & FINANCE/ FINANCIAL RESEARCH & PROJEC SEC | BF46: SOH/ BUSINESS, ECON DEV, & TOURISM/ OVERSEAS OFFICES | BG46: SOH/ COMMERCE & CONSUMER AFFAIRS/ LICENSING BRANCH/ DCCA-INS-LIC | BH46: SOH/ DEFENSE/ CHEMICAL OFFICE/ HIIB-CM | BI46: SOH/ EDUCATION/ VOUCHERING UT | BK46: SOH/ HAWAIIAN HOME LANDS/ OAHU-KAUAI-MAUI SECTION | BL46: SOH/ HEALTH/ HRA/ DOCD/ IMMUNIZATION BR | BN46: SOH/ HUMAN SERVICES/ SYSTEMS SECURITY SEC/ DHS-OIT-SS | BO46: SOH/ JUDICIARY/ DEPUTY CHIEF JUDGE -1CC CIVIL ADMIN/ 1CC-CIVIL | BP46: SOH/ LABOR & INDUSTRIAL RELATIONS/ STATE FIRE COUNCIL/ DLIR FIRE CN | BQ46: SOH/ LAND & NATURAL RESOURCES/ MARINE RECRL FISH SECTION | BS46: SOH/ PUBLIC SAFETY/ HEALTH CARE SERVICES OFFICE/ HCO | BT46: SOH/ TAXATION/ OAHU COLLECTION BR | BU46: SOH/ TRANSPORTATION/ INFORMATION RESOURCE MANAGEMT STAFF/ CSS-I | BV46: SOH/ UNIVERSITY OF HAWAII/ UNIVERSITY OF HAWAII AT HILO/ UH/HILO
C47: 39 | Y47: 0 | Z47: 0 | AE47: 0 | AI47: 0 | AJ47: 0 | AK47: 0 | AL47: 0 | AM47: 0 | AN47: 0 | AO47: 0 | BB47: SOH/ ACCOUNTING & GENERAL SERVICES/ DATA ADMINISTRATION SECTION/ICSD | BC47: SOH/ AGRICULTURE/ FRESH FRTS & VEGS UNIT/ FFVK | BD47: SOH/ ATTORNEY GENERAL/ LEGAL SVC BRANCH - LEGISLATION/ LEG | BE47: SOH/ BUDGET & FINANCE/ FISCAL ANALYSIS STAFF | BF47: SOH/ BUSINESS, ECON DEV, & TOURISM/ PERSONNEL STAFF/ ASO/P | BG47: SOH/ COMMERCE & CONSUMER AFFAIRS/ LICENSING BRANCH/ DCCA-PVL-LIC | BH47: SOH/ DEFENSE/ CHIEF OF STAFF/ HIANG/CS | BI47: SOH/ EDUCATION/ MAIL SERV | BK47: SOH/ HAWAIIAN HOME LANDS/ ENFORCEMENT SECTION | BL47: SOH/ HEALTH/ HRA/ EMERG MED SVCS & INJURY PREV SYS BR | BN47: SOH/ HUMAN SERVICES/ TELECOMS & SYSTEM NETWORK STAFF/ DHS-OIT-TSN | BO47: SOH/ JUDICIARY/ JUDGES & STAFF/ 1CC-CIVIL | BP47: SOH/ LABOR & INDUSTRIAL RELATIONS/ WAGE STANDARDS DIVISION/ DLIR-WS | BQ47: SOH/ LAND & NATURAL RESOURCES/ FRESHWATER RECRL FISH SECTION | BS47: SOH/ PUBLIC SAFETY/ PROGRAMMING SERVICES STAFF/ CPS-P | BT47: SOH/ TAXATION/ FIELD COLLECTN SEC | BU47: SOH/ TRANSPORTATION/ COMMUNICATION & NETWORK ADMIN STAFF | BV47: SOH/ UNIVERSITY OF HAWAII/ OFC OF THE CHANCELLOR/ UH/HILO/CHAN
C48: 40 | Y48: 0 | Z48: 0 | AE48: 0 | AI48: 0 | AJ48: 0 | AK48: 0 | AL48: 0 | AM48: 0 | AN48: 0 | AO48: 0 | BB48: SOH/ ACCOUNTING & GENERAL SERVICES/ DATA PREPARATION UNIT(S)/ICSD | BC48: SOH/ AGRICULTURE/ FRESH FRTS & VEGS UNIT/ FFVM | BD48: SOH/ ATTORNEY GENERAL/ LEGAL SVC BRANCH - TAX/ TAX | BE48: SOH/ BUDGET & FINANCE/ FISCAL SERVICES OFFICE | BF48: SOH/ BUSINESS, ECON DEV, & TOURISM/ PRODUCTS AND SERVICES BRANCH/ PSB | BG48: SOH/ COMMERCE & CONSUMER AFFAIRS/ MAUI INVESTIGATION SECTION/ DCCA-OCP-MIS | BH48: SOH/ DEFENSE/ CHIEF OF STAFF/ HIARCS | BI48: SOH/ EDUCATION/ FACILIT SUPRT SVCS BR | BK48: SOH/ HAWAIIAN HOME LANDS/ CLERICAL SERVICES | BL48: SOH/ HEALTH/ HRA/ FAMILY HEALTH SVCS DIV (FHSD) | BN48: SOH/ HUMAN SERVICES/ NETWORK PLANNING & MGMT SECTION/ DHS-ISO-NPM | BO48: SOH/ JUDICIARY/ DEP CHIEF JUDGE -1CC CRIMINAL ADMIN/ 1CC-CRIM | BP48: SOH/ LABOR & INDUSTRIAL RELATIONS/ TECHNICAL SUPPORT & SERVICES OFFICE/ TSSO | BQ48: SOH/ LAND & NATURAL RESOURCES/ DIVISION OF FORESTRY & WILDLIFE/ DFW | BS48: SOH/ PUBLIC SAFETY/ OPERATING SERVICES STAFF/ CPS-O | BT48: SOH/ TAXATION/ FIELD COLLECTION UT | BU48: SOH/ TRANSPORTATION/ OFFICE AUTOMATION STAFF/ CSS-OA | BV48: SOH/ UNIVERSITY OF HAWAII/ ACADEMIC AFFAIRS/ UH/HILO/ACAD
C49: 41 | Y49: 0 | Z49: 0 | AE49: 0 | AI49: 0 | AJ49: 0 | AK49: 0 | AL49: 0 | AM49: 0 | AN49: 0 | AO49: 0 | BB49: SOH/ ACCOUNTING & GENERAL SERVICES/ DATABASE MANAGEMENT SECTION/ICSD | BC49: SOH/ AGRICULTURE/ FRESH FRTS & VEGS UNIT/ FFVO | BD49: SOH/ ATTORNEY GENERAL/ LEGAL SVC BRANCH - TORT LITIGATION/ TORT | BE49: SOH/ BUDGET & FINANCE/ FISCAL STAFF | BF49: SOH/ BUSINESS, ECON DEV, & TOURISM/ REFERENCE & INFO RETRIEVAL BRANCH | BG49: SOH/ COMMERCE & CONSUMER AFFAIRS/ OFFICE OF ADMINISTRATIVE HEARINGS/ DCCA-OAH | BH49: SOH/ DEFENSE/ CIVIL AFFAIRS OFFICE/ HIIB-CA | BI49: SOH/ EDUCATION/ AUXILIARY SVCS SEC | BL49: SOH/ HEALTH/ HRA/ FHSD/ CHILDREN WITH SPEC HEALTH NEEDS BR | BN49: SOH/ HUMAN SERVICES/ MICROCOMPUTER SEC/ DHS-ISO-MIC | BO49: SOH/ JUDICIARY/ JUDGES & STAFF/ 1CC-CRIM | BP49: SOH/ LABOR & INDUSTRIAL RELATIONS/ INTAKE & CERTIFICATION BRANCH/ ICB | BQ49: SOH/ LAND & NATURAL RESOURCES/ CLERICAL SERVICES/ DCS | BS49: SOH/ PUBLIC SAFETY/ EDUCATION SERVICES STAFF/ CPS-E | BT49: SOH/ TAXATION/ ACCTS/CLER PROCESSG UT | BU49: SOH/ TRANSPORTATION/ COMPUTER OPERATIONS STAFF/ CSS-S | BV49: SOH/ UNIVERSITY OF HAWAII/ ADMINISTRATIVE AFFAIRS/ UH/HILO/ADMIN
C50: 42 | Y50: 0 | Z50: 0 | AE50: 0 | AI50: 0 | AJ50: 0 | AK50: 0 | AL50: 0 | AM50: 0 | AN50: 0 | AO50: 0 | BB50: SOH/ ACCOUNTING & GENERAL SERVICES/ DESIGN BRANCH/ DPW-11 | BC50: SOH/ AGRICULTURE/ GROUNDSKEEPING SEC/ AQS/GROUNDS | BD50: SOH/ ATTORNEY GENERAL/ LEGAL SVC BRANCH-CRIMINAL JUSTICE/ CJD | BE50: SOH/ BUDGET & FINANCE/ GOVERNMENT-WIDE SUPP SECTION III | BF50: SOH/ BUSINESS, ECON DEV, & TOURISM/ RESEARCH/ECONOMIC ANALYSIS DIV/ READ | BG50: SOH/ COMMERCE & CONSUMER AFFAIRS/ OFFICE OF CONSUMER PROTECTION/ DCCA-OCP | BH50: SOH/ DEFENSE/ CIVIL DEFENSE ADVISORY COUNCIL | BI50: SOH/ EDUCATION/ CUSTODIAL SVCS | BL50: SOH/ HEALTH/ HRA/ FHSD/ MATERNAL & CHILD HEALTH BR | BN50: SOH/ HUMAN SERVICES/ OFC AUTOMATN & CLIENT COMPUTER SVCS/ DHS-OIT-OACCS | BO50: SOH/ JUDICIARY/ DEPUTY CHIEF JUDGE - 1FC ADMIN/ 1FC | BP50: SOH/ LABOR & INDUSTRIAL RELATIONS/ COMPLIANCE BRANCH/ CB | BQ50: SOH/ LAND & NATURAL RESOURCES/ SUPT SVCS - FORESTS RES MGMT/ DFR | BS50: SOH/ PUBLIC SAFETY/ LIBRARY SERVICES STAFF/ CPS-L | BT50: SOH/ TAXATION/ OFFICE COLLECTN SEC | BU50: SOH/ TRANSPORTATION/ COMPUTER OPERATIONS SECTION | BV50: SOH/ UNIVERSITY OF HAWAII/ OFC OF MAUNA KEA MANAGEMENT/ UH/HILO/MAUNA
C51: 43 | Y51: 0 | Z51: 0 | AE51: 0 | AI51: 0 | AJ51: 0 | AK51: 0 | AL51: 0 | AM51: 0 | AN51: 0 | AO51: 0 | BB51: SOH/ ACCOUNTING & GENERAL SERVICES/ DESIGNATED PROGRAMS/ SFCA-1 | BC51: SOH/ AGRICULTURE/ HAWAII AGR STATS SV BR/ HASS | BD51: SOH/ ATTORNEY GENERAL/ OFFICE OF THE ATTORNEY GENERAL/ OAG | BE51: SOH/ BUDGET & FINANCE/ GOVERNMENT-WIDE SUPPORT SECTION I | BF51: SOH/ BUSINESS, ECON DEV, & TOURISM/ SOH/ BUSINESS, ECON DEV, & TOURISM/ DBEDT | BG51: SOH/ COMMERCE & CONSUMER AFFAIRS/ OFFICE OF THE DIRECTOR/ DCCA-DIR | BH51: SOH/ DEFENSE/ CIVIL ENGINEERING/ HIIB-CE | BI51: SOH/ EDUCATION/ STU TRNS,TRFCSFTY,HSG | BL51: SOH/ HEALTH/ HRA/ FHSD/ WOMEN, INFANTS & CHILDREN SVCS BR | BN51: SOH/ HUMAN SERVICES/ COMPUTER OPERATIONS STAFF/ DHS-OIT-COS | BO51: SOH/ JUDICIARY/ JUDGES & STAFF/ 1FC | BP51: SOH/ LABOR & INDUSTRIAL RELATIONS/ INVESTIGATIONS SECTION I/ ISI | BQ51: SOH/ LAND & NATURAL RESOURCES/ FOR RES MGMT/ DRM | BS51: SOH/ PUBLIC SAFETY/ RELIGIOUS SERVICES STAFF/ CPS-R | BT51: SOH/ TAXATION/ OFC COLLECTN UT | BU51: SOH/ TRANSPORTATION/ DATA ENTRY SECTION | BV51: SOH/ UNIVERSITY OF HAWAII/ STUDENT AFFAIRS/ UH/HILO/STDT
C52: 44 | Y52: 0 | Z52: 0 | AE52: 0 | AI52: 0 | AJ52: 0 | AK52: 0 | AL52: 0 | AM52: 0 | AN52: 0 | AO52: 0 | BB52: SOH/ ACCOUNTING & GENERAL SERVICES/ DISTRIBUTED SYSTEM SECTION/ICSD | BC52: SOH/ AGRICULTURE/ HAWAII DISTRICT UT/ AGRPIPPCBCH | BD52: SOH/ ATTORNEY GENERAL/ PSHHD/ PSHHD | BE52: SOH/ BUDGET & FINANCE/ GOVERNMENT-WIDE SUPPORT SECTION II | BF52: SOH/ BUSINESS, ECON DEV, & TOURISM/ OFFICE OF THE DIRECTOR/ DBEDT-DIR | BG52: SOH/ COMMERCE & CONSUMER AFFAIRS/ OFFICE SERVICES STAFF/ DCCA-BREG-OSS | BH52: SOH/ DEFENSE/ CLERICAL SECTION | BI52: SOH/ EDUCATION/ CIP BUDGET SEC | BL52: SOH/ HEALTH/ ENVIRONMENTAL HEALTH ADMIN (EHA) | BN52: SOH/ HUMAN SERVICES/ DATA CONTROL SEC/ DHS-OIT-DCS | BO52: SOH/ JUDICIARY/ DEPUTY CHIEF JUDGE - 1DC ADMIN/ 1DC | BP52: SOH/ LABOR & INDUSTRIAL RELATIONS/ INVESTIGATIONS SECTION II/ ISII | BQ52: SOH/ LAND & NATURAL RESOURCES/ COOP FORSTS MGT/ DCM | BS52: SOH/ PUBLIC SAFETY/ INTAKE SERVICES CENTER DIVISION/ ICSD | BT52: SOH/ TAXATION/ NON-FILERS UT | BU52: SOH/ TRANSPORTATION/ CONTROL SECTION | BV52: SOH/ UNIVERSITY OF HAWAII/ UNIVERSITY OF HAWAII - WEST OAHU/ UH/WOAHU
C53: 45 | Y53: 0 | Z53: 0 | AE53: 0 | AI53: 0 | AJ53: 0 | AK53: 0 | AL53: 0 | AM53: 0 | AN53: 0 | AO53: 0 | BB53: SOH/ ACCOUNTING & GENERAL SERVICES/ EAST KAUAI SECTION/ KAU-3 | BC53: SOH/ AGRICULTURE/ HAWAII DISTRICT UT/ AGRPIPPCCMH | BD53: SOH/ ATTORNEY GENERAL/ RESOURCE COORDINATION DIV/ RCD | BE53: SOH/ BUDGET & FINANCE/ HAWAII | BF53: SOH/ BUSINESS, ECON DEV, & TOURISM/ INFORMATION RESOURCES MGMT DIV/ IRMD | BG53: SOH/ COMMERCE & CONSUMER AFFAIRS/ OFFICE SERVICES STAFF/ DCCA-DIR-OSS | BH53: SOH/ DEFENSE/ CLERICAL SECTION | BI53: SOH/ EDUCATION/ DESIGN COORD & EVAL SEC | BL53: SOH/ HEALTH/ EHA/ COMPLIANCE ASSISTANCE OFC | BN53: SOH/ HUMAN SERVICES/ OPERATIONS SEC/ DHS-ISO-OS | BO53: SOH/ JUDICIARY/ JUDGES/ 1DC | BP53: SOH/ LABOR & INDUSTRIAL RELATIONS/ HEARINGS BRANCH/ HB | BQ53: SOH/ LAND & NATURAL RESOURCES/ FOR RES EVAL & TEC SVC/ DTS | BS53: SOH/ PUBLIC SAFETY/ HAWAII INTAKE SERVICES CENTER/ HISC | BT53: SOH/ TAXATION/ MAUI COLLECTION BR | BU53: SOH/ TRANSPORTATION/ PROPERTY MANAGEMENT OFC/ PMN | BV53: SOH/ UNIVERSITY OF HAWAII/ OFC OF THE CHANCELLOR/ UH/WOAHU/CHAN
C54: 46 | Y54: 0 | Z54: 0 | AE54: 0 | AI54: 0 | AJ54: 0 | AK54: 0 | AL54: 0 | AM54: 0 | AN54: 0 | AO54: 0 | BB54: SOH/ ACCOUNTING & GENERAL SERVICES/ ED CORR DEF & AGR SEC/ DPW-6 | BC54: SOH/ AGRICULTURE/ HAWAII DISTRICT/ ADMH | BD54: SOH/ ATTORNEY GENERAL/ RESOURCE COORDINATION DIVISION/ RCD | BE54: SOH/ BUDGET & FINANCE/ HAWAII INFORMATION NETWORK CORP | BF54: SOH/ BUSINESS, ECON DEV, & TOURISM/ DATA SUPPORT BRANCH | BG54: SOH/ COMMERCE & CONSUMER AFFAIRS/ PERSONNEL STAFF/ DCCA-DIR-PERS | BH54: SOH/ DEFENSE/ COMMAND SERGEANT MAJOR/ HIARSM | BI54: SOH/ EDUCATION/ INFO SYST SVCS BR | BL54: SOH/ HEALTH/ EHA/ HAZARD EVAL EMERG RESPONSE OFC | BN54: SOH/ HUMAN SERVICES/ PROJECT MGMT & PLANNING STAFF/ DHS-OIT-PMP | BO54: SOH/ JUDICIARY/ CHIEF COURT ADMIN/FAMILY COURT DIR | BP54: SOH/ LABOR & INDUSTRIAL RELATIONS/ CLERICAL SERVICES/ CS | BQ54: SOH/ LAND & NATURAL RESOURCES/ FOR RES PROT/ DRP | BS54: SOH/ PUBLIC SAFETY/ OFFICE SERVICES STAFF/ HISC | BT54: SOH/ TAXATION/ MOLOKAI SEC | BU54: SOH/ TRANSPORTATION/ STATEWIDE TRNSPORTATN PLANNING OFC/ STP | BV54: SOH/ UNIVERSITY OF HAWAII/ ACADEMIC SUPPORT/ UH/WOAHU/ACAD
C55: 47 | Y55: 0 | Z55: 0 | AE55: 0 | AI55: 0 | AJ55: 0 | AK55: 0 | AL55: 0 | AM55: 0 | AN55: 0 | AO55: 0 | BB55: SOH/ ACCOUNTING & GENERAL SERVICES/ EDUCATION & TRAINING SECTION/ICSD | BC55: SOH/ AGRICULTURE/ HAWAII DISTRICT/ AGRPIPQH | BD55: SOH/ ATTORNEY GENERAL/ SOH/ ATTORNEY GENERAL/ AG | BE55: SOH/ BUDGET & FINANCE/ HAWAII EMPLOYER-UNION HEALTH BENEFITS TRUST FUND | BF55: SOH/ BUSINESS, ECON DEV, & TOURISM/ SPECIAL PROJECTS BRANCH | BG55: SOH/ COMMERCE & CONSUMER AFFAIRS/ PROFESSIONAL & VOCATIONAL LICENSING/ DCCA-PVL | BH55: SOH/ DEFENSE/ COMMAND SERGEANT MAJOR/ HIIB-SM | BI55: SOH/ EDUCATION/ SCHOOL FOOD SERV BR | BL55: SOH/ HEALTH/ EHA/ ENVIRONMENTAL PLANNING OFC | BN55: SOH/ HUMAN SERVICES/ ADMINISTRATIVE APPEALS OFFICE/ DHS-AAO | BO55: SOH/ JUDICIARY/ ADMINISTRATIVE SERVICES DIV/ 1JC-ASD | BP55: SOH/ LABOR & INDUSTRIAL RELATIONS/ UNEMPLOYMENT INSURANCE DIVISION/ DLIR-UI | BQ55: SOH/ LAND & NATURAL RESOURCES/ SUPT SVC - TRAILS & ACCESS SECTION | BS55: SOH/ PUBLIC SAFETY/ WEST HAWAII OPERATIONS SECTION/ HISC | BT55: SOH/ TAXATION/ FIELD COLLECTION SEC | BU55: SOH/ TRANSPORTATION/ PLANNING PROCESS STAFF/ STP-A | BV55: SOH/ UNIVERSITY OF HAWAII/ ADMINISTRATIVE SERVICES/ UH/WOAHU/ADM
C56: 48 | Y56: 0 | Z56: 0 | AE56: 0 | AI56: 0 | AJ56: 0 | AK56: 0 | AL56: 0 | AM56: 0 | AN56: 0 | AO56: 0 | BB56: SOH/ ACCOUNTING & GENERAL SERVICES/ ENG & MAINT MGMT BR/ STAD-3 | BC56: SOH/ AGRICULTURE/ HAWAII DISTRICT/ ARMDAPH | BE56: SOH/ BUDGET & FINANCE/ HAWAII EUTF STAFF | BF56: SOH/ BUSINESS, ECON DEV, & TOURISM/ STATISTICS BRANCH/ STATS | BG56: SOH/ COMMERCE & CONSUMER AFFAIRS/ RATE & POLICY ANALYSIS BRANCH/ DCCA-INS-RPA | BH56: SOH/ DEFENSE/ COMMAND SERGEANT MAJOR/ HITC-SM | BI56: SOH/ EDUCATION/ OFF OF INSTR SVCS/ OIS | BL56: SOH/ HEALTH/ EHA/ ENVIRONMENTAL RESOURCES OFC | BN56: SOH/ HUMAN SERVICES/ SECRETARY/CLERICAL SERVICES/ DHS-AAO-SEC | BO56: SOH/ JUDICIARY/ STAFF SVCS/ LEGAL RESEARCH/ 1JC-ASD-LEG | BP56: SOH/ LABOR & INDUSTRIAL RELATIONS/ PROGRAM DEV, COORD & EVAL SVCS OFC | BQ56: SOH/ LAND & NATURAL RESOURCES/ SUPT SVCS - NATURAL AREAS RESERVE | BS56: SOH/ PUBLIC SAFETY/ EAST HAWAII OPERATIONS SECTION/ HISC | BT56: SOH/ TAXATION/ OFC COLLECTION SEC | BU56: SOH/ TRANSPORTATION/ PLANS DEVELOPMENT SECTION | BV56: SOH/ UNIVERSITY OF HAWAII/ CENTER FOR LABOR EDUCATION & RES/ UH/WOAHU/CLER
C57: 49 | Y57: 0 | Z57: 0 | AE57: 0 | AI57: 0 | AJ57: 0 | AK57: 0 | AL57: 0 | AM57: 0 | AN57: 0 | AO57: 0 | BB57: SOH/ ACCOUNTING & GENERAL SERVICES/ ENGR-DESIGN SECTION/ DPW-12 | BC57: SOH/ AGRICULTURE/ HAWAII DISTRICT/ COMH | BE57: SOH/ BUDGET & FINANCE/ HEALTH SECTION | BF57: SOH/ BUSINESS, ECON DEV, & TOURISM/ STATE OFFICE OF PLANNING/ SOP | BG57: SOH/ COMMERCE & CONSUMER AFFAIRS/ REAL ESTATE BRANCH/ DCCA-PVL-REAL | BH57: SOH/ DEFENSE/ COMMANDER, 1/193 AVN BN/ AVBN-CO | BI57: SOH/ EDUCATION/ ADMIN SVCS | BL57: SOH/ HEALTH/ EHA/ ENVIRONMENTAL HEALTH SVCS DIV (EHSD) | BN57: SOH/ HUMAN SERVICES/ OFFICE OF YOUTH SERVICES/ DHS-OYS | BO57: SOH/ JUDICIARY/ STAFF SVCS/ PROGRAM SPECIALIST/ 1JC-ASD-PS | BP57: SOH/ LABOR & INDUSTRIAL RELATIONS/ CLERICAL SERVICES | BQ57: SOH/ LAND & NATURAL RESOURCES/ SUPT SVCS - WILDLIFE RES MGMT | BS57: SOH/ PUBLIC SAFETY/ OAHU INTAKE SERVICE CENTER/ OISC | BT57: SOH/ TAXATION/ HAWAII COLLECTION BR | BU57: SOH/ TRANSPORTATION/ PLANS STAFF/ STP-M | BV57: SOH/ UNIVERSITY OF HAWAII/ INSTRUCTION/ UH/WOAHU/INST
C58: 50 | Y58: 0 | Z58: 0 | AE58: 0 | AI58: =IF(AE58<=0,AG58,AE58+AG58) -> 0 | AJ58: 0 | AK58: 0 | AL58: 0 | AM58: 0 | AN58: 0 | AO58: 0 | BB58: SOH/ ACCOUNTING & GENERAL SERVICES/ EVENTS MGMT BR/ STAD-2 | BC58: SOH/ AGRICULTURE/ HAWAII DISTRICT/ HASSH | BE58: SOH/ BUDGET & FINANCE/ HIGHER EDUCATION SECTION | BG58: SOH/ COMMERCE & CONSUMER AFFAIRS/ RECORD SECTION/ DCCA-PVL-REC | BH58: SOH/ DEFENSE/ COMMANDER, 297 S & S BN/ SSBN-CO | BI58: SOH/ EDUCATION/ GENERAL EDUC BR | BL58: SOH/ HEALTH/ EHA/ EHSD/ FOOD & DRUG BR | BN58: SOH/ HUMAN SERVICES/ ADMINISTRATIVE SERVICES OFFICE/ DHS-OYS-ASO | BO58: SOH/ JUDICIARY/ STAFF SVCS/ PROGRAMS/ 1JC-ASD-PROG | BP58: SOH/ LABOR & INDUSTRIAL RELATIONS/ PROGRAM DEV STAFF/ DLIR-UI | BQ58: SOH/ LAND & NATURAL RESOURCES/ NON-GAME WILDLIFE | BS58: SOH/ PUBLIC SAFETY/ OFFICE SERVICES STAFF/ OISC | BT58: SOH/ TAXATION/ KONA COLLECTION SEC | BU58: SOH/ TRANSPORTATION/ FORECASTING SECTION | BV58: SOH/ UNIVERSITY OF HAWAII/ STUDENT SERVICES/ UH/WOAHU/STDT
C59: 51 | Y59: =V59+W59+X59 -> 0 | Z59: 0 | AE59: 0 | AI59: =IF(AE59<=0,AG59,AE59+AG59) -> 0 | AJ59: 0 | AK59: 0 | AL59: 0 | AM59: 0 | AN59: 0 | AO59: 0 | BB59: SOH/ ACCOUNTING & GENERAL SERVICES/ FACILITIES MANAGEMENT SECTION/ICSD | BC59: SOH/ AGRICULTURE/ HAWAII DISTRICT/ LDC/HAWAII | BE59: SOH/ BUDGET & FINANCE/ INDIVIDUAL RIGHTS SECTION | BG59: SOH/ COMMERCE & CONSUMER AFFAIRS/ RECORDS SECTION/ DCCA-BREG-REC | BH59: SOH/ DEFENSE/ COMMANDER/ HIIB-CO | BI59: SOH/ EDUCATION/ LANGUAGES SEC | BL59: SOH/ HEALTH/ EHA/ EHSD/ SANITATION BR | BN59: SOH/ HUMAN SERVICES/ CLERICAL SUPPORT/ DHS-OYS-CS | BO59: SOH/ JUDICIARY/ STAFF SVCS/ MISC/ 1JC-ASD-MISC | BP59: SOH/ LABOR & INDUSTRIAL RELATIONS/ PROGRAM EVAL STAFF/ DLIR-UI | BQ59: SOH/ LAND & NATURAL RESOURCES/ GAME WILDLIFE | BS59: SOH/ PUBLIC SAFETY/ OPERATIONS SECTION/ OISC | BT59: SOH/ TAXATION/ FIELD COLLECTION SEC | BU59: SOH/ TRANSPORTATION/ PROGRAMMING STAFF/ STP-P | BV59: SOH/ UNIVERSITY OF HAWAII/ HAWAII COMMUNITY COLLEGE/ UH/HICC
C60: 52 | Y60: =V60+W60+X60 -> 0 | Z60: 0 | AE60: 0 | AI60: =IF(AE60<=0,AG60,AE60+AG60) -> 0 | AJ60: 0 | AK60: 0 | AL60: 0 | AM60: 0 | AN60: 0 | AO60: 0 | BB60: SOH/ ACCOUNTING & GENERAL SERVICES/ FISCAL SECTION/ STAD-8 | BC60: SOH/ AGRICULTURE/ HAWAII DISTRICT/ MI/HAWAII | BE60: SOH/ BUDGET & FINANCE/ INVESTIGATION | BG60: SOH/ COMMERCE & CONSUMER AFFAIRS/ REGULATED INDUSTRIES COMPLAINTS OFC/ DCCA-RICO | BH60: SOH/ DEFENSE/ COMMANDER/ HITC-CO | BI60: SOH/ EDUCATION/ SCIENCES & MATH SEC | BL60: SOH/ HEALTH/ EHA/ EHSD/ VECTOR CONTROL BR | BN60: SOH/ HUMAN SERVICES/ FISCAL STAFF/ DHS-OYS-FS | BO60: SOH/ JUDICIARY/ STAFF SVCS/ COURT OPERATIONS SPEC/ 1JC-ASD-COS | BP60: SOH/ LABOR & INDUSTRIAL RELATIONS/ QUALITY CONTROL SEC | BQ60: SOH/ LAND & NATURAL RESOURCES/ HAWAII FORESTS & WILDLIFE RES MGMT | BS60: SOH/ PUBLIC SAFETY/ CLERICAL SUPPORT STAFF/ OISC | BT60: SOH/ TAXATION/ OFC COLLECTION SEC | BU60: SOH/ TRANSPORTATION/ LAND USE COORDINATION SECTION | BV60: SOH/ UNIVERSITY OF HAWAII/ OFC OF THE CHANCELLOR/ UH/HICC/CHAN
C61: 53 | Y61: 0 | Z61: 0 | AE61: 0 | AI61: 0 | AJ61: 0 | AK61: 0 | AL61: 0 | AM61: 0 | AN61: 0 | AO61: 0 | BB61: SOH/ ACCOUNTING & GENERAL SERVICES/ GEN GOV & HEALTH SEC/ DPW-7 | BC61: SOH/ AGRICULTURE/ HAWAII ED & CERT UT/ AGRPIPESTREH | BE61: SOH/ BUDGET & FINANCE/ INVESTIGATIVE SECTION | BG61: SOH/ COMMERCE & CONSUMER AFFAIRS/ SECURITIES ENFORCEMENT BRANCH/ DCCA-BREG-SEB | BH61: SOH/ DEFENSE/ COMMUNICATIONS SECTION | BI61: SOH/ EDUCATION/ SOC STUDIES & ART SEC | BL61: SOH/ HEALTH/ EHA/ EHSD/ INDOOR & RADIOLOGICAL HEALTH BR | BN61: SOH/ HUMAN SERVICES/ PROGRAM DEVELOPMENT OFFICE/ DHS-OYS-PDO | BO61: SOH/ JUDICIARY/ STAFF SVCS/ SUPPORT SVCS BR/ 1JC-ASD-SSB | BP61: SOH/ LABOR & INDUSTRIAL RELATIONS/ RESOURCE MGMT SECTION/ DLIR-UI | BQ61: SOH/ LAND & NATURAL RESOURCES/ TECH SUPT SVCS | BS61: SOH/ PUBLIC SAFETY/ ASSESSMENT & CLASSIFICATION UNIT/ OISC | BT61: SOH/ TAXATION/ KAUAI COLLECTION BR | BU61: SOH/ TRANSPORTATION/ ADMINISTRATION/ DOT-ADMIN | BV61: SOH/ UNIVERSITY OF HAWAII/ ADMINISTRATIVE SERVICES/ UH/HICC/ADMIN
C62: 54 | Y62: 0 | Z62: 0 | AE62: 0 | AI62: 0 | AJ62: 0 | AK62: 0 | AL62: 0 | AM62: 0 | AN62: 0 | AO62: 0 | BB62: SOH/ ACCOUNTING & GENERAL SERVICES/ GENERAL SERVICES SEC/ STAD-5 | BC62: SOH/ AGRICULTURE/ HAWAII ENF UT/ AGRPIPESTENFH | BE62: SOH/ BUDGET & FINANCE/ INVESTMENT AUDIT SECTION | BG62: SOH/ COMMERCE & CONSUMER AFFAIRS/ SECURITY COMPLIANCE BRANCH/ DCCA-BREG-SCB | BH62: SOH/ DEFENSE/ COMPTROLLER DIVISION/ HIPFC | BI62: SOH/ EDUCATION/ SPEC NEEDS BR | BL62: SOH/ HEALTH/ EHA/ ENVIRONMENTAL MANAGEMENT DIV (EMD) | BN62: SOH/ HUMAN SERVICES/ HAWAII YOUTH CORRECTIONAL FACILITY/ DHS-OYS-HYCF | BO62: SOH/ JUDICIARY/ FISCAL MGMT & SUPP SVC BR/ 1JC-ASD-FIS | BP62: SOH/ LABOR & INDUSTRIAL RELATIONS/ INTERNAL SECURITY SECTION/ DLIR-UI | BQ62: SOH/ LAND & NATURAL RESOURCES/ CLERICAL SVCS | BS62: SOH/ PUBLIC SAFETY/ CLIENT SERVICES UNIT/ OISC | BT62: SOH/ TAXATION/ FIELD COLLECTION SEC | BU62: SOH/ TRANSPORTATION/ AIRPORTS DIVISION/ AIR | BV62: SOH/ UNIVERSITY OF HAWAII/ CONTINUING EDUCATION & TRAINING/ UH/HICC/CE&T
C63: 55 | Y63: 0 | Z63: 0 | AE63: 0 | AI63: 0 | AJ63: 0 | AK63: 0 | AL63: 0 | AM63: 0 | AN63: 0 | AO63: 0 | BB63: SOH/ ACCOUNTING & GENERAL SERVICES/ GOVERNMENT REC SEC/ ARCH-6 | BC63: SOH/ AGRICULTURE/ IMPORT SECTION/ LDC/IMPORT | BE63: SOH/ BUDGET & FINANCE/ INVESTMENTS SECTION | BG63: SOH/ COMMERCE & CONSUMER AFFAIRS/ SOH/ COMMERCE & CONSUMER AFFAIRS/ DCCA | BH63: SOH/ DEFENSE/ CONTR & ENGR SERVICES SECTION | BI63: SOH/ EDUCATION/ SPEC INSTR PROG & SVCS | BL63: SOH/ HEALTH/ EHA/ EMD/ CLEAN AIR BR | BN63: SOH/ HUMAN SERVICES/ OFFICE SERVICES STAFF/ DHS-OYS-OS | BO63: SOH/ JUDICIARY/ DEPUTY CHIEF COURT ADMINISTRATOR/ 1JC-DCA | BP63: SOH/ LABOR & INDUSTRIAL RELATIONS/ OAHU BRANCH | BQ63: SOH/ LAND & NATURAL RESOURCES/ HAWAII FORESTS MGT SEC | BS63: SOH/ PUBLIC SAFETY/ COURT UNIT/ OISC | BT63: SOH/ TAXATION/ OFC COLLECTION SEC | BU63: SOH/ TRANSPORTATION/ STAFF SVCS OFFICE/ AIR-A | BV63: SOH/ UNIVERSITY OF HAWAII/ INSTRUCTION/ UH/HICC/INST
C64: 56 | Y64: 0 | Z64: 0 | AE64: 0 | AI64: 0 | AJ64: 0 | AK64: 0 | AL64: 0 | AM64: 0 | AN64: 0 | AO64: 0 | BB64: SOH/ ACCOUNTING & GENERAL SERVICES/ GROUNDS MAINT SEC/ CSD-14 | BC64: SOH/ AGRICULTURE/ INSECTARY UT/ AGRPIPPCBCI | BE64: SOH/ BUDGET & FINANCE/ KAUAI | BG64: SOH/ COMMERCE & CONSUMER AFFAIRS/ PUBLIC UTILITIES COMMISSION | BH64: SOH/ DEFENSE/ COUNTY CD AGENCIES | BI64: SOH/ EDUCATION/ SPECIAL ED SEC | BL64: SOH/ HEALTH/ EHA/ EMD/ CLEAN WATER BR | BN64: SOH/ HUMAN SERVICES/ HEALTH CARE SERVICES SEC/ DHS-OYS-HCS | BO64: SOH/ JUDICIARY/ ADULT CLIENT SERVICES BR/ 1JC-DCA-ACSB | BP64: SOH/ LABOR & INDUSTRIAL RELATIONS/ HONOLULU CLAIMS SECTION/ DLIR-UI | BQ64: SOH/ LAND & NATURAL RESOURCES/ RESOURCES MGMT | BS64: SOH/ PUBLIC SAFETY/ KAUAI INTAKE SERVICE CENTER/ KISC | BT64: SOH/ TAXATION/ BOARD OF REVIEWS | BU64: SOH/ TRANSPORTATION/ FINANCIAL MGMT STAFF/ AIR-AF | BV64: SOH/ UNIVERSITY OF HAWAII/ STUDENT SERVICES/ UH/HICC/STDT
C65: 57 | Y65: 0 | Z65: 0 | AE65: 0 | AI65: 0 | AJ65: 0 | AK65: 0 | AL65: 0 | AM65: 0 | AN65: 0 | AO65: 0 | BB65: SOH/ ACCOUNTING & GENERAL SERVICES/ HAWAII DISTRICT OFFICE/ HAW-0 | BC65: SOH/ AGRICULTURE/ INSP SEC | BE65: SOH/ BUDGET & FINANCE/ LOWER EDUCATION SECTION | BH65: SOH/ DEFENSE/ CUSTODIAL UNIT | BI65: SOH/ EDUCATION/ ADULT & EARLY CHILDHD | BL65: SOH/ HEALTH/ EHA/ EMD/ SAFE DRINKING WATER BR | BN65: SOH/ HUMAN SERVICES/ OPERATING SERVICES SEC/ DHS-OYS-OP | BO65: SOH/ JUDICIARY/ JUVENILE CLIENT SERVICES BR/ 1JC-DCA-JCSB | BP65: SOH/ LABOR & INDUSTRIAL RELATIONS/ CLERICAL SERVICES | BQ65: SOH/ LAND & NATURAL RESOURCES/ CEN TREE NURSERY | BS65: SOH/ PUBLIC SAFETY/ OFFICE SERVICES STAFF/ KISC | BT65: SOH/ TAXATION/ OAHU BOARD OF REVIEW | BU65: SOH/ TRANSPORTATION/ AUDIT SECTION/ AIR-AF | BV65: SOH/ UNIVERSITY OF HAWAII/ UNIV OF HAWAII CENTER, WEST HAWAII/ UH/HICC/UHCWH
C66: 58 | Y66: 0 | Z66: 0 | AE66: 0 | AI66: 0 | AJ66: 0 | AK66: 0 | AL66: 0 | AM66: 0 | AN66: 0 | AO66: 0 | BB66: SOH/ ACCOUNTING & GENERAL SERVICES/ HILO-KAU SEC/ HAW-3 | BC66: SOH/ AGRICULTURE/ INSPECTION & COMPLIANCE BR | BE66: SOH/ BUDGET & FINANCE/ MANAGEMENT SERVICES BRANCH | BH66: SOH/ DEFENSE/ DATA PROCESSING INSTALLATION/ HIPFD | BI66: SOH/ EDUCATION/ OCCUP DEV SEC | BL66: SOH/ HEALTH/ EHA/ EMD/ SOLID & HAZARDOUS WASTE BR | BN66: SOH/ HUMAN SERVICES/ CONSTRUCTION & MAINTENANCE UNIT/ DHS-OYS-CM | BO66: SOH/ JUDICIARY/ COURT SERVICES DIV/ 1JC-DCA-CSD | BP66: SOH/ LABOR & INDUSTRIAL RELATIONS/ UNIT I | BQ66: SOH/ LAND & NATURAL RESOURCES/ RESOURCES PROT | BS66: SOH/ PUBLIC SAFETY/ OPERATIONS SECTION/ KISC | BT66: SOH/ TAXATION/ MAUI BOARD OF REVIEW | BU66: SOH/ TRANSPORTATION/ ACCOUNTING SECTION/ AIR-AF | BV66: SOH/ UNIVERSITY OF HAWAII/ HONOLULU COMMUNITY COLLEGE/ UH/HCC
C67: 59 | Y67: 0 | Z67: 0 | AE67: 0 | AI67: 0 | AJ67: 0 | AK67: 0 | AL67: 0 | AM67: 0 | AN67: 0 | AO67: 0 | BB67: SOH/ ACCOUNTING & GENERAL SERVICES/ HISTORICAL RECORDS BR/ ARCH-4 | BC67: SOH/ AGRICULTURE/ INSPECTION & QUARANTINE BR/ AQS/ADM | BE67: SOH/ BUDGET & FINANCE/ MAUI | BH67: SOH/ DEFENSE/ DEPUTY ADJUTANT GENERAL/ HIDAG | BI67: SOH/ EDUCATION/ AGRIC EDUCATION | BL67: SOH/ HEALTH/ EHA/ EMD/ WASTEWATER BR | BN67: SOH/ HUMAN SERVICES/ FARM UNIT/ DHS-OYS-FARM | BO67: SOH/ JUDICIARY/ COURT OEPRATIONS DIV/ 1JC-DCA-COD | BP67: SOH/ LABOR & INDUSTRIAL RELATIONS/ CLAIMS EXAM SUBUNIT | BQ67: SOH/ LAND & NATURAL RESOURCES/ SVC FORESTRY | BS67: SOH/ PUBLIC SAFETY/ MAUI INTAKE SERVICE CENTER/ MISC | BT67: SOH/ TAXATION/ HAWAII BOARD OF REVIEW | BU67: SOH/ TRANSPORTATION/ PROCUREMENT SECTION/ AIR-AF/P | BV67: SOH/ UNIVERSITY OF HAWAII/ OFC OF THE CHANCELLOR/ UH/HCC/CHAN
C68: 60 | Y68: 0 | Z68: 0 | AE68: 0 | AI68: 0 | AJ68: 0 | AK68: 0 | AL68: 0 | AM68: 0 | AN68: 0 | AO68: 0 | BB68: SOH/ ACCOUNTING & GENERAL SERVICES/ HON CIVIC CENTER SEC/ CSD-3 | BC68: SOH/ AGRICULTURE/ KAUAI DISTRICT UT/ AGRPIPPCBCK | BE68: SOH/ BUDGET & FINANCE/ MEMBERSHIP RECORDS STAFF | BH68: SOH/ DEFENSE/ DEPUTY CHIEF OF STAFF/ HIANG/DCS | BI68: SOH/ EDUCATION/ BUSINESS EDUC | BL68: SOH/ HEALTH/ EHA/ STATE LABORATORIES DIV (SLD) | BN68: SOH/ HUMAN SERVICES/ FOOD SERVICE UNIT/ DHS-OYS-FS | BO68: SOH/ JUDICIARY/ SECOND JUDICIAL CIRCUIT-CHIEF JUDGE/ 2JC | BP68: SOH/ LABOR & INDUSTRIAL RELATIONS/ CLAIMS PROC SUBUNIT | BQ68: SOH/ LAND & NATURAL RESOURCES/ HAWAII FIELD OPER SEC | BS68: SOH/ PUBLIC SAFETY/ OFFICE SERVICES STAFF/ MISC | BT68: SOH/ TAXATION/ KAUAI BOARD OF REVIEW | BU68: SOH/ TRANSPORTATION/ PERSONNEL MGMT STAFF/ AIR-AP | BV68: SOH/ UNIVERSITY OF HAWAII/ ACADEMIC AFFAIRS/ UH/HCC/ACAD
C69: 61 | Y69: 0 | Z69: 0 | AE69: 0 | AI69: 0 | AJ69: 0 | AK69: 0 | AL69: 0 | AM69: 0 | AN69: 0 | AO69: 0 | BB69: SOH/ ACCOUNTING & GENERAL SERVICES/ HONOKAA SEC/ HAW-4 | BC69: SOH/ AGRICULTURE/ KAUAI DISTRICT UT/ AGRPIPPCCMK | BE69: SOH/ BUDGET & FINANCE/ MESSENGER SERVICES | BH69: SOH/ DEFENSE/ DEPUTY COMMANDER/ HIARDC | BI69: SOH/ EDUCATION/ HOME ECONOMICS | BL69: SOH/ HEALTH/ EHA/ SLD/ ENVIRONMENTAL HEALTH ANALYS SVC B | BN69: SOH/ HUMAN SERVICES/ YOUTH SERVICES & CUSTODY SECTION/ DHS-OYS-YSC | BO69: SOH/ JUDICIARY/ CIRCUIT JUDGES/ 2JC-CIR JUD | BP69: SOH/ LABOR & INDUSTRIAL RELATIONS/ UNIT II | BQ69: SOH/ LAND & NATURAL RESOURCES/ EQUIP OPERATIONS | BS69: SOH/ PUBLIC SAFETY/ OPERATIONS SECTION/ MISC | BT69: SOH/ TAXATION/ COUNCIL OF REVENUES | BU69: SOH/ TRANSPORTATION/ PROFESSIONAL SECTION/ AIR-AP | BV69: SOH/ UNIVERSITY OF HAWAII/ ADMINISTRATIVE SERVICES/ UH/HCC/ADMIN
C70: 62 | Y70: 0 | Z70: 0 | AE70: 0 | AI70: 0 | AJ70: 0 | AK70: 0 | AL70: 0 | AM70: 0 | AN70: 0 | AO70: 0 | BB70: SOH/ ACCOUNTING & GENERAL SERVICES/ HONOLULU I SEC/ CSD-5 | BC70: SOH/ AGRICULTURE/ KAUAI DISTRICT/ ADMK | BE70: SOH/ BUDGET & FINANCE/ MORTGAGE SERVICES | BH70: SOH/ DEFENSE/ DEPUTY COMMANDER/ HIIB-DC | BI70: SOH/ EDUCATION/ INDUSTRIAL ARTS | BL70: SOH/ HEALTH/ EHA/ SLD/ MEDICAL MICROBIOLOGY BR | BN70: SOH/ HUMAN SERVICES/ YOUTH SERVICES UNIT/ DHS-OYS-YS | BO70: SOH/ JUDICIARY/ DISTRICT FAMILY JUDGES/ 2JC-DFJ | BP70: SOH/ LABOR & INDUSTRIAL RELATIONS/ CLAIMS EXAM SUBUNIT | BQ70: SOH/ LAND & NATURAL RESOURCES/ EQUIP/STRCT/BASEYD MNT | BS70: SOH/ PUBLIC SAFETY/ COMMUNITY CORRECTIONS CENTER DIV/ CCCD | BT70: SOH/ TAXATION/ TAX REVIEW COMMISSION | BU70: SOH/ TRANSPORTATION/ TECHNICAL SECTION/ AIR-AP | BV70: SOH/ UNIVERSITY OF HAWAII/ PACIFIC AEROSPACE TRAINING/ UH/HCC/PAT
C71: 63 | Y71: 0 | Z71: 0 | AE71: 0 | AI71: 0 | AJ71: 0 | AK71: 0 | AL71: 0 | AM71: 0 | AN71: 0 | AO71: 0 | BB71: SOH/ ACCOUNTING & GENERAL SERVICES/ HONOLULU II SEC/ CSD-6 | BC71: SOH/ AGRICULTURE/ KAUAI DISTRICT/ AGRPIPQK | BE71: SOH/ BUDGET & FINANCE/ NEIGHBOR ISLAND LIAISONS | BH71: SOH/ DEFENSE/ DET 2, HQ STARC, HAW MIL ACAD (HMA)/ HIARHMA | BI71: SOH/ EDUCATION/ INDUSTRIAL TECH | BL71: SOH/ HEALTH/ EHA/ OFC OF HEALTH CARE ASSURANCE | BN71: SOH/ HUMAN SERVICES/ CUSTODY UNIT/ DHS-OYS-CUS | BO71: SOH/ JUDICIARY/ DEPUTY CHIEF JUDGE/ 2JC-DCJ | BP71: SOH/ LABOR & INDUSTRIAL RELATIONS/ CLAIMS PROC SUBUNIT | BQ71: SOH/ LAND & NATURAL RESOURCES/ FIELD CREW | BS71: SOH/ PUBLIC SAFETY/ OAHU COMMUNITY CORRECTIONS CENTER/ OCCC | BU71: SOH/ TRANSPORTATION/ CLERICAL SECTION/ AIR-AP | BV71: SOH/ UNIVERSITY OF HAWAII/ PACIFIC CTR FOR ADVANCED TECH TRAIN/ UH/HCC/PCATT
C72: 64 | Y72: 0 | Z72: 0 | AE72: 0 | AI72: 0 | AJ72: 0 | AK72: 0 | AL72: 0 | AM72: 0 | AN72: 0 | AO72: 0 | BB72: SOH/ ACCOUNTING & GENERAL SERVICES/ INFO & COMM SVCS DIVISION/ ICSD | BC72: SOH/ AGRICULTURE/ KAUAI DISTRICT/ COMK | BE72: SOH/ BUDGET & FINANCE/ OAHU | BH72: SOH/ DEFENSE/ DET 3, HQ STARC, SELECTIVE SVC SEC | BI72: SOH/ EDUCATION/ STUDENT PERS SVCS SEC | BL72: SOH/ HEALTH/ BEHAVIORAL HEALTH ADMIN/ BHA | BN72: SOH/ HUMAN SERVICES/ HOUSING & COMMUNITY DEV CORP OF HI/ HCDCH | BO72: SOH/ JUDICIARY/ DISTRICT JUDGES/ 2JC-DCJ-DJ | BP72: SOH/ LABOR & INDUSTRIAL RELATIONS/ UNIT III | BQ72: SOH/ LAND & NATURAL RESOURCES/ HAWAII WILDLIFE MGMT SEC | BS72: SOH/ PUBLIC SAFETY/ OFFICE SERVICES STAFF/ OCCC | BU72: SOH/ TRANSPORTATION/ PROPERTY MGMT &LAND ACQUISITN STAFF/ AIR-PM | BV72: SOH/ UNIVERSITY OF HAWAII/ KAPIOLANI COMMUNITY COLLEGE/ UH/KCC
C73: 65 | Y73: 0 | Z73: 0 | AE73: 0 | AI73: 0 | AJ73: 0 | AK73: 0 | AL73: 0 | AM73: 0 | AN73: 0 | AO73: 0 | AQ73: =IF(AND(K73="x",AP73>0),AP73,"") ->  | AU73: =IF(AND(K73="x",AT73>0),AT73,"") ->  | AY73: =IF(AND(K73="x",AX73>0),AX73,"") ->  | BB73: SOH/ ACCOUNTING & GENERAL SERVICES/ INFORMATION RESOURCE CTR SEC/ICSD | BC73: SOH/ AGRICULTURE/ KAUAI DISTRICT/ MI/KAUAI | BE73: SOH/ BUDGET & FINANCE/ OFFICE OF AMINISTRATIVE DIRECTOR | BH73: SOH/ DEFENSE/ DIRECTOR OF INFORMATION MGMT/ HIDOIM | BI73: SOH/ EDUCATION/ SCSHVI | BL73: SOH/ HEALTH/ BHA/ ADULT MENTAL HEALTH DIV (AMHD) | BN73: SOH/ HUMAN SERVICES/ OFFICE OF THE EXECUTIVE DIRECTOR | BO73: SOH/ JUDICIARY/ OFC OF THE CHIEF COURT ADMINISTRATR/ 2JC-OCCA | BP73: SOH/ LABOR & INDUSTRIAL RELATIONS/ CLAIMS EXAM SUBUNIT | BQ73: SOH/ LAND & NATURAL RESOURCES/ NON-GAME | BS73: SOH/ PUBLIC SAFETY/ CLERICAL SUPPORT UNIT/ OCCC | BU73: SOH/ TRANSPORTATION/ LAND ACQUISITION SECTION/ AIR-PM | BV73: SOH/ UNIVERSITY OF HAWAII/ OFC OF THE CHANCELLOR/ UH/KCC/CHAN
C74: 66 | N74: =IF((NETWORKDAYS(G74,M74)>0),(NETWORKDAYS(G74,M74)),"") ->  | Y74: 0 | Z74: =IF((F74="x"),0,((V74*10)+(W74*20))) -> 0 | AE74: =IF(F74="x",0,(Z74+AB74+AC74)) -> 0 | AI74: 0 | AJ74: 0 | AK74: =AJ74-AH74 -> 0 | AL74: =IF(K74="x",AH74,0) -> 0 | AM74: =IF(K74="x",AI74,0) -> 0 | AN74: =IF(K74="x",AJ74,0) -> 0 | AO74: =IF(K74="x",AK74,0) -> 0 | AP74: =IF(N74>0,N74,"") ->  | AR74: =IF(OR(K74="x",F74="x",AP74<=0),"",AP74) ->  | AS74: =IF(AND(F74="x",AP74>0),AP74,"") ->  | AT74: =IF(V74>0,V74,"") ->  | AV74: =IF(OR(K74="x",F74="X",AT74<=0),"",AT74) ->  | AW74: =IF(AND(F74="x",AT74>0),AT74,"") ->  | AX74: =IF(W74>0,W74,"") ->  | AZ74: =IF(OR(K74="x",F74="x",AX74<=0),"",AX74) ->  | BA74: =IF(AND(F74="x",AX74>0),AX74,"") ->  | BB74: SOH/ ACCOUNTING & GENERAL SERVICES/ INVENTORY MGMT BR/SPO-3 | BC74: SOH/ AGRICULTURE/ KAUAI ENF UT/ AGRPIPESTENFK | BE74: SOH/ BUDGET & FINANCE/ OFFICE OF THE DIRECTOR | BH74: SOH/ DEFENSE/ DIRECTOR OF LOGISTICS/ HIANG/LG | BI74: SOH/ EDUCATION/ SLMPC | BL74: SOH/ HEALTH/ BHA/ AMHD/ OAHU COMMUNITY MENTAL HEALTH CTR BR | BN74: SOH/ HUMAN SERVICES/ ADMINISTRATIVE SERVICES OFFICE/ ASO | BO74: SOH/ JUDICIARY/ DEPUTY CHIEF COURT ADMINISTRATOR/ 2JC-OCCA-DCA | BP74: SOH/ LABOR & INDUSTRIAL RELATIONS/ CLAIMS PROC SUBUNIT | BQ74: SOH/ LAND & NATURAL RESOURCES/ GAME | BS74: SOH/ PUBLIC SAFETY/ PERSONNEL UNIT/ OCCC | BU74: SOH/ TRANSPORTATION/ PROPERTY MGMT SECTION I/ AIR-PM | BV74: SOH/ UNIVERSITY OF HAWAII/ ACADEMIC UNITS/ UH/KCC/ACAD
C75: 67 | Y75: 0 | Z75: 0 | AE75: 0 | AI75: 0 | AJ75: 0 | AK75: 0 | AL75: 0 | AM75: 0 | AN75: 0 | AO75: 0 | BB75: SOH/ ACCOUNTING & GENERAL SERVICES/ IRM &CLIENT SVCS-CLINT SVCS BR/ICSD | BC75: SOH/ AGRICULTURE/ LG ANIMAL QUARN UT/ LDC/QUAR | BE75: SOH/ BUDGET & FINANCE/ OFFICE OF THE DIRECTOR/ B&F-DIR | BH75: SOH/ DEFENSE/ DIRECTOR OF OPERATIONS/ HIANG/DO | BI75: SOH/ EDUCATION/ MULTIMEDIA SVCS BR | BL75: SOH/ HEALTH/ BHA/ AMHD/ HAWAII CTY COMMUNITY MENTAL HEALTH CTR BR | BN75: SOH/ HUMAN SERVICES/ ACCOUNTING STAFF | BO75: SOH/ JUDICIARY/ CLIENT SERVICES DIV/ 2JC-OCCA-CSD | BP75: SOH/ LABOR & INDUSTRIAL RELATIONS/ WAIPAHU CLAIMS SECTION/ DLIR-UI | BQ75: SOH/ LAND & NATURAL RESOURCES/ HAWAII NATURAL AREAS RESERVE SEC | BS75: SOH/ PUBLIC SAFETY/ FISCAL UNIT/ OCCC | BU75: SOH/ TRANSPORTATION/ PROPERTY MGMT SECTION II/ AIR-PM | BV75: SOH/ UNIVERSITY OF HAWAII/ ADMINISTRATIVE SERVICES/ UH/KCC/ADMIN
C76: 68 | Y76: 0 | Z76: 0 | AE76: 0 | AI76: 0 | AJ76: 0 | AK76: 0 | AL76: 0 | AM76: 0 | AN76: 0 | AO76: 0 | BB76: SOH/ ACCOUNTING & GENERAL SERVICES/ IRM &CLNT SVCS-INFO RES MGT BR/ ICSD | BC76: SOH/ AGRICULTURE/ LIVESTOCK DISEASE CONTROL BR/ LDC | BE76: SOH/ BUDGET & FINANCE/ OFFICE OF THE PUBLIC DEFENDER | BH76: SOH/ DEFENSE/ DIRECTOR OF PERSONNEL MGMT/ADMIN/ HIANG/DP | BI76: SOH/ EDUCATION/ TECHNICAL ASST CTR | BL76: SOH/ HEALTH/ BHA/ AMHD/ MAUI COMMUNITY MENTAL HEALTH CTR BR | BN76: SOH/ HUMAN SERVICES/ ACCOUNTING SECTION I | BO76: SOH/ JUDICIARY/ ADMINISTRATIVE SERVICES DIV/ 2JC-OCCA-ASD | BP76: SOH/ LABOR & INDUSTRIAL RELATIONS/ CLERICAL SERVICES | BQ76: SOH/ LAND & NATURAL RESOURCES/ HAWAII TRAILS & ACCESS SECTION | BS76: SOH/ PUBLIC SAFETY/ INVESTIGATIVE STAFF/ OCCC | BU76: SOH/ TRANSPORTATION/ CONCESSIONS SECTION/ AIR-PM | BV76: SOH/ UNIVERSITY OF HAWAII/ KAUAI COMMUNITY COLLEGE/ UH/KAUAI
C77: 69 | Y77: 0 | Z77: 0 | AE77: 0 | AI77: 0 | AJ77: 0 | AK77: 0 | AL77: 0 | AM77: 0 | AN77: 0 | AO77: 0 | BB77: SOH/ ACCOUNTING & GENERAL SERVICES/ IRM PROGRAM DEVELOPMNT SECTION/ ICSD | BC77: SOH/ AGRICULTURE/ MARKET DEVELOPMENT BR/ MD | BE77: SOH/ BUDGET & FINANCE/ OFFICE OF THE PUBLIC DEFENDER/ PD | BH77: SOH/ DEFENSE/ EEO SECTION/ HISPMO-E | BI77: SOH/ EDUCATION/ AUDIO VISUAL SVCS | BL77: SOH/ HEALTH/ BHA/ AMHD/ KAUAI COMMUNITY MENTAL HEALTH CTR BR | BN77: SOH/ HUMAN SERVICES/ ACCOUNTING SECTION II | BO77: SOH/ JUDICIARY/ DEPUTY CHIEF COURT ADMINISTRATOR/ 2JC-OCCA-DCA | BP77: SOH/ LABOR & INDUSTRIAL RELATIONS/ UNIT I | BQ77: SOH/ LAND & NATURAL RESOURCES/ MAUI/MOLOKAI/LANAI F/W RES MGMT | BS77: SOH/ PUBLIC SAFETY/ INTAKE & RELEASE SECTION/ OCCC | BU77: SOH/ TRANSPORTATION/ CONTRACTS & CLERICAL SECTION/ AIR-PM | BV77: SOH/ UNIVERSITY OF HAWAII/ OFC OF THE CHANCELLOR/ UH/KAUAI/CHAN
C78: 70 | Y78: 0 | Z78: 0 | AE78: 0 | AI78: 0 | AJ78: 0 | AK78: 0 | AL78: 0 | AM78: 0 | AN78: 0 | AO78: 0 | BB78: SOH/ ACCOUNTING & GENERAL SERVICES/ KAMEHAMEHA DAY CELEBRATION COMM/ KAM | BC78: SOH/ AGRICULTURE/ MARKET NEWS SERVICES BR/ MNS | BE78: SOH/ BUDGET & FINANCE/ OFFICE SERVICES | BH78: SOH/ DEFENSE/ ENGINEER SECTION | BI78: SOH/ EDUCATION/ EDUCATIONAL TELEVISION | BL78: SOH/ HEALTH/ BHA/ AMHD/ COURTS & CORRECTIONS BR | BN78: SOH/ HUMAN SERVICES/ ACCOUNTING SECTION III | BO78: SOH/ JUDICIARY/ COURT SUPPORT SERVICES DIV/ 2JC-OCCA-CSSD | BP78: SOH/ LABOR & INDUSTRIAL RELATIONS/ CLAIMS EXAM SUBUNIT | BQ78: SOH/ LAND & NATURAL RESOURCES/ CLERICAL SVCS | BS78: SOH/ PUBLIC SAFETY/ IDENTIFICATION UNIT/ OCCC | BU78: SOH/ TRANSPORTATION/ MTHDS STNDS & EVAL STAFF/ AIR-AM | BV78: SOH/ UNIVERSITY OF HAWAII/ ADMINISTRATIVE SERVICES/ UH/KAUAI/ADM
C79: 71 | Y79: 0 | Z79: 0 | AE79: 0 | AI79: 0 | AJ79: 0 | AK79: 0 | AL79: 0 | AM79: 0 | AN79: 0 | AO79: 0 | BB79: SOH/ ACCOUNTING & GENERAL SERVICES/ KAUAI DISTRICT OFFICE/ KAU-0 | BC79: SOH/ AGRICULTURE/ MAUI DISTRICT UT/ AGRPIPPCBCM | BE79: SOH/ BUDGET & FINANCE/ PERSONNEL STAFF | BH79: SOH/ DEFENSE/ ENGINEERING OFFICER/ HIANG/DE | BI79: SOH/ EDUCATION/ SCHOOL LIB SVCS SEC | BL79: SOH/ HEALTH/ BHA/ AMHD/ HAWAII STATE HOSPITAL BR | BN79: SOH/ HUMAN SERVICES/ ACCOUNTING SECTION IV | BO79: SOH/ JUDICIARY/ OPERATIONAL SUPPORT SERVICES DIV/ 2JC-OCCA-OSSD | BP79: SOH/ LABOR & INDUSTRIAL RELATIONS/ CLAIMS PROC SUBUNIT | BQ79: SOH/ LAND & NATURAL RESOURCES/ MAUI FORESTS MGMT SEC | BS79: SOH/ PUBLIC SAFETY/ SECURITY UNIT/ OCCC | BU79: SOH/ TRANSPORTATION/ BUDGET STAFF/ AIR-AB | BV79: SOH/ UNIVERSITY OF HAWAII/ CONTINUING EDUCATION & TRAINING/ UH/KAUAI/CE&T
C80: 72 | Y80: 0 | Z80: 0 | AE80: 0 | AI80: 0 | AJ80: 0 | AK80: 0 | AL80: 0 | AM80: 0 | AN80: 0 | AO80: 0 | BB80: SOH/ ACCOUNTING & GENERAL SERVICES/ KOHALA SEC/ HAW-5 | BC80: SOH/ AGRICULTURE/ MAUI DISTRICT UT/ AGRPIPPCCMM | BE80: SOH/ BUDGET & FINANCE/ PROG BUDGET ANALYSIS & EVAL BR I | BH80: SOH/ DEFENSE/ ENGR & FAC MAINT OFFICE/ HIENG | BI80: SOH/ EDUCATION/ HAW STATE PUB LIB SYS | BL80: SOH/ HEALTH/ BHA/ ALCOHOL & DRUG ABUSE DIV (ADAD) | BN80: SOH/ HUMAN SERVICES/ ACCOUNTING SECTION V | BO80: SOH/ JUDICIARY/ THIRD JUDICIAL CIRCUIT -CHIEF JUDGE/ 3JC | BP80: SOH/ LABOR & INDUSTRIAL RELATIONS/ UNIT II | BQ80: SOH/ LAND & NATURAL RESOURCES/ RESOURCES MGMT/ DRM | BS80: SOH/ PUBLIC SAFETY/ RECORDS UNIT/ OCCC | BU80: SOH/ TRANSPORTATION/ ENGINEERING BRANCH/ AIR-E | BV80: SOH/ UNIVERSITY OF HAWAII/ INSTRUCTIONAL SERVICES/ UH/KAUAI/INST
C81: 73 | Y81: 0 | Z81: 0 | AD81: =IF(F81="x",(0-((V81*10)+(W81*20))),"") ->  | AE81: 0 | AI81: 0 | AJ81: 0 | AK81: 0 | AL81: 0 | AM81: 0 | AN81: 0 | AO81: 0 | BB81: SOH/ ACCOUNTING & GENERAL SERVICES/ KONA SEC/ HAW-6 | BC81: SOH/ AGRICULTURE/ MAUI DISTRICT/ ADMM | BE81: SOH/ BUDGET & FINANCE/ PROG BUDGET ANALYSIS & EVAL BR II | BH81: SOH/ DEFENSE/ EXECUTIVE OFFICER/ HIIB-XO | BI81: SOH/ EDUCATION/ OFF OF STATE LIBRARIAN | BL81: SOH/ HEALTH/ BHA/ ADAD/ PREVENTION BR | BN81: SOH/ HUMAN SERVICES/ PURCHASING & STORES STAFF | BO81: SOH/ JUDICIARY/ JUDGES & STAFF/ 3JC-J&S | BP81: SOH/ LABOR & INDUSTRIAL RELATIONS/ CLAIMS EXAM SUBUNIT | BQ81: SOH/ LAND & NATURAL RESOURCES/ RESOURCES PROT/ DRP | BS81: SOH/ PUBLIC SAFETY/ DETENTION SECTION/ OCCC | BU81: SOH/ TRANSPORTATION/ PROJECT COORDINATION &CONTROL STAFF/ AIR-EPC | BV81: SOH/ UNIVERSITY OF HAWAII/ STUDENT SERVICES/ UH/KAUAI/STDT
C82: 74 | Y82: 0 | Z82: 0 | AE82: 0 | AI82: 0 | AJ82: 0 | AK82: 0 | AL82: 0 | AM82: 0 | AN82: 0 | AO82: 0 | BB82: SOH/ ACCOUNTING & GENERAL SERVICES/ LAND SURVEY DIVISION/ LSD | BC82: SOH/ AGRICULTURE/ MAUI DISTRICT/ AGRPIPQMA | BE82: SOH/ BUDGET & FINANCE/ PROG BUDGET ANALYSIS & EVAL BR III | BH82: SOH/ DEFENSE/ EXECUTIVE OFFICER/ HITC-XO | BI82: SOH/ EDUCATION/ ADMIN SVCS STAFF | BL82: SOH/ HEALTH/ BHA/ ADAD/ TREATMENT & RECOVERY BR | BN82: SOH/ HUMAN SERVICES/ PERSONNEL SERVICES STAFF | BO82: SOH/ JUDICIARY/ DEPUTY CHIEF JUDGE/ 3JC-DCJ | BP82: SOH/ LABOR & INDUSTRIAL RELATIONS/ CLAIMS PROC SUBUNIT | BQ82: SOH/ LAND & NATURAL RESOURCES/ MAUI FIELD OPER SEC | BS82: SOH/ PUBLIC SAFETY/ CLERICAL SUPPORT STAFF/ OCCC | BU82: SOH/ TRANSPORTATION/ DESIGN & CONSTRUCTION SECTION I/ AIR-ED | BV82: SOH/ UNIVERSITY OF HAWAII/ LEEWARD COMMUNITY COLLEGE/ UH/LCC
C83: 75 | Y83: 0 | Z83: 0 | AE83: 0 | AI83: 0 | AJ83: =(X83*20)+Z83+AA83+AF83 -> 0 | AK83: 0 | AL83: 0 | AM83: 0 | AN83: 0 | AO83: 0 | BB83: SOH/ ACCOUNTING & GENERAL SERVICES/ LEASING BRANCH/ DPW-20 | BC83: SOH/ AGRICULTURE/ MAUI DISTRICT/ COMM | BE83: SOH/ BUDGET & FINANCE/ PROG BUDGET ANALYSIS & EVAL BR IV | BH83: SOH/ DEFENSE/ EXECUTIVE SUPPORT STAFF OFFICER/ HIANG/CCE | BI83: SOH/ EDUCATION/ PERSONNEL SVCS STAFF | BL83: SOH/ HEALTH/ BHA/ CHILD & ADOLESCENT MENTAL HLTH DIV (CAMHD) | BN83: SOH/ HUMAN SERVICES/ CENTRAL FILES SVC STAFF | BO83: SOH/ JUDICIARY/ DISTRICT FAMILY & PERDIEM JUDGES/ 3JC-DCJ-DF&PJ | BP83: SOH/ LABOR & INDUSTRIAL RELATIONS/ KANEOHE CLAIMS SECTION/ DLIR-UI | BQ83: SOH/ LAND & NATURAL RESOURCES/ EQUIP OPERATIONS/ DEO | BS83: SOH/ PUBLIC SAFETY/ SECURITY UNIT/ OCCC | BU83: SOH/ TRANSPORTATION/ DESIGN & CONSTRUCTION SECTION II/ AIR-EC | BV83: SOH/ UNIVERSITY OF HAWAII/ OFC OF THE CHANCELLOR/ UH/LCC/CHAN
C84: 76 | Y84: 0 | Z84: 0 | AE84: 0 | AI84: 0 | AJ84: 0 | AK84: 0 | AL84: 0 | AM84: 0 | AN84: 0 | AO84: 0 | BB84: SOH/ ACCOUNTING & GENERAL SERVICES/ LEEWARD OAHU SEC/ CSD-8 | BC84: SOH/ AGRICULTURE/ MAUI DISTRICT/ HASSM | BE84: SOH/ BUDGET & FINANCE/ PUBLIC SAFETY SECTION | BH84: SOH/ DEFENSE/ FIRE SUPPORT OFFICER/ HIIB-FS | BI84: SOH/ EDUCATION/ PROG DEV SVC | BL84: SOH/ HEALTH/ BHA/ CAMHD/ CENTRAL OAHU FAMILY GUIDANCE CTR BR | BN84: SOH/ HUMAN SERVICES/ COMPUTER & TELECOM STAFF | BO84: SOH/ JUDICIARY/ DEPUTY CHIEF JUDGE/ 3JC-DCJ | BP84: SOH/ LABOR & INDUSTRIAL RELATIONS/ CLERICAL SERVICES | BQ84: SOH/ LAND & NATURAL RESOURCES/ FIELD CREW | BS84: SOH/ PUBLIC SAFETY/ COUNSELING UNIT/ OCCC | BU84: SOH/ TRANSPORTATION/ SPECIAL MAINTENANCE SECTION/ AIR-EM | BV84: SOH/ UNIVERSITY OF HAWAII/ ADMINISTRATIVE SERVICES/ UH/LCC/ADMIN
C85: 77 | Y85: 0 | Z85: 0 | AE85: 0 | AI85: 0 | AJ85: 0 | AK85: 0 | AL85: 0 | AM85: 0 | AN85: 0 | AO85: 0 | BB85: SOH/ ACCOUNTING & GENERAL SERVICES/ MAIL SECTION/ CSD-15 | BC85: SOH/ AGRICULTURE/ MAUI DISTRICT/ LDC/MAUI | BE85: SOH/ BUDGET & FINANCE/ RECEPTION SERVICES | BH85: SOH/ DEFENSE/ GEN LABOR UNIT | BI85: SOH/ EDUCATION/ ADULT & YNG ADLT PROG | BL85: SOH/ HEALTH/ BHA/ CAMHD/ HONOLULU FAMILY GUIDANCE CTR BR | BN85: SOH/ HUMAN SERVICES/ BUDGET STAFF | BO85: SOH/ JUDICIARY/ DISTRICT & PERDIEM JUDGES/ 3JC-DCJ-D&PJ | BP85: SOH/ LABOR & INDUSTRIAL RELATIONS/ CLAIMS EXAM SUBUNIT | BQ85: SOH/ LAND & NATURAL RESOURCES/ EQUIP/STRCT/BASEYD MNT | BS85: SOH/ PUBLIC SAFETY/ OFFENDER SERVICES SECTION/ OCCC | BU85: SOH/ TRANSPORTATION/ DRAFTING SECTION/ AIR-EG | BV85: SOH/ UNIVERSITY OF HAWAII/ CONTINUING EDUCATION & TRAINING/ UH/LCC/CE&T
C86: 78 | Y86: 0 | Z86: 0 | AE86: 0 | AI86: 0 | AJ86: 0 | AK86: 0 | AL86: 0 | AM86: 0 | AN86: 0 | AO86: 0 | BB86: SOH/ ACCOUNTING & GENERAL SERVICES/ MANAGEMENT SERVICE STAFF/ DPW-4 | BC86: SOH/ AGRICULTURE/ MAUI DISTRICT/ MI/MAUI | BE86: SOH/ BUDGET & FINANCE/ RESEARCH | BH86: SOH/ DEFENSE/ GROUND COMMUNICATIONS MAINTENANCE/ 201 CCGP/CG | BI86: SOH/ EDUCATION/ CHILDRENS PROG | BL86: SOH/ HEALTH/ BHA/ CAMHD/ LEEWARD OAHU FAMILY GUIDANCE CTR BR | BN86: SOH/ HUMAN SERVICES/ HEARINGS OFFICE | BO86: SOH/ JUDICIARY/ OFC OF THE CHIEF COURT ADMINISTRATR/ 3JC-OCCA | BP86: SOH/ LABOR & INDUSTRIAL RELATIONS/ CLAIMS PROC SUBUNIT | BQ86: SOH/ LAND & NATURAL RESOURCES/ MOLOKAI | BS86: SOH/ PUBLIC SAFETY/ EDUCATION UNIT/ OCCC | BU86: SOH/ TRANSPORTATION/ AIRPORT OPERATIONS OFFICE/ AIR-L | BV86: SOH/ UNIVERSITY OF HAWAII/ EDUCATIONAL SERVICES/ UH/LCC/EDUC
C87: 79 | Y87: 0 | Z87: 0 | AE87: 0 | AI87: 0 | AJ87: 0 | AK87: 0 | AL87: 0 | AM87: 0 | AN87: 0 | AO87: 0 | BB87: SOH/ ACCOUNTING & GENERAL SERVICES/ MAUI DISTRICT OFFICE/ MAUI-0 | BC87: SOH/ AGRICULTURE/ MAUI DISTRICT/ MSM | BE87: SOH/ BUDGET & FINANCE/ RESEARCH SECTION | BH87: SOH/ DEFENSE/ GROUND COMMUNICATIONS OPERATIONS/ 201 CCGP/DO | BI87: SOH/ EDUCATION/ RESEARCH & EVAL SVC | BL87: SOH/ HEALTH/ BHA/ CAMHD/ WINDWARD OAHU FAMILY GUIDNCE CTR | BN87: SOH/ HUMAN SERVICES/ PLANNING & EVALUATION OFFICE | BO87: SOH/ JUDICIARY/ DEPUTY CHIEF COURT ADMINISTRATOR/ 3JC-OCCA-DCA | BP87: SOH/ LABOR & INDUSTRIAL RELATIONS/ BENEFIT PROCESSING & CONTROL SEC/ DLIR-UI | BQ87: SOH/ LAND & NATURAL RESOURCES/ MAUI WILDLIFE MGMT SEC | BS87: SOH/ PUBLIC SAFETY/ LIBRARY UNIT/ OCCC | BU87: SOH/ TRANSPORTATION/ GENERAL AVIATION STAFF/ AIR-LG | BV87: SOH/ UNIVERSITY OF HAWAII/ STUDENT SERVICES/ UH/LCC/STDT
C88: 80 | Y88: 0 | Z88: 0 | AE88: 0 | AI88: 0 | AJ88: 0 | AK88: 0 | AL88: 0 | AM88: 0 | AN88: 0 | AO88: 0 | BB88: SOH/ ACCOUNTING & GENERAL SERVICES/ MICROGRAPHICS SEC/ ARCH-2 | BC88: SOH/ AGRICULTURE/ MAUI ED & CERT UT/ AGRPIPESTREMA | BE88: SOH/ BUDGET & FINANCE/ RETIREMENT CLAIMS & BENEFITS SEC 1 | BH88: SOH/ DEFENSE/ HAWAII COUNTY | BI88: SOH/ EDUCATION/ PLANNING & EVAL UNIT | BL88: SOH/ HEALTH/ BHA/ CAMHD/ HAWAII FAMILY GUIDANCE CENTER HAWAII | BN88: SOH/ HUMAN SERVICES/ COMPLIANCE OFFICE | BO88: SOH/ JUDICIARY/ CLIENT SERVICES DIV/ 3JC-OCCA-CSD | BP88: SOH/ LABOR & INDUSTRIAL RELATIONS/ CLERICAL SERVICES | BQ88: SOH/ LAND & NATURAL RESOURCES/ MOLOKAI | BS88: SOH/ PUBLIC SAFETY/ RECREATION UNIT/ OCCC | BU88: SOH/ TRANSPORTATION/ CERTIFICATN, SECURITY &SAFETY STAFF/ AIR-LC | BV88: SOH/ UNIVERSITY OF HAWAII/ UH/MAUI COLLEGE/ UH/MC
C89: 81 | Y89: 0 | Z89: 0 | AE89: 0 | AI89: 0 | AJ89: 0 | AK89: 0 | AL89: 0 | AM89: 0 | AN89: 0 | AO89: 0 | BB89: SOH/ ACCOUNTING & GENERAL SERVICES/ MOLOKAI SECTION/ MOLO-0 | BC89: SOH/ AGRICULTURE/ MAUI ENF UT/ AGRPIPESTENFM | BE89: SOH/ BUDGET & FINANCE/ RETIREMENT CLAIMS & BENEFITS SEC 2 | BH89: SOH/ DEFENSE/ HAWAII SECTION | BI89: SOH/ EDUCATION/ INFORMATION SYS UNIT | BL89: SOH/ HEALTH/ BHA/ CAMHD/ MAUI FAMILY GUIDANCE CENTER | BN89: SOH/ HUMAN SERVICES/ HOUSING INFORMATION OFFICE | BO89: SOH/ JUDICIARY/ ADMINISTRATIVE SERVICES DIV/ 3JC-OCCA-ASD | BP89: SOH/ LABOR & INDUSTRIAL RELATIONS/ SPEC ACTIVITIES UNIT | BQ89: SOH/ LAND & NATURAL RESOURCES/ LANAI | BS89: SOH/ PUBLIC SAFETY/ VOLUNTEER UNIT/ OCCC | BU89: SOH/ TRANSPORTATION/ AIRCRAFT RESCUE &FIREFIGHTING STAFF/ AIR-LF | BV89: SOH/ UNIVERSITY OF HAWAII/ OFC OF THE CHANCELLOR/ UH/MCC/CHAN
C90: 82 | Y90: 0 | Z90: 0 | AE90: 0 | AI90: 0 | AJ90: 0 | AK90: 0 | AL90: 0 | AM90: 0 | AN90: 0 | AO90: 0 | BB90: SOH/ ACCOUNTING & GENERAL SERVICES/ MOTOR POOL BR/ AUTO-1 | BC90: SOH/ AGRICULTURE/ MEASUREMENT STANDARDS BR/ MSB | BE90: SOH/ BUDGET & FINANCE/ RETIREMENT PROGRAM SERVICES | BH90: SOH/ DEFENSE/ HEADQUARTERS DETACHMENT, STARC/ HQDET | BI90: SOH/ EDUCATION/ MEDIA SVC STAFF | BL90: SOH/ HEALTH/ BHA/ CAMHD/ KAUAI FAMILY GUIDANCE CENTER | BN90: SOH/ HUMAN SERVICES/ FINANCE BRANCH | BO90: SOH/ JUDICIARY/ DEPUTY CHIEF COURT ADMINISTRATOR/ 3JC-OCCA-DCA | BP90: SOH/ LABOR & INDUSTRIAL RELATIONS/ WORKLOAD CONTROL UNIT | BQ90: SOH/ LAND & NATURAL RESOURCES/ MAUI TRAILS & ACCESS SECTION | BS90: SOH/ PUBLIC SAFETY/ HEALTH CARE SERVICES SECTION/ OCCC | BU90: SOH/ TRANSPORTATION/ COMPLIANCE MGMT STAFF/ AIR-LD | BV90: SOH/ UNIVERSITY OF HAWAII/ ADMINISTRATIVE SERVICES/ UH/MCC/ADMIN
C91: 83 | Y91: 0 | Z91: 0 | AE91: 0 | AI91: 0 | AJ91: 0 | AK91: 0 | AL91: 0 | AM91: 0 | AN91: 0 | AO91: 0 | BB91: SOH/ ACCOUNTING & GENERAL SERVICES/ NETWORK MANAGEMENT SECTION/ ICSD | BC91: SOH/ AGRICULTURE/ MEAT INSPECTION BR/ MI | BE91: SOH/ BUDGET & FINANCE/ SOCIAL PROBLEMS SECTION | BH91: SOH/ DEFENSE/ HEADQUARTERS DETACHMENT/ HITC-HD | BI91: SOH/ EDUCATION/ LIB PROMOTIONAL SVCS | BL91: SOH/ HEALTH/ BHA/ CAMHD/ FAMILY COURT LIAISON BR | BN91: SOH/ HUMAN SERVICES/ MORTGAGE & RENTAL FINANCING SECTION | BO91: SOH/ JUDICIARY/ COURT SUPPORT & OPERATIONS DIV/ 3JC-OCCA-CSOD | BP91: SOH/ LABOR & INDUSTRIAL RELATIONS/ TRANSACTIONS UNIT | BQ91: SOH/ LAND & NATURAL RESOURCES/ MAUI NATURAL AREAS RESERVE SEC | BS91: SOH/ PUBLIC SAFETY/ NURSING SERVICES UNIT/ OCCC | BU91: SOH/ TRANSPORTATION/ INFORMATION TECHNOLOGY OFFICE/ AIR-I | BV91: SOH/ UNIVERSITY OF HAWAII/ CONTINUING EDUCATION & TRAINING/ UH/MCC/CE&T
C92: 84 | Y92: 0 | Z92: 0 | AE92: 0 | AI92: 0 | AJ92: 0 | AK92: 0 | AL92: 0 | AM92: 0 | AN92: 0 | AO92: 0 | BB92: SOH/ ACCOUNTING & GENERAL SERVICES/ NETWORK PLNG & PROG SVCS SEC/ ICSD | BC92: SOH/ AGRICULTURE/ MICROBIOLOGY SEC/ VL/MICRO | BE92: SOH/ BUDGET & FINANCE/ SOH/ BUDGET & FINANCE/ B&F | BH92: SOH/ DEFENSE/ INFORMATION MANAGEMENT/ 201 CCGP/CCE | BI92: SOH/ EDUCATION/ AUDIO VISUAL SVCS | BN92: SOH/ HUMAN SERVICES/ MORTGAGE FINANCING UNIT | BO92: SOH/ JUDICIARY/ FIELD SECTION | BP92: SOH/ LABOR & INDUSTRIAL RELATIONS/ MONETARY PROCESSING SUBUNIT/ DLIR-UI | BQ92: SOH/ LAND & NATURAL RESOURCES/ ENDANGERED SPECIES CAPT REAR SEC | BS92: SOH/ PUBLIC SAFETY/ MEDICAL SERVICES UNIT/ OCCC | BU92: SOH/ TRANSPORTATION/ CLIENT SERVICES STAFF/ AIR-IC | BV92: SOH/ UNIVERSITY OF HAWAII/ INSTRUCTION/ UH/MCC/INST
C93: 85 | Y93: 0 | Z93: 0 | AE93: 0 | AI93: 0 | AJ93: 0 | AK93: 0 | AL93: 0 | AM93: 0 | AN93: 0 | AO93: 0 | BB93: SOH/ ACCOUNTING & GENERAL SERVICES/ OFFICE AUTOMATION SECTION/ ICSD | BC93: SOH/ AGRICULTURE/ MILK CONTROL SEC/ MILK | BE93: SOH/ BUDGET & FINANCE/ STAFF SUPPORT SERVICES | BH93: SOH/ DEFENSE/ INTELLIGENCE (S-2)/ HIIB-DS | BI93: SOH/ EDUCATION/ GRAPHIC SVCS | BN93: SOH/ HUMAN SERVICES/ RENTAL FINANCING UNIT | BO93: SOH/ JUDICIARY/ FIFTH JUDICIAL CIRCUIT -CHIEF JUDGE/ 5JC | BP93: SOH/ LABOR & INDUSTRIAL RELATIONS/ ADP & REC CONTR SUBUNIT | BQ93: SOH/ LAND & NATURAL RESOURCES/ OAHU FORESTRY & WILDLIFE RES MGMT | BS93: SOH/ PUBLIC SAFETY/ MEDICAL RECORDS UNIT/ OCCC | BU93: SOH/ TRANSPORTATION/ TECHNOLOGY SUPPORT STAFF/ AIR-IT | BV93: SOH/ UNIVERSITY OF HAWAII/ STUDENT SERVICES/ UH/MCC/STDT
C94: 86 | Y94: 0 | Z94: 0 | AE94: 0 | AI94: 0 | AJ94: 0 | AK94: 0 | AL94: 0 | AM94: 0 | AN94: 0 | AO94: 0 | BB94: SOH/ ACCOUNTING & GENERAL SERVICES/ OFFICE OF ELECTIONS | BC94: SOH/ AGRICULTURE/ MOLOKAI ED & CERT UT/ AGRPIPESTREMO | BE94: SOH/ BUDGET & FINANCE/ TECHNICAL STAFF | BH94: SOH/ DEFENSE/ KAUAI COUNTY | BI94: SOH/ EDUCATION/ PRINTING SVCS | BN94: SOH/ HUMAN SERVICES/ LOAN SERVICING SECTION | BO94: SOH/ JUDICIARY/ JUDGES & STAFF/ 5JC-J&S | BP94: SOH/ LABOR & INDUSTRIAL RELATIONS/ EMPLOYER SERVICES SECTION/ DLIR-UI | BQ94: SOH/ LAND & NATURAL RESOURCES/ CLERICAL SVCS | BS94: SOH/ PUBLIC SAFETY/ DENTAL SERVICES UNIT/ OCCC | BU94: SOH/ TRANSPORTATION/ INFRASTRUCTURE SUPPORT STAFF/ AIR-II | BV94: SOH/ UNIVERSITY OF HAWAII/ UNIV OF HAWAII CENTER, MAUI/ UH/MCC/UHCM
C95: 87 | Y95: 0 | Z95: 0 | AE95: 0 | AI95: 0 | AJ95: 0 | AK95: 0 | AL95: 0 | AM95: 0 | AN95: 0 | AO95: 0 | BB95: SOH/ ACCOUNTING & GENERAL SERVICES/ OFFICE OF INFO MGMT & TECHNOLOGY/ OIMT | BC95: SOH/ AGRICULTURE/ MOLOKAI IRRIG SYS BR/ ARMDMOL | BE95: SOH/ BUDGET & FINANCE/ TRANSPORTATION SECTION | BH95: SOH/ DEFENSE/ KAUAI SECTION | BI95: SOH/ EDUCATION/ LIBR FOUND TRUST | BN95: SOH/ HUMAN SERVICES/ REAL ESTATE SERVICES SECTION | BO95: SOH/ JUDICIARY/ DEPUTY CHIEF JUDGE/ 5JC-DCJ | BP95: SOH/ LABOR & INDUSTRIAL RELATIONS/ CLERICAL SERVICES | BQ95: SOH/ LAND & NATURAL RESOURCES/ OAHU FORESTS MGMT SEC | BS95: SOH/ PUBLIC SAFETY/ SPECIAL NEEDS SECTION/ OCCC | BU95: SOH/ TRANSPORTATION/ VISITOR INFORMATION OFFICE/ AIR-V | BV95: SOH/ UNIVERSITY OF HAWAII/ WINDWARD COMMUNITY COLLEGE/ UH/WCC
C96: 88 | Y96: 0 | Z96: 0 | AE96: 0 | AI96: 0 | AJ96: 0 | AK96: 0 | AL96: 0 | AM96: 0 | AN96: 0 | AO96: 0 | BB96: SOH/ ACCOUNTING & GENERAL SERVICES/ OFFICE OF THE COMPTROLLER/ COMP | BC96: SOH/ AGRICULTURE/ OAHU AIRPORT/ AGRPIPQM | BE96: SOH/ BUDGET & FINANCE/ TREASURY MANAGEMENT BRANCH | BH96: SOH/ DEFENSE/ LABOR RELATIONS SECTION | BI96: SOH/ EDUCATION/ ADV CNCL FOR LITCY | BN96: SOH/ HUMAN SERVICES/ SALES UNIT | BO96: SOH/ JUDICIARY/ DISTRICT JUDGES/ 5JC-DCJ-DJ | BP96: SOH/ LABOR & INDUSTRIAL RELATIONS/ AUDIT UNIT I | BQ96: SOH/ LAND & NATURAL RESOURCES/ RESOURCES MGMT | BS96: SOH/ PUBLIC SAFETY/ CLERICAL SUPPORT STAFF/ OCCC | BU96: SOH/ TRANSPORTATION/ ADMINISTRATIVE SERVICES/ AIR-VA | BV96: SOH/ UNIVERSITY OF HAWAII/ OFC OF THE CHANCELLOR/ UH/WCC/CHAN
C97: 89 | Y97: 0 | Z97: 0 | AE97: 0 | AI97: 0 | AJ97: 0 | AK97: 0 | AL97: 0 | AM97: 0 | AN97: 0 | AO97: 0 | BB97: SOH/ ACCOUNTING & GENERAL SERVICES/ P P O & MAINT SERV BR/ CSD-1 | BC97: SOH/ AGRICULTURE/ OAHU DISTRICT UT/ AGRPIPPCCMO | BE97: SOH/ BUDGET & FINANCE/ TRIAL DIVISION I | BH97: SOH/ DEFENSE/ LOGISTICS (S-4)/ HIIB-LG | BI97: SOH/ EDUCATION/ LITERACY & LLL PROG | BN97: SOH/ HUMAN SERVICES/ HOME OWNERSHIP & COUNSELING UNIT | BO97: SOH/ JUDICIARY/ OFC OF THE CHIEF COURT ADMINISTRATR/ 5JC-OCCA | BP97: SOH/ LABOR & INDUSTRIAL RELATIONS/ AUDIT UNIT II | BQ97: SOH/ LAND & NATURAL RESOURCES/ RESOURCES PROT | BS97: SOH/ PUBLIC SAFETY/ SECURITY UNIT/ OCCC | BU97: SOH/ TRANSPORTATION/ OFFICE SERVICES/ AIR-VS | BV97: SOH/ UNIVERSITY OF HAWAII/ ADMINISTRATIVE SERVICES/ UH/WCC/ADMIN
C98: 90 | Y98: 0 | Z98: 0 | AE98: 0 | AI98: 0 | AJ98: 0 | AK98: 0 | AL98: 0 | AM98: 0 | AN98: 0 | AO98: 0 | BB98: SOH/ ACCOUNTING & GENERAL SERVICES/ PARKING CONTROL BR/ AUTO-2 | BC98: SOH/ AGRICULTURE/ OAHU DISTRICT/ AGLNO | BE98: SOH/ BUDGET & FINANCE/ TRIAL DIVISION II | BH98: SOH/ DEFENSE/ LOGISTICS DIVISION/ HIPFL | BI98: SOH/ EDUCATION/ CENTRALIZED PROC CENTR | BN98: SOH/ HUMAN SERVICES/ LAND NEGOTIATION UNIT | BO98: SOH/ JUDICIARY/ DEPUTY CHIEF COURT ADMINISTRATOR/ 5JC-OCCA-DCA | BP98: SOH/ LABOR & INDUSTRIAL RELATIONS/ EMPLOYER ACCOUNTS UNIT | BQ98: SOH/ LAND & NATURAL RESOURCES/ OAHU FIELD OPER SEC | BS98: SOH/ PUBLIC SAFETY/ COUNSELING UNIT/ OCCC | BU98: SOH/ TRANSPORTATION/ VIS INFO HAWAII STAFF/ AIR-VH | BV98: SOH/ UNIVERSITY OF HAWAII/ EMPLOYMNT TRAIN CTR & CONT & COM ED/ UH/WCC/ETCCCE
C99: 91 | Y99: 0 | Z99: 0 | AE99: 0 | AI99: 0 | AJ99: 0 | AK99: 0 | AL99: 0 | AM99: 0 | AN99: 0 | AO99: 0 | BB99: SOH/ ACCOUNTING & GENERAL SERVICES/ PARKING CONTROL SECTION/ STAD-9 | BC99: SOH/ AGRICULTURE/ OAHU DISTRICT/ COMO | BE99: SOH/ BUDGET & FINANCE/ UNCLAIMED PROPERTY BRANCH | BH99: SOH/ DEFENSE/ LOGISTICS MANAGEMENT | BI99: SOH/ EDUCATION/ ADMINISTRATION | BN99: SOH/ HUMAN SERVICES/ DEVELOPMENT BRANCH | BO99: SOH/ JUDICIARY/ ADMINISTRATIVE SERVICES DIV/ 5JC-OCCA-ASD | BP99: SOH/ LABOR & INDUSTRIAL RELATIONS/ EMP REC SUBUNIT | BQ99: SOH/ LAND & NATURAL RESOURCES/ EQUIP OPERATIONS | BS99: SOH/ PUBLIC SAFETY/ RECEPTION, ASSMT DIAGNOSTIC UT/ OCCC | BU99: SOH/ TRANSPORTATION/ HILO INTL AIRPORT/ AIR-VH | BV99: SOH/ UNIVERSITY OF HAWAII/ INSTRUCTION/ UH/WCC/INST
C100: 92 | Y100: 0 | Z100: 0 | AE100: 0 | AI100: 0 | AJ100: 0 | AK100: 0 | AL100: 0 | AM100: 0 | AN100: 0 | AO100: 0 | BB100: SOH/ ACCOUNTING & GENERAL SERVICES/ PERSONNEL OFFICE/ PERS | BC100: SOH/ AGRICULTURE/ OAHU DISTRICT/ HASSO | BE100: SOH/ BUDGET & FINANCE/ TRIAL DIVISION II | BH100: SOH/ DEFENSE/ LOGISTICS OFFICE/ HIARL | BI100: SOH/ EDUCATION/ ORDER SEC | BN100: SOH/ HUMAN SERVICES/ DEVELOPMENT SECTION | BO100: SOH/ JUDICIARY/ CLIENT SERVICES DIV/ 5JC-OCCA-CSD | BP100: SOH/ LABOR & INDUSTRIAL RELATIONS/ TAX PROC SUBUNIT | BQ100: SOH/ LAND & NATURAL RESOURCES/ EQUIP/STRCT/BASEYD MNT | BS100: SOH/ PUBLIC SAFETY/ COMMUNITY BASED SECTION/ OCCC | BU100: SOH/ TRANSPORTATION/ KONA INTL AIRPORT/ AIR-VH | BV100: SOH/ UNIVERSITY OF HAWAII/ STUDENT SERVICES/ UH/WCC/STDT
C101: 93 | Y101: 0 | Z101: 0 | AE101: 0 | AI101: 0 | AJ101: 0 | AK101: 0 | AL101: 0 | AM101: 0 | AN101: 0 | AO101: 0 | BB101: SOH/ ACCOUNTING & GENERAL SERVICES/ PERSONNEL/ STAD-11 | BC101: SOH/ AGRICULTURE/ OAHU DISTRICT/ MI/OAHU | BE101: SOH/ BUDGET & FINANCE/ TRIAL DIVISION II | BH101: SOH/ DEFENSE/ LOGISTICS STAFF/ HITC-LG | BI101: SOH/ EDUCATION/ CATALOG SEC | BN101: SOH/ HUMAN SERVICES/ DEVELOPMENT UNIT 1 | BO101: SOH/ JUDICIARY/ COURT SUPPORT SERVICES DIV/ 5JC-OCCA-CSSD | BP101: SOH/ LABOR & INDUSTRIAL RELATIONS/ HAWAII BRANCH | BQ101: SOH/ LAND & NATURAL RESOURCES/ FIELD CREW | BS101: SOH/ PUBLIC SAFETY/ CLERICAL SUPPORT STAFF/ OCCC | BU101: SOH/ TRANSPORTATION/ VIS INFO OAHU STAFF/ AIR-VO
C102: 94 | Y102: 0 | Z102: 0 | AE102: 0 | AI102: 0 | AJ102: 0 | AK102: 0 | AL102: 0 | AM102: 0 | AN102: 0 | AO102: 0 | BB102: SOH/ ACCOUNTING & GENERAL SERVICES/ PLANNING & PROJECT MGMT OFFICE/ICSD | BC102: SOH/ AGRICULTURE/ OAHU ED & CERT UT/ AGRPIPESTREO | BE102: SOH/ BUDGET & FINANCE/ UNCLAIMED PROPERTY BRANCH | BH102: SOH/ DEFENSE/ MAINT SECTION | BI102: SOH/ EDUCATION/ BIBLIOG ACCESS UNIT | BN102: SOH/ HUMAN SERVICES/ DEVELOPMENT UNIT 2 | BO102: SOH/ JUDICIARY/ OPERATIONAL SUPPORT SERVICES DIV/ 5JC-OCCA-OSSD | BP102: SOH/ LABOR & INDUSTRIAL RELATIONS/ EMPLOYER SERVICES SEC | BQ102: SOH/ LAND & NATURAL RESOURCES/ OAHU WILDLIFE MGMT SEC | BS102: SOH/ PUBLIC SAFETY/ SECURITY UNIT/ OCCC | BU102: SOH/ TRANSPORTATION/ HONOLULU INTL AIRPORT/ AIR-VO
C103: 95 | Y103: 0 | Z103: 0 | AE103: 0 | AI103: 0 | AJ103: 0 | AK103: 0 | AL103: 0 | AM103: 0 | AN103: 0 | AO103: 0 | BB103: SOH/ ACCOUNTING & GENERAL SERVICES/ PLANNING BRANCH/ DPW-5 | BC103: SOH/ AGRICULTURE/ OAHU ENF UT/ AGRPIPESTENFO | BH103: SOH/ DEFENSE/ MAINTENANCE/ 154 CGP/MA | BI103: SOH/ EDUCATION/ CARD PREP UNIT | BN103: SOH/ HUMAN SERVICES/ DEVELOPMENT UNIT 3 | BO103: SOH/ JUDICIARY/ OFFICE OF ADMIN DIRECTOR | BP103: SOH/ LABOR & INDUSTRIAL RELATIONS/ HILO CLAIMS SECTION | BQ103: SOH/ LAND & NATURAL RESOURCES/ OAHU TRAILS & ACCESS SEC | BS103: SOH/ PUBLIC SAFETY/ COUNSELING UNIT/ OCCC | BU103: SOH/ TRANSPORTATION/ VIS INFO MAUI STAFF/ AIR-VM
C104: 96 | Y104: 0 | Z104: 0 | AE104: 0 | AI104: 0 | AJ104: 0 | AK104: 0 | AL104: 0 | AM104: 0 | AN104: 0 | AO104: 0 | BB104: SOH/ ACCOUNTING & GENERAL SERVICES/ PRE AUDIT BR/ ACCT-2 | BC104: SOH/ AGRICULTURE/ OAHU MARITIME/ AGRPIPQOM | BH104: SOH/ DEFENSE/ MAUI COUNTY | BI104: SOH/ EDUCATION/ PREP & BNDRY SEC | BN104: SOH/ HUMAN SERVICES/ DEVELOPMENT UNIT 4 | BO104: SOH/ JUDICIARY/ FISCAL SERVICES | BP104: SOH/ LABOR & INDUSTRIAL RELATIONS/ CLAIMS EXAM UNIT | BQ104: SOH/ LAND & NATURAL RESOURCES/ OAHU NATURAL AREAS RESERVE SEC | BS104: SOH/ PUBLIC SAFETY/ LAUMAKA UNIT/ OCCC | BU104: SOH/ TRANSPORTATION/ KAHULUI AIRPORT/ AIR-VM
C105: 97 | Y105: 0 | Z105: 0 | AE105: 0 | AI105: 0 | AJ105: 0 | AK105: 0 | AL105: 0 | AM105: 0 | AN105: 0 | AO105: 0 | BB105: SOH/ ACCOUNTING & GENERAL SERVICES/ PRODUCTION MANAGEMENT SECTION/ICSD | BC105: SOH/ AGRICULTURE/ OFFICE OF THE CHAIRPERSON/ CHR | BH105: SOH/ DEFENSE/ MAUI SECTION | BI105: SOH/ EDUCATION/ CENT SELEC SEC | BN105: SOH/ HUMAN SERVICES/ DEVELOPMENT UNIT 5 | BO105: SOH/ JUDICIARY/ SYSTEMS | BP105: SOH/ LABOR & INDUSTRIAL RELATIONS/ CLAIMS PROC UNIT | BQ105: SOH/ LAND & NATURAL RESOURCES/ KAUAI FORESTRY & WILDLIFE RES MGMT | BS105: SOH/ PUBLIC SAFETY/ PURCHASE OF SERVICES UNIT/ OCCC | BU105: SOH/ TRANSPORTATION/ MOLOKAI AIRPORT/ AIR-VM
C106: 98 | Y106: 0 | Z106: 0 | AE106: 0 | AI106: 0 | AJ106: 0 | AK106: 0 | AL106: 0 | AM106: 0 | AN106: 0 | AO106: 0 | BB106: SOH/ ACCOUNTING & GENERAL SERVICES/ PRODUCTION SERVICES BR/ICSD | BC106: SOH/ AGRICULTURE/ PERSONNEL MGMT STAFF/ PERMGMT | BH106: SOH/ DEFENSE/ MEMORIALS COMMISSION | BI106: SOH/ EDUCATION/ HAWAII STATE LIBRARY | BN106: SOH/ HUMAN SERVICES/ CONSTRUCTION MANAGEMENT SECTION | BO106: SOH/ JUDICIARY/ ACCOUNTING | BP106: SOH/ LABOR & INDUSTRIAL RELATIONS/ KONA CLAIMS SECTION | BQ106: SOH/ LAND & NATURAL RESOURCES/ CLERICAL SVCS | BS106: SOH/ PUBLIC SAFETY/ OPERATING SERVICES/ 0CCC | BU106: SOH/ TRANSPORTATION/ VIS INFO KAUAI STAFF/ AIR-VK
C107: 99 | Y107: 0 | Z107: 0 | AE107: 0 | AI107: 0 | AJ107: 0 | AK107: 0 | AL107: 0 | AM107: 0 | AN107: 0 | AO107: 0 | BB107: SOH/ ACCOUNTING & GENERAL SERVICES/ PROFESSIONAL STAFF SUPPORT UT/ICSD | BC107: SOH/ AGRICULTURE/ PESTICIDES ADV COMM/ AGRPIPESTADV | BH107: SOH/ DEFENSE/ MIL STAFF OFF, OPERATIONS & TRNG/ HIANG/DOT | BI107: SOH/ EDUCATION/ ADMINISTRATION | BN107: SOH/ HUMAN SERVICES/ CONSTRUCTION MANAGEMENT UNIT 1 | BO107: SOH/ JUDICIARY/ REPROGRAPHICS | BP107: SOH/ LABOR & INDUSTRIAL RELATIONS/ CLAIMS EXAM UNIT | BQ107: SOH/ LAND & NATURAL RESOURCES/ KAUAI FORESTS MGMT SEC | BS107: SOH/ PUBLIC SAFETY/ CLERICAL SUPPORT SERVICES/ OCCC | BU107: SOH/ TRANSPORTATION/ LIHUE AIPORT/ AIR-VIS
C108: 100 | Y108: 0 | Z108: 0 | AE108: 0 | AI108: 0 | AJ108: 0 | AK108: 0 | AL108: 0 | AM108: 0 | AN108: 0 | AO108: 0 | BB108: SOH/ ACCOUNTING & GENERAL SERVICES/ PROGRAM SUPPORT OFFICE/ICSD | BC108: SOH/ AGRICULTURE/ PESTICIDES BR/ AGRPIPEST | BH108: SOH/ DEFENSE/ MILITARY PERSONNEL OFFICE/ HIARPO | BI108: SOH/ EDUCATION/ LIB OPNS SEC | BN108: SOH/ HUMAN SERVICES/ CONSTRUCTION MANAGEMENT UNIT 2 | BO108: SOH/ JUDICIARY/ PUBLIC INFORMATION | BP108: SOH/ LABOR & INDUSTRIAL RELATIONS/ CLAIMS PROC UNIT | BQ108: SOH/ LAND & NATURAL RESOURCES/ RESOURCES MGMT | BS108: SOH/ PUBLIC SAFETY/ COMMISSARY & PROPERTY UNIT/ OCCC | BU108: SOH/ TRANSPORTATION/ OAHU DISTRICT/ AIR-O
C109: 101 | Y109: 0 | Z109: 0 | AE109: 0 | AI109: =IF(AE109<=0,AG109,AE109+AG109) -> 0 | AJ109: 0 | AK109: 0 | AL109: 0 | AM109: 0 | AN109: 0 | AO109: 0 | BB109: SOH/ ACCOUNTING & GENERAL SERVICES/ PROJECT CONTROL STAFF/ DPW-3 | BC109: SOH/ AGRICULTURE/ PLANNING & DEVELOPMENT OFFICE/ PDO | BH109: SOH/ DEFENSE/ OAHU COUNTY | BI109: SOH/ EDUCATION/ CIRC UNIT | BN109: SOH/ HUMAN SERVICES/ TECHNICAL SERVICES SECTION | BO109: SOH/ JUDICIARY/ RECORDS MANAGEMENT | BP109: SOH/ LABOR & INDUSTRIAL RELATIONS/ MAUI BRANCH | BQ109: SOH/ LAND & NATURAL RESOURCES/ RESOURCES PROT | BS109: SOH/ PUBLIC SAFETY/ FOOD SERVICE UNIT/ OCCC | BU109: SOH/ TRANSPORTATION/ OFFICE SERVICES/ AIR-OSU
C110: 102 | Y110: 0 | Z110: 0 | AE110: 0 | AI110: =IF(AE110<=0,AG110,AE110+AG110) -> 0 | AJ110: 0 | AK110: 0 | AL110: 0 | AM110: 0 | AN110: 0 | AO110: 0 | BB110: SOH/ ACCOUNTING & GENERAL SERVICES/ PROJECT MANAGEMENT BRANCH/ DPW-8 | BC110: SOH/ AGRICULTURE/ PLANNING STAFF | BH110: SOH/ DEFENSE/ OAHU SECTION | BI110: SOH/ EDUCATION/ INTERLIB LOANS UNIT | BN110: SOH/ HUMAN SERVICES/ ARCHITECTURAL & ENGINEERING UNIT | BO110: SOH/ JUDICIARY/ OAHU | BP110: SOH/ LABOR & INDUSTRIAL RELATIONS/ EMPLOYER SERVICES SEC | BQ110: SOH/ LAND & NATURAL RESOURCES/ KAUAI FIELD OPER SEC | BS110: SOH/ PUBLIC SAFETY/ CONSTRUCTION & MAINTENANCE UNIT/ OCCC | BU110: SOH/ TRANSPORTATION/ FISCAL STAFF/ AIR-OSU
C111: 103 | Y111: 0 | Z111: 0 | AE111: 0 | AI111: 0 | AJ111: 0 | AK111: 0 | AL111: 0 | AM111: 0 | AN111: 0 | AO111: 0 | BB111: SOH/ ACCOUNTING & GENERAL SERVICES/ PUB BLDG MGMT SERV BR/ CSD-9 | BC111: SOH/ AGRICULTURE/ PLANT INDUSTRY DIV/ AGRPI | BH111: SOH/ DEFENSE/ OFFICE OF THE ADJUTANT GENERAL/ HITAG | BI111: SOH/ EDUCATION/ ACQUISN RECS UNIT | BN111: SOH/ HUMAN SERVICES/ INSPECTION UNIT | BP111: SOH/ LABOR & INDUSTRIAL RELATIONS/ WAILUKU CLAIMS SEC | BQ111: SOH/ LAND & NATURAL RESOURCES/ EQUIP OPERATIONS | BS111: SOH/ PUBLIC SAFETY/ PRINT SHOP UNIT/ OCCC | BU111: SOH/ TRANSPORTATION/ PERSONNEL STAFF/ AIR-OSU
C112: 104 | Y112: 0 | Z112: 0 | AE112: 0 | AI112: 0 | AJ112: 0 | AK112: 0 | AL112: 0 | AM112: 0 | AN112: 0 | AO112: 0 | BB112: SOH/ ACCOUNTING & GENERAL SERVICES/ PUBLIC WORKS BR/ HAW-1 | BC112: SOH/ AGRICULTURE/ PLANT PEST CONTROL BR/ AGRPIPPC | BH112: SOH/ DEFENSE/ OFFICE OF VETERANS SERVICES/ HIOVS | BI112: SOH/ EDUCATION/ MAINT UNIT | BN112: SOH/ HUMAN SERVICES/ PROPERTY MGMT & MAINTENANCE BRANCH | BP112: SOH/ LABOR & INDUSTRIAL RELATIONS/ CLAIMS EXAM UNIT | BQ112: SOH/ LAND & NATURAL RESOURCES/ EQUIP/STRCT BASEYD MNT | BS112: SOH/ PUBLIC SAFETY/ SECURITY SECTION/ OCCC | BU112: SOH/ TRANSPORTATION/ GENERAL CLERICAL STAFF/ AIR-OSU
C113: 105 | Y113: 0 | Z113: 0 | AE113: 0 | AI113: 0 | AJ113: 0 | AK113: 0 | AL113: 0 | AM113: 0 | AN113: 0 | AO113: 0 | BB113: SOH/ ACCOUNTING & GENERAL SERVICES/ PUBLIC WORKS BR/ KAU-1 | BC113: SOH/ AGRICULTURE/ PLANT QUARANTINE BR/ AGRPIPQ | BH113: SOH/ DEFENSE/ OPERATIONS/ 154 CGP/DO | BI113: SOH/ EDUCATION/ CEN REF & INFO UNIT | BN113: SOH/ HUMAN SERVICES/ APPLICATION & SUBSIDY PROGRAMS SEC | BP113: SOH/ LABOR & INDUSTRIAL RELATIONS/ CLAIMS PROC UNIT | BQ113: SOH/ LAND & NATURAL RESOURCES/ FIELD CREW | BS113: SOH/ PUBLIC SAFETY/ CLERICAL SUPPORT STAFF/ OCCC | BU113: SOH/ TRANSPORTATION/ AIRPORT ADMINISTRATIVE SERVICES/ AIR-OAM
C114: 106 | Y114: 0 | Z114: 0 | AE114: 0 | AI114: 0 | AJ114: 0 | AK114: 0 | AL114: 0 | AM114: 0 | AN114: 0 | AO114: 0 | BB114: SOH/ ACCOUNTING & GENERAL SERVICES/ PUBLIC WORKS BR/ MAUI-1 | BC114: SOH/ AGRICULTURE/ PLANTS & ANIMALS ADV COMM/ AGRPIPQADV | BH114: SOH/ DEFENSE/ PERSONNEL OFFICE (S-1)/ HIIB-PA | BI114: SOH/ EDUCATION/ TELEPHONE REF UNIT | BN114: SOH/ HUMAN SERVICES/ APPLICATION SERVICES UNIT | BP114: SOH/ LABOR & INDUSTRIAL RELATIONS/ KAUNAKAKAI CLAIMS | BQ114: SOH/ LAND & NATURAL RESOURCES/ KAUAI WILDLIFE MGMT SEC | BS114: SOH/ PUBLIC SAFETY/ OPERATIONS UNIT/ OCCC | BU114: SOH/ TRANSPORTATION/ AIRPORT MANAGEMENT SERVICES/ AIR-OAS
C115: 107 | Y115: 0 | Z115: 0 | AE115: 0 | AI115: 0 | AJ115: 0 | AK115: 0 | AL115: 0 | AM115: 0 | AN115: 0 | AO115: 0 | BB115: SOH/ ACCOUNTING & GENERAL SERVICES/ PUBLIC WORKS DIVISION/ DPW-0 | BC115: SOH/ AGRICULTURE/ PRE-AUDIT SEC | BH115: SOH/ DEFENSE/ PERSONNEL OFFICER (S-1)/ HITC-PA | BI115: SOH/ EDUCATION/ FED DOCUMENTS SEC | BN115: SOH/ HUMAN SERVICES/ RENT SUBSIDY UNIT | BP115: SOH/ LABOR & INDUSTRIAL RELATIONS/ KAUAI BRANCH | BQ115: SOH/ LAND & NATURAL RESOURCES/ KAUAI TRAILS & ACCESS SEC | BS115: SOH/ PUBLIC SAFETY/ WOMENS COMMUNITY CORRECTIONAL CTR/ WCCC | BU115: SOH/ TRANSPORTATION/ HONOLULU INTL AIRPORT/ AIR-O
C116: 108 | Y116: 0 | Z116: 0 | AE116: 0 | AI116: 0 | AJ116: 0 | AK116: 0 | AL116: 0 | AM116: 0 | AN116: 0 | AO116: 0 | BB116: SOH/ ACCOUNTING & GENERAL SERVICES/ REC RET & DISP SEC/ ARCH-3 | BC116: SOH/ AGRICULTURE/ PRINTSHOP SEC/ PRNTSHOP | BH116: SOH/ DEFENSE/ PLANS & OPERATIONS BRANCH/ HICDCM | BI116: SOH/ EDUCATION/ CHILDRENS SEC | BN116: SOH/ HUMAN SERVICES/ RELOCATION UNIT | BP116: SOH/ LABOR & INDUSTRIAL RELATIONS/ EMPLOYER SERVICES SEC | BQ116: SOH/ LAND & NATURAL RESOURCES/ KAUAI NATURAL AREAS RESERVE SEC | BS116: SOH/ PUBLIC SAFETY/ OFFICE SERVICES STAFF/ WCCC | BU116: SOH/ TRANSPORTATION/ AIRSIDE OPERATIONS SECTION/ AIR-OO
C117: 109 | Y117: 0 | Z117: 0 | AE117: 0 | AI117: 0 | AJ117: 0 | AK117: 0 | AL117: 0 | AM117: 0 | AN117: 0 | AO117: 0 | BB117: SOH/ ACCOUNTING & GENERAL SERVICES/ RECORDS MGMT BR/ ARCH-1 | BC117: SOH/ AGRICULTURE/ PROCESS FOODS UNIT/ PFO | BH117: SOH/ DEFENSE/ PLANS & TRAINING (S-3)/ HIIB-PT | BI117: SOH/ EDUCATION/ SERIALS SECTION | BN117: SOH/ HUMAN SERVICES/ CLERICAL SERVICES UNIT | BP117: SOH/ LABOR & INDUSTRIAL RELATIONS/ KAUAI CLAIMS SECTION | BQ117: SOH/ LAND & NATURAL RESOURCES/ DIVISION OF LAND MANAGEMENT | BS117: SOH/ PUBLIC SAFETY/ HEALTH CARE SERVICES OFFICE/ WCCC | BU117: SOH/ TRANSPORTATION/ LANDSIDE OPERATIONS SECTION/ AIR-OL
C118: 110 | Y118: 0 | Z118: 0 | AE118: 0 | AI118: 0 | AJ118: 0 | AK118: 0 | AL118: 0 | AM118: 0 | AN118: 0 | AO118: 0 | BB118: SOH/ ACCOUNTING & GENERAL SERVICES/ RISK MANAGEMENT STAFF/ ASO-1 | BC118: SOH/ AGRICULTURE/ PROCESSED FOODS UNIT/ PFH | BH118: SOH/ DEFENSE/ PLANS, OPERATIONS & TRAINING/ HIARPOT | BI118: SOH/ EDUCATION/ SERIALS PROC UNIT | BN118: SOH/ HUMAN SERVICES/ MANAGEMENT SECTION | BP118: SOH/ LABOR & INDUSTRIAL RELATIONS/ CLAIMS EXAM UNIT | BQ118: SOH/ LAND & NATURAL RESOURCES/ LD RES OFC/ ELB | BS118: SOH/ PUBLIC SAFETY/ OFFENDER SERVICES SECTION/ WCCC | BU118: SOH/ TRANSPORTATION/ MAINTENANCE SECTION/ AIR-OM
C119: 111 | Y119: 0 | Z119: 0 | AE119: 0 | AI119: 0 | AJ119: 0 | AK119: 0 | AL119: 0 | AM119: 0 | AN119: 0 | AO119: 0 | BB119: SOH/ ACCOUNTING & GENERAL SERVICES/ SCHEDULING AND CONTROL UNIT(S)/ICSD | BC119: SOH/ AGRICULTURE/ PROCESSED FOODS UNIT/ PFK | BH119: SOH/ DEFENSE/ PUBLIC AFFAIRS OFFICE/ HIPAO | BI119: SOH/ EDUCATION/ YOUNG ADULT SEC | BN119: SOH/ HUMAN SERVICES/ MANAGEMENT UNIT 1 | BP119: SOH/ LABOR & INDUSTRIAL RELATIONS/ CLAIMS PROC UNIT | BQ119: SOH/ LAND & NATURAL RESOURCES/ INV/SHORE CERT | BS119: SOH/ PUBLIC SAFETY/ EDUCATION SERVICES/ WCCC | BU119: SOH/ TRANSPORTATION/ KALAEOLA AIRPORT/ AIR-O
C120: 112 | Y120: 0 | Z120: 0 | AE120: 0 | AI120: 0 | AJ120: 0 | AK120: 0 | AL120: 0 | AM120: 0 | AN120: 0 | AO120: 0 | BB120: SOH/ ACCOUNTING & GENERAL SERVICES/ SCOREBOARD OPNS SECTION/ STAD-10 | BC120: SOH/ AGRICULTURE/ PROCESSED FOODS UNIT/ PFM | BH120: SOH/ DEFENSE/ PUBLIC AFFAIRS OFFICER/ HIANG/PA | BI120: SOH/ EDUCATION/ SOC SCI & PHILOS SEC | BN120: SOH/ HUMAN SERVICES/ MANAGEMENT UNIT 2 | BP120: SOH/ LABOR & INDUSTRIAL RELATIONS/ WORKFORCE DEVELOPMENT DIV/ DLIR-WD | BQ120: SOH/ LAND & NATURAL RESOURCES/ APPRAISAL | BS120: SOH/ PUBLIC SAFETY/ OPERATING SERVICES SECTION/ WCCC | BU120: SOH/ TRANSPORTATION/ AIRCRAFT RESCUE & FIREFIGHTING UNIT/ AIR-OCF
C121: 113 | Y121: 0 | Z121: 0 | AE121: 0 | AI121: 0 | AJ121: 0 | AK121: 0 | AL121: 0 | AM121: 0 | AN121: 0 | AO121: 0 | BB121: SOH/ ACCOUNTING & GENERAL SERVICES/ SECTION A/ DPW-9 | BC121: SOH/ AGRICULTURE/ PROPERTY MGMT STAFF/ PROPMGMT | BH121: SOH/ DEFENSE/ PUBLIC INFORMATION SECTION | BI121: SOH/ EDUCATION/ BUS SCI & TECH SEC | BN121: SOH/ HUMAN SERVICES/ MANAGEMENT UNIT 3 | BP121: SOH/ LABOR & INDUSTRIAL RELATIONS/ PROG DEV, COORD & EVAL SVCS OFC | BQ121: SOH/ LAND & NATURAL RESOURCES/ ABST/DOCUMENT | BS121: SOH/ PUBLIC SAFETY/ FOOD SERVICES UNIT/ WCCC | BU121: SOH/ TRANSPORTATION/ AIR TRAFFIC CONTROL/ AIR-O
